Workbook

Sheet Форма1
F2: «ЧИСТАЯ ВОДА И ЭКОЛОГИЯ - ЗДОРОВОЕ ОБЩЕСТВО (LT-BY)»
F3: „CLEAN WATER AND ENVIRONMENT – HEALTHY SOCIETY (LT-BY)“
F5: ЗАКАЗЧИК: | K5: ОРГАНИЗАТОР:
B7: Проект проводится при поддержке Европейского Союза | F7: ГУКПП «Гродноводоканал» | K7: ООО «PVC»
B8: This project is funded by the European Union | F8: Республика Беларусь 230005, г. Гродно, ул. Дзержинского, 100 | K8: ул. Науёйи 85 7, LT 62387 г. Алитус, Литва
D15: ПОКАЗАТЕЛИ ИНВЕСТИЦИОННОГО РАСЧЕТА | J15: ТИП СЕТИ | K15: СОКРАЩЕНИЕ | L15: УРОВЕНЬ | M15: КОЭФ. ТРАССЫ
D17: Период оценки, год | E17: 30 | J17: Вывод | K17: ВВ | L17: 4 | M17: 0
D18: Финансовая ставка дисконтирования, % | E18: 0.05 | J18: Дворовая | K18: ДC | L18: 3 | M18: 0.08
D19: Экономико-социальная ставка дисконтирования, % | E19: 0.055 | J19: Уличная | K19: УС | L19: 2 | M19: 0.14
D20: Тариф НДС, % | E20: 0.2 | J20: Магистральная | K20: МС | L20: 1 | M20: 0.055
D21: Окупаемость | E21: 1
D22: Показатель оценки | E22: B/C | J22: Тип распределения | M22: 2
J23: Коэф. локальной трассы | M23: 3
J24: Коэф. локального участка | M24: 0.25
D33: ФИНАНСОВЫЕ ПОКАЗАТЕЛИ | J33: СОЦИАЛЬНО-ЭКОНОМИЧЕСКИЕ ПОКАЗАТЕЛИ
D35: ДОХОД | J35: ВЫГОДА
D37: Изменения тарифа канализационных сетей | E37: Физические | F37: Юридические | J37: Сэкономленное возмещение потребителям убытка из- за аварий, потребит. | K37: Физические | L37: Юридические
D38: руб./м3 | E38: 661.7 | F38: =8592*1.2 -> 10310.4 | J38: руб./ потребит. | K38: 2000000 | L38: 800000
D39: Изменение, % | E39: 0.02 | F39: 0.02 | J39: Влияние, % | K39: 0.01 | L39: 0.02
D40: Коэф. | E40: =E38*E39 -> 13.234 | F40: =F38*F39 -> 206.208 | J40: Коэф. | K40: =K38*K39 -> 20000 | L40: =L38*L39 -> 16000
D41: Норма, м3/д. | E41: 92
D42: Размер инвестиций, руб. | E42: 2000000000
D44: Изменение тарифа обслуж. канализ. сетей | E44: Aварий | F44: Досмотра | G44: Диагностики
D45: Средняя стоимость, руб./м | E45: 23000 | F45: 46000 | G45: 18000
D48: РАСХОДЫ | J48: СТОИМОСТЬ
D50: Размер реинвестиций, % | E50: 0.3
D51: Периодичность реинвестиций, годы | E51: 8
D53: Кредитный порог, руб. | E53: 80000000
D54: Кредитный год, год | E54: 3
D55: Рыночная процентная ставка, % | E55: 0.07
D57: Спад потребления из-за проводимых работ
D58: Сумма инвестиций в день, руб. | E58: 20000000

Sheet Форма2
B1: Относительное количество дефектов | D1: Defekto pavadinimas | E1: Раструб трубы | F1: Трещина | G1: Препятствие для течения, Проникновение корня | H1: Скопление осадков, жира | I1: Лежащий на дне объект, препятствие | J1: Смещение | K1: Разрыв трубы, обрушение, Разрушение
A2: Частота | B2: От | C2: До | D2: Defektas | E2: S | F2: R | G2: H | J2: L | K2: B
A3: Max. | E3: =MAX(Расчеты1!U:U) -> 138.8888889 | F3: =MAX(Расчеты1!V:V) -> 95.23809524 | G3: =MAX(Расчеты1!W:W) -> 214.2857143 | H3: =MAX(Расчеты1!X:X) -> 0 | I3: =MAX(Расчеты1!Y:Y) -> 0 | J3: =MAX(Расчеты1!Z:Z) -> 444.4444444 | K3: =MAX(Расчеты1!AA:AA) -> 25.64102564
A4: 1 | D4: =SUM(E4:K4) -> 500 | E4: 60 | F4: 50 | G4: 70 | H4: 130 | I4: 60 | J4: 100 | K4: 30
A5: koef. | E5: =1/E6/(E4/10) -> 1.111111111 | F5: 1 | G5: 1.098901099 | H5: 3.846153846 | I5: 1.111111111 | J5: 2 | K5: 1.111111111
A6: =MROUND(MAX(E3:K3)/10,5) -> 45 | B6: Вероятность аварии в сети | D6: =SUM(E6:K6) -> 1 | E6: 0.15 | F6: 0.2 | G6: 0.13 | H6: 0.02 | I6: 0.15 | J6: 0.05 | K6: 0.3
A7: 1 | B7: 0 | C7: =B7+MROUND(MAX($E$3:$K$3)/10,5) -> 45 | D7: =SUM(E$6:K$6*E7:K7) -> 0.1075549451 | E7: =AVERAGE($B7:$C7)*E$6/$A$6*E$5 -> 0.08333333333 | F7: 0.1 | G7: 0.07142857143 | H7: 0.03846153846 | I7: 0.08333333333 | J7: 0.05 | K7: 0.1666666667
A8: 2 | B8: =C7 -> 45 | C8: =B8+MROUND(MAX($E$3:$K$3)/10,5) -> 90 | D8: =SUM(E$6:K$6*E8:K8) -> 0.3226648352 | E8: 0.25 | F8: 0.3 | G8: 0.2142857143 | H8: 0.1153846154 | I8: 0.25 | J8: 0.15 | K8: 0.5
A9: 3 | B9: =C8 -> 90 | C9: 135 | D9: =SUM(E$6:K$6*E9:K9) -> 0.5377747253 | E9: 0.4166666667 | F9: 0.5 | G9: 0.3571428571 | H9: 0.1923076923 | I9: 0.4166666667 | J9: 0.25 | K9: 0.8333333333
A10: 4 | B10: 135 | C10: 180 | D10: =SUM(E$6:K$6*E10:K10) -> 0.7528846154 | E10: 0.5833333333 | F10: 0.7 | G10: 0.5 | H10: 0.2692307692 | I10: 0.5833333333 | J10: 0.35 | K10: 1.166666667
A11: 5 | B11: 180 | C11: 225 | D11: =SUM(E$6:K$6*E11:K11) -> 0.9679945055 | E11: 0.75 | F11: 0.9 | G11: 0.6428571429 | H11: 0.3461538462 | I11: 0.75 | J11: 0.45 | K11: 1.5
A12: 6 | B12: 225 | C12: 270 | D12: =SUM(E$6:K$6*E12:K12) -> 1.183104396 | E12: 0.9166666667 | F12: 1.1 | G12: 0.7857142857 | H12: 0.4230769231 | I12: 0.9166666667 | J12: 0.55 | K12: 1.833333333
A13: 7 | B13: 270 | C13: 315 | D13: =SUM(E$6:K$6*E13:K13) -> 1.398214286 | E13: 1.083333333 | F13: 1.3 | G13: 0.9285714286 | H13: 0.5 | I13: 1.083333333 | J13: 0.65 | K13: 2.166666667
A14: 8 | B14: 315 | C14: 360 | D14: =SUM(E$6:K$6*E14:K14) -> 1.613324176 | E14: 1.25 | F14: 1.5 | G14: 1.071428571 | H14: 0.5769230769 | I14: 1.25 | J14: 0.75 | K14: 2.5
A15: 9 | B15: 360 | C15: 405 | D15: =SUM(E$6:K$6*E15:K15) -> 1.828434066 | E15: 1.416666667 | F15: 1.7 | G15: 1.214285714 | H15: 0.6538461538 | I15: 1.416666667 | J15: 0.85 | K15: 2.833333333
A16: 10 | B16: 405 | C16: 450 | D16: =SUM(E$6:K$6*E16:K16) -> 2.043543956 | E16: 1.583333333 | F16: 1.9 | G16: 1.357142857 | H16: 0.7307692308 | I16: 1.583333333 | J16: 0.95 | K16: 3.166666667
A17: Частота | B17: Тип работ | D17: 3000 | E17: =$D17*E$6 -> 450 | F17: =$D17*F$6 -> 600 | G17: 390 | H17: 60 | I17: 450 | J17: 150 | K17: 900
A18: 1 | B18: =B$7 -> 0 | C18: =C$7 -> 45 | E18: Ремонт - Участок | F18: Ремонт - Участок | G18: Мех. устран. - Трасса | H18: - - - | I18: Промывка - Трасса | J18: - - - | K18: Ремонт - Участок
A19: 2 | B19: =B$8 -> 45 | C19: =C$8 -> 90 | E19: Ремонт - Участок | F19: Ремонт - Участок | G19: Мех. устран. - Трасса | H19: Промывка - Трасса | I19: Мех. устран. - Трасса | J19: - - - | K19: Ремонт - Участок
A20: 3 | B20: =B$9 -> 90 | C20: =C$9 -> 135 | E20: Ремонт - Трасса | F20: Ремонт - Трасса | G20: Мех. устран. - Трасса | H20: Промывка - Трасса | I20: Мех. устран. - Трасса | J20: Ремонт - Участок | K20: Ремонт - Трасса
A21: 4 | B21: =B$10 -> 135 | C21: =C$10 -> 180 | E21: Ремонт - Трасса | F21: Ремонт - Трасса | G21: Мех. устран. - Трасса | H21: Мех. устран. - Трасса | I21: Ремонт - Трасса | J21: Ремонт - Трасса | K21: Замена - Трасса
A22: 5 | B22: =B$11 -> 180 | C22: =C$11 -> 225 | E22: Ремонт - Трасса | F22: Ремонт - Трасса | G22: Мех. устран. - Трасса | H22: Мех. устран. - Трасса | I22: Ремонт - Трасса | J22: Ремонт - Трасса | K22: Замена - Трасса
A23: 6 | B23: =B$12 -> 225 | C23: =C$12 -> 270 | E23: Ремонт - Трасса | F23: Ремонт - Сеть | G23: Ремонт - Трасса | H23: Ремонт - Трасса | I23: Ремонт - Трасса | J23: Замена - Сеть | K23: Замена - Сеть
A24: 7 | B24: =B$13 -> 270 | C24: =C$13 -> 315 | E24: Замена - Сеть | F24: Замена - Сеть | G24: Ремонт - Трасса | H24: Ремонт - Трасса | I24: Замена - Сеть | J24: Замена - Сеть | K24: Замена - Сеть
A25: 8 | B25: =B$14 -> 315 | C25: =C$14 -> 360 | E25: Замена - Сеть | F25: Замена - Сеть | G25: Ремонт - Сеть | H25: Ремонт - Трасса | I25: Замена - Сеть | J25: Замена - Сеть | K25: Замена - Сеть
A26: 9 | B26: =B$15 -> 360 | C26: =C$15 -> 405 | E26: Замена - Сеть | F26: Замена - Сеть | G26: Замена - Сеть | H26: Замена - Сеть | I26: Замена - Сеть | J26: Замена - Сеть | K26: Замена - Сеть
A27: 10 | B27: =B$16 -> 405 | C27: =C$16 -> 450 | E27: Замена - Сеть | F27: Замена - Сеть | G27: Замена - Сеть | H27: Замена - Сеть | I27: Замена - Сеть | J27: Замена - Сеть | K27: Замена - Сеть
A28: Частота | B28: Тип инвестиций
A29: 1 | B29: =B$7 -> 0 | C29: =C$7 -> 45 | E29: =VLOOKUP(E18,Форма3!$B$17:$D$62,2,0) -> РМНТ-ЛУ | F29: =VLOOKUP(F18,Форма3!$B$17:$D$62,2,0) -> РМНТ-ЛУ | G29: =VLOOKUP(G18,Форма3!$B$17:$D$62,2,0) -> УСТР-ЛТ | H29: =VLOOKUP(H18,Форма3!$B$17:$D$62,2,0) -> --- | I29: =VLOOKUP(I18,Форма3!$B$17:$D$62,2,0) -> ПРОМ-ЛТ | J29: =VLOOKUP(J18,Форма3!$B$17:$D$62,2,0) -> --- | K29: =VLOOKUP(K18,Форма3!$B$17:$D$62,2,0) -> РМНТ-ЛУ
A30: 2 | B30: =B$8 -> 45 | C30: =C$8 -> 90 | E30: =VLOOKUP(E19,Форма3!$B$17:$D$62,2,0) -> РМНТ-ЛУ | F30: =VLOOKUP(F19,Форма3!$B$17:$D$62,2,0) -> РМНТ-ЛУ | G30: =VLOOKUP(G19,Форма3!$B$17:$D$62,2,0) -> УСТР-ЛТ | H30: =VLOOKUP(H19,Форма3!$B$17:$D$62,2,0) -> ПРОМ-ЛТ | I30: =VLOOKUP(I19,Форма3!$B$17:$D$62,2,0) -> УСТР-ЛТ | J30: =VLOOKUP(J19,Форма3!$B$17:$D$62,2,0) -> --- | K30: =VLOOKUP(K19,Форма3!$B$17:$D$62,2,0) -> РМНТ-ЛУ
A31: 3 | B31: =B$9 -> 90 | C31: =C$9 -> 135 | E31: =VLOOKUP(E20,Форма3!$B$17:$D$62,2,0) -> РМНТ-ЛТ | F31: =VLOOKUP(F20,Форма3!$B$17:$D$62,2,0) -> РМНТ-ЛТ | G31: =VLOOKUP(G20,Форма3!$B$17:$D$62,2,0) -> УСТР-ЛТ | H31: =VLOOKUP(H20,Форма3!$B$17:$D$62,2,0) -> ПРОМ-ЛТ | I31: =VLOOKUP(I20,Форма3!$B$17:$D$62,2,0) -> УСТР-ЛТ | J31: =VLOOKUP(J20,Форма3!$B$17:$D$62,2,0) -> РМНТ-ЛУ | K31: =VLOOKUP(K20,Форма3!$B$17:$D$62,2,0) -> РМНТ-ЛТ
A32: 4 | B32: =B$10 -> 135 | C32: =C$10 -> 180 | E32: =VLOOKUP(E21,Форма3!$B$17:$D$62,2,0) -> РМНТ-ЛТ | F32: =VLOOKUP(F21,Форма3!$B$17:$D$62,2,0) -> РМНТ-ЛТ | G32: =VLOOKUP(G21,Форма3!$B$17:$D$62,2,0) -> УСТР-ЛТ | H32: =VLOOKUP(H21,Форма3!$B$17:$D$62,2,0) -> УСТР-ЛТ | I32: =VLOOKUP(I21,Форма3!$B$17:$D$62,2,0) -> РМНТ-ЛТ | J32: =VLOOKUP(J21,Форма3!$B$17:$D$62,2,0) -> РМНТ-ЛТ | K32: =VLOOKUP(K21,Форма3!$B$17:$D$62,2,0) -> ЗАМН-ЛТ
A33: 5 | B33: =B$11 -> 180 | C33: =C$11 -> 225 | E33: =VLOOKUP(E22,Форма3!$B$17:$D$62,2,0) -> РМНТ-ЛТ | F33: =VLOOKUP(F22,Форма3!$B$17:$D$62,2,0) -> РМНТ-ЛТ | G33: =VLOOKUP(G22,Форма3!$B$17:$D$62,2,0) -> УСТР-ЛТ | H33: =VLOOKUP(H22,Форма3!$B$17:$D$62,2,0) -> УСТР-ЛТ | I33: =VLOOKUP(I22,Форма3!$B$17:$D$62,2,0) -> РМНТ-ЛТ | J33: =VLOOKUP(J22,Форма3!$B$17:$D$62,2,0) -> РМНТ-ЛТ | K33: =VLOOKUP(K22,Форма3!$B$17:$D$62,2,0) -> ЗАМН-ЛТ
A34: 6 | B34: =B$12 -> 225 | C34: =C$12 -> 270 | E34: =VLOOKUP(E23,Форма3!$B$17:$D$62,2,0) -> РМНТ-ЛТ | F34: =VLOOKUP(F23,Форма3!$B$17:$D$62,2,0) -> РМНТ-ИС | G34: =VLOOKUP(G23,Форма3!$B$17:$D$62,2,0) -> РМНТ-ЛТ | H34: =VLOOKUP(H23,Форма3!$B$17:$D$62,2,0) -> РМНТ-ЛТ | I34: =VLOOKUP(I23,Форма3!$B$17:$D$62,2,0) -> РМНТ-ЛТ | J34: =VLOOKUP(J23,Форма3!$B$17:$D$62,2,0) -> ЗАМН-ИС | K34: =VLOOKUP(K23,Форма3!$B$17:$D$62,2,0) -> ЗАМН-ИС
A35: 7 | B35: =B$13 -> 270 | C35: =C$13 -> 315 | E35: =VLOOKUP(E24,Форма3!$B$17:$D$62,2,0) -> ЗАМН-ИС | F35: =VLOOKUP(F24,Форма3!$B$17:$D$62,2,0) -> ЗАМН-ИС | G35: =VLOOKUP(G24,Форма3!$B$17:$D$62,2,0) -> РМНТ-ЛТ | H35: =VLOOKUP(H24,Форма3!$B$17:$D$62,2,0) -> РМНТ-ЛТ | I35: =VLOOKUP(I24,Форма3!$B$17:$D$62,2,0) -> ЗАМН-ИС | J35: =VLOOKUP(J24,Форма3!$B$17:$D$62,2,0) -> ЗАМН-ИС | K35: =VLOOKUP(K24,Форма3!$B$17:$D$62,2,0) -> ЗАМН-ИС
A36: 8 | B36: =B$14 -> 315 | C36: =C$14 -> 360 | E36: =VLOOKUP(E25,Форма3!$B$17:$D$62,2,0) -> ЗАМН-ИС | F36: =VLOOKUP(F25,Форма3!$B$17:$D$62,2,0) -> ЗАМН-ИС | G36: =VLOOKUP(G25,Форма3!$B$17:$D$62,2,0) -> РМНТ-ИС | H36: =VLOOKUP(H25,Форма3!$B$17:$D$62,2,0) -> РМНТ-ЛТ | I36: =VLOOKUP(I25,Форма3!$B$17:$D$62,2,0) -> ЗАМН-ИС | J36: =VLOOKUP(J25,Форма3!$B$17:$D$62,2,0) -> ЗАМН-ИС | K36: =VLOOKUP(K25,Форма3!$B$17:$D$62,2,0) -> ЗАМН-ИС
A37: 9 | B37: =B$15 -> 360 | C37: =C$15 -> 405 | E37: =VLOOKUP(E26,Форма3!$B$17:$D$62,2,0) -> ЗАМН-ИС | F37: =VLOOKUP(F26,Форма3!$B$17:$D$62,2,0) -> ЗАМН-ИС | G37: =VLOOKUP(G26,Форма3!$B$17:$D$62,2,0) -> ЗАМН-ИС | H37: =VLOOKUP(H26,Форма3!$B$17:$D$62,2,0) -> ЗАМН-ИС | I37: =VLOOKUP(I26,Форма3!$B$17:$D$62,2,0) -> ЗАМН-ИС | J37: =VLOOKUP(J26,Форма3!$B$17:$D$62,2,0) -> ЗАМН-ИС | K37: =VLOOKUP(K26,Форма3!$B$17:$D$62,2,0) -> ЗАМН-ИС
A38: 10 | B38: =B$16 -> 405 | C38: =C$16 -> 450 | E38: =VLOOKUP(E27,Форма3!$B$17:$D$62,2,0) -> ЗАМН-ИС | F38: =VLOOKUP(F27,Форма3!$B$17:$D$62,2,0) -> ЗАМН-ИС | G38: =VLOOKUP(G27,Форма3!$B$17:$D$62,2,0) -> ЗАМН-ИС | H38: =VLOOKUP(H27,Форма3!$B$17:$D$62,2,0) -> ЗАМН-ИС | I38: =VLOOKUP(I27,Форма3!$B$17:$D$62,2,0) -> ЗАМН-ИС | J38: =VLOOKUP(J27,Форма3!$B$17:$D$62,2,0) -> ЗАМН-ИС | K38: =VLOOKUP(K27,Форма3!$B$17:$D$62,2,0) -> ЗАМН-ИС
A39: Частота | B39: Инвестиционный приоритет
A40: 1 | B40: =B$7 -> 0 | C40: =C$7 -> 45 | E40: =VLOOKUP(E18,Форма3!$B$17:$D$62,3,0) -> 0.35 | F40: =VLOOKUP(F18,Форма3!$B$17:$D$62,3,0) -> 0.35 | G40: =VLOOKUP(G18,Форма3!$B$17:$D$62,3,0) -> 0.4 | H40: =VLOOKUP(H18,Форма3!$B$17:$D$62,3,0) -> 0 | I40: =VLOOKUP(I18,Форма3!$B$17:$D$62,3,0) -> 0.35 | J40: =VLOOKUP(J18,Форма3!$B$17:$D$62,3,0) -> 0 | K40: =VLOOKUP(K18,Форма3!$B$17:$D$62,3,0) -> 0.35
A41: 2 | B41: =B$8 -> 45 | C41: =C$8 -> 90 | E41: =VLOOKUP(E19,Форма3!$B$17:$D$62,3,0) -> 0.35 | F41: =VLOOKUP(F19,Форма3!$B$17:$D$62,3,0) -> 0.35 | G41: =VLOOKUP(G19,Форма3!$B$17:$D$62,3,0) -> 0.4 | H41: =VLOOKUP(H19,Форма3!$B$17:$D$62,3,0) -> 0.35 | I41: =VLOOKUP(I19,Форма3!$B$17:$D$62,3,0) -> 0.4 | J41: =VLOOKUP(J19,Форма3!$B$17:$D$62,3,0) -> 0 | K41: =VLOOKUP(K19,Форма3!$B$17:$D$62,3,0) -> 0.35
A42: 3 | B42: =B$9 -> 90 | C42: =C$9 -> 135 | E42: =VLOOKUP(E20,Форма3!$B$17:$D$62,3,0) -> 0.55 | F42: =VLOOKUP(F20,Форма3!$B$17:$D$62,3,0) -> 0.55 | G42: =VLOOKUP(G20,Форма3!$B$17:$D$62,3,0) -> 0.4 | H42: =VLOOKUP(H20,Форма3!$B$17:$D$62,3,0) -> 0.35 | I42: =VLOOKUP(I20,Форма3!$B$17:$D$62,3,0) -> 0.4 | J42: =VLOOKUP(J20,Форма3!$B$17:$D$62,3,0) -> 0.35 | K42: =VLOOKUP(K20,Форма3!$B$17:$D$62,3,0) -> 0.55
A43: 4 | B43: =B$10 -> 135 | C43: =C$10 -> 180 | E43: =VLOOKUP(E21,Форма3!$B$17:$D$62,3,0) -> 0.55 | F43: =VLOOKUP(F21,Форма3!$B$17:$D$62,3,0) -> 0.55 | G43: =VLOOKUP(G21,Форма3!$B$17:$D$62,3,0) -> 0.4 | H43: =VLOOKUP(H21,Форма3!$B$17:$D$62,3,0) -> 0.4 | I43: =VLOOKUP(I21,Форма3!$B$17:$D$62,3,0) -> 0.55 | J43: =VLOOKUP(J21,Форма3!$B$17:$D$62,3,0) -> 0.55 | K43: =VLOOKUP(K21,Форма3!$B$17:$D$62,3,0) -> 0.9
A44: 5 | B44: =B$11 -> 180 | C44: =C$11 -> 225 | E44: =VLOOKUP(E22,Форма3!$B$17:$D$62,3,0) -> 0.55 | F44: =VLOOKUP(F22,Форма3!$B$17:$D$62,3,0) -> 0.55 | G44: =VLOOKUP(G22,Форма3!$B$17:$D$62,3,0) -> 0.4 | H44: =VLOOKUP(H22,Форма3!$B$17:$D$62,3,0) -> 0.4 | I44: =VLOOKUP(I22,Форма3!$B$17:$D$62,3,0) -> 0.55 | J44: =VLOOKUP(J22,Форма3!$B$17:$D$62,3,0) -> 0.55 | K44: =VLOOKUP(K22,Форма3!$B$17:$D$62,3,0) -> 0.9
A45: 6 | B45: =B$12 -> 225 | C45: =C$12 -> 270 | E45: =VLOOKUP(E23,Форма3!$B$17:$D$62,3,0) -> 0.55 | F45: =VLOOKUP(F23,Форма3!$B$17:$D$62,3,0) -> 0.85 | G45: =VLOOKUP(G23,Форма3!$B$17:$D$62,3,0) -> 0.55 | H45: =VLOOKUP(H23,Форма3!$B$17:$D$62,3,0) -> 0.55 | I45: =VLOOKUP(I23,Форма3!$B$17:$D$62,3,0) -> 0.55 | J45: =VLOOKUP(J23,Форма3!$B$17:$D$62,3,0) -> 1.2 | K45: =VLOOKUP(K23,Форма3!$B$17:$D$62,3,0) -> 1.2
A46: 7 | B46: =B$13 -> 270 | C46: =C$13 -> 315 | E46: =VLOOKUP(E24,Форма3!$B$17:$D$62,3,0) -> 1.2 | F46: =VLOOKUP(F24,Форма3!$B$17:$D$62,3,0) -> 1.2 | G46: =VLOOKUP(G24,Форма3!$B$17:$D$62,3,0) -> 0.55 | H46: =VLOOKUP(H24,Форма3!$B$17:$D$62,3,0) -> 0.55 | I46: =VLOOKUP(I24,Форма3!$B$17:$D$62,3,0) -> 1.2 | J46: =VLOOKUP(J24,Форма3!$B$17:$D$62,3,0) -> 1.2 | K46: =VLOOKUP(K24,Форма3!$B$17:$D$62,3,0) -> 1.2
A47: 8 | B47: =B$14 -> 315 | C47: =C$14 -> 360 | E47: =VLOOKUP(E25,Форма3!$B$17:$D$62,3,0) -> 1.2 | F47: =VLOOKUP(F25,Форма3!$B$17:$D$62,3,0) -> 1.2 | G47: =VLOOKUP(G25,Форма3!$B$17:$D$62,3,0) -> 0.85 | H47: =VLOOKUP(H25,Форма3!$B$17:$D$62,3,0) -> 0.55 | I47: =VLOOKUP(I25,Форма3!$B$17:$D$62,3,0) -> 1.2 | J47: =VLOOKUP(J25,Форма3!$B$17:$D$62,3,0) -> 1.2 | K47: =VLOOKUP(K25,Форма3!$B$17:$D$62,3,0) -> 1.2
A48: 9 | B48: =B$15 -> 360 | C48: =C$15 -> 405 | E48: =VLOOKUP(E26,Форма3!$B$17:$D$62,3,0) -> 1.2 | F48: =VLOOKUP(F26,Форма3!$B$17:$D$62,3,0) -> 1.2 | G48: =VLOOKUP(G26,Форма3!$B$17:$D$62,3,0) -> 1.2 | H48: =VLOOKUP(H26,Форма3!$B$17:$D$62,3,0) -> 1.2 | I48: =VLOOKUP(I26,Форма3!$B$17:$D$62,3,0) -> 1.2 | J48: =VLOOKUP(J26,Форма3!$B$17:$D$62,3,0) -> 1.2 | K48: =VLOOKUP(K26,Форма3!$B$17:$D$62,3,0) -> 1.2
A49: 10 | B49: =B$16 -> 405 | C49: =C$16 -> 450 | E49: =VLOOKUP(E27,Форма3!$B$17:$D$62,3,0) -> 1.2 | F49: =VLOOKUP(F27,Форма3!$B$17:$D$62,3,0) -> 1.2 | G49: =VLOOKUP(G27,Форма3!$B$17:$D$62,3,0) -> 1.2 | H49: =VLOOKUP(H27,Форма3!$B$17:$D$62,3,0) -> 1.2 | I49: =VLOOKUP(I27,Форма3!$B$17:$D$62,3,0) -> 1.2 | J49: =VLOOKUP(J27,Форма3!$B$17:$D$62,3,0) -> 1.2 | K49: =VLOOKUP(K27,Форма3!$B$17:$D$62,3,0) -> 1.2

Sheet Форма3
A1: Распределение работ | E1: 0 | F1: =E1+1 -> 1 | G1: =F1+1 -> 2 | H1: =G1+1 -> 3 | I1: =H1+1 -> 4 | J1: 5 | K1: Darbų kaina su PVM, Lt/m | O1: 0 | P1: =O1+1 -> 1 | Q1: =P1+1 -> 2 | R1: =Q1+1 -> 3 | S1: =R1+1 -> 4 | T1: =S1+1 -> 5
E2: - | F2: Участок | G2: Трасса | H2: Сеть | O2: - | P2: Участок | Q2: Трасса | R2: Двор. сеть | S2: Уличн. сеть | T2: Maгистр.сеть
E3: - | F3: Локальный участок | G3: Локальная трасса | H3: Инвестиционная сеть | O3: - | P3: Локальный участок | Q3: Локальная трасса | R3: Двор. сеть | S3: Уличн. сеть | T3: Maгистр. сеть
D4: =SUM(D6:D10) -> 1 | E4: - | F4: ЛУ | G4: ЛТ | H4: ИС | O4: - | P4: ЛУ | Q4: ЛТ | R4: ДC | S4: УС | T4: MС
C5: =SUM(E5:J5) -> 1 | D5: =SUM(E5:J5,D6:D10) -> 2 | E5: 0 | F5: 0.1 | G5: 0.3 | H5: 0.6
A6: 0 | B6: - | C6: - | D6: 0 | E6: =IF(AND($D6<>0,E$5<>0),SUM($D6,E$5),0) -> 0 | F6: =IF(AND($D6<>0,F$5<>0),SUM($D6,F$5),0) -> 0 | G6: 0 | H6: 0 | I6: 0 | J6: 0 | K6: 0 | L6: - | M6: -
A7: =A6+1 -> 1 | B7: Промывка | C7: ПРОМ | D7: 0.05 | E7: =IF(AND($D7<>0,E$5<>0),SUM($D7,E$5),0) -> 0 | F7: 0.15 | G7: 0.35 | H7: 0.65 | I7: 0 | J7: 0 | K7: =K6+1 -> 1 | L7: Промывка | M7: ПРОМ | P7: 0 | Q7: 100000 | R7: 100000 | S7: 120000 | T7: 160000
A8: =A7+1 -> 2 | B8: Мех. устран. | C8: УСТР | D8: 0.1 | E8: 0 | F8: 0.2 | G8: 0.4 | H8: 0.7 | I8: 0 | J8: 0 | K8: =K7+1 -> 2 | L8: Мех. устран. | M8: УСТР | P8: 0 | Q8: 160000 | R8: 160000 | S8: 200000 | T8: 400000
A9: =A8+1 -> 3 | B9: Ремонт | C9: РМНТ | D9: 0.25 | E9: 0 | F9: 0.35 | G9: 0.55 | H9: 0.85 | I9: 0 | J9: 0 | K9: =K8+1 -> 3 | L9: Ремонт | M9: РМНТ | P9: 400000 | Q9: 600000 | R9: 600000 | S9: 1000000 | T9: 2000000
A10: =A9+1 -> 4 | B10: Замена | C10: ЗАМН | D10: 0.6 | E10: 0 | F10: 0.7 | G10: 0.9 | H10: 1.2 | I10: 0 | J10: 0 | K10: =K9+1 -> 4 | L10: Замена | M10: ЗАМН | P10: 600000 | Q10: 1000000 | R10: 1000000 | S10: 2000000 | T10: 3000000
A11: =A10+1 -> 5 | E11: 0 | F11: 0 | G11: 0 | H11: 0 | I11: 0 | J11: 0 | K11: =K10+1 -> 5
A12: 6 | E12: 0 | F12: 0 | G12: 0 | H12: 0 | I12: 0 | J12: 0 | K12: 6
A13: 7 | E13: 0 | F13: 0 | G13: 0 | H13: 0 | I13: 0 | J13: 0 | K13: 7
A14: 8 | E14: 0 | F14: 0 | G14: 0 | H14: 0 | I14: 0 | J14: 0 | K14: 8
A15: 9 | E15: 0 | F15: 0 | G15: 0 | H15: 0 | I15: 0 | J15: 0 | K15: 9
A16: =VALUE(MAX((A6:A15)*(NOT(ISBLANK(B6:B15))))&MAX(E1:J1)) -> 45 | K16: =VALUE(MAX((K6:K15)*(NOT(ISBLANK(L6:L15))))&MAX(O1:T1)) -> 45
B17: =IF(A17>A$16,"- - -",INDEX($B$6:$B$15,TRUNC(A17,10)/10+1)&" - "&INDEX($E$2:$J$2,,MOD(A17,10)+1)) -> - - - | C17: =IF(A17>A$16,"---",INDEX($C$6:$C$15,TRUNC(A17,10)/10+1)&"-"&INDEX($E$4:$J$4,,MOD(A17,10)+1)) -> --- | D17: =IF(A17>A$16,0,INDEX($E$6:$J$15,TRUNC(A17,10)/10+1,MOD(A17,10)+1)) -> 0 | L17: =IF(K17>K$16,"- - -",INDEX($L$6:$L$15,TRUNC(K17,10)/10+1)&" - "&INDEX($O$2:$T$2,,MOD(K17,10)+1)) -> - - - | M17: =IF(K17>K$16,"---",INDEX($M$6:$M$15,TRUNC(K17,10)/10+1)&"-"&INDEX($O$4:$T$4,,MOD(K17,10)+1)) -> --- | N17: =IF(K17>K$16,0,INDEX($O$6:$T$15,TRUNC(K17,10)/10+1,MOD(K17,10)+1)) -> 0
A18: =IF(IF((MOD(A17,10)+1)>MOD(A$16,10),1,MOD(A17,10)+1)=1,TRUNC(A17/10)*10+10,TRUNC(A17/10)*10)+IF((MOD(A17,10)+1)>MOD(A$16,10),1,MOD(A17,10)+1) -> 11 | B18: Промывка - Участок | C18: ПРОМ-ЛУ | D18: 0.15 | K18: =IF(IF((MOD(K17,10)+1)>MOD(K$16,10),1,MOD(K17,10)+1)=1,TRUNC(K17/10)*10+10,TRUNC(K17/10)*10)+IF((MOD(K17,10)+1)>MOD(K$16,10),1,MOD(K17,10)+1) -> 11 | L18: Промывка - Участок | M18: ПРОМ-ЛУ | N18: 0
A19: =IF(IF((MOD(A18,10)+1)>MOD(A$16,10),1,MOD(A18,10)+1)=1,TRUNC(A18/10)*10+10,TRUNC(A18/10)*10)+IF((MOD(A18,10)+1)>MOD(A$16,10),1,MOD(A18,10)+1) -> 12 | B19: Промывка - Трасса | C19: ПРОМ-ЛТ | D19: 0.35 | K19: =IF(IF((MOD(K18,10)+1)>MOD(K$16,10),1,MOD(K18,10)+1)=1,TRUNC(K18/10)*10+10,TRUNC(K18/10)*10)+IF((MOD(K18,10)+1)>MOD(K$16,10),1,MOD(K18,10)+1) -> 12 | L19: Промывка - Трасса | M19: ПРОМ-ЛТ | N19: 100000
A20: 13 | B20: Промывка - Сеть | C20: ПРОМ-ИС | D20: 0.65 | K20: 13 | L20: Промывка - Двор. сеть | M20: ПРОМ-ДC | N20: 100000
A21: 14 | B21: Промывка - | C21: ПРОМ- | D21: 0 | K21: 14 | L21: Промывка - Уличн. сеть | M21: ПРОМ-УС | N21: 120000
A22: 15 | B22: Промывка - | C22: ПРОМ- | D22: 0 | K22: 15 | L22: Промывка - Maгистр.сеть | M22: ПРОМ-MС | N22: 160000
A23: 21 | B23: Мех. устран. - Участок | C23: УСТР-ЛУ | D23: 0.2 | K23: 21 | L23: Мех. устран. - Участок | M23: УСТР-ЛУ | N23: 0
A24: 22 | B24: Мех. устран. - Трасса | C24: УСТР-ЛТ | D24: 0.4 | K24: 22 | L24: Мех. устран. - Трасса | M24: УСТР-ЛТ | N24: 160000
A25: 23 | B25: Мех. устран. - Сеть | C25: УСТР-ИС | D25: 0.7 | K25: 23 | L25: Мех. устран. - Двор. сеть | M25: УСТР-ДC | N25: 160000
A26: 24 | B26: Мех. устран. - | C26: УСТР- | D26: 0 | K26: 24 | L26: Мех. устран. - Уличн. сеть | M26: УСТР-УС | N26: 200000
A27: 25 | B27: Мех. устран. - | C27: УСТР- | D27: 0 | K27: 25 | L27: Мех. устран. - Maгистр.сеть | M27: УСТР-MС | N27: 400000
A28: 31 | B28: Ремонт - Участок | C28: РМНТ-ЛУ | D28: 0.35 | K28: 31 | L28: Ремонт - Участок | M28: РМНТ-ЛУ | N28: 400000
A29: 32 | B29: Ремонт - Трасса | C29: РМНТ-ЛТ | D29: 0.55 | K29: 32 | L29: Ремонт - Трасса | M29: РМНТ-ЛТ | N29: 600000
A30: 33 | B30: Ремонт - Сеть | C30: РМНТ-ИС | D30: 0.85 | K30: 33 | L30: Ремонт - Двор. сеть | M30: РМНТ-ДC | N30: 600000
A31: 34 | B31: Ремонт - | C31: РМНТ- | D31: 0 | K31: 34 | L31: Ремонт - Уличн. сеть | M31: РМНТ-УС | N31: 1000000
A32: 35 | B32: Ремонт - | C32: РМНТ- | D32: 0 | K32: =IF(IF((MOD(K31,10)+1)>MOD(K$16,10),1,MOD(K31,10)+1)=1,TRUNC(K31/10)*10+10,TRUNC(K31/10)*10)+IF((MOD(K31,10)+1)>MOD(K$16,10),1,MOD(K31,10)+1) -> 35 | L32: Ремонт - Maгистр.сеть | M32: РМНТ-MС | N32: 2000000
A33: 41 | B33: Замена - Участок | C33: ЗАМН-ЛУ | D33: 0.7 | K33: 41 | L33: Замена - Участок | M33: ЗАМН-ЛУ | N33: 600000
A34: 42 | B34: Замена - Трасса | C34: ЗАМН-ЛТ | D34: 0.9 | K34: 42 | L34: Замена - Трасса | M34: ЗАМН-ЛТ | N34: 1000000
A35: 43 | B35: Замена - Сеть | C35: ЗАМН-ИС | D35: 1.2 | K35: 43 | L35: Замена - Двор. сеть | M35: ЗАМН-ДC | N35: 1000000
A36: 44 | B36: Замена - | C36: ЗАМН- | D36: 0 | K36: 44 | L36: Замена - Уличн. сеть | M36: ЗАМН-УС | N36: 2000000
A37: 45 | B37: Замена - | C37: ЗАМН- | D37: 0 | K37: 45 | L37: Замена - Maгистр.сеть | M37: ЗАМН-MС | N37: 3000000
A38: 51 | B38: - - - | C38: --- | D38: 0 | K38: 51 | L38: - - - | M38: --- | N38: 0
A39: 52 | B39: - - - | C39: --- | D39: 0 | K39: 52 | L39: - - - | M39: --- | N39: 0
A40: 53 | B40: - - - | C40: --- | D40: 0 | K40: 53 | L40: - - - | M40: --- | N40: 0
A41: 54 | B41: - - - | C41: --- | D41: 0 | K41: 54 | L41: - - - | M41: --- | N41: 0
A42: 55 | B42: - - - | C42: --- | D42: 0 | K42: 55 | L42: - - - | M42: --- | N42: 0
A43: 61 | B43: - - - | C43: --- | D43: 0 | K43: 61 | L43: - - - | M43: --- | N43: 0
A44: 62 | B44: - - - | C44: --- | D44: 0 | K44: 62 | L44: - - - | M44: --- | N44: 0
A45: 63 | B45: - - - | C45: --- | D45: 0 | K45: 63 | L45: - - - | M45: --- | N45: 0
A46: 64 | B46: - - - | C46: --- | D46: 0 | K46: 64 | L46: - - - | M46: --- | N46: 0
A47: 65 | B47: - - - | C47: --- | D47: 0 | K47: 65 | L47: - - - | M47: --- | N47: 0
A48: 71 | B48: - - - | C48: --- | D48: 0 | K48: 71 | L48: - - - | M48: --- | N48: 0
A49: 72 | B49: - - - | C49: --- | D49: 0 | K49: 72 | L49: - - - | M49: --- | N49: 0
A50: 73 | B50: - - - | C50: --- | D50: 0 | K50: 73 | L50: - - - | M50: --- | N50: 0
A51: 74 | B51: - - - | C51: --- | D51: 0 | K51: 74 | L51: - - - | M51: --- | N51: 0
A52: 75 | B52: - - - | C52: --- | D52: 0 | K52: 75 | L52: - - - | M52: --- | N52: 0
A53: 81 | B53: - - - | C53: --- | D53: 0 | K53: 81 | L53: - - - | M53: --- | N53: 0
A54: 82 | B54: - - - | C54: --- | D54: 0 | K54: 82 | L54: - - - | M54: --- | N54: 0
A55: 83 | B55: - - - | C55: --- | D55: 0 | K55: 83 | L55: - - - | M55: --- | N55: 0
A56: 84 | B56: - - - | C56: --- | D56: 0 | K56: 84 | L56: - - - | M56: --- | N56: 0
A57: 85 | B57: - - - | C57: --- | D57: 0 | K57: 85 | L57: - - - | M57: --- | N57: 0
A58: 91 | B58: - - - | C58: --- | D58: 0 | K58: 91 | L58: - - - | M58: --- | N58: 0
A59: 92 | B59: - - - | C59: --- | D59: 0 | K59: 92 | L59: - - - | M59: --- | N59: 0
A60: 93 | B60: - - - | C60: --- | D60: 0 | K60: 93 | L60: - - - | M60: --- | N60: 0
A61: 94 | B61: - - - | C61: --- | D61: 0 | K61: 94 | L61: - - - | M61: --- | N61: 0
A62: 95 | B62: - - - | C62: --- | D62: 0 | K62: 95 | L62: - - - | M62: --- | N62: 0

Sheet ПЛАН
A1: Район | B1: ИС | C1: Уровень | D1: Tип | E1: MС | F1: УС | G1: ДС | H1: ВВ | I1: Длина, м | J1: Инвестиции | K1: FNPV | L1: FIRR | M1: FPP | N1: ENPV | O1: EIRR | P1: B/C | Q1: EPP
A2: "Девятовка" | B2: Т21 | C2: ДC | D2: --- | E2: М3 | F2: Т21 | G2: --- | H2: 3 | I2: 38 | J2: 912000 | K2: -559809.9934 | L2: 0 | M2: 0 | N2: 6210648.04 | O2: 0.5557217702 | P2: 6.028638817 | Q2: 4.415968196
A3: "Девятовка" | B3: Т33 | C3: ДC | D3: --- | E3: М1 | F3: Т33 | G3: --- | H3: 3 | I3: 18 | J3: 1123200 | K3: 2502622.349 | L3: 0.2994287395 | M3: 9.663934097 | N3: 7526315.545 | O3: 0 | P3: 5.948827264 | Q3: 0.7899167455
A4: "Девятовка" | B4: Т48 | C4: ДC | D4: --- | E4: М4 | F4: Т48 | G4: --- | H4: 3 | I4: 46 | J4: 1104000 | K4: -677613.0316 | L4: 0 | M4: 0 | N4: 7095952.395 | O4: 0.5377337894 | P4: 5.745981848 | Q4: 4.438656654
A5: "Девятовка" | B5: Т37 | C5: ДC | D5: --- | E5: М1 | F5: Т37 | G5: --- | H5: 3 | I5: 20 | J5: 768000 | K5: 1436634.488 | L5: 0.2485144968 | M5: 10.61947243 | N5: 4539270.292 | O5: 1.220228552 | P5: 5.365332769 | Q5: 2.573585103
A6: "Девятовка" | B6: Т30 | C6: ДC | D6: --- | E6: М3 | F6: Т30 | G6: --- | H6: 3 | I6: 53 | J6: 1272000 | K6: -450321.1108 | L6: 0.007816969463 | M6: 0 | N6: 6562336.5 | O6: 0.6228848505 | P6: 4.809631383 | Q6: 3.584847271
A7: "Девятовка" | B7: Т88 | C7: ДC | D7: --- | E7: М4 | F7: Т88 | G7: --- | H7: 3 | I7: 44 | J7: 1689600 | K7: 1598509.524 | L7: 0.1474656244 | M7: 17.12410152 | N7: 7002060.118 | O7: 0.6187845257 | P7: 4.060327406 | Q7: 3.675205238
A8: "Девятовка" | B8: Т38 | C8: ДC | D8: --- | E8: М1 | F8: Т38 | G8: --- | H8: 3 | I8: 32 | J8: 768000 | K8: -869106.1356 | L8: 0 | M8: 0 | N8: 2961177.214 | O8: 0.2477384136 | P8: 3.84739821 | Q8: 8.554695631
A9: "Девятовка" | B9: Т60 | C9: ДC | D9: --- | E9: М1 | F9: Т60 | G9: --- | H9: 3 | I9: 78 | J9: 4867200 | K9: 2359822.312 | L9: 0.1005363954 | M9: 21.32273419 | N9: 14877990.64 | O9: 0.5802823068 | P9: 3.256589815 | Q9: 4.573680858
A10: "Девятовка" | B10: Т39 | C10: ДC | D10: --- | E10: М1 | F10: Т39 | G10: --- | H10: 3 | I10: 36 | J10: 1382400 | K10: 416372.462 | L10: 0.08181658007 | M10: 26.35164534 | N10: 3643443.164 | O10: 0.3560258115 | P10: 2.946514351 | Q10: 4.886955414
A11: "Девятовка" | B11: Т90 | C11: ДC | D11: --- | E11: М4 | F11: Т90 | G11: --- | H11: 3 | I11: 36 | J11: 2246400 | K11: 841038.5726 | L11: 0.08966583334 | M11: 22.87644398 | N11: 5792075.976 | O11: 0.5812109066 | P11: 2.904066772 | Q11: 4.323693352
A12: "Девятовка" | B12: Т22 | C12: ДC | D12: --- | E12: М3 | F12: Т22 | G12: --- | H12: 3 | I12: 96 | J12: 3686400 | K12: -2259366.266 | L12: 0 | M12: 0 | N12: 9207112.755 | O12: 0.2263101609 | P12: 2.843461348 | Q12: 7.798404996
A13: "Девятовка" | B13: Т67 | C13: ДC | D13: --- | E13: М2 | F13: Т67 | G13: --- | H13: 3 | I13: 73 | J13: 1752000 | K13: -1833244.55 | L13: 0 | M13: 0 | N13: 4314585.493 | O13: 0.223364832 | P13: 2.818384871 | Q13: 7.805109023
A14: "Девятовка" | B14: Т62 | C14: ДC | D14: --- | E14: М2 | F14: Т62 | G14: --- | H14: 3 | I14: 94 | J14: 5865600 | K14: -1039244.986 | L14: 0.02994350593 | M14: 0 | N14: 14449359.56 | O14: 0.3048060992 | P14: 2.818257886 | Q14: 6.76988559
A15: "Девятовка" | B15: Т31 | C15: ДC | D15: --- | E15: М3 | F15: Т31 | G15: --- | H15: 3 | I15: 76 | J15: 2918400 | K15: -1788756.231 | L15: 0 | M15: 0 | N15: 6101974.013 | O15: 0.2078319818 | P15: 2.543662863 | Q15: 7.944117176
A16: "Девятовка" | B16: Т84 | C16: ДC | D16: --- | E16: М4 | F16: Т84 | G16: --- | H16: 3 | I16: 52 | J16: 1996800 | K16: -1224061.577 | L16: 0 | M16: 0 | N16: 4137854.958 | O16: 0.2069661475 | P16: 2.530193832 | Q16: 7.951992901
A17: "Девятовка" | B17: Т36 | C17: ДC | D17: --- | E17: М1 | F17: Т36 | G17: --- | H17: 3 | I17: 68 | J17: 4243200 | K17: -752117.9086 | L17: 0.02992319198 | M17: 0 | N17: 8142822.353 | O17: 0.2601482699 | P17: 2.41694591 | Q17: 10.3019933
A18: "Девятовка" | B18: Т28 | C18: ДC | D18: --- | E18: М3 | F18: Т28 | G18: --- | H18: 3 | I18: 48 | J18: 4147200 | K18: 974230.3371 | L18: 0.0752174964 | M18: 27.46278678 | N18: 7844044.117 | O18: 0.7381108755 | P18: 2.396571675 | Q18: 10.72051531
A19: "Девятовка" | B19: Т20 | C19: ДC | D19: --- | E19: М3 | F19: Т20 | G19: --- | H19: 3 | I19: 80 | J19: 1920000 | K19: -1500781.505 | L19: 0 | M19: 0 | N19: 3442271.922 | O19: 0.1956663554 | P19: 2.324080254 | Q19: 11.47093337
A20: "Девятовка" | B20: Т14 | C20: ДC | D20: --- | E20: М1 | F20: Т14 | G20: --- | H20: 3 | I20: 94 | J20: 2256000 | K20: -2360506.598 | L20: 0 | M20: 0 | N20: 3873768.763 | O20: 0.1874269018 | P20: 2.267870654 | Q20: 12.01858505
A21: "Девятовка" | B21: Т49 | C21: ДC | D21: --- | E21: М4 | F21: Т49 | G21: --- | H21: 3 | I21: 88 | J21: 5491200 | K21: -3173816.538 | L21: 0 | M21: 0 | N21: 7936411.934 | O21: 0.1863266348 | P21: 2.06696097 | Q21: 13.30411397
A22: "Девятовка" | B22: Т34 | C22: ДC | D22: --- | E22: М1 | F22: Т34 | G22: --- | H22: 3 | I22: 91 | J22: 5678400 | K22: -3281909.615 | L22: 0 | M22: 0 | N22: 8025716.485 | O22: 0.1839617974 | P22: 2.043385369 | Q22: 13.32532655
A23: "Девятовка" | B23: Т12 | C23: ДC | D23: --- | E23: М1 | F23: Т12 | G23: --- | H23: 3 | I23: 48 | J23: 1843200 | K23: -1129948.268 | L23: 0 | M23: 0 | N23: 2492190.793 | O23: 0.1684216649 | P23: 1.998550465 | Q23: 14.10659781
A24: "Девятовка" | B24: Т26 | C24: ДC | D24: --- | E24: М3 | F24: Т26 | G24: --- | H24: 3 | I24: 60 | J24: 3744000 | K24: -2164194.63 | L24: 0 | M24: 0 | N24: 4948570.38 | O24: 0.1771280033 | P24: 1.975971143 | Q24: 13.39021736
A25: "Девятовка" | B25: Т80 | C25: ДC | D25: --- | E25: М4 | F25: Т80 | G25: --- | H25: 3 | I25: 52 | J25: 3244800 | K25: 1393163.578 | L25: 0.0960398556 | M25: 22.0300089 | N25: 3842393.129 | O25: 0.2694924056 | P25: 1.874607955 | Q25: 11.55710313
A26: "Девятовка" | B26: Т1 | C26: ДC | D26: --- | E26: М1 | F26: Т1 | G26: --- | H26: 3 | I26: 174 | J26: 4176000 | K26: -4369271.298 | L26: 0 | M26: 0 | N26: 4736581.512 | O26: 0.1531759203 | P26: 1.837338525 | Q26: 12.30822024
A27: "Девятовка" | B27: Т73 | C27: ДC | D27: --- | E27: М4 | F27: Т73 | G27: --- | H27: 3 | I27: 64 | J27: 4608000 | K27: -4194706.097 | L27: 0 | M27: 0 | N27: 4751194.752 | O27: 0.2225033827 | P27: 1.761363147 | Q27: 14.12446395
A28: "Девятовка" | B28: Т81 | C28: ДC | D28: --- | E28: М4 | F28: Т81 | G28: --- | H28: 3 | I28: 44 | J28: 1689600 | K28: 1598796.463 | L28: 0.1474203217 | M28: 17.12255917 | N28: 1733169.233 | O28: 0.1917409754 | P28: 1.757190132 | Q28: 13.79174278
A29: "Девятовка" | B29: Т19 | C29: ДC | D29: --- | E29: М3 | F29: Т19 | G29: --- | H29: 3 | I29: 60 | J29: 3744000 | K29: -33661.59026 | L29: 0.04901759493 | M29: 0 | N29: 3713397.124 | O29: 0.177642404 | P29: 1.732531084 | Q29: 13.88700833
A30: "Девятовка" | B30: Т78 | C30: ДC | D30: --- | E30: М4 | F30: Т78 | G30: --- | H30: 3 | I30: 92 | J30: 5740800 | K30: -3318247.931 | L30: 0 | M30: 0 | N30: 5106228.972 | O30: 0.1426633856 | P30: 1.656739365 | Q30: 13.80800722
A31: "Девятовка" | B31: Т51 | C31: ДC | D31: --- | E31: М4 | F31: Т51 | G31: --- | H31: 3 | I31: 204 | J31: 12729600 | K31: -9915584.571 | L31: 0 | M31: 0 | N31: 11017050.76 | O31: 0.140428451 | P31: 1.638433235 | Q31: 14.51320943
A32: "Девятовка" | B32: Т35 | C32: ДC | D32: --- | E32: М1 | F32: Т35 | G32: --- | H32: 3 | I32: 66 | J32: 5702400 | K32: -3761379.475 | L32: 0 | M32: 0 | N32: 4770658.837 | O32: 0.1419891075 | P32: 1.617712047 | Q32: 18.46486173
A33: "Девятовка" | B33: Т61 | C33: ДC | D33: --- | E33: М2 | F33: Т61 | G33: --- | H33: 3 | I33: 238 | J33: 14851200 | K33: -8581385.732 | L33: 0 | M33: 0 | N33: 12330502.77 | O33: 0.1375667369 | P33: 1.612605934 | Q33: 13.88574236
A34: "Девятовка" | B34: Т7 | C34: ДC | D34: --- | E34: М1 | F34: Т7 | G34: --- | H34: 3 | I34: 20 | J34: 3648000 | K34: -1922702.313 | L34: 0 | M34: 0 | N34: 2501528.35 | O34: 0.1712507834 | P34: 1.50644987 | Q34: 17.81108521
A35: "Девятовка" | B35: Т6 | C35: ДC | D35: --- | E35: М1 | F35: Т6 | G35: --- | H35: 3 | I35: 210 | J35: 10080000 | K35: -10922500.73 | L35: 0 | M35: 0 | N35: 6903710.431 | O35: 0.1156599974 | P35: 1.505523364 | Q35: 17.75556171
A36: "Девятовка" | B36: Т2 | C36: ДC | D36: --- | E36: М1 | F36: Т2 | G36: --- | H36: 3 | I36: 108 | J36: 5184000 | K36: -5617869.473 | L36: 0 | M36: 0 | N36: 3299283.06 | O36: 0.1119442951 | P36: 1.469948596 | Q36: 17.83911022
A37: "Девятовка" | B37: Т74 | C37: ДC | D37: --- | E37: М4 | F37: Т74 | G37: --- | H37: 3 | I37: 62 | J37: 3868800 | K37: -494644.4634 | L37: 0.03568817237 | M37: 0 | N37: 2302926.759 | O37: 0.1368237716 | P37: 1.439640562 | Q37: 19.86244025
A38: "Девятовка" | B38: Т5 | C38: ДC | D38: --- | E38: М1 | F38: Т5 | G38: --- | H38: 3 | I38: 127 | J38: 7924800 | K38: -1405213.007 | L38: 0.02990943086 | M38: 0 | N38: 4576179.833 | O38: 0.1273783856 | P38: 1.426449065 | Q38: 18.3377724
A39: "Девятовка" | B39: Т64 | C39: ДC | D39: --- | E39: М2 | F39: Т64 | G39: --- | H39: 3 | I39: 95 | J39: 4560000 | K39: -3966829.51 | L39: 0 | M39: 0 | N39: 2625524.855 | O39: 0.1343229764 | P39: 1.42519321 | Q39: 18.77381352
A40: "Девятовка" | B40: Т9 | C40: ДC | D40: --- | E40: М1 | F40: Т9 | G40: --- | H40: 3 | I40: 57 | J40: 3556800 | K40: -1838762.923 | L40: -0.01550529613 | M40: 0 | N40: 2028538.479 | O40: 0.1273853343 | P40: 1.421203608 | Q40: 20.81442714
A41: "Девятовка" | B41: Т4 | C41: ДC | D41: --- | E41: М1 | F41: Т4 | G41: --- | H41: 3 | I41: 216 | J41: 13478400 | K41: -7789418.499 | L41: 0 | M41: 0 | N41: 7342449.19 | O41: 0.1121974965 | P41: 1.40208345 | Q41: 22.21628596
A42: "Девятовка" | B42: Т32 | C42: ДC | D42: --- | E42: М3 | F42: Т32 | G42: --- | H42: 3 | I42: 120 | J42: 7488000 | K42: -5834151.16 | L42: 0 | M42: 0 | N42: 4000555.731 | O42: 0.1123408768 | P42: 1.394410545 | Q42: 14.92016136
A43: "Девятовка" | B43: Т58 | C43: ДC | D43: --- | E43: М4 | F43: Т58 | G43: --- | H43: 3 | I43: 112 | J43: 6988800 | K43: -4039691.323 | L43: 0 | M43: 0 | N43: 3579848.092 | O43: 0.1091858224 | P43: 1.378228314 | Q43: 22.28467312
A44: "Девятовка" | B44: Т17 | C44: ДC | D44: --- | E44: М1 | F44: Т17 | G44: --- | H44: 3 | I44: 165 | J44: 10296000 | K44: -5951037.793 | L44: 0 | M44: 0 | N44: 4259932.138 | O44: 0.09973143244 | P44: 1.305470346 | Q44: 22.51822342
A45: "Девятовка" | B45: Т91 | C45: ДC | D45: --- | E45: М4 | F45: Т91 | G45: --- | H45: 3 | I45: 78 | J45: 6739200 | K45: 1932984.668 | L45: 0.08064271436 | M45: 26.61595802 | N45: 2629120.308 | O45: 0.1079327415 | P45: 1.287204886 | Q45: 22.48040963
A46: "Девятовка" | B46: Т63 | C46: ДC | D46: --- | E46: М2 | F46: Т63 | G46: --- | H46: 3 | I46: 183 | J46: 11419200 | K46: -6599992.104 | L46: 0 | M46: 0 | N46: 4216931.226 | O46: 0.09534702349 | P46: 1.272636273 | Q46: 22.64011988
A47: "Девятовка" | B47: Т57 | C47: ДC | D47: --- | E47: М4 | F47: Т57 | G47: --- | H47: 3 | I47: 36 | J47: 6566400 | K47: -2794638.634 | L47: -0.002455709616 | M47: 0 | N47: 2407419.85 | O47: 0.1166366292 | P47: 1.270771909 | Q47: 26.5510793
A48: "Девятовка" | B48: Т52 | C48: ДC | D48: --- | E48: М4 | F48: Т52 | G48: --- | H48: 3 | I48: 81 | J48: 5054400 | K48: -3938494.965 | L48: 0 | M48: 0 | N48: 1819639.375 | O48: 0.09566349892 | P48: 1.265844713 | Q48: 21.33386909
A49: "Девятовка" | B49: Т45 | C49: ДC | D49: --- | E49: М4 | F49: Т45 | G49: --- | H49: 3 | I49: 114 | J49: 7113600 | K49: -5042725.712 | L49: 0 | M49: 0 | N49: 2449611.86 | O49: 0.09125039662 | P49: 1.254278386 | Q49: 19.98549537
A50: "Девятовка" | B50: Т75 | C50: ДC | D50: --- | E50: М4 | F50: Т75 | G50: --- | H50: 3 | I50: 40 | J50: 960000 | K50: -1004679.484 | L50: 0 | M50: 0 | N50: 318184.2852 | O50: 0.0905829661 | P50: 1.24481679 | Q50: 24.56364408
A51: "Девятовка" | B51: Т59 | C51: ДC | D51: --- | E51: М4 | F51: Т59 | G51: --- | H51: 3 | I51: 100 | J51: 6240000 | K51: -4862090.161 | L51: 0 | M51: 0 | N51: 1717119.973 | O51: 0.08692981546 | P51: 1.203192871 | Q51: 21.5374779
A52: "Девятовка" | B52: Т53 | C52: ДC | D52: --- | E52: М4 | F52: Т53 | G52: --- | H52: 3 | I52: 108 | J52: 6739200 | K52: -3895722.209 | L52: 0 | M52: 0 | N52: 1850044.444 | O52: 0.08573774893 | P52: 1.20272908 | Q52: 22.94431841
A53: "Девятовка" | B53: Т24 | C53: ДC | D53: --- | E53: М3 | F53: Т24 | G53: --- | H53: 3 | I53: 118 | J53: 5664000 | K53: -5439289.37 | L53: 0 | M53: 0 | N53: 1018558.236 | O53: 0.0815699976 | P53: 1.132790947 | Q53: 21.88242893
A54: "Девятовка" | B54: Т86 | C54: ДC | D54: --- | E54: М4 | F54: Т86 | G54: --- | H54: 3 | I54: 136 | J54: 11750400 | K54: -4947631.893 | L54: -0.0007014269148 | M54: 0 | N54: 1421515.394 | O54: 0.07061135189 | P54: 1.089340152 | Q54: 28.97132748
A55: "Девятовка" | B55: Т40 | C55: ДC | D55: --- | E55: М1 | F55: Т40 | G55: --- | H55: 3 | I55: 228 | J55: 14227200 | K55: -8223325.381 | L55: 0 | M55: 0 | N55: 1199352.433 | O55: 0.06498713267 | P55: 1.062244259 | Q55: 28.95672914
A56: "Девятовка" | B56: Т54 | C56: ДC | D56: --- | E56: М4 | F56: Т54 | G56: --- | H56: 3 | I56: 102 | J56: 6364800 | K56: -3679216.277 | L56: 0 | M56: 0 | N56: -63618.07048 | O56: 0.05377470194 | P56: 0.9926176547 | Q56: 0
A57: "Девятовка" | B57: Т72 | C57: ДC | D57: --- | E57: М4 | F57: Т72 | G57: --- | H57: 3 | I57: 202 | J57: 9696000 | K57: -11178001.35 | L57: 0 | M57: 0 | N57: -216592.5002 | O57: 0.05245066012 | P57: 0.9835108705 | Q57: 0
A58: "Девятовка" | B58: Т76 | C58: ДC | D58: --- | E58: М4 | F58: Т76 | G58: --- | H58: 3 | I58: 100 | J58: 7200000 | K58: -7501411.096 | L58: 0 | M58: 0 | N58: -295240.5739 | O58: 0.04893353782 | P58: 0.9697186325 | Q58: 0
A59: "Девятовка" | B59: Т27 | C59: ДC | D59: --- | E59: М3 | F59: Т27 | G59: --- | H59: 3 | I59: 172 | J59: 6604800 | K59: -6159363.339 | L59: 0 | M59: 0 | N59: -386544.6342 | O59: 0.04878519289 | P59: 0.9567843176 | Q59: 0
A60: "Девятовка" | B60: Т46 | C60: ДC | D60: --- | E60: М4 | F60: Т46 | G60: --- | H60: 3 | I60: 234 | J60: 8985600 | K60: -5508329.843 | L60: 0 | M60: 0 | N60: -1365497.785 | O60: 0.03434751965 | P60: 0.8877663942 | Q60: 0
A61: "Девятовка" | B61: Т11 | C61: ДC | D61: --- | E61: М1 | F61: Т11 | G61: --- | H61: 3 | I61: 361 | J61: 22526400 | K61: -13021509.3 | L61: 0 | M61: 0 | N61: -6472538.259 | O61: 0.01463332788 | P61: 0.7877900548 | Q61: 0
A62: "Девятовка" | B62: Т89 | C62: ДC | D62: --- | E62: М4 | F62: Т89 | G62: --- | H62: 3 | I62: 131 | J62: 6288000 | K62: -6286599.269 | L62: 0 | M62: 0 | N62: -1812276.68 | O62: 0.0138371365 | P62: 0.7871373106 | Q62: 0
A63: "Девятовка" | B63: Т70 | C63: ДC | D63: --- | E63: М4 | F63: Т70 | G63: --- | H63: 3 | I63: 241 | J63: 20822400 | K63: -10683284.5 | L63: -0.01475856721 | M63: 0 | N63: -7716575.033 | O63: -0.002609845898 | P63: 0.7262428232 | Q63: 0
A64: "Девятовка" | B64: Т47 | C64: ДC | D64: --- | E64: М4 | F64: Т47 | G64: --- | H64: 3 | I64: 132 | J64: 8236800 | K64: -4746219.888 | L64: 0 | M64: 0 | N64: -3523873.757 | O64: -0.01102641296 | P64: 0.6864149375 | Q64: 0
A65: "Девятовка" | B65: Т18 | C65: ДC | D65: --- | E65: М1 | F65: Т18 | G65: --- | H65: 3 | I65: 256 | J65: 15974400 | K65: -9218888.655 | L65: 0 | M65: 0 | N65: -6869123.932 | O65: -0.01200948308 | P65: 0.683664172 | Q65: 0
A66: "Девятовка" | B66: М2 | C66: УС | D66: --- | E66: М2 | F66: --- | G66: --- | H66: 2 | I66: 612 | J66: 66830400 | K66: -38635080.67 | L66: 0 | M66: 0 | N66: -28896040.16 | O66: -0.01312597558 | P66: 0.6805992095 | Q66: 0
A67: "Девятовка" | B67: М4 | C67: УС | D67: --- | E67: М4 | F67: --- | G67: --- | H67: 2 | I67: 528 | J67: 57657600 | K67: -33332297.29 | L67: 0 | M67: 0 | N67: -24929983.82 | O67: -0.01312620351 | P67: 0.6805983534 | Q67: 0
A68: "Девятовка" | B68: Т82 | C68: ДC | D68: --- | E68: М4 | F68: Т82 | G68: --- | H68: 3 | I68: 126 | J68: 4838400 | K68: -2964218.596 | L68: 0 | M68: 0 | N68: -2227228.446 | O68: 0 | P68: 0.6605080481 | Q68: 0
A69: "Девятовка" | B69: Т56 | C69: ДC | D69: --- | E69: М4 | F69: Т56 | G69: --- | H69: 3 | I69: 150 | J69: 5760000 | K69: -3531021.939 | L69: 0 | M69: 0 | N69: -2679707.524 | O69: 0 | P69: 0.6563339531 | Q69: 0
A70: "Девятовка" | B70: М1 | C70: УС | D70: --- | E70: М1 | F70: --- | G70: --- | H70: 2 | I70: 890 | J70: 134568000 | K70: -95379049.51 | L70: 0 | M70: 0 | N70: -75919484.35 | O70: 0 | P70: 0.6353839167 | Q70: 0
A71: "Девятовка" | B71: М3 | C71: УС | D71: --- | E71: М3 | F71: --- | G71: --- | H71: 2 | I71: 960 | J71: 104832000 | K71: -77799177.82 | L71: 0 | M71: 0 | N71: -62361125.94 | O71: 0 | P71: 0.6076607325 | Q71: 0
A72: "Девятовка" | B72: Т69 | C72: ДC | D72: --- | E72: М4 | F72: Т69 | G72: --- | H72: 3 | I72: 28 | J72: 672000 | K72: -502067.8375 | L72: 0 | M72: 0 | N72: -374716.4137 | O72: 0 | P72: 0.5911672037 | Q72: 0
A73: "Девятовка" | B73: Т71 | C73: ДC | D73: --- | E73: М4 | F73: Т71 | G73: --- | H73: 3 | I73: 62 | J73: 1488000 | K73: -1232108.85 | L73: 0 | M73: 0 | N73: -966026.726 | O73: 0 | P73: 0.5220741829 | Q73: 0
A74: "Девятовка" | B74: Т68 | C74: ДC | D74: --- | E74: М4 | F74: Т68 | G74: --- | H74: 3 | I74: 32 | J74: 1536000 | K74: -1474650.426 | L74: 0 | M74: 0 | N74: -1193726.164 | O74: 0 | P74: 0.4268541171 | Q74: 0
A75: "Девятовка" | B75: Т3 | C75: ДC | D75: --- | E75: М1 | F75: Т3 | G75: --- | H75: 3 | I75: 236 | J75: 5664000 | K75: -5922954.009 | L75: 0 | M75: 0 | N75: -4929986.14 | O75: 0 | P75: 0.3589419108 | Q75: 0
A76: "Девятовка" | B76: Т25 | C76: ДC | D76: --- | E76: М3 | F76: Т25 | G76: --- | H76: 3 | I76: 98 | J76: 2352000 | K76: -2461279.977 | L76: 0 | M76: 0 | N76: -2057757.906 | O76: 0 | P76: 0.3537081542 | Q76: 0
A77: "Девятовка" | B77: Т83 | C77: ДC | D77: --- | E77: М4 | F77: Т83 | G77: --- | H77: 3 | I77: 6 | J77: 6000000 | K77: -8308627.837 | L77: 0 | M77: 0 | N77: -7169987.88 | O77: 0 | P77: 0.1212940408 | Q77: 0
A78: "Девятовка" | B78: Т79 | C78: ДC | D78: --- | E78: М4 | F78: Т79 | G78: --- | H78: 3 | I78: 68 | J78: 68000000 | K78: -94232598.63 | L78: 0 | M78: 0 | N78: -81305265.36 | O78: 0 | P78: 0.117174033 | Q78: 0
A79: "Девятовка" | B79: Т15 | C79: ДC | D79: --- | E79: М1 | F79: Т15 | G79: --- | H79: 3 | I79: 42 | J79: 42000000 | K79: -58203130.99 | L79: 0 | M79: 0 | N79: -50218372.41 | O79: 0 | P79: 0.1171065672 | Q79: 0
A80: "Девятовка" | B80: Т66 | C80: ДC | D80: --- | E80: М2 | F80: Т66 | G80: --- | H80: 3 | I80: 18 | J80: 18000000 | K80: -24944941.76 | L80: 0 | M80: 0 | N80: -21522682.22 | O80: 0 | P80: 0.1169551409 | Q80: 0
A81: "Девятовка" | B81: Т8 | C81: ДC | D81: --- | E81: М1 | F81: Т8 | G81: --- | H81: 3 | I81: 44 | J81: 44000000 | K81: -60977041.45 | L81: 0 | M81: 0 | N81: -52611306.36 | O81: 0 | P81: 0.1168956589 | Q81: 0
A82: "Девятовка" | B82: Т29 | C82: ДC | D82: --- | E82: М3 | F82: Т29 | G82: --- | H82: 3 | I82: 84 | J82: 84000000 | K82: -127485422.1 | L82: 0 | M82: 0 | N82: -111430374 | O82: 0 | P82: 0.1069677323 | Q82: 0
A83: "Девятовка" | B83: Т77 | C83: ДC | D83: --- | E83: М4 | F83: Т77 | G83: --- | H83: 3 | I83: 82 | J83: 82000000 | K83: -124451968.2 | L83: 0 | M83: 0 | N83: -108778581.4 | O83: 0 | P83: 0.1068841204 | Q83: 0
A84: "Девятовка" | B84: Т92 | C84: ДC | D84: --- | E84: М4 | F84: Т92 | G84: --- | H84: 3 | I84: 110 | J84: 110000000 | K84: -170470581.9 | L84: 0 | M84: 0 | N84: -149392035.5 | O84: 0 | P84: 0.1048641306 | Q84: 0
A85: "Девятовка" | B85: Т85 | C85: ДC | D85: --- | E85: М4 | F85: Т85 | G85: --- | H85: 3 | I85: 106 | J85: 106000000 | K85: -164272745 | L85: 0 | M85: 0 | N85: -143960325.5 | O85: 0 | P85: 0.1048255611 | Q85: 0
A86: "Девятовка" | B86: Т10 | C86: ДC | D86: --- | E86: М1 | F86: Т10 | G86: --- | H86: 3 | I86: 66 | J86: 0 | K86: 0 | L86: 0 | M86: 0 | N86: 0 | O86: 0 | P86: 0 | Q86: 0
A87: "Девятовка" | B87: Т13 | C87: ДC | D87: --- | E87: М2 | F87: Т13 | G87: --- | H87: 3 | I87: 234 | J87: 0 | K87: 0 | L87: 0 | M87: 0 | N87: 0 | O87: 0 | P87: 0 | Q87: 0
A88: "Девятовка" | B88: Т16 | C88: ДC | D88: --- | E88: М1 | F88: Т16 | G88: --- | H88: 3 | I88: 60 | J88: 0 | K88: 0 | L88: 0 | M88: 0 | N88: 0 | O88: 0 | P88: 0 | Q88: 0
A89: "Девятовка" | B89: Т23 | C89: ДC | D89: --- | E89: М3 | F89: Т23 | G89: --- | H89: 3 | I89: 10 | J89: 0 | K89: 0 | L89: 0 | M89: 0 | N89: 0 | O89: 0 | P89: 0 | Q89: 0
A90: "Девятовка" | B90: Т41 | C90: ДC | D90: --- | E90: М3 | F90: Т41 | G90: --- | H90: 3 | I90: 72 | J90: 0 | K90: 0 | L90: 0 | M90: 0 | N90: 0 | O90: 0 | P90: 0 | Q90: 0
A91: "Девятовка" | B91: Т42 | C91: ДC | D91: --- | E91: М3 | F91: Т42 | G91: --- | H91: 3 | I91: 85 | J91: 0 | K91: 0 | L91: 0 | M91: 0 | N91: 0 | O91: 0 | P91: 0 | Q91: 0
A92: "Девятовка" | B92: Т43 | C92: ДC | D92: --- | E92: М4 | F92: Т43 | G92: --- | H92: 3 | I92: 41 | J92: 0 | K92: 0 | L92: 0 | M92: 0 | N92: 0 | O92: 0 | P92: 0 | Q92: 0
A93: "Девятовка" | B93: Т44 | C93: ДC | D93: --- | E93: М4 | F93: Т44 | G93: --- | H93: 3 | I93: 134 | J93: 0 | K93: 0 | L93: 0 | M93: 0 | N93: 0 | O93: 0 | P93: 0 | Q93: 0
A94: "Девятовка" | B94: Т50 | C94: ДC | D94: --- | E94: М4 | F94: Т50 | G94: --- | H94: 3 | I94: 194 | J94: 0 | K94: 0 | L94: 0 | M94: 0 | N94: 0 | O94: 0 | P94: 0 | Q94: 0
A95: "Девятовка" | B95: Т55 | C95: ДC | D95: --- | E95: М4 | F95: Т55 | G95: --- | H95: 3 | I95: 337 | J95: 0 | K95: 0 | L95: 0 | M95: 0 | N95: 0 | O95: 0 | P95: 0 | Q95: 0
A96: "Девятовка" | B96: Т65 | C96: ДC | D96: --- | E96: М2 | F96: Т65 | G96: --- | H96: 3 | I96: 454 | J96: 0 | K96: 0 | L96: 0 | M96: 0 | N96: 0 | O96: 0 | P96: 0 | Q96: 0
A97: "Девятовка" | B97: Т87 | C97: ДC | D97: --- | E97: М4 | F97: Т87 | G97: --- | H97: 3 | I97: 64 | J97: 0 | K97: 0 | L97: 0 | M97: 0 | N97: 0 | O97: 0 | P97: 0 | Q97: 0

Sheet График

Sheet Расчеты1
A1: Общая сумма | B1: =COUNTA($A:$A)-COUNTA($A$1:$A$4) -> 96 | I1: =SUM(OFFSET(I$4,1,0,$B$1,1)) -> 12841 | J1: 3620.04 | K1: 905.01 | L1: 596 | M1: 129 | N1: 41 | O1: 153 | P1: 0 | Q1: 0 | R1: 257 | S1: 16 | T1: =AVERAGE(OFFSET(T$4,1,0,$B$1,1)) -> 82.1274658 | U1: 16.01821862 | V1: 5.785971694 | W1: 21.60493008 | X1: 0 | Y1: 0 | Z1: 36.75686873 | AA1: 1.96147668 | AB1: =SUM(OFFSET(AB$4,1,0,$B$1,1)) -> 1336606400 | AM1: =SUM(OFFSET(AM$4,1,0,$B$1,1)) -> 17010 | AN1: 16997 | AO1: 13 | AP1: 618519.26 | AQ1: 570759.26 | AR1: 47760 | AS1: 0 | AT1: 54120330 | AU1: 14288490 | AV1: 72690 | AW1: 28576890 | AX1: 11182260 | AY1: 0 | AZ1: 513321012.9 | BA1: 400981920 | BB1: 111337652.9 | BC1: 1001440 | BD1: 0 | BE1: 0 | BF1: 275400000 | BG1: 275400000 | BH1: 0 | BI1: 0 | BJ1: 0 | BK1: 0 | BL1: 0 | BM1: 0 | BN1: 0 | BO1: 0 | BP1: 0 | BQ1: 0
A2: Общая сумма (Фильтр) | B2: =SUBTOTAL(103,$A:$A)-COUNTA($A$1:$A$4) -> 96 | I2: =SUBTOTAL(109,OFFSET(I$4,1,0,$B$1,1)) -> 12841 | J2: 3620.04 | K2: 905.01 | L2: 596 | M2: 129 | N2: 41 | O2: 153 | P2: 0 | Q2: 0 | R2: 257 | S2: 16 | T2: =SUBTOTAL(101,OFFSET(T$4,1,0,$B$1,1)) -> 82.1274658 | U2: 16.01821862 | V2: 5.785971694 | W2: 21.60493008 | X2: 0 | Y2: 0 | Z2: 36.75686873 | AA2: 1.96147668 | AB2: =SUBTOTAL(109,OFFSET(AB$4,1,0,$B$1,1)) -> 1336606400 | AM2: =SUBTOTAL(109,OFFSET(AM$4,1,0,$B$1,1)) -> 17010 | AN2: 16997 | AO2: 13 | AP2: 618519.26 | AQ2: 570759.26 | AR2: 47760 | AS2: 0 | AT2: 54120330 | AU2: 14288490 | AV2: 72690 | AW2: 28576890 | AX2: 11182260 | AY2: 0 | AZ2: 513321012.9 | BA2: 400981920 | BB2: 111337652.9 | BC2: 1001440 | BD2: 0 | BE2: 0 | BF2: 275400000 | BG2: 275400000 | BH2: 0 | BI2: 0 | BJ2: 0 | BK2: 0 | BL2: 0 | BM2: 0 | BN2: 0 | BO2: 0 | BP2: 0 | BQ2: 0
A3: Детализация | I3: ИC | J3: ЛТ | K3: ЛУ | M3: Раструб трубы | N3: Трещина | O3: Препятствие для течения, Проникновение корня | P3: Скопление осадков, жира | Q3: Лежащий на дне объект, препятствие | R3: Смещение | S3: Разрыв трубы, обрушение, Разрушение | U3: Раструб трубы | V3: Трещина | W3: Препятствие для течения, Проникновение корня | X3: Скопление осадков, жира | Y3: Лежащий на дне объект, препятствие | Z3: Смещение | AA3: Разрыв трубы, обрушение, Разрушение | AB3: =Форма3!C10&"-"&Форма3!H4 -> ЗАМН-ИС | AC3: Раструб трубы | AD3: Трещина | AE3: Препятствие для течения, Проникновение корня | AF3: Скопление осадков, жира | AG3: Лежащий на дне объект, препятствие | AH3: Смещение | AI3: Разрыв трубы, обрушение, Разрушение | AJ3: =SUM(MAX(Форма3!$D$6:$D$15),MAX(Форма3!$E$5:$J$5)) -> 1.2 | AK3: ИС | AM3: Потребители | AP3: Употребление | AT3: Доходы | AU3: ФИНАНСОВЫЙ ПОТОК ДОХОДОВ | AZ3: Расходы | BA3: ФИНАНСОВЫЙ ПОТОК РАСХОДОВ | BF3: Выгоды | BG3: ПОТОК ЭКОНОМИЧЕСКИ-СОЦИАЛЬНОЙ ВЫГОДЫ | BL3: Затраты | BM3: ПОТОК ЭКОНОМИЧЕСКИ-СОЦИАЛЬНОЙ ЗАТРАТ | BR3: ФИНАНСОВЫЕ ПОКАЗАТЕЛИ | BU3: СОЦИАЛЬНО-ЭКОНОМИЧЕСКИЕ ПОКАЗАТЕЛИ
A4: Район | B4: ИC | C4: Тип | D4: MС | E4: УС | F4: ДС | G4: ВВ | H4: Уровень | I4: Протяженность, м | J4: Трасса | K4: Участок | L4: Дефекты | M4: S | N4: R | O4: H | R4: L | S4: B | T4: Частота деф. шт./км | U4: S | V4: R | W4: H | Z4: L | AA4: B | AB4: Инвестиции, руб. | AC4: S | AD4: R | AE4: H | AH4: L | AI4: B | AJ4: Инвестиции, коэф. | AK4: Сфера применения | AL4: Коэф. Аварий | AM4: Итого | AN4: Физические | AO4: Юридические | AP4: Итого | AQ4: Физические | AR4: Юридические | AT4: Итого | AU4: Аварии | AV4: Повышение тарифов | AW4: Эксплуатационные расходы | AX4: Диагностические расходы | AY4: Прочее 5 | AZ4: Итого | BA4: Реинвестиции | BB4: Проценты | BC4: Снижение потребления | BD4: Прочее 4 | BE4: Прочее 5 | BF4: Итого | BG4: Имущественные потери ввиду аварий | BH4: Прочее 2 | BI4: Прочее 3 | BJ4: Прочее 4 | BK4: Прочее 5 | BL4: Итого | BM4: Прочее 1 | BN4: Прочее 2 | BO4: Прочее 3 | BP4: Прочее 4 | BQ4: Прочее 5 | BR4: FNPV | BS4: FIRR | BT4: FPP | BU4: ENPV | BV4: EIRR | BW4: B/C | BX4: EPP
A5: "Девятовка" | B5: М1 | C5: УС | D5: --- | E5: М1 | F5: --- | G5: --- | H5: 2 | I5: 890 | J5: =CHOOSE(Форма1!$M$22,IF(AVERAGEIFS(СтруктураСети!$G:$G,СтруктураСети!$H:$H,$B5)*Форма1!$M$23>I5,I5,AVERAGEIFS(СтруктураСети!$G:$G,СтруктураСети!$H:$H,$B5)*Форма1!$M$23),IF(VLOOKUP(C5,Форма1!$K$17:$M$20,3,0)*I5*Форма1!$M$23>I5,I5,VLOOKUP(C5,Форма1!$K$17:$M$20,3,0)*I5*Форма1!$M$23)) -> 373.8 | K5: =$J5*Форма1!$M$24 -> 93.45 | L5: =SUM(M5:S5) -> 19 | M5: =COUNTIFS(Дефекты1!$A:$A,$B5,Дефекты1!$E:$E,M$4) -> 5 | N5: =COUNTIFS(Дефекты1!$A:$A,$B5,Дефекты1!$E:$E,N$4) -> 1 | O5: =COUNTIFS(Дефекты1!$A:$A,$B5,Дефекты1!$E:$E,O$4) -> 3 | P5: =COUNTIFS(Дефекты1!$A:$A,$B5,Дефекты1!$E:$E,P$4) -> 0 | Q5: =COUNTIFS(Дефекты1!$A:$A,$B5,Дефекты1!$E:$E,Q$4) -> 0 | R5: =COUNTIFS(Дефекты1!$A:$A,$B5,Дефекты1!$E:$E,R$4) -> 10 | S5: =COUNTIFS(Дефекты1!$A:$A,$B5,Дефекты1!$E:$E,S$4) -> 0 | T5: =L5/$I5*1000 -> 21.34831461 | U5: =M5/$I5*1000 -> 5.617977528 | V5: =N5/$I5*1000 -> 1.123595506 | W5: =O5/$I5*1000 -> 3.370786517 | X5: =P5/$I5*1000 -> 0 | Y5: =Q5/$I5*1000 -> 0 | Z5: =R5/$I5*1000 -> 11.23595506 | AA5: =S5/$I5*1000 -> 0 | AB5: =IF(T5,IF(OR(NOT(ISERROR(MATCH(AB$3,$AC5:$AI5,0))),AJ5>=AJ$3),VLOOKUP(REPLACE(AB$3,6,2,$C5),Форма3!$M$17:$N$62,2,0)*$I5,SUM(MMULT((AC5:AI5=Форма3!$M$17:$M$62)*(Форма3!$N$17:$N$62),(TRANSPOSE(RIGHT(AC5:AI5,2))=($I$3:$K$3))*($I5:$K5)))),0) -> 134568000 | AC5: =IF(U5,INDEX(Форма2!$E$29:$K$38,SUMIFS(Форма2!$A$29:$A$38,Форма2!$B$29:$B$38,"<"&U5,Форма2!$C$29:$C$38,">="&U5),MATCH(U$4,Форма2!$E$2:$K$2,0)),"---") -> РМНТ-ЛУ | AD5: =IF(V5,INDEX(Форма2!$E$29:$K$38,SUMIFS(Форма2!$A$29:$A$38,Форма2!$B$29:$B$38,"<"&V5,Форма2!$C$29:$C$38,">="&V5),MATCH(V$4,Форма2!$E$2:$K$2,0)),"---") -> РМНТ-ЛУ | AE5: =IF(W5,INDEX(Форма2!$E$29:$K$38,SUMIFS(Форма2!$A$29:$A$38,Форма2!$B$29:$B$38,"<"&W5,Форма2!$C$29:$C$38,">="&W5),MATCH(W$4,Форма2!$E$2:$K$2,0)),"---") -> УСТР-ЛТ | AF5: =IF(X5,INDEX(Форма2!$E$29:$K$38,SUMIFS(Форма2!$A$29:$A$38,Форма2!$B$29:$B$38,"<"&X5,Форма2!$C$29:$C$38,">="&X5),MATCH(X$4,Форма2!$E$2:$K$2,0)),"---") -> --- | AG5: =IF(Y5,INDEX(Форма2!$E$29:$K$38,SUMIFS(Форма2!$A$29:$A$38,Форма2!$B$29:$B$38,"<"&Y5,Форма2!$C$29:$C$38,">="&Y5),MATCH(Y$4,Форма2!$E$2:$K$2,0)),"---") -> --- | AH5: =IF(Z5,INDEX(Форма2!$E$29:$K$38,SUMIFS(Форма2!$A$29:$A$38,Форма2!$B$29:$B$38,"<"&Z5,Форма2!$C$29:$C$38,">="&Z5),MATCH(Z$4,Форма2!$E$2:$K$2,0)),"---") -> --- | AI5: =IF(AA5,INDEX(Форма2!$E$29:$K$38,SUMIFS(Форма2!$A$29:$A$38,Форма2!$B$29:$B$38,"<"&AA5,Форма2!$C$29:$C$38,">="&AA5),MATCH(AA$4,Форма2!$E$2:$K$2,0)),"---") -> --- | AJ5: =SUM((($U5:$AA5)>Форма2!$B$40:$B$49)*(($U5:$AA5)<=Форма2!$C$40:$C$49)*(Форма2!$E$40:$K$49)) -> 1.1 | AK5: =IF(AJ5>=AJ$3,AK$3,INDEX(Форма3!$F$4:$J$4,,MAX(IFERROR(MATCH(RIGHT(AC5:AI5,2),Форма3!$F$4:$J$4,0),0)))) -> ЛТ | AL5: =SUM((($U5:$AA5)>Форма2!$B$7:$B$16)*(($U5:$AA5)<=Форма2!$C$7:$C$16)*(Форма2!$E$7:$K$16)) -> 0.3047619048 | AM5: =SUM(AN5:AO5) -> 0 | AN5: =SUMIFS(Потребители!D:D,Потребители!$B:$B,$B5) -> 0 | AO5: =SUMIFS(Потребители!E:E,Потребители!$B:$B,$B5) -> 0 | AP5: =SUM(AQ5:AR5) -> 0 | AQ5: =SUMIFS(Потребители!G:G,Потребители!$B:$B,$B5) -> 0 | AR5: =SUMIFS(Потребители!H:H,Потребители!$B:$B,$B5) -> 0 | AT5: =SUM(AU5:AY5) -> 9911040 | AU5: =IF($AB5,MROUND(SUMIFS($I5:$K5,$I$3:$K$3,$AK5)*$AL5*Форма1!$E$45,10),0) -> 2620160 | AV5: =IF($AB5,FLOOR(SUM($AQ5:$AR5*Форма1!$E$40:$F$40)*($AB5/Форма1!$E$42),10),0) -> 0 | AW5: =IF($AB5,MROUND(SUMIFS($I5:$K5,$I$3:$K$3,$AK5)*Форма1!$F$45*$AL5,10),0) -> 5240320 | AX5: =IF($AB5,MROUND(SUMIFS($I5:$K5,$I$3:$K$3,$AK5)*Форма1!$G$45*$AL5,10),0) -> 2050560 | AZ5: =SUM(BA5:BE5) -> 69901814.85 | BA5: =$AB5*Форма1!$E$50 -> 40370400 | BB5: =IF($AB5>Форма1!$E$53,-CUMIPMT(Форма1!$E$55,ROUND($AB5/Форма1!$E$53*Форма1!$E$54,0),$AB5,1,ROUND($AB5/Форма1!$E$53*Форма1!$E$54,0),0),0) -> 29531414.85 | BC5: =MROUND(SUM(Форма1!$E$38:$F$38*AQ5:AR5)/365*($AB5/Форма1!$E$58),10) -> 0 | BF5: =SUM(BG5:BK5) -> 0 | BG5: =IF($AB5,MROUND(SUM($AN5:$AO5*Форма1!$K$40:$L$40),10),0) -> 0 | BL5: =SUM(BM5:BQ5) -> 0
A6: "Девятовка" | B6: М2 | C6: УС | D6: --- | E6: М2 | F6: --- | G6: --- | H6: 2 | I6: 612 | J6: =CHOOSE(Форма1!$M$22,IF(AVERAGEIFS(СтруктураСети!$G:$G,СтруктураСети!$H:$H,$B6)*Форма1!$M$23>I6,I6,AVERAGEIFS(СтруктураСети!$G:$G,СтруктураСети!$H:$H,$B6)*Форма1!$M$23),IF(VLOOKUP(C6,Форма1!$K$17:$M$20,3,0)*I6*Форма1!$M$23>I6,I6,VLOOKUP(C6,Форма1!$K$17:$M$20,3,0)*I6*Форма1!$M$23)) -> 257.04 | K6: =$J6*Форма1!$M$24 -> 64.26 | L6: =SUM(M6:S6) -> 13 | M6: =COUNTIFS(Дефекты1!$A:$A,$B6,Дефекты1!$E:$E,M$4) -> 4 | N6: =COUNTIFS(Дефекты1!$A:$A,$B6,Дефекты1!$E:$E,N$4) -> 0 | O6: =COUNTIFS(Дефекты1!$A:$A,$B6,Дефекты1!$E:$E,O$4) -> 4 | P6: =COUNTIFS(Дефекты1!$A:$A,$B6,Дефекты1!$E:$E,P$4) -> 0 | Q6: =COUNTIFS(Дефекты1!$A:$A,$B6,Дефекты1!$E:$E,Q$4) -> 0 | R6: =COUNTIFS(Дефекты1!$A:$A,$B6,Дефекты1!$E:$E,R$4) -> 5 | S6: =COUNTIFS(Дефекты1!$A:$A,$B6,Дефекты1!$E:$E,S$4) -> 0 | T6: =L6/$I6*1000 -> 21.24183007 | U6: =M6/$I6*1000 -> 6.535947712 | V6: =N6/$I6*1000 -> 0 | W6: =O6/$I6*1000 -> 6.535947712 | X6: =P6/$I6*1000 -> 0 | Y6: =Q6/$I6*1000 -> 0 | Z6: =R6/$I6*1000 -> 8.169934641 | AA6: =S6/$I6*1000 -> 0 | AB6: =IF(T6,IF(OR(NOT(ISERROR(MATCH(AB$3,$AC6:$AI6,0))),AJ6>=AJ$3),VLOOKUP(REPLACE(AB$3,6,2,$C6),Форма3!$M$17:$N$62,2,0)*$I6,SUM(MMULT((AC6:AI6=Форма3!$M$17:$M$62)*(Форма3!$N$17:$N$62),(TRANSPOSE(RIGHT(AC6:AI6,2))=($I$3:$K$3))*($I6:$K6)))),0) -> 66830400 | AC6: =IF(U6,INDEX(Форма2!$E$29:$K$38,SUMIFS(Форма2!$A$29:$A$38,Форма2!$B$29:$B$38,"<"&U6,Форма2!$C$29:$C$38,">="&U6),MATCH(U$4,Форма2!$E$2:$K$2,0)),"---") -> РМНТ-ЛУ | AD6: =IF(V6,INDEX(Форма2!$E$29:$K$38,SUMIFS(Форма2!$A$29:$A$38,Форма2!$B$29:$B$38,"<"&V6,Форма2!$C$29:$C$38,">="&V6),MATCH(V$4,Форма2!$E$2:$K$2,0)),"---") -> --- | AE6: =IF(W6,INDEX(Форма2!$E$29:$K$38,SUMIFS(Форма2!$A$29:$A$38,Форма2!$B$29:$B$38,"<"&W6,Форма2!$C$29:$C$38,">="&W6),MATCH(W$4,Форма2!$E$2:$K$2,0)),"---") -> УСТР-ЛТ | AF6: =IF(X6,INDEX(Форма2!$E$29:$K$38,SUMIFS(Форма2!$A$29:$A$38,Форма2!$B$29:$B$38,"<"&X6,Форма2!$C$29:$C$38,">="&X6),MATCH(X$4,Форма2!$E$2:$K$2,0)),"---") -> --- | AG6: =IF(Y6,INDEX(Форма2!$E$29:$K$38,SUMIFS(Форма2!$A$29:$A$38,Форма2!$B$29:$B$38,"<"&Y6,Форма2!$C$29:$C$38,">="&Y6),MATCH(Y$4,Форма2!$E$2:$K$2,0)),"---") -> --- | AH6: =IF(Z6,INDEX(Форма2!$E$29:$K$38,SUMIFS(Форма2!$A$29:$A$38,Форма2!$B$29:$B$38,"<"&Z6,Форма2!$C$29:$C$38,">="&Z6),MATCH(Z$4,Форма2!$E$2:$K$2,0)),"---") -> --- | AI6: =IF(AA6,INDEX(Форма2!$E$29:$K$38,SUMIFS(Форма2!$A$29:$A$38,Форма2!$B$29:$B$38,"<"&AA6,Форма2!$C$29:$C$38,">="&AA6),MATCH(AA$4,Форма2!$E$2:$K$2,0)),"---") -> --- | AJ6: =SUM((($U6:$AA6)>Форма2!$B$40:$B$49)*(($U6:$AA6)<=Форма2!$C$40:$C$49)*(Форма2!$E$40:$K$49)) -> 0.75 | AK6: =IF(AJ6>=AJ$3,AK$3,INDEX(Форма3!$F$4:$J$4,,MAX(IFERROR(MATCH(RIGHT(AC6:AI6,2),Форма3!$F$4:$J$4,0),0)))) -> ЛТ | AL6: =SUM((($U6:$AA6)>Форма2!$B$7:$B$16)*(($U6:$AA6)<=Форма2!$C$7:$C$16)*(Форма2!$E$7:$K$16)) -> 0.2047619048 | AM6: =SUM(AN6:AO6) -> 0 | AN6: =SUMIFS(Потребители!D:D,Потребители!$B:$B,$B6) -> 0 | AO6: =SUMIFS(Потребители!E:E,Потребители!$B:$B,$B6) -> 0 | AP6: =SUM(AQ6:AR6) -> 0 | AQ6: =SUMIFS(Потребители!G:G,Потребители!$B:$B,$B6) -> 0 | AR6: =SUMIFS(Потребители!H:H,Потребители!$B:$B,$B6) -> 0 | AT6: =SUM(AU6:AY6) -> 4578990 | AU6: =IF($AB6,MROUND(SUMIFS($I6:$K6,$I$3:$K$3,$AK6)*$AL6*Форма1!$E$45,10),0) -> 1210540 | AV6: =IF($AB6,FLOOR(SUM($AQ6:$AR6*Форма1!$E$40:$F$40)*($AB6/Форма1!$E$42),10),0) -> 0 | AW6: =IF($AB6,MROUND(SUMIFS($I6:$K6,$I$3:$K$3,$AK6)*Форма1!$F$45*$AL6,10),0) -> 2421070 | AX6: =IF($AB6,MROUND(SUMIFS($I6:$K6,$I$3:$K$3,$AK6)*Форма1!$G$45*$AL6,10),0) -> 947380 | AZ6: =SUM(BA6:BE6) -> 20049120 | BA6: =$AB6*Форма1!$E$50 -> 20049120 | BB6: =IF($AB6>Форма1!$E$53,-CUMIPMT(Форма1!$E$55,ROUND($AB6/Форма1!$E$53*Форма1!$E$54,0),$AB6,1,ROUND($AB6/Форма1!$E$53*Форма1!$E$54,0),0),0) -> 0 | BC6: =MROUND(SUM(Форма1!$E$38:$F$38*AQ6:AR6)/365*($AB6/Форма1!$E$58),10) -> 0 | BF6: =SUM(BG6:BK6) -> 0 | BG6: =IF($AB6,MROUND(SUM($AN6:$AO6*Форма1!$K$40:$L$40),10),0) -> 0 | BL6: =SUM(BM6:BQ6) -> 0
A7: "Девятовка" | B7: М3 | C7: УС | D7: --- | E7: М3 | F7: --- | G7: --- | H7: 2 | I7: 960 | J7: =CHOOSE(Форма1!$M$22,IF(AVERAGEIFS(СтруктураСети!$G:$G,СтруктураСети!$H:$H,$B7)*Форма1!$M$23>I7,I7,AVERAGEIFS(СтруктураСети!$G:$G,СтруктураСети!$H:$H,$B7)*Форма1!$M$23),IF(VLOOKUP(C7,Форма1!$K$17:$M$20,3,0)*I7*Форма1!$M$23>I7,I7,VLOOKUP(C7,Форма1!$K$17:$M$20,3,0)*I7*Форма1!$M$23)) -> 403.2 | K7: =$J7*Форма1!$M$24 -> 100.8 | L7: 14 | M7: =COUNTIFS(Дефекты1!$A:$A,$B7,Дефекты1!$E:$E,M$4) -> 7 | N7: =COUNTIFS(Дефекты1!$A:$A,$B7,Дефекты1!$E:$E,N$4) -> 0 | O7: =COUNTIFS(Дефекты1!$A:$A,$B7,Дефекты1!$E:$E,O$4) -> 2 | P7: =COUNTIFS(Дефекты1!$A:$A,$B7,Дефекты1!$E:$E,P$4) -> 0 | Q7: =COUNTIFS(Дефекты1!$A:$A,$B7,Дефекты1!$E:$E,Q$4) -> 0 | R7: =COUNTIFS(Дефекты1!$A:$A,$B7,Дефекты1!$E:$E,R$4) -> 5 | S7: =COUNTIFS(Дефекты1!$A:$A,$B7,Дефекты1!$E:$E,S$4) -> 0 | T7: 14.58333333 | U7: 7.291666667 | V7: 0 | W7: 2.083333333 | X7: 0 | Y7: 0 | Z7: 5.208333333 | AA7: 0 | AB7: =IF(T7,IF(OR(NOT(ISERROR(MATCH(AB$3,$AC7:$AI7,0))),AJ7>=AJ$3),VLOOKUP(REPLACE(AB$3,6,2,$C7),Форма3!$M$17:$N$62,2,0)*$I7,SUM(MMULT((AC7:AI7=Форма3!$M$17:$M$62)*(Форма3!$N$17:$N$62),(TRANSPOSE(RIGHT(AC7:AI7,2))=($I$3:$K$3))*($I7:$K7)))),0) -> 104832000 | AC7: =IF(U7,INDEX(Форма2!$E$29:$K$38,SUMIFS(Форма2!$A$29:$A$38,Форма2!$B$29:$B$38,"<"&U7,Форма2!$C$29:$C$38,">="&U7),MATCH(U$4,Форма2!$E$2:$K$2,0)),"---") -> РМНТ-ЛУ | AD7: =IF(V7,INDEX(Форма2!$E$29:$K$38,SUMIFS(Форма2!$A$29:$A$38,Форма2!$B$29:$B$38,"<"&V7,Форма2!$C$29:$C$38,">="&V7),MATCH(V$4,Форма2!$E$2:$K$2,0)),"---") -> --- | AE7: =IF(W7,INDEX(Форма2!$E$29:$K$38,SUMIFS(Форма2!$A$29:$A$38,Форма2!$B$29:$B$38,"<"&W7,Форма2!$C$29:$C$38,">="&W7),MATCH(W$4,Форма2!$E$2:$K$2,0)),"---") -> УСТР-ЛТ | AF7: =IF(X7,INDEX(Форма2!$E$29:$K$38,SUMIFS(Форма2!$A$29:$A$38,Форма2!$B$29:$B$38,"<"&X7,Форма2!$C$29:$C$38,">="&X7),MATCH(X$4,Форма2!$E$2:$K$2,0)),"---") -> --- | AG7: =IF(Y7,INDEX(Форма2!$E$29:$K$38,SUMIFS(Форма2!$A$29:$A$38,Форма2!$B$29:$B$38,"<"&Y7,Форма2!$C$29:$C$38,">="&Y7),MATCH(Y$4,Форма2!$E$2:$K$2,0)),"---") -> --- | AH7: =IF(Z7,INDEX(Форма2!$E$29:$K$38,SUMIFS(Форма2!$A$29:$A$38,Форма2!$B$29:$B$38,"<"&Z7,Форма2!$C$29:$C$38,">="&Z7),MATCH(Z$4,Форма2!$E$2:$K$2,0)),"---") -> --- | AI7: =IF(AA7,INDEX(Форма2!$E$29:$K$38,SUMIFS(Форма2!$A$29:$A$38,Форма2!$B$29:$B$38,"<"&AA7,Форма2!$C$29:$C$38,">="&AA7),MATCH(AA$4,Форма2!$E$2:$K$2,0)),"---") -> --- | AJ7: =SUM((($U7:$AA7)>Форма2!$B$40:$B$49)*(($U7:$AA7)<=Форма2!$C$40:$C$49)*(Форма2!$E$40:$K$49)) -> 0.75 | AK7: =IF(AJ7>=AJ$3,AK$3,INDEX(Форма3!$F$4:$J$4,,MAX(IFERROR(MATCH(RIGHT(AC7:AI7,2),Форма3!$F$4:$J$4,0),0)))) -> ЛТ | AL7: =SUM((($U7:$AA7)>Форма2!$B$7:$B$16)*(($U7:$AA7)<=Форма2!$C$7:$C$16)*(Форма2!$E$7:$K$16)) -> 0.2047619048 | AM7: 0 | AN7: =SUMIFS(Потребители!D:D,Потребители!$B:$B,$B7) -> 0 | AO7: =SUMIFS(Потребители!E:E,Потребители!$B:$B,$B7) -> 0 | AP7: 0 | AQ7: =SUMIFS(Потребители!G:G,Потребители!$B:$B,$B7) -> 0 | AR7: =SUMIFS(Потребители!H:H,Потребители!$B:$B,$B7) -> 0 | AT7: 7182720 | AU7: =IF($AB7,MROUND(SUMIFS($I7:$K7,$I$3:$K$3,$AK7)*$AL7*Форма1!$E$45,10),0) -> 1898880 | AV7: =IF($AB7,FLOOR(SUM($AQ7:$AR7*Форма1!$E$40:$F$40)*($AB7/Форма1!$E$42),10),0) -> 0 | AW7: =IF($AB7,MROUND(SUMIFS($I7:$K7,$I$3:$K$3,$AK7)*Форма1!$F$45*$AL7,10),0) -> 3797760 | AX7: =IF($AB7,MROUND(SUMIFS($I7:$K7,$I$3:$K$3,$AK7)*Форма1!$G$45*$AL7,10),0) -> 1486080 | AZ7: 50415015.71 | BA7: =$AB7*Форма1!$E$50 -> 31449600 | BB7: =IF($AB7>Форма1!$E$53,-CUMIPMT(Форма1!$E$55,ROUND($AB7/Форма1!$E$53*Форма1!$E$54,0),$AB7,1,ROUND($AB7/Форма1!$E$53*Форма1!$E$54,0),0),0) -> 18965415.71 | BC7: =MROUND(SUM(Форма1!$E$38:$F$38*AQ7:AR7)/365*($AB7/Форма1!$E$58),10) -> 0 | BF7: 0 | BG7: =IF($AB7,MROUND(SUM($AN7:$AO7*Форма1!$K$40:$L$40),10),0) -> 0 | BL7: 0
A8: "Девятовка" | B8: М4 | C8: УС | D8: --- | E8: М4 | F8: --- | G8: --- | H8: 2 | I8: 528 | J8: =CHOOSE(Форма1!$M$22,IF(AVERAGEIFS(СтруктураСети!$G:$G,СтруктураСети!$H:$H,$B8)*Форма1!$M$23>I8,I8,AVERAGEIFS(СтруктураСети!$G:$G,СтруктураСети!$H:$H,$B8)*Форма1!$M$23),IF(VLOOKUP(C8,Форма1!$K$17:$M$20,3,0)*I8*Форма1!$M$23>I8,I8,VLOOKUP(C8,Форма1!$K$17:$M$20,3,0)*I8*Форма1!$M$23)) -> 221.76 | K8: =$J8*Форма1!$M$24 -> 55.44 | L8: 11 | M8: =COUNTIFS(Дефекты1!$A:$A,$B8,Дефекты1!$E:$E,M$4) -> 3 | N8: =COUNTIFS(Дефекты1!$A:$A,$B8,Дефекты1!$E:$E,N$4) -> 0 | O8: =COUNTIFS(Дефекты1!$A:$A,$B8,Дефекты1!$E:$E,O$4) -> 2 | P8: =COUNTIFS(Дефекты1!$A:$A,$B8,Дефекты1!$E:$E,P$4) -> 0 | Q8: =COUNTIFS(Дефекты1!$A:$A,$B8,Дефекты1!$E:$E,Q$4) -> 0 | R8: =COUNTIFS(Дефекты1!$A:$A,$B8,Дефекты1!$E:$E,R$4) -> 6 | S8: =COUNTIFS(Дефекты1!$A:$A,$B8,Дефекты1!$E:$E,S$4) -> 0 | T8: 20.83333333 | U8: 5.681818182 | V8: 0 | W8: 3.787878788 | X8: 0 | Y8: 0 | Z8: 11.36363636 | AA8: 0 | AB8: =IF(T8,IF(OR(NOT(ISERROR(MATCH(AB$3,$AC8:$AI8,0))),AJ8>=AJ$3),VLOOKUP(REPLACE(AB$3,6,2,$C8),Форма3!$M$17:$N$62,2,0)*$I8,SUM(MMULT((AC8:AI8=Форма3!$M$17:$M$62)*(Форма3!$N$17:$N$62),(TRANSPOSE(RIGHT(AC8:AI8,2))=($I$3:$K$3))*($I8:$K8)))),0) -> 57657600 | AC8: =IF(U8,INDEX(Форма2!$E$29:$K$38,SUMIFS(Форма2!$A$29:$A$38,Форма2!$B$29:$B$38,"<"&U8,Форма2!$C$29:$C$38,">="&U8),MATCH(U$4,Форма2!$E$2:$K$2,0)),"---") -> РМНТ-ЛУ | AD8: =IF(V8,INDEX(Форма2!$E$29:$K$38,SUMIFS(Форма2!$A$29:$A$38,Форма2!$B$29:$B$38,"<"&V8,Форма2!$C$29:$C$38,">="&V8),MATCH(V$4,Форма2!$E$2:$K$2,0)),"---") -> --- | AE8: =IF(W8,INDEX(Форма2!$E$29:$K$38,SUMIFS(Форма2!$A$29:$A$38,Форма2!$B$29:$B$38,"<"&W8,Форма2!$C$29:$C$38,">="&W8),MATCH(W$4,Форма2!$E$2:$K$2,0)),"---") -> УСТР-ЛТ | AF8: =IF(X8,INDEX(Форма2!$E$29:$K$38,SUMIFS(Форма2!$A$29:$A$38,Форма2!$B$29:$B$38,"<"&X8,Форма2!$C$29:$C$38,">="&X8),MATCH(X$4,Форма2!$E$2:$K$2,0)),"---") -> --- | AG8: =IF(Y8,INDEX(Форма2!$E$29:$K$38,SUMIFS(Форма2!$A$29:$A$38,Форма2!$B$29:$B$38,"<"&Y8,Форма2!$C$29:$C$38,">="&Y8),MATCH(Y$4,Форма2!$E$2:$K$2,0)),"---") -> --- | AH8: =IF(Z8,INDEX(Форма2!$E$29:$K$38,SUMIFS(Форма2!$A$29:$A$38,Форма2!$B$29:$B$38,"<"&Z8,Форма2!$C$29:$C$38,">="&Z8),MATCH(Z$4,Форма2!$E$2:$K$2,0)),"---") -> --- | AI8: =IF(AA8,INDEX(Форма2!$E$29:$K$38,SUMIFS(Форма2!$A$29:$A$38,Форма2!$B$29:$B$38,"<"&AA8,Форма2!$C$29:$C$38,">="&AA8),MATCH(AA$4,Форма2!$E$2:$K$2,0)),"---") -> --- | AJ8: =SUM((($U8:$AA8)>Форма2!$B$40:$B$49)*(($U8:$AA8)<=Форма2!$C$40:$C$49)*(Форма2!$E$40:$K$49)) -> 0.75 | AK8: =IF(AJ8>=AJ$3,AK$3,INDEX(Форма3!$F$4:$J$4,,MAX(IFERROR(MATCH(RIGHT(AC8:AI8,2),Форма3!$F$4:$J$4,0),0)))) -> ЛТ | AL8: =SUM((($U8:$AA8)>Форма2!$B$7:$B$16)*(($U8:$AA8)<=Форма2!$C$7:$C$16)*(Форма2!$E$7:$K$16)) -> 0.2047619048 | AM8: 0 | AN8: =SUMIFS(Потребители!D:D,Потребители!$B:$B,$B8) -> 0 | AO8: =SUMIFS(Потребители!E:E,Потребители!$B:$B,$B8) -> 0 | AP8: 0 | AQ8: =SUMIFS(Потребители!G:G,Потребители!$B:$B,$B8) -> 0 | AR8: =SUMIFS(Потребители!H:H,Потребители!$B:$B,$B8) -> 0 | AT8: 3950490 | AU8: =IF($AB8,MROUND(SUMIFS($I8:$K8,$I$3:$K$3,$AK8)*$AL8*Форма1!$E$45,10),0) -> 1044380 | AV8: =IF($AB8,FLOOR(SUM($AQ8:$AR8*Форма1!$E$40:$F$40)*($AB8/Форма1!$E$42),10),0) -> 0 | AW8: =IF($AB8,MROUND(SUMIFS($I8:$K8,$I$3:$K$3,$AK8)*Форма1!$F$45*$AL8,10),0) -> 2088770 | AX8: =IF($AB8,MROUND(SUMIFS($I8:$K8,$I$3:$K$3,$AK8)*Форма1!$G$45*$AL8,10),0) -> 817340 | AZ8: 17297280 | BA8: =$AB8*Форма1!$E$50 -> 17297280 | BB8: =IF($AB8>Форма1!$E$53,-CUMIPMT(Форма1!$E$55,ROUND($AB8/Форма1!$E$53*Форма1!$E$54,0),$AB8,1,ROUND($AB8/Форма1!$E$53*Форма1!$E$54,0),0),0) -> 0 | BC8: =MROUND(SUM(Форма1!$E$38:$F$38*AQ8:AR8)/365*($AB8/Форма1!$E$58),10) -> 0 | BF8: 0 | BG8: =IF($AB8,MROUND(SUM($AN8:$AO8*Форма1!$K$40:$L$40),10),0) -> 0 | BL8: 0
A9: "Девятовка" | B9: Т1 | C9: ДC | D9: --- | E9: М1 | F9: Т1 | G9: --- | H9: 3 | I9: 174 | J9: =CHOOSE(Форма1!$M$22,IF(AVERAGEIFS(СтруктураСети!$G:$G,СтруктураСети!$H:$H,$B9)*Форма1!$M$23>I9,I9,AVERAGEIFS(СтруктураСети!$G:$G,СтруктураСети!$H:$H,$B9)*Форма1!$M$23),IF(VLOOKUP(C9,Форма1!$K$17:$M$20,3,0)*I9*Форма1!$M$23>I9,I9,VLOOKUP(C9,Форма1!$K$17:$M$20,3,0)*I9*Форма1!$M$23)) -> 41.76 | K9: =$J9*Форма1!$M$24 -> 10.44 | L9: 3 | M9: =COUNTIFS(Дефекты1!$A:$A,$B9,Дефекты1!$E:$E,M$4) -> 2 | N9: =COUNTIFS(Дефекты1!$A:$A,$B9,Дефекты1!$E:$E,N$4) -> 0 | O9: =COUNTIFS(Дефекты1!$A:$A,$B9,Дефекты1!$E:$E,O$4) -> 0 | P9: =COUNTIFS(Дефекты1!$A:$A,$B9,Дефекты1!$E:$E,P$4) -> 0 | Q9: =COUNTIFS(Дефекты1!$A:$A,$B9,Дефекты1!$E:$E,Q$4) -> 0 | R9: =COUNTIFS(Дефекты1!$A:$A,$B9,Дефекты1!$E:$E,R$4) -> 1 | S9: =COUNTIFS(Дефекты1!$A:$A,$B9,Дефекты1!$E:$E,S$4) -> 0 | T9: 17.24137931 | U9: 11.49425287 | V9: 0 | W9: 0 | X9: 0 | Y9: 0 | Z9: 5.747126437 | AA9: 0 | AB9: =IF(T9,IF(OR(NOT(ISERROR(MATCH(AB$3,$AC9:$AI9,0))),AJ9>=AJ$3),VLOOKUP(REPLACE(AB$3,6,2,$C9),Форма3!$M$17:$N$62,2,0)*$I9,SUM(MMULT((AC9:AI9=Форма3!$M$17:$M$62)*(Форма3!$N$17:$N$62),(TRANSPOSE(RIGHT(AC9:AI9,2))=($I$3:$K$3))*($I9:$K9)))),0) -> 4176000 | AC9: =IF(U9,INDEX(Форма2!$E$29:$K$38,SUMIFS(Форма2!$A$29:$A$38,Форма2!$B$29:$B$38,"<"&U9,Форма2!$C$29:$C$38,">="&U9),MATCH(U$4,Форма2!$E$2:$K$2,0)),"---") -> РМНТ-ЛУ | AD9: =IF(V9,INDEX(Форма2!$E$29:$K$38,SUMIFS(Форма2!$A$29:$A$38,Форма2!$B$29:$B$38,"<"&V9,Форма2!$C$29:$C$38,">="&V9),MATCH(V$4,Форма2!$E$2:$K$2,0)),"---") -> --- | AE9: =IF(W9,INDEX(Форма2!$E$29:$K$38,SUMIFS(Форма2!$A$29:$A$38,Форма2!$B$29:$B$38,"<"&W9,Форма2!$C$29:$C$38,">="&W9),MATCH(W$4,Форма2!$E$2:$K$2,0)),"---") -> --- | AF9: =IF(X9,INDEX(Форма2!$E$29:$K$38,SUMIFS(Форма2!$A$29:$A$38,Форма2!$B$29:$B$38,"<"&X9,Форма2!$C$29:$C$38,">="&X9),MATCH(X$4,Форма2!$E$2:$K$2,0)),"---") -> --- | AG9: =IF(Y9,INDEX(Форма2!$E$29:$K$38,SUMIFS(Форма2!$A$29:$A$38,Форма2!$B$29:$B$38,"<"&Y9,Форма2!$C$29:$C$38,">="&Y9),MATCH(Y$4,Форма2!$E$2:$K$2,0)),"---") -> --- | AH9: =IF(Z9,INDEX(Форма2!$E$29:$K$38,SUMIFS(Форма2!$A$29:$A$38,Форма2!$B$29:$B$38,"<"&Z9,Форма2!$C$29:$C$38,">="&Z9),MATCH(Z$4,Форма2!$E$2:$K$2,0)),"---") -> --- | AI9: =IF(AA9,INDEX(Форма2!$E$29:$K$38,SUMIFS(Форма2!$A$29:$A$38,Форма2!$B$29:$B$38,"<"&AA9,Форма2!$C$29:$C$38,">="&AA9),MATCH(AA$4,Форма2!$E$2:$K$2,0)),"---") -> --- | AJ9: =SUM((($U9:$AA9)>Форма2!$B$40:$B$49)*(($U9:$AA9)<=Форма2!$C$40:$C$49)*(Форма2!$E$40:$K$49)) -> 0.35 | AK9: =IF(AJ9>=AJ$3,AK$3,INDEX(Форма3!$F$4:$J$4,,MAX(IFERROR(MATCH(RIGHT(AC9:AI9,2),Форма3!$F$4:$J$4,0),0)))) -> ЛУ | AL9: =SUM((($U9:$AA9)>Форма2!$B$7:$B$16)*(($U9:$AA9)<=Форма2!$C$7:$C$16)*(Форма2!$E$7:$K$16)) -> 0.1333333333 | AM9: 297 | AN9: =SUMIFS(Потребители!D:D,Потребители!$B:$B,$B9) -> 297 | AO9: =SUMIFS(Потребители!E:E,Потребители!$B:$B,$B9) -> 0 | AP9: 9973.26 | AQ9: =SUMIFS(Потребители!G:G,Потребители!$B:$B,$B9) -> 9973.26 | AR9: =SUMIFS(Потребители!H:H,Потребители!$B:$B,$B9) -> 0 | AT9: 121380 | AU9: =IF($AB9,MROUND(SUMIFS($I9:$K9,$I$3:$K$3,$AK9)*$AL9*Форма1!$E$45,10),0) -> 32020 | AV9: =IF($AB9,FLOOR(SUM($AQ9:$AR9*Форма1!$E$40:$F$40)*($AB9/Форма1!$E$42),10),0) -> 270 | AW9: =IF($AB9,MROUND(SUMIFS($I9:$K9,$I$3:$K$3,$AK9)*Форма1!$F$45*$AL9,10),0) -> 64030 | AX9: =IF($AB9,MROUND(SUMIFS($I9:$K9,$I$3:$K$3,$AK9)*Форма1!$G$45*$AL9,10),0) -> 25060 | AZ9: 1256580 | BA9: =$AB9*Форма1!$E$50 -> 1252800 | BB9: =IF($AB9>Форма1!$E$53,-CUMIPMT(Форма1!$E$55,ROUND($AB9/Форма1!$E$53*Форма1!$E$54,0),$AB9,1,ROUND($AB9/Форма1!$E$53*Форма1!$E$54,0),0),0) -> 0 | BC9: =MROUND(SUM(Форма1!$E$38:$F$38*AQ9:AR9)/365*($AB9/Форма1!$E$58),10) -> 3780 | BF9: 5940000 | BG9: =IF($AB9,MROUND(SUM($AN9:$AO9*Форма1!$K$40:$L$40),10),0) -> 5940000 | BL9: 0
A10: "Девятовка" | B10: Т10 | C10: ДC | D10: --- | E10: М1 | F10: Т10 | G10: --- | H10: 3 | I10: 66 | J10: =CHOOSE(Форма1!$M$22,IF(AVERAGEIFS(СтруктураСети!$G:$G,СтруктураСети!$H:$H,$B10)*Форма1!$M$23>I10,I10,AVERAGEIFS(СтруктураСети!$G:$G,СтруктураСети!$H:$H,$B10)*Форма1!$M$23),IF(VLOOKUP(C10,Форма1!$K$17:$M$20,3,0)*I10*Форма1!$M$23>I10,I10,VLOOKUP(C10,Форма1!$K$17:$M$20,3,0)*I10*Форма1!$M$23)) -> 15.84 | K10: =$J10*Форма1!$M$24 -> 3.96 | L10: 2 | M10: =COUNTIFS(Дефекты1!$A:$A,$B10,Дефекты1!$E:$E,M$4) -> 0 | N10: =COUNTIFS(Дефекты1!$A:$A,$B10,Дефекты1!$E:$E,N$4) -> 0 | O10: =COUNTIFS(Дефекты1!$A:$A,$B10,Дефекты1!$E:$E,O$4) -> 0 | P10: =COUNTIFS(Дефекты1!$A:$A,$B10,Дефекты1!$E:$E,P$4) -> 0 | Q10: =COUNTIFS(Дефекты1!$A:$A,$B10,Дефекты1!$E:$E,Q$4) -> 0 | R10: =COUNTIFS(Дефекты1!$A:$A,$B10,Дефекты1!$E:$E,R$4) -> 2 | S10: =COUNTIFS(Дефекты1!$A:$A,$B10,Дефекты1!$E:$E,S$4) -> 0 | T10: 30.3030303 | U10: 0 | V10: 0 | W10: 0 | X10: 0 | Y10: 0 | Z10: 30.3030303 | AA10: 0 | AB10: =IF(T10,IF(OR(NOT(ISERROR(MATCH(AB$3,$AC10:$AI10,0))),AJ10>=AJ$3),VLOOKUP(REPLACE(AB$3,6,2,$C10),Форма3!$M$17:$N$62,2,0)*$I10,SUM(MMULT((AC10:AI10=Форма3!$M$17:$M$62)*(Форма3!$N$17:$N$62),(TRANSPOSE(RIGHT(AC10:AI10,2))=($I$3:$K$3))*($I10:$K10)))),0) -> 0 | AC10: =IF(U10,INDEX(Форма2!$E$29:$K$38,SUMIFS(Форма2!$A$29:$A$38,Форма2!$B$29:$B$38,"<"&U10,Форма2!$C$29:$C$38,">="&U10),MATCH(U$4,Форма2!$E$2:$K$2,0)),"---") -> --- | AD10: =IF(V10,INDEX(Форма2!$E$29:$K$38,SUMIFS(Форма2!$A$29:$A$38,Форма2!$B$29:$B$38,"<"&V10,Форма2!$C$29:$C$38,">="&V10),MATCH(V$4,Форма2!$E$2:$K$2,0)),"---") -> --- | AE10: =IF(W10,INDEX(Форма2!$E$29:$K$38,SUMIFS(Форма2!$A$29:$A$38,Форма2!$B$29:$B$38,"<"&W10,Форма2!$C$29:$C$38,">="&W10),MATCH(W$4,Форма2!$E$2:$K$2,0)),"---") -> --- | AF10: =IF(X10,INDEX(Форма2!$E$29:$K$38,SUMIFS(Форма2!$A$29:$A$38,Форма2!$B$29:$B$38,"<"&X10,Форма2!$C$29:$C$38,">="&X10),MATCH(X$4,Форма2!$E$2:$K$2,0)),"---") -> --- | AG10: =IF(Y10,INDEX(Форма2!$E$29:$K$38,SUMIFS(Форма2!$A$29:$A$38,Форма2!$B$29:$B$38,"<"&Y10,Форма2!$C$29:$C$38,">="&Y10),MATCH(Y$4,Форма2!$E$2:$K$2,0)),"---") -> --- | AH10: =IF(Z10,INDEX(Форма2!$E$29:$K$38,SUMIFS(Форма2!$A$29:$A$38,Форма2!$B$29:$B$38,"<"&Z10,Форма2!$C$29:$C$38,">="&Z10),MATCH(Z$4,Форма2!$E$2:$K$2,0)),"---") -> --- | AI10: =IF(AA10,INDEX(Форма2!$E$29:$K$38,SUMIFS(Форма2!$A$29:$A$38,Форма2!$B$29:$B$38,"<"&AA10,Форма2!$C$29:$C$38,">="&AA10),MATCH(AA$4,Форма2!$E$2:$K$2,0)),"---") -> --- | AJ10: =SUM((($U10:$AA10)>Форма2!$B$40:$B$49)*(($U10:$AA10)<=Форма2!$C$40:$C$49)*(Форма2!$E$40:$K$49)) -> 0 | AK10: =IF(AJ10>=AJ$3,AK$3,INDEX(Форма3!$F$4:$J$4,,MAX(IFERROR(MATCH(RIGHT(AC10:AI10,2),Форма3!$F$4:$J$4,0),0)))) -> ЛУ | AL10: =SUM((($U10:$AA10)>Форма2!$B$7:$B$16)*(($U10:$AA10)<=Форма2!$C$7:$C$16)*(Форма2!$E$7:$K$16)) -> 0.05 | AM10: 125 | AN10: =SUMIFS(Потребители!D:D,Потребители!$B:$B,$B10) -> 125 | AO10: =SUMIFS(Потребители!E:E,Потребители!$B:$B,$B10) -> 0 | AP10: 4197.5 | AQ10: =SUMIFS(Потребители!G:G,Потребители!$B:$B,$B10) -> 4197.5 | AR10: =SUMIFS(Потребители!H:H,Потребители!$B:$B,$B10) -> 0 | AT10: 0 | AU10: =IF($AB10,MROUND(SUMIFS($I10:$K10,$I$3:$K$3,$AK10)*$AL10*Форма1!$E$45,10),0) -> 0 | AV10: =IF($AB10,FLOOR(SUM($AQ10:$AR10*Форма1!$E$40:$F$40)*($AB10/Форма1!$E$42),10),0) -> 0 | AW10: =IF($AB10,MROUND(SUMIFS($I10:$K10,$I$3:$K$3,$AK10)*Форма1!$F$45*$AL10,10),0) -> 0 | AX10: =IF($AB10,MROUND(SUMIFS($I10:$K10,$I$3:$K$3,$AK10)*Форма1!$G$45*$AL10,10),0) -> 0 | AZ10: 0 | BA10: =$AB10*Форма1!$E$50 -> 0 | BB10: =IF($AB10>Форма1!$E$53,-CUMIPMT(Форма1!$E$55,ROUND($AB10/Форма1!$E$53*Форма1!$E$54,0),$AB10,1,ROUND($AB10/Форма1!$E$53*Форма1!$E$54,0),0),0) -> 0 | BC10: =MROUND(SUM(Форма1!$E$38:$F$38*AQ10:AR10)/365*($AB10/Форма1!$E$58),10) -> 0 | BF10: 0 | BG10: =IF($AB10,MROUND(SUM($AN10:$AO10*Форма1!$K$40:$L$40),10),0) -> 0 | BL10: 0
A11: "Девятовка" | B11: Т11 | C11: ДC | D11: --- | E11: М1 | F11: Т11 | G11: --- | H11: 3 | I11: 361 | J11: =CHOOSE(Форма1!$M$22,IF(AVERAGEIFS(СтруктураСети!$G:$G,СтруктураСети!$H:$H,$B11)*Форма1!$M$23>I11,I11,AVERAGEIFS(СтруктураСети!$G:$G,СтруктураСети!$H:$H,$B11)*Форма1!$M$23),IF(VLOOKUP(C11,Форма1!$K$17:$M$20,3,0)*I11*Форма1!$M$23>I11,I11,VLOOKUP(C11,Форма1!$K$17:$M$20,3,0)*I11*Форма1!$M$23)) -> 86.64 | K11: =$J11*Форма1!$M$24 -> 21.66 | L11: 12 | M11: =COUNTIFS(Дефекты1!$A:$A,$B11,Дефекты1!$E:$E,M$4) -> 2 | N11: =COUNTIFS(Дефекты1!$A:$A,$B11,Дефекты1!$E:$E,N$4) -> 0 | O11: =COUNTIFS(Дефекты1!$A:$A,$B11,Дефекты1!$E:$E,O$4) -> 4 | P11: =COUNTIFS(Дефекты1!$A:$A,$B11,Дефекты1!$E:$E,P$4) -> 0 | Q11: =COUNTIFS(Дефекты1!$A:$A,$B11,Дефекты1!$E:$E,Q$4) -> 0 | R11: =COUNTIFS(Дефекты1!$A:$A,$B11,Дефекты1!$E:$E,R$4) -> 6 | S11: =COUNTIFS(Дефекты1!$A:$A,$B11,Дефекты1!$E:$E,S$4) -> 0 | T11: 33.24099723 | U11: 5.540166205 | V11: 0 | W11: 11.08033241 | X11: 0 | Y11: 0 | Z11: 16.62049861 | AA11: 0 | AB11: =IF(T11,IF(OR(NOT(ISERROR(MATCH(AB$3,$AC11:$AI11,0))),AJ11>=AJ$3),VLOOKUP(REPLACE(AB$3,6,2,$C11),Форма3!$M$17:$N$62,2,0)*$I11,SUM(MMULT((AC11:AI11=Форма3!$M$17:$M$62)*(Форма3!$N$17:$N$62),(TRANSPOSE(RIGHT(AC11:AI11,2))=($I$3:$K$3))*($I11:$K11)))),0) -> 22526400 | AC11: =IF(U11,INDEX(Форма2!$E$29:$K$38,SUMIFS(Форма2!$A$29:$A$38,Форма2!$B$29:$B$38,"<"&U11,Форма2!$C$29:$C$38,">="&U11),MATCH(U$4,Форма2!$E$2:$K$2,0)),"---") -> РМНТ-ЛУ | AD11: =IF(V11,INDEX(Форма2!$E$29:$K$38,SUMIFS(Форма2!$A$29:$A$38,Форма2!$B$29:$B$38,"<"&V11,Форма2!$C$29:$C$38,">="&V11),MATCH(V$4,Форма2!$E$2:$K$2,0)),"---") -> --- | AE11: =IF(W11,INDEX(Форма2!$E$29:$K$38,SUMIFS(Форма2!$A$29:$A$38,Форма2!$B$29:$B$38,"<"&W11,Форма2!$C$29:$C$38,">="&W11),MATCH(W$4,Форма2!$E$2:$K$2,0)),"---") -> УСТР-ЛТ | AF11: =IF(X11,INDEX(Форма2!$E$29:$K$38,SUMIFS(Форма2!$A$29:$A$38,Форма2!$B$29:$B$38,"<"&X11,Форма2!$C$29:$C$38,">="&X11),MATCH(X$4,Форма2!$E$2:$K$2,0)),"---") -> --- | AG11: =IF(Y11,INDEX(Форма2!$E$29:$K$38,SUMIFS(Форма2!$A$29:$A$38,Форма2!$B$29:$B$38,"<"&Y11,Форма2!$C$29:$C$38,">="&Y11),MATCH(Y$4,Форма2!$E$2:$K$2,0)),"---") -> --- | AH11: =IF(Z11,INDEX(Форма2!$E$29:$K$38,SUMIFS(Форма2!$A$29:$A$38,Форма2!$B$29:$B$38,"<"&Z11,Форма2!$C$29:$C$38,">="&Z11),MATCH(Z$4,Форма2!$E$2:$K$2,0)),"---") -> --- | AI11: =IF(AA11,INDEX(Форма2!$E$29:$K$38,SUMIFS(Форма2!$A$29:$A$38,Форма2!$B$29:$B$38,"<"&AA11,Форма2!$C$29:$C$38,">="&AA11),MATCH(AA$4,Форма2!$E$2:$K$2,0)),"---") -> --- | AJ11: =SUM((($U11:$AA11)>Форма2!$B$40:$B$49)*(($U11:$AA11)<=Форма2!$C$40:$C$49)*(Форма2!$E$40:$K$49)) -> 0.75 | AK11: =IF(AJ11>=AJ$3,AK$3,INDEX(Форма3!$F$4:$J$4,,MAX(IFERROR(MATCH(RIGHT(AC11:AI11,2),Форма3!$F$4:$J$4,0),0)))) -> ЛТ | AL11: =SUM((($U11:$AA11)>Форма2!$B$7:$B$16)*(($U11:$AA11)<=Форма2!$C$7:$C$16)*(Форма2!$E$7:$K$16)) -> 0.2047619048 | AM11: 96 | AN11: =SUMIFS(Потребители!D:D,Потребители!$B:$B,$B11) -> 96 | AO11: =SUMIFS(Потребители!E:E,Потребители!$B:$B,$B11) -> 0 | AP11: 3223.68 | AQ11: =SUMIFS(Потребители!G:G,Потребители!$B:$B,$B11) -> 3223.68 | AR11: =SUMIFS(Потребители!H:H,Потребители!$B:$B,$B11) -> 0 | AT11: 1543910 | AU11: =IF($AB11,MROUND(SUMIFS($I11:$K11,$I$3:$K$3,$AK11)*$AL11*Форма1!$E$45,10),0) -> 408030 | AV11: =IF($AB11,FLOOR(SUM($AQ11:$AR11*Форма1!$E$40:$F$40)*($AB11/Форма1!$E$42),10),0) -> 480 | AW11: =IF($AB11,MROUND(SUMIFS($I11:$K11,$I$3:$K$3,$AK11)*Форма1!$F$45*$AL11,10),0) -> 816070 | AX11: =IF($AB11,MROUND(SUMIFS($I11:$K11,$I$3:$K$3,$AK11)*Форма1!$G$45*$AL11,10),0) -> 319330 | AZ11: 6764500 | BA11: =$AB11*Форма1!$E$50 -> 6757920 | BB11: =IF($AB11>Форма1!$E$53,-CUMIPMT(Форма1!$E$55,ROUND($AB11/Форма1!$E$53*Форма1!$E$54,0),$AB11,1,ROUND($AB11/Форма1!$E$53*Форма1!$E$54,0),0),0) -> 0 | BC11: =MROUND(SUM(Форма1!$E$38:$F$38*AQ11:AR11)/365*($AB11/Форма1!$E$58),10) -> 6580 | BF11: 1920000 | BG11: =IF($AB11,MROUND(SUM($AN11:$AO11*Форма1!$K$40:$L$40),10),0) -> 1920000 | BL11: 0
A12: "Девятовка" | B12: Т12 | C12: ДC | D12: --- | E12: М1 | F12: Т12 | G12: --- | H12: 3 | I12: 48 | J12: =CHOOSE(Форма1!$M$22,IF(AVERAGEIFS(СтруктураСети!$G:$G,СтруктураСети!$H:$H,$B12)*Форма1!$M$23>I12,I12,AVERAGEIFS(СтруктураСети!$G:$G,СтруктураСети!$H:$H,$B12)*Форма1!$M$23),IF(VLOOKUP(C12,Форма1!$K$17:$M$20,3,0)*I12*Форма1!$M$23>I12,I12,VLOOKUP(C12,Форма1!$K$17:$M$20,3,0)*I12*Форма1!$M$23)) -> 11.52 | K12: =$J12*Форма1!$M$24 -> 2.88 | L12: 2 | M12: =COUNTIFS(Дефекты1!$A:$A,$B12,Дефекты1!$E:$E,M$4) -> 0 | N12: =COUNTIFS(Дефекты1!$A:$A,$B12,Дефекты1!$E:$E,N$4) -> 0 | O12: =COUNTIFS(Дефекты1!$A:$A,$B12,Дефекты1!$E:$E,O$4) -> 1 | P12: =COUNTIFS(Дефекты1!$A:$A,$B12,Дефекты1!$E:$E,P$4) -> 0 | Q12: =COUNTIFS(Дефекты1!$A:$A,$B12,Дефекты1!$E:$E,Q$4) -> 0 | R12: =COUNTIFS(Дефекты1!$A:$A,$B12,Дефекты1!$E:$E,R$4) -> 1 | S12: =COUNTIFS(Дефекты1!$A:$A,$B12,Дефекты1!$E:$E,S$4) -> 0 | T12: 41.66666667 | U12: 0 | V12: 0 | W12: 20.83333333 | X12: 0 | Y12: 0 | Z12: 20.83333333 | AA12: 0 | AB12: =IF(T12,IF(OR(NOT(ISERROR(MATCH(AB$3,$AC12:$AI12,0))),AJ12>=AJ$3),VLOOKUP(REPLACE(AB$3,6,2,$C12),Форма3!$M$17:$N$62,2,0)*$I12,SUM(MMULT((AC12:AI12=Форма3!$M$17:$M$62)*(Форма3!$N$17:$N$62),(TRANSPOSE(RIGHT(AC12:AI12,2))=($I$3:$K$3))*($I12:$K12)))),0) -> 1843200 | AC12: =IF(U12,INDEX(Форма2!$E$29:$K$38,SUMIFS(Форма2!$A$29:$A$38,Форма2!$B$29:$B$38,"<"&U12,Форма2!$C$29:$C$38,">="&U12),MATCH(U$4,Форма2!$E$2:$K$2,0)),"---") -> --- | AD12: =IF(V12,INDEX(Форма2!$E$29:$K$38,SUMIFS(Форма2!$A$29:$A$38,Форма2!$B$29:$B$38,"<"&V12,Форма2!$C$29:$C$38,">="&V12),MATCH(V$4,Форма2!$E$2:$K$2,0)),"---") -> --- | AE12: =IF(W12,INDEX(Форма2!$E$29:$K$38,SUMIFS(Форма2!$A$29:$A$38,Форма2!$B$29:$B$38,"<"&W12,Форма2!$C$29:$C$38,">="&W12),MATCH(W$4,Форма2!$E$2:$K$2,0)),"---") -> УСТР-ЛТ | AF12: =IF(X12,INDEX(Форма2!$E$29:$K$38,SUMIFS(Форма2!$A$29:$A$38,Форма2!$B$29:$B$38,"<"&X12,Форма2!$C$29:$C$38,">="&X12),MATCH(X$4,Форма2!$E$2:$K$2,0)),"---") -> --- | AG12: =IF(Y12,INDEX(Форма2!$E$29:$K$38,SUMIFS(Форма2!$A$29:$A$38,Форма2!$B$29:$B$38,"<"&Y12,Форма2!$C$29:$C$38,">="&Y12),MATCH(Y$4,Форма2!$E$2:$K$2,0)),"---") -> --- | AH12: =IF(Z12,INDEX(Форма2!$E$29:$K$38,SUMIFS(Форма2!$A$29:$A$38,Форма2!$B$29:$B$38,"<"&Z12,Форма2!$C$29:$C$38,">="&Z12),MATCH(Z$4,Форма2!$E$2:$K$2,0)),"---") -> --- | AI12: =IF(AA12,INDEX(Форма2!$E$29:$K$38,SUMIFS(Форма2!$A$29:$A$38,Форма2!$B$29:$B$38,"<"&AA12,Форма2!$C$29:$C$38,">="&AA12),MATCH(AA$4,Форма2!$E$2:$K$2,0)),"---") -> --- | AJ12: =SUM((($U12:$AA12)>Форма2!$B$40:$B$49)*(($U12:$AA12)<=Форма2!$C$40:$C$49)*(Форма2!$E$40:$K$49)) -> 0.4 | AK12: =IF(AJ12>=AJ$3,AK$3,INDEX(Форма3!$F$4:$J$4,,MAX(IFERROR(MATCH(RIGHT(AC12:AI12,2),Форма3!$F$4:$J$4,0),0)))) -> ЛТ | AL12: =SUM((($U12:$AA12)>Форма2!$B$7:$B$16)*(($U12:$AA12)<=Форма2!$C$7:$C$16)*(Форма2!$E$7:$K$16)) -> 0.1214285714 | AM12: 119 | AN12: =SUMIFS(Потребители!D:D,Потребители!$B:$B,$B12) -> 119 | AO12: =SUMIFS(Потребители!E:E,Потребители!$B:$B,$B12) -> 0 | AP12: 3996.02 | AQ12: =SUMIFS(Потребители!G:G,Потребители!$B:$B,$B12) -> 3996.02 | AR12: =SUMIFS(Потребители!H:H,Потребители!$B:$B,$B12) -> 0 | AT12: 121740 | AU12: =IF($AB12,MROUND(SUMIFS($I12:$K12,$I$3:$K$3,$AK12)*$AL12*Форма1!$E$45,10),0) -> 32170 | AV12: =IF($AB12,FLOOR(SUM($AQ12:$AR12*Форма1!$E$40:$F$40)*($AB12/Форма1!$E$42),10),0) -> 40 | AW12: =IF($AB12,MROUND(SUMIFS($I12:$K12,$I$3:$K$3,$AK12)*Форма1!$F$45*$AL12,10),0) -> 64350 | AX12: =IF($AB12,MROUND(SUMIFS($I12:$K12,$I$3:$K$3,$AK12)*Форма1!$G$45*$AL12,10),0) -> 25180 | AZ12: 553630 | BA12: =$AB12*Форма1!$E$50 -> 552960 | BB12: =IF($AB12>Форма1!$E$53,-CUMIPMT(Форма1!$E$55,ROUND($AB12/Форма1!$E$53*Форма1!$E$54,0),$AB12,1,ROUND($AB12/Форма1!$E$53*Форма1!$E$54,0),0),0) -> 0 | BC12: =MROUND(SUM(Форма1!$E$38:$F$38*AQ12:AR12)/365*($AB12/Форма1!$E$58),10) -> 670 | BF12: 2380000 | BG12: =IF($AB12,MROUND(SUM($AN12:$AO12*Форма1!$K$40:$L$40),10),0) -> 2380000 | BL12: 0
A13: "Девятовка" | B13: Т13 | C13: ДC | D13: --- | E13: М2 | F13: Т13 | G13: --- | H13: 3 | I13: 234 | J13: =CHOOSE(Форма1!$M$22,IF(AVERAGEIFS(СтруктураСети!$G:$G,СтруктураСети!$H:$H,$B13)*Форма1!$M$23>I13,I13,AVERAGEIFS(СтруктураСети!$G:$G,СтруктураСети!$H:$H,$B13)*Форма1!$M$23),IF(VLOOKUP(C13,Форма1!$K$17:$M$20,3,0)*I13*Форма1!$M$23>I13,I13,VLOOKUP(C13,Форма1!$K$17:$M$20,3,0)*I13*Форма1!$M$23)) -> 56.16 | K13: =$J13*Форма1!$M$24 -> 14.04 | L13: 0 | M13: =COUNTIFS(Дефекты1!$A:$A,$B13,Дефекты1!$E:$E,M$4) -> 0 | N13: =COUNTIFS(Дефекты1!$A:$A,$B13,Дефекты1!$E:$E,N$4) -> 0 | O13: =COUNTIFS(Дефекты1!$A:$A,$B13,Дефекты1!$E:$E,O$4) -> 0 | P13: =COUNTIFS(Дефекты1!$A:$A,$B13,Дефекты1!$E:$E,P$4) -> 0 | Q13: =COUNTIFS(Дефекты1!$A:$A,$B13,Дефекты1!$E:$E,Q$4) -> 0 | R13: =COUNTIFS(Дефекты1!$A:$A,$B13,Дефекты1!$E:$E,R$4) -> 0 | S13: =COUNTIFS(Дефекты1!$A:$A,$B13,Дефекты1!$E:$E,S$4) -> 0 | T13: 0 | U13: 0 | V13: 0 | W13: 0 | X13: 0 | Y13: 0 | Z13: 0 | AA13: 0 | AB13: =IF(T13,IF(OR(NOT(ISERROR(MATCH(AB$3,$AC13:$AI13,0))),AJ13>=AJ$3),VLOOKUP(REPLACE(AB$3,6,2,$C13),Форма3!$M$17:$N$62,2,0)*$I13,SUM(MMULT((AC13:AI13=Форма3!$M$17:$M$62)*(Форма3!$N$17:$N$62),(TRANSPOSE(RIGHT(AC13:AI13,2))=($I$3:$K$3))*($I13:$K13)))),0) -> 0 | AC13: =IF(U13,INDEX(Форма2!$E$29:$K$38,SUMIFS(Форма2!$A$29:$A$38,Форма2!$B$29:$B$38,"<"&U13,Форма2!$C$29:$C$38,">="&U13),MATCH(U$4,Форма2!$E$2:$K$2,0)),"---") -> --- | AD13: =IF(V13,INDEX(Форма2!$E$29:$K$38,SUMIFS(Форма2!$A$29:$A$38,Форма2!$B$29:$B$38,"<"&V13,Форма2!$C$29:$C$38,">="&V13),MATCH(V$4,Форма2!$E$2:$K$2,0)),"---") -> --- | AE13: =IF(W13,INDEX(Форма2!$E$29:$K$38,SUMIFS(Форма2!$A$29:$A$38,Форма2!$B$29:$B$38,"<"&W13,Форма2!$C$29:$C$38,">="&W13),MATCH(W$4,Форма2!$E$2:$K$2,0)),"---") -> --- | AF13: =IF(X13,INDEX(Форма2!$E$29:$K$38,SUMIFS(Форма2!$A$29:$A$38,Форма2!$B$29:$B$38,"<"&X13,Форма2!$C$29:$C$38,">="&X13),MATCH(X$4,Форма2!$E$2:$K$2,0)),"---") -> --- | AG13: =IF(Y13,INDEX(Форма2!$E$29:$K$38,SUMIFS(Форма2!$A$29:$A$38,Форма2!$B$29:$B$38,"<"&Y13,Форма2!$C$29:$C$38,">="&Y13),MATCH(Y$4,Форма2!$E$2:$K$2,0)),"---") -> --- | AH13: =IF(Z13,INDEX(Форма2!$E$29:$K$38,SUMIFS(Форма2!$A$29:$A$38,Форма2!$B$29:$B$38,"<"&Z13,Форма2!$C$29:$C$38,">="&Z13),MATCH(Z$4,Форма2!$E$2:$K$2,0)),"---") -> --- | AI13: =IF(AA13,INDEX(Форма2!$E$29:$K$38,SUMIFS(Форма2!$A$29:$A$38,Форма2!$B$29:$B$38,"<"&AA13,Форма2!$C$29:$C$38,">="&AA13),MATCH(AA$4,Форма2!$E$2:$K$2,0)),"---") -> --- | AJ13: =SUM((($U13:$AA13)>Форма2!$B$40:$B$49)*(($U13:$AA13)<=Форма2!$C$40:$C$49)*(Форма2!$E$40:$K$49)) -> 0 | AK13: =IF(AJ13>=AJ$3,AK$3,INDEX(Форма3!$F$4:$J$4,,MAX(IFERROR(MATCH(RIGHT(AC13:AI13,2),Форма3!$F$4:$J$4,0),0)))) -> ЛУ | AL13: =SUM((($U13:$AA13)>Форма2!$B$7:$B$16)*(($U13:$AA13)<=Форма2!$C$7:$C$16)*(Форма2!$E$7:$K$16)) -> 0 | AM13: 502 | AN13: =SUMIFS(Потребители!D:D,Потребители!$B:$B,$B13) -> 502 | AO13: =SUMIFS(Потребители!E:E,Потребители!$B:$B,$B13) -> 0 | AP13: 16857.16 | AQ13: =SUMIFS(Потребители!G:G,Потребители!$B:$B,$B13) -> 16857.16 | AR13: =SUMIFS(Потребители!H:H,Потребители!$B:$B,$B13) -> 0 | AT13: 0 | AU13: =IF($AB13,MROUND(SUMIFS($I13:$K13,$I$3:$K$3,$AK13)*$AL13*Форма1!$E$45,10),0) -> 0 | AV13: =IF($AB13,FLOOR(SUM($AQ13:$AR13*Форма1!$E$40:$F$40)*($AB13/Форма1!$E$42),10),0) -> 0 | AW13: =IF($AB13,MROUND(SUMIFS($I13:$K13,$I$3:$K$3,$AK13)*Форма1!$F$45*$AL13,10),0) -> 0 | AX13: =IF($AB13,MROUND(SUMIFS($I13:$K13,$I$3:$K$3,$AK13)*Форма1!$G$45*$AL13,10),0) -> 0 | AZ13: 0 | BA13: =$AB13*Форма1!$E$50 -> 0 | BB13: =IF($AB13>Форма1!$E$53,-CUMIPMT(Форма1!$E$55,ROUND($AB13/Форма1!$E$53*Форма1!$E$54,0),$AB13,1,ROUND($AB13/Форма1!$E$53*Форма1!$E$54,0),0),0) -> 0 | BC13: =MROUND(SUM(Форма1!$E$38:$F$38*AQ13:AR13)/365*($AB13/Форма1!$E$58),10) -> 0 | BF13: 0 | BG13: =IF($AB13,MROUND(SUM($AN13:$AO13*Форма1!$K$40:$L$40),10),0) -> 0 | BL13: 0
A14: "Девятовка" | B14: Т14 | C14: ДC | D14: --- | E14: М1 | F14: Т14 | G14: --- | H14: 3 | I14: 94 | J14: =CHOOSE(Форма1!$M$22,IF(AVERAGEIFS(СтруктураСети!$G:$G,СтруктураСети!$H:$H,$B14)*Форма1!$M$23>I14,I14,AVERAGEIFS(СтруктураСети!$G:$G,СтруктураСети!$H:$H,$B14)*Форма1!$M$23),IF(VLOOKUP(C14,Форма1!$K$17:$M$20,3,0)*I14*Форма1!$M$23>I14,I14,VLOOKUP(C14,Форма1!$K$17:$M$20,3,0)*I14*Форма1!$M$23)) -> 22.56 | K14: =$J14*Форма1!$M$24 -> 5.64 | L14: 5 | M14: =COUNTIFS(Дефекты1!$A:$A,$B14,Дефекты1!$E:$E,M$4) -> 3 | N14: =COUNTIFS(Дефекты1!$A:$A,$B14,Дефекты1!$E:$E,N$4) -> 0 | O14: =COUNTIFS(Дефекты1!$A:$A,$B14,Дефекты1!$E:$E,O$4) -> 0 | P14: =COUNTIFS(Дефекты1!$A:$A,$B14,Дефекты1!$E:$E,P$4) -> 0 | Q14: =COUNTIFS(Дефекты1!$A:$A,$B14,Дефекты1!$E:$E,Q$4) -> 0 | R14: =COUNTIFS(Дефекты1!$A:$A,$B14,Дефекты1!$E:$E,R$4) -> 2 | S14: =COUNTIFS(Дефекты1!$A:$A,$B14,Дефекты1!$E:$E,S$4) -> 0 | T14: 53.19148936 | U14: 31.91489362 | V14: 0 | W14: 0 | X14: 0 | Y14: 0 | Z14: 21.27659574 | AA14: 0 | AB14: =IF(T14,IF(OR(NOT(ISERROR(MATCH(AB$3,$AC14:$AI14,0))),AJ14>=AJ$3),VLOOKUP(REPLACE(AB$3,6,2,$C14),Форма3!$M$17:$N$62,2,0)*$I14,SUM(MMULT((AC14:AI14=Форма3!$M$17:$M$62)*(Форма3!$N$17:$N$62),(TRANSPOSE(RIGHT(AC14:AI14,2))=($I$3:$K$3))*($I14:$K14)))),0) -> 2256000 | AC14: =IF(U14,INDEX(Форма2!$E$29:$K$38,SUMIFS(Форма2!$A$29:$A$38,Форма2!$B$29:$B$38,"<"&U14,Форма2!$C$29:$C$38,">="&U14),MATCH(U$4,Форма2!$E$2:$K$2,0)),"---") -> РМНТ-ЛУ | AD14: =IF(V14,INDEX(Форма2!$E$29:$K$38,SUMIFS(Форма2!$A$29:$A$38,Форма2!$B$29:$B$38,"<"&V14,Форма2!$C$29:$C$38,">="&V14),MATCH(V$4,Форма2!$E$2:$K$2,0)),"---") -> --- | AE14: =IF(W14,INDEX(Форма2!$E$29:$K$38,SUMIFS(Форма2!$A$29:$A$38,Форма2!$B$29:$B$38,"<"&W14,Форма2!$C$29:$C$38,">="&W14),MATCH(W$4,Форма2!$E$2:$K$2,0)),"---") -> --- | AF14: =IF(X14,INDEX(Форма2!$E$29:$K$38,SUMIFS(Форма2!$A$29:$A$38,Форма2!$B$29:$B$38,"<"&X14,Форма2!$C$29:$C$38,">="&X14),MATCH(X$4,Форма2!$E$2:$K$2,0)),"---") -> --- | AG14: =IF(Y14,INDEX(Форма2!$E$29:$K$38,SUMIFS(Форма2!$A$29:$A$38,Форма2!$B$29:$B$38,"<"&Y14,Форма2!$C$29:$C$38,">="&Y14),MATCH(Y$4,Форма2!$E$2:$K$2,0)),"---") -> --- | AH14: =IF(Z14,INDEX(Форма2!$E$29:$K$38,SUMIFS(Форма2!$A$29:$A$38,Форма2!$B$29:$B$38,"<"&Z14,Форма2!$C$29:$C$38,">="&Z14),MATCH(Z$4,Форма2!$E$2:$K$2,0)),"---") -> --- | AI14: =IF(AA14,INDEX(Форма2!$E$29:$K$38,SUMIFS(Форма2!$A$29:$A$38,Форма2!$B$29:$B$38,"<"&AA14,Форма2!$C$29:$C$38,">="&AA14),MATCH(AA$4,Форма2!$E$2:$K$2,0)),"---") -> --- | AJ14: =SUM((($U14:$AA14)>Форма2!$B$40:$B$49)*(($U14:$AA14)<=Форма2!$C$40:$C$49)*(Форма2!$E$40:$K$49)) -> 0.35 | AK14: =IF(AJ14>=AJ$3,AK$3,INDEX(Форма3!$F$4:$J$4,,MAX(IFERROR(MATCH(RIGHT(AC14:AI14,2),Форма3!$F$4:$J$4,0),0)))) -> ЛУ | AL14: =SUM((($U14:$AA14)>Форма2!$B$7:$B$16)*(($U14:$AA14)<=Форма2!$C$7:$C$16)*(Форма2!$E$7:$K$16)) -> 0.1333333333 | AM14: 207 | AN14: =SUMIFS(Потребители!D:D,Потребители!$B:$B,$B14) -> 207 | AO14: =SUMIFS(Потребители!E:E,Потребители!$B:$B,$B14) -> 0 | AP14: 6951.06 | AQ14: =SUMIFS(Потребители!G:G,Потребители!$B:$B,$B14) -> 6951.06 | AR14: =SUMIFS(Потребители!H:H,Потребители!$B:$B,$B14) -> 0 | AT14: 65530 | AU14: =IF($AB14,MROUND(SUMIFS($I14:$K14,$I$3:$K$3,$AK14)*$AL14*Форма1!$E$45,10),0) -> 17300 | AV14: =IF($AB14,FLOOR(SUM($AQ14:$AR14*Форма1!$E$40:$F$40)*($AB14/Форма1!$E$42),10),0) -> 100 | AW14: =IF($AB14,MROUND(SUMIFS($I14:$K14,$I$3:$K$3,$AK14)*Форма1!$F$45*$AL14,10),0) -> 34590 | AX14: =IF($AB14,MROUND(SUMIFS($I14:$K14,$I$3:$K$3,$AK14)*Форма1!$G$45*$AL14,10),0) -> 13540 | AZ14: 678220 | BA14: =$AB14*Форма1!$E$50 -> 676800 | BB14: =IF($AB14>Форма1!$E$53,-CUMIPMT(Форма1!$E$55,ROUND($AB14/Форма1!$E$53*Форма1!$E$54,0),$AB14,1,ROUND($AB14/Форма1!$E$53*Форма1!$E$54,0),0),0) -> 0 | BC14: =MROUND(SUM(Форма1!$E$38:$F$38*AQ14:AR14)/365*($AB14/Форма1!$E$58),10) -> 1420 | BF14: 4140000 | BG14: =IF($AB14,MROUND(SUM($AN14:$AO14*Форма1!$K$40:$L$40),10),0) -> 4140000 | BL14: 0
A15: "Девятовка" | B15: Т15 | C15: ДC | D15: --- | E15: М1 | F15: Т15 | G15: --- | H15: 3 | I15: 42 | J15: =CHOOSE(Форма1!$M$22,IF(AVERAGEIFS(СтруктураСети!$G:$G,СтруктураСети!$H:$H,$B15)*Форма1!$M$23>I15,I15,AVERAGEIFS(СтруктураСети!$G:$G,СтруктураСети!$H:$H,$B15)*Форма1!$M$23),IF(VLOOKUP(C15,Форма1!$K$17:$M$20,3,0)*I15*Форма1!$M$23>I15,I15,VLOOKUP(C15,Форма1!$K$17:$M$20,3,0)*I15*Форма1!$M$23)) -> 10.08 | K15: =$J15*Форма1!$M$24 -> 2.52 | L15: 6 | M15: =COUNTIFS(Дефекты1!$A:$A,$B15,Дефекты1!$E:$E,M$4) -> 1 | N15: =COUNTIFS(Дефекты1!$A:$A,$B15,Дефекты1!$E:$E,N$4) -> 4 | O15: =COUNTIFS(Дефекты1!$A:$A,$B15,Дефекты1!$E:$E,O$4) -> 0 | P15: =COUNTIFS(Дефекты1!$A:$A,$B15,Дефекты1!$E:$E,P$4) -> 0 | Q15: =COUNTIFS(Дефекты1!$A:$A,$B15,Дефекты1!$E:$E,Q$4) -> 0 | R15: =COUNTIFS(Дефекты1!$A:$A,$B15,Дефекты1!$E:$E,R$4) -> 0 | S15: =COUNTIFS(Дефекты1!$A:$A,$B15,Дефекты1!$E:$E,S$4) -> 1 | T15: 142.8571429 | U15: 23.80952381 | V15: 95.23809524 | W15: 0 | X15: 0 | Y15: 0 | Z15: 0 | AA15: 23.80952381 | AB15: =IF(T15,IF(OR(NOT(ISERROR(MATCH(AB$3,$AC15:$AI15,0))),AJ15>=AJ$3),VLOOKUP(REPLACE(AB$3,6,2,$C15),Форма3!$M$17:$N$62,2,0)*$I15,SUM(MMULT((AC15:AI15=Форма3!$M$17:$M$62)*(Форма3!$N$17:$N$62),(TRANSPOSE(RIGHT(AC15:AI15,2))=($I$3:$K$3))*($I15:$K15)))),0) -> 42000000 | AC15: =IF(U15,INDEX(Форма2!$E$29:$K$38,SUMIFS(Форма2!$A$29:$A$38,Форма2!$B$29:$B$38,"<"&U15,Форма2!$C$29:$C$38,">="&U15),MATCH(U$4,Форма2!$E$2:$K$2,0)),"---") -> РМНТ-ЛУ | AD15: =IF(V15,INDEX(Форма2!$E$29:$K$38,SUMIFS(Форма2!$A$29:$A$38,Форма2!$B$29:$B$38,"<"&V15,Форма2!$C$29:$C$38,">="&V15),MATCH(V$4,Форма2!$E$2:$K$2,0)),"---") -> РМНТ-ЛТ | AE15: =IF(W15,INDEX(Форма2!$E$29:$K$38,SUMIFS(Форма2!$A$29:$A$38,Форма2!$B$29:$B$38,"<"&W15,Форма2!$C$29:$C$38,">="&W15),MATCH(W$4,Форма2!$E$2:$K$2,0)),"---") -> --- | AF15: =IF(X15,INDEX(Форма2!$E$29:$K$38,SUMIFS(Форма2!$A$29:$A$38,Форма2!$B$29:$B$38,"<"&X15,Форма2!$C$29:$C$38,">="&X15),MATCH(X$4,Форма2!$E$2:$K$2,0)),"---") -> --- | AG15: =IF(Y15,INDEX(Форма2!$E$29:$K$38,SUMIFS(Форма2!$A$29:$A$38,Форма2!$B$29:$B$38,"<"&Y15,Форма2!$C$29:$C$38,">="&Y15),MATCH(Y$4,Форма2!$E$2:$K$2,0)),"---") -> --- | AH15: =IF(Z15,INDEX(Форма2!$E$29:$K$38,SUMIFS(Форма2!$A$29:$A$38,Форма2!$B$29:$B$38,"<"&Z15,Форма2!$C$29:$C$38,">="&Z15),MATCH(Z$4,Форма2!$E$2:$K$2,0)),"---") -> --- | AI15: =IF(AA15,INDEX(Форма2!$E$29:$K$38,SUMIFS(Форма2!$A$29:$A$38,Форма2!$B$29:$B$38,"<"&AA15,Форма2!$C$29:$C$38,">="&AA15),MATCH(AA$4,Форма2!$E$2:$K$2,0)),"---") -> РМНТ-ЛУ | AJ15: =SUM((($U15:$AA15)>Форма2!$B$40:$B$49)*(($U15:$AA15)<=Форма2!$C$40:$C$49)*(Форма2!$E$40:$K$49)) -> 1.25 | AK15: =IF(AJ15>=AJ$3,AK$3,INDEX(Форма3!$F$4:$J$4,,MAX(IFERROR(MATCH(RIGHT(AC15:AI15,2),Форма3!$F$4:$J$4,0),0)))) -> ИС | AL15: =SUM((($U15:$AA15)>Форма2!$B$7:$B$16)*(($U15:$AA15)<=Форма2!$C$7:$C$16)*(Форма2!$E$7:$K$16)) -> 0.75 | AM15: 191 | AN15: =SUMIFS(Потребители!D:D,Потребители!$B:$B,$B15) -> 191 | AO15: =SUMIFS(Потребители!E:E,Потребители!$B:$B,$B15) -> 0 | AP15: 6413.78 | AQ15: =SUMIFS(Потребители!G:G,Потребители!$B:$B,$B15) -> 6413.78 | AR15: =SUMIFS(Потребители!H:H,Потребители!$B:$B,$B15) -> 0 | AT15: 1780 | AU15: =IF($AB15,MROUND(SUMIFS($I15:$K15,$I$3:$K$3,$AK15)*$AL15*Форма1!$E$45,10),0) -> 0 | AV15: =IF($AB15,FLOOR(SUM($AQ15:$AR15*Форма1!$E$40:$F$40)*($AB15/Форма1!$E$42),10),0) -> 1780 | AW15: =IF($AB15,MROUND(SUMIFS($I15:$K15,$I$3:$K$3,$AK15)*Форма1!$F$45*$AL15,10),0) -> 0 | AX15: =IF($AB15,MROUND(SUMIFS($I15:$K15,$I$3:$K$3,$AK15)*Форма1!$G$45*$AL15,10),0) -> 0 | AZ15: 12624420 | BA15: =$AB15*Форма1!$E$50 -> 12600000 | BB15: =IF($AB15>Форма1!$E$53,-CUMIPMT(Форма1!$E$55,ROUND($AB15/Форма1!$E$53*Форма1!$E$54,0),$AB15,1,ROUND($AB15/Форма1!$E$53*Форма1!$E$54,0),0),0) -> 0 | BC15: =MROUND(SUM(Форма1!$E$38:$F$38*AQ15:AR15)/365*($AB15/Форма1!$E$58),10) -> 24420 | BF15: 3820000 | BG15: =IF($AB15,MROUND(SUM($AN15:$AO15*Форма1!$K$40:$L$40),10),0) -> 3820000 | BL15: 0
A16: "Девятовка" | B16: Т16 | C16: ДC | D16: --- | E16: М1 | F16: Т16 | G16: --- | H16: 3 | I16: 60 | J16: =CHOOSE(Форма1!$M$22,IF(AVERAGEIFS(СтруктураСети!$G:$G,СтруктураСети!$H:$H,$B16)*Форма1!$M$23>I16,I16,AVERAGEIFS(СтруктураСети!$G:$G,СтруктураСети!$H:$H,$B16)*Форма1!$M$23),IF(VLOOKUP(C16,Форма1!$K$17:$M$20,3,0)*I16*Форма1!$M$23>I16,I16,VLOOKUP(C16,Форма1!$K$17:$M$20,3,0)*I16*Форма1!$M$23)) -> 14.4 | K16: =$J16*Форма1!$M$24 -> 3.6 | L16: 0 | M16: =COUNTIFS(Дефекты1!$A:$A,$B16,Дефекты1!$E:$E,M$4) -> 0 | N16: =COUNTIFS(Дефекты1!$A:$A,$B16,Дефекты1!$E:$E,N$4) -> 0 | O16: =COUNTIFS(Дефекты1!$A:$A,$B16,Дефекты1!$E:$E,O$4) -> 0 | P16: =COUNTIFS(Дефекты1!$A:$A,$B16,Дефекты1!$E:$E,P$4) -> 0 | Q16: =COUNTIFS(Дефекты1!$A:$A,$B16,Дефекты1!$E:$E,Q$4) -> 0 | R16: =COUNTIFS(Дефекты1!$A:$A,$B16,Дефекты1!$E:$E,R$4) -> 0 | S16: =COUNTIFS(Дефекты1!$A:$A,$B16,Дефекты1!$E:$E,S$4) -> 0 | T16: 0 | U16: 0 | V16: 0 | W16: 0 | X16: 0 | Y16: 0 | Z16: 0 | AA16: 0 | AB16: =IF(T16,IF(OR(NOT(ISERROR(MATCH(AB$3,$AC16:$AI16,0))),AJ16>=AJ$3),VLOOKUP(REPLACE(AB$3,6,2,$C16),Форма3!$M$17:$N$62,2,0)*$I16,SUM(MMULT((AC16:AI16=Форма3!$M$17:$M$62)*(Форма3!$N$17:$N$62),(TRANSPOSE(RIGHT(AC16:AI16,2))=($I$3:$K$3))*($I16:$K16)))),0) -> 0 | AC16: =IF(U16,INDEX(Форма2!$E$29:$K$38,SUMIFS(Форма2!$A$29:$A$38,Форма2!$B$29:$B$38,"<"&U16,Форма2!$C$29:$C$38,">="&U16),MATCH(U$4,Форма2!$E$2:$K$2,0)),"---") -> --- | AD16: =IF(V16,INDEX(Форма2!$E$29:$K$38,SUMIFS(Форма2!$A$29:$A$38,Форма2!$B$29:$B$38,"<"&V16,Форма2!$C$29:$C$38,">="&V16),MATCH(V$4,Форма2!$E$2:$K$2,0)),"---") -> --- | AE16: =IF(W16,INDEX(Форма2!$E$29:$K$38,SUMIFS(Форма2!$A$29:$A$38,Форма2!$B$29:$B$38,"<"&W16,Форма2!$C$29:$C$38,">="&W16),MATCH(W$4,Форма2!$E$2:$K$2,0)),"---") -> --- | AF16: =IF(X16,INDEX(Форма2!$E$29:$K$38,SUMIFS(Форма2!$A$29:$A$38,Форма2!$B$29:$B$38,"<"&X16,Форма2!$C$29:$C$38,">="&X16),MATCH(X$4,Форма2!$E$2:$K$2,0)),"---") -> --- | AG16: =IF(Y16,INDEX(Форма2!$E$29:$K$38,SUMIFS(Форма2!$A$29:$A$38,Форма2!$B$29:$B$38,"<"&Y16,Форма2!$C$29:$C$38,">="&Y16),MATCH(Y$4,Форма2!$E$2:$K$2,0)),"---") -> --- | AH16: =IF(Z16,INDEX(Форма2!$E$29:$K$38,SUMIFS(Форма2!$A$29:$A$38,Форма2!$B$29:$B$38,"<"&Z16,Форма2!$C$29:$C$38,">="&Z16),MATCH(Z$4,Форма2!$E$2:$K$2,0)),"---") -> --- | AI16: =IF(AA16,INDEX(Форма2!$E$29:$K$38,SUMIFS(Форма2!$A$29:$A$38,Форма2!$B$29:$B$38,"<"&AA16,Форма2!$C$29:$C$38,">="&AA16),MATCH(AA$4,Форма2!$E$2:$K$2,0)),"---") -> --- | AJ16: =SUM((($U16:$AA16)>Форма2!$B$40:$B$49)*(($U16:$AA16)<=Форма2!$C$40:$C$49)*(Форма2!$E$40:$K$49)) -> 0 | AK16: =IF(AJ16>=AJ$3,AK$3,INDEX(Форма3!$F$4:$J$4,,MAX(IFERROR(MATCH(RIGHT(AC16:AI16,2),Форма3!$F$4:$J$4,0),0)))) -> ЛУ | AL16: =SUM((($U16:$AA16)>Форма2!$B$7:$B$16)*(($U16:$AA16)<=Форма2!$C$7:$C$16)*(Форма2!$E$7:$K$16)) -> 0 | AM16: 184 | AN16: =SUMIFS(Потребители!D:D,Потребители!$B:$B,$B16) -> 184 | AO16: =SUMIFS(Потребители!E:E,Потребители!$B:$B,$B16) -> 0 | AP16: 6178.72 | AQ16: =SUMIFS(Потребители!G:G,Потребители!$B:$B,$B16) -> 6178.72 | AR16: =SUMIFS(Потребители!H:H,Потребители!$B:$B,$B16) -> 0 | AT16: 0 | AU16: =IF($AB16,MROUND(SUMIFS($I16:$K16,$I$3:$K$3,$AK16)*$AL16*Форма1!$E$45,10),0) -> 0 | AV16: =IF($AB16,FLOOR(SUM($AQ16:$AR16*Форма1!$E$40:$F$40)*($AB16/Форма1!$E$42),10),0) -> 0 | AW16: =IF($AB16,MROUND(SUMIFS($I16:$K16,$I$3:$K$3,$AK16)*Форма1!$F$45*$AL16,10),0) -> 0 | AX16: =IF($AB16,MROUND(SUMIFS($I16:$K16,$I$3:$K$3,$AK16)*Форма1!$G$45*$AL16,10),0) -> 0 | AZ16: 0 | BA16: =$AB16*Форма1!$E$50 -> 0 | BB16: =IF($AB16>Форма1!$E$53,-CUMIPMT(Форма1!$E$55,ROUND($AB16/Форма1!$E$53*Форма1!$E$54,0),$AB16,1,ROUND($AB16/Форма1!$E$53*Форма1!$E$54,0),0),0) -> 0 | BC16: =MROUND(SUM(Форма1!$E$38:$F$38*AQ16:AR16)/365*($AB16/Форма1!$E$58),10) -> 0 | BF16: 0 | BG16: =IF($AB16,MROUND(SUM($AN16:$AO16*Форма1!$K$40:$L$40),10),0) -> 0 | BL16: 0
A17: "Девятовка" | B17: Т17 | C17: ДC | D17: --- | E17: М1 | F17: Т17 | G17: --- | H17: 3 | I17: 165 | J17: =CHOOSE(Форма1!$M$22,IF(AVERAGEIFS(СтруктураСети!$G:$G,СтруктураСети!$H:$H,$B17)*Форма1!$M$23>I17,I17,AVERAGEIFS(СтруктураСети!$G:$G,СтруктураСети!$H:$H,$B17)*Форма1!$M$23),IF(VLOOKUP(C17,Форма1!$K$17:$M$20,3,0)*I17*Форма1!$M$23>I17,I17,VLOOKUP(C17,Форма1!$K$17:$M$20,3,0)*I17*Форма1!$M$23)) -> 39.6 | K17: =$J17*Форма1!$M$24 -> 9.9 | L17: 8 | M17: =COUNTIFS(Дефекты1!$A:$A,$B17,Дефекты1!$E:$E,M$4) -> 1 | N17: =COUNTIFS(Дефекты1!$A:$A,$B17,Дефекты1!$E:$E,N$4) -> 0 | O17: =COUNTIFS(Дефекты1!$A:$A,$B17,Дефекты1!$E:$E,O$4) -> 3 | P17: =COUNTIFS(Дефекты1!$A:$A,$B17,Дефекты1!$E:$E,P$4) -> 0 | Q17: =COUNTIFS(Дефекты1!$A:$A,$B17,Дефекты1!$E:$E,Q$4) -> 0 | R17: =COUNTIFS(Дефекты1!$A:$A,$B17,Дефекты1!$E:$E,R$4) -> 4 | S17: =COUNTIFS(Дефекты1!$A:$A,$B17,Дефекты1!$E:$E,S$4) -> 0 | T17: 48.48484848 | U17: 6.060606061 | V17: 0 | W17: 18.18181818 | X17: 0 | Y17: 0 | Z17: 24.24242424 | AA17: 0 | AB17: =IF(T17,IF(OR(NOT(ISERROR(MATCH(AB$3,$AC17:$AI17,0))),AJ17>=AJ$3),VLOOKUP(REPLACE(AB$3,6,2,$C17),Форма3!$M$17:$N$62,2,0)*$I17,SUM(MMULT((AC17:AI17=Форма3!$M$17:$M$62)*(Форма3!$N$17:$N$62),(TRANSPOSE(RIGHT(AC17:AI17,2))=($I$3:$K$3))*($I17:$K17)))),0) -> 10296000 | AC17: =IF(U17,INDEX(Форма2!$E$29:$K$38,SUMIFS(Форма2!$A$29:$A$38,Форма2!$B$29:$B$38,"<"&U17,Форма2!$C$29:$C$38,">="&U17),MATCH(U$4,Форма2!$E$2:$K$2,0)),"---") -> РМНТ-ЛУ | AD17: =IF(V17,INDEX(Форма2!$E$29:$K$38,SUMIFS(Форма2!$A$29:$A$38,Форма2!$B$29:$B$38,"<"&V17,Форма2!$C$29:$C$38,">="&V17),MATCH(V$4,Форма2!$E$2:$K$2,0)),"---") -> --- | AE17: =IF(W17,INDEX(Форма2!$E$29:$K$38,SUMIFS(Форма2!$A$29:$A$38,Форма2!$B$29:$B$38,"<"&W17,Форма2!$C$29:$C$38,">="&W17),MATCH(W$4,Форма2!$E$2:$K$2,0)),"---") -> УСТР-ЛТ | AF17: =IF(X17,INDEX(Форма2!$E$29:$K$38,SUMIFS(Форма2!$A$29:$A$38,Форма2!$B$29:$B$38,"<"&X17,Форма2!$C$29:$C$38,">="&X17),MATCH(X$4,Форма2!$E$2:$K$2,0)),"---") -> --- | AG17: =IF(Y17,INDEX(Форма2!$E$29:$K$38,SUMIFS(Форма2!$A$29:$A$38,Форма2!$B$29:$B$38,"<"&Y17,Форма2!$C$29:$C$38,">="&Y17),MATCH(Y$4,Форма2!$E$2:$K$2,0)),"---") -> --- | AH17: =IF(Z17,INDEX(Форма2!$E$29:$K$38,SUMIFS(Форма2!$A$29:$A$38,Форма2!$B$29:$B$38,"<"&Z17,Форма2!$C$29:$C$38,">="&Z17),MATCH(Z$4,Форма2!$E$2:$K$2,0)),"---") -> --- | AI17: =IF(AA17,INDEX(Форма2!$E$29:$K$38,SUMIFS(Форма2!$A$29:$A$38,Форма2!$B$29:$B$38,"<"&AA17,Форма2!$C$29:$C$38,">="&AA17),MATCH(AA$4,Форма2!$E$2:$K$2,0)),"---") -> --- | AJ17: =SUM((($U17:$AA17)>Форма2!$B$40:$B$49)*(($U17:$AA17)<=Форма2!$C$40:$C$49)*(Форма2!$E$40:$K$49)) -> 0.75 | AK17: =IF(AJ17>=AJ$3,AK$3,INDEX(Форма3!$F$4:$J$4,,MAX(IFERROR(MATCH(RIGHT(AC17:AI17,2),Форма3!$F$4:$J$4,0),0)))) -> ЛТ | AL17: =SUM((($U17:$AA17)>Форма2!$B$7:$B$16)*(($U17:$AA17)<=Форма2!$C$7:$C$16)*(Форма2!$E$7:$K$16)) -> 0.2047619048 | AM17: 256 | AN17: =SUMIFS(Потребители!D:D,Потребители!$B:$B,$B17) -> 256 | AO17: =SUMIFS(Потребители!E:E,Потребители!$B:$B,$B17) -> 0 | AP17: 8596.48 | AQ17: =SUMIFS(Потребители!G:G,Потребители!$B:$B,$B17) -> 8596.48 | AR17: =SUMIFS(Потребители!H:H,Потребители!$B:$B,$B17) -> 0 | AT17: 706020 | AU17: =IF($AB17,MROUND(SUMIFS($I17:$K17,$I$3:$K$3,$AK17)*$AL17*Форма1!$E$45,10),0) -> 186500 | AV17: =IF($AB17,FLOOR(SUM($AQ17:$AR17*Форма1!$E$40:$F$40)*($AB17/Форма1!$E$42),10),0) -> 580 | AW17: =IF($AB17,MROUND(SUMIFS($I17:$K17,$I$3:$K$3,$AK17)*Форма1!$F$45*$AL17,10),0) -> 372990 | AX17: =IF($AB17,MROUND(SUMIFS($I17:$K17,$I$3:$K$3,$AK17)*Форма1!$G$45*$AL17,10),0) -> 145950 | AZ17: 3096820 | BA17: =$AB17*Форма1!$E$50 -> 3088800 | BB17: =IF($AB17>Форма1!$E$53,-CUMIPMT(Форма1!$E$55,ROUND($AB17/Форма1!$E$53*Форма1!$E$54,0),$AB17,1,ROUND($AB17/Форма1!$E$53*Форма1!$E$54,0),0),0) -> 0 | BC17: =MROUND(SUM(Форма1!$E$38:$F$38*AQ17:AR17)/365*($AB17/Форма1!$E$58),10) -> 8020 | BF17: 5120000 | BG17: =IF($AB17,MROUND(SUM($AN17:$AO17*Форма1!$K$40:$L$40),10),0) -> 5120000 | BL17: 0
A18: "Девятовка" | B18: Т18 | C18: ДC | D18: --- | E18: М1 | F18: Т18 | G18: --- | H18: 3 | I18: 256 | J18: =CHOOSE(Форма1!$M$22,IF(AVERAGEIFS(СтруктураСети!$G:$G,СтруктураСети!$H:$H,$B18)*Форма1!$M$23>I18,I18,AVERAGEIFS(СтруктураСети!$G:$G,СтруктураСети!$H:$H,$B18)*Форма1!$M$23),IF(VLOOKUP(C18,Форма1!$K$17:$M$20,3,0)*I18*Форма1!$M$23>I18,I18,VLOOKUP(C18,Форма1!$K$17:$M$20,3,0)*I18*Форма1!$M$23)) -> 61.44 | K18: =$J18*Форма1!$M$24 -> 15.36 | L18: 9 | M18: =COUNTIFS(Дефекты1!$A:$A,$B18,Дефекты1!$E:$E,M$4) -> 2 | N18: =COUNTIFS(Дефекты1!$A:$A,$B18,Дефекты1!$E:$E,N$4) -> 0 | O18: =COUNTIFS(Дефекты1!$A:$A,$B18,Дефекты1!$E:$E,O$4) -> 5 | P18: =COUNTIFS(Дефекты1!$A:$A,$B18,Дефекты1!$E:$E,P$4) -> 0 | Q18: =COUNTIFS(Дефекты1!$A:$A,$B18,Дефекты1!$E:$E,Q$4) -> 0 | R18: =COUNTIFS(Дефекты1!$A:$A,$B18,Дефекты1!$E:$E,R$4) -> 2 | S18: =COUNTIFS(Дефекты1!$A:$A,$B18,Дефекты1!$E:$E,S$4) -> 0 | T18: 35.15625 | U18: 7.8125 | V18: 0 | W18: 19.53125 | X18: 0 | Y18: 0 | Z18: 7.8125 | AA18: 0 | AB18: =IF(T18,IF(OR(NOT(ISERROR(MATCH(AB$3,$AC18:$AI18,0))),AJ18>=AJ$3),VLOOKUP(REPLACE(AB$3,6,2,$C18),Форма3!$M$17:$N$62,2,0)*$I18,SUM(MMULT((AC18:AI18=Форма3!$M$17:$M$62)*(Форма3!$N$17:$N$62),(TRANSPOSE(RIGHT(AC18:AI18,2))=($I$3:$K$3))*($I18:$K18)))),0) -> 15974400 | AC18: =IF(U18,INDEX(Форма2!$E$29:$K$38,SUMIFS(Форма2!$A$29:$A$38,Форма2!$B$29:$B$38,"<"&U18,Форма2!$C$29:$C$38,">="&U18),MATCH(U$4,Форма2!$E$2:$K$2,0)),"---") -> РМНТ-ЛУ | AD18: =IF(V18,INDEX(Форма2!$E$29:$K$38,SUMIFS(Форма2!$A$29:$A$38,Форма2!$B$29:$B$38,"<"&V18,Форма2!$C$29:$C$38,">="&V18),MATCH(V$4,Форма2!$E$2:$K$2,0)),"---") -> --- | AE18: =IF(W18,INDEX(Форма2!$E$29:$K$38,SUMIFS(Форма2!$A$29:$A$38,Форма2!$B$29:$B$38,"<"&W18,Форма2!$C$29:$C$38,">="&W18),MATCH(W$4,Форма2!$E$2:$K$2,0)),"---") -> УСТР-ЛТ | AF18: =IF(X18,INDEX(Форма2!$E$29:$K$38,SUMIFS(Форма2!$A$29:$A$38,Форма2!$B$29:$B$38,"<"&X18,Форма2!$C$29:$C$38,">="&X18),MATCH(X$4,Форма2!$E$2:$K$2,0)),"---") -> --- | AG18: =IF(Y18,INDEX(Форма2!$E$29:$K$38,SUMIFS(Форма2!$A$29:$A$38,Форма2!$B$29:$B$38,"<"&Y18,Форма2!$C$29:$C$38,">="&Y18),MATCH(Y$4,Форма2!$E$2:$K$2,0)),"---") -> --- | AH18: =IF(Z18,INDEX(Форма2!$E$29:$K$38,SUMIFS(Форма2!$A$29:$A$38,Форма2!$B$29:$B$38,"<"&Z18,Форма2!$C$29:$C$38,">="&Z18),MATCH(Z$4,Форма2!$E$2:$K$2,0)),"---") -> --- | AI18: =IF(AA18,INDEX(Форма2!$E$29:$K$38,SUMIFS(Форма2!$A$29:$A$38,Форма2!$B$29:$B$38,"<"&AA18,Форма2!$C$29:$C$38,">="&AA18),MATCH(AA$4,Форма2!$E$2:$K$2,0)),"---") -> --- | AJ18: =SUM((($U18:$AA18)>Форма2!$B$40:$B$49)*(($U18:$AA18)<=Форма2!$C$40:$C$49)*(Форма2!$E$40:$K$49)) -> 0.75 | AK18: =IF(AJ18>=AJ$3,AK$3,INDEX(Форма3!$F$4:$J$4,,MAX(IFERROR(MATCH(RIGHT(AC18:AI18,2),Форма3!$F$4:$J$4,0),0)))) -> ЛТ | AL18: =SUM((($U18:$AA18)>Форма2!$B$7:$B$16)*(($U18:$AA18)<=Форма2!$C$7:$C$16)*(Форма2!$E$7:$K$16)) -> 0.2047619048 | AM18: 1 | AN18: =SUMIFS(Потребители!D:D,Потребители!$B:$B,$B18) -> 0 | AO18: =SUMIFS(Потребители!E:E,Потребители!$B:$B,$B18) -> 1 | AP18: 4200 | AQ18: =SUMIFS(Потребители!G:G,Потребители!$B:$B,$B18) -> 0 | AR18: =SUMIFS(Потребители!H:H,Потребители!$B:$B,$B18) -> 4200 | AT18: 1101420 | AU18: =IF($AB18,MROUND(SUMIFS($I18:$K18,$I$3:$K$3,$AK18)*$AL18*Форма1!$E$45,10),0) -> 289350 | AV18: =IF($AB18,FLOOR(SUM($AQ18:$AR18*Форма1!$E$40:$F$40)*($AB18/Форма1!$E$42),10),0) -> 6910 | AW18: =IF($AB18,MROUND(SUMIFS($I18:$K18,$I$3:$K$3,$AK18)*Форма1!$F$45*$AL18,10),0) -> 578710 | AX18: =IF($AB18,MROUND(SUMIFS($I18:$K18,$I$3:$K$3,$AK18)*Форма1!$G$45*$AL18,10),0) -> 226450 | AZ18: 4887080 | BA18: =$AB18*Форма1!$E$50 -> 4792320 | BB18: =IF($AB18>Форма1!$E$53,-CUMIPMT(Форма1!$E$55,ROUND($AB18/Форма1!$E$53*Форма1!$E$54,0),$AB18,1,ROUND($AB18/Форма1!$E$53*Форма1!$E$54,0),0),0) -> 0 | BC18: =MROUND(SUM(Форма1!$E$38:$F$38*AQ18:AR18)/365*($AB18/Форма1!$E$58),10) -> 94760 | BF18: 16000 | BG18: =IF($AB18,MROUND(SUM($AN18:$AO18*Форма1!$K$40:$L$40),10),0) -> 16000 | BL18: 0
A19: "Девятовка" | B19: Т19 | C19: ДC | D19: --- | E19: М3 | F19: Т19 | G19: --- | H19: 3 | I19: 60 | J19: =CHOOSE(Форма1!$M$22,IF(AVERAGEIFS(СтруктураСети!$G:$G,СтруктураСети!$H:$H,$B19)*Форма1!$M$23>I19,I19,AVERAGEIFS(СтруктураСети!$G:$G,СтруктураСети!$H:$H,$B19)*Форма1!$M$23),IF(VLOOKUP(C19,Форма1!$K$17:$M$20,3,0)*I19*Форма1!$M$23>I19,I19,VLOOKUP(C19,Форма1!$K$17:$M$20,3,0)*I19*Форма1!$M$23)) -> 14.4 | K19: =$J19*Форма1!$M$24 -> 3.6 | L19: 7 | M19: =COUNTIFS(Дефекты1!$A:$A,$B19,Дефекты1!$E:$E,M$4) -> 2 | N19: =COUNTIFS(Дефекты1!$A:$A,$B19,Дефекты1!$E:$E,N$4) -> 0 | O19: =COUNTIFS(Дефекты1!$A:$A,$B19,Дефекты1!$E:$E,O$4) -> 3 | P19: =COUNTIFS(Дефекты1!$A:$A,$B19,Дефекты1!$E:$E,P$4) -> 0 | Q19: =COUNTIFS(Дефекты1!$A:$A,$B19,Дефекты1!$E:$E,Q$4) -> 0 | R19: =COUNTIFS(Дефекты1!$A:$A,$B19,Дефекты1!$E:$E,R$4) -> 2 | S19: =COUNTIFS(Дефекты1!$A:$A,$B19,Дефекты1!$E:$E,S$4) -> 0 | T19: 116.6666667 | U19: 33.33333333 | V19: 0 | W19: 50 | X19: 0 | Y19: 0 | Z19: 33.33333333 | AA19: 0 | AB19: =IF(T19,IF(OR(NOT(ISERROR(MATCH(AB$3,$AC19:$AI19,0))),AJ19>=AJ$3),VLOOKUP(REPLACE(AB$3,6,2,$C19),Форма3!$M$17:$N$62,2,0)*$I19,SUM(MMULT((AC19:AI19=Форма3!$M$17:$M$62)*(Форма3!$N$17:$N$62),(TRANSPOSE(RIGHT(AC19:AI19,2))=($I$3:$K$3))*($I19:$K19)))),0) -> 3744000 | AC19: =IF(U19,INDEX(Форма2!$E$29:$K$38,SUMIFS(Форма2!$A$29:$A$38,Форма2!$B$29:$B$38,"<"&U19,Форма2!$C$29:$C$38,">="&U19),MATCH(U$4,Форма2!$E$2:$K$2,0)),"---") -> РМНТ-ЛУ | AD19: =IF(V19,INDEX(Форма2!$E$29:$K$38,SUMIFS(Форма2!$A$29:$A$38,Форма2!$B$29:$B$38,"<"&V19,Форма2!$C$29:$C$38,">="&V19),MATCH(V$4,Форма2!$E$2:$K$2,0)),"---") -> --- | AE19: =IF(W19,INDEX(Форма2!$E$29:$K$38,SUMIFS(Форма2!$A$29:$A$38,Форма2!$B$29:$B$38,"<"&W19,Форма2!$C$29:$C$38,">="&W19),MATCH(W$4,Форма2!$E$2:$K$2,0)),"---") -> УСТР-ЛТ | AF19: =IF(X19,INDEX(Форма2!$E$29:$K$38,SUMIFS(Форма2!$A$29:$A$38,Форма2!$B$29:$B$38,"<"&X19,Форма2!$C$29:$C$38,">="&X19),MATCH(X$4,Форма2!$E$2:$K$2,0)),"---") -> --- | AG19: =IF(Y19,INDEX(Форма2!$E$29:$K$38,SUMIFS(Форма2!$A$29:$A$38,Форма2!$B$29:$B$38,"<"&Y19,Форма2!$C$29:$C$38,">="&Y19),MATCH(Y$4,Форма2!$E$2:$K$2,0)),"---") -> --- | AH19: =IF(Z19,INDEX(Форма2!$E$29:$K$38,SUMIFS(Форма2!$A$29:$A$38,Форма2!$B$29:$B$38,"<"&Z19,Форма2!$C$29:$C$38,">="&Z19),MATCH(Z$4,Форма2!$E$2:$K$2,0)),"---") -> --- | AI19: =IF(AA19,INDEX(Форма2!$E$29:$K$38,SUMIFS(Форма2!$A$29:$A$38,Форма2!$B$29:$B$38,"<"&AA19,Форма2!$C$29:$C$38,">="&AA19),MATCH(AA$4,Форма2!$E$2:$K$2,0)),"---") -> --- | AJ19: =SUM((($U19:$AA19)>Форма2!$B$40:$B$49)*(($U19:$AA19)<=Форма2!$C$40:$C$49)*(Форма2!$E$40:$K$49)) -> 0.75 | AK19: =IF(AJ19>=AJ$3,AK$3,INDEX(Форма3!$F$4:$J$4,,MAX(IFERROR(MATCH(RIGHT(AC19:AI19,2),Форма3!$F$4:$J$4,0),0)))) -> ЛТ | AL19: =SUM((($U19:$AA19)>Форма2!$B$7:$B$16)*(($U19:$AA19)<=Форма2!$C$7:$C$16)*(Форма2!$E$7:$K$16)) -> 0.3476190476 | AM19: 88 | AN19: =SUMIFS(Потребители!D:D,Потребители!$B:$B,$B19) -> 88 | AO19: =SUMIFS(Потребители!E:E,Потребители!$B:$B,$B19) -> 0 | AP19: 2955.04 | AQ19: =SUMIFS(Потребители!G:G,Потребители!$B:$B,$B19) -> 2955.04 | AR19: =SUMIFS(Потребители!H:H,Потребители!$B:$B,$B19) -> 0 | AT19: 435560 | AU19: =IF($AB19,MROUND(SUMIFS($I19:$K19,$I$3:$K$3,$AK19)*$AL19*Форма1!$E$45,10),0) -> 115130 | AV19: =IF($AB19,FLOOR(SUM($AQ19:$AR19*Форма1!$E$40:$F$40)*($AB19/Форма1!$E$42),10),0) -> 70 | AW19: =IF($AB19,MROUND(SUMIFS($I19:$K19,$I$3:$K$3,$AK19)*Форма1!$F$45*$AL19,10),0) -> 230260 | AX19: =IF($AB19,MROUND(SUMIFS($I19:$K19,$I$3:$K$3,$AK19)*Форма1!$G$45*$AL19,10),0) -> 90100 | AZ19: 1124200 | BA19: =$AB19*Форма1!$E$50 -> 1123200 | BB19: =IF($AB19>Форма1!$E$53,-CUMIPMT(Форма1!$E$55,ROUND($AB19/Форма1!$E$53*Форма1!$E$54,0),$AB19,1,ROUND($AB19/Форма1!$E$53*Форма1!$E$54,0),0),0) -> 0 | BC19: =MROUND(SUM(Форма1!$E$38:$F$38*AQ19:AR19)/365*($AB19/Форма1!$E$58),10) -> 1000 | BF19: 1760000 | BG19: =IF($AB19,MROUND(SUM($AN19:$AO19*Форма1!$K$40:$L$40),10),0) -> 1760000 | BL19: 0
A20: "Девятовка" | B20: Т2 | C20: ДC | D20: --- | E20: М1 | F20: Т2 | G20: --- | H20: 3 | I20: 108 | J20: =CHOOSE(Форма1!$M$22,IF(AVERAGEIFS(СтруктураСети!$G:$G,СтруктураСети!$H:$H,$B20)*Форма1!$M$23>I20,I20,AVERAGEIFS(СтруктураСети!$G:$G,СтруктураСети!$H:$H,$B20)*Форма1!$M$23),IF(VLOOKUP(C20,Форма1!$K$17:$M$20,3,0)*I20*Форма1!$M$23>I20,I20,VLOOKUP(C20,Форма1!$K$17:$M$20,3,0)*I20*Форма1!$M$23)) -> 25.92 | K20: =$J20*Форма1!$M$24 -> 6.48 | L20: 7 | M20: =COUNTIFS(Дефекты1!$A:$A,$B20,Дефекты1!$E:$E,M$4) -> 3 | N20: =COUNTIFS(Дефекты1!$A:$A,$B20,Дефекты1!$E:$E,N$4) -> 1 | O20: =COUNTIFS(Дефекты1!$A:$A,$B20,Дефекты1!$E:$E,O$4) -> 0 | P20: =COUNTIFS(Дефекты1!$A:$A,$B20,Дефекты1!$E:$E,P$4) -> 0 | Q20: =COUNTIFS(Дефекты1!$A:$A,$B20,Дефекты1!$E:$E,Q$4) -> 0 | R20: =COUNTIFS(Дефекты1!$A:$A,$B20,Дефекты1!$E:$E,R$4) -> 3 | S20: =COUNTIFS(Дефекты1!$A:$A,$B20,Дефекты1!$E:$E,S$4) -> 0 | T20: 64.81481481 | U20: 27.77777778 | V20: 9.259259259 | W20: 0 | X20: 0 | Y20: 0 | Z20: 27.77777778 | AA20: 0 | AB20: =IF(T20,IF(OR(NOT(ISERROR(MATCH(AB$3,$AC20:$AI20,0))),AJ20>=AJ$3),VLOOKUP(REPLACE(AB$3,6,2,$C20),Форма3!$M$17:$N$62,2,0)*$I20,SUM(MMULT((AC20:AI20=Форма3!$M$17:$M$62)*(Форма3!$N$17:$N$62),(TRANSPOSE(RIGHT(AC20:AI20,2))=($I$3:$K$3))*($I20:$K20)))),0) -> 5184000 | AC20: =IF(U20,INDEX(Форма2!$E$29:$K$38,SUMIFS(Форма2!$A$29:$A$38,Форма2!$B$29:$B$38,"<"&U20,Форма2!$C$29:$C$38,">="&U20),MATCH(U$4,Форма2!$E$2:$K$2,0)),"---") -> РМНТ-ЛУ | AD20: =IF(V20,INDEX(Форма2!$E$29:$K$38,SUMIFS(Форма2!$A$29:$A$38,Форма2!$B$29:$B$38,"<"&V20,Форма2!$C$29:$C$38,">="&V20),MATCH(V$4,Форма2!$E$2:$K$2,0)),"---") -> РМНТ-ЛУ | AE20: =IF(W20,INDEX(Форма2!$E$29:$K$38,SUMIFS(Форма2!$A$29:$A$38,Форма2!$B$29:$B$38,"<"&W20,Форма2!$C$29:$C$38,">="&W20),MATCH(W$4,Форма2!$E$2:$K$2,0)),"---") -> --- | AF20: =IF(X20,INDEX(Форма2!$E$29:$K$38,SUMIFS(Форма2!$A$29:$A$38,Форма2!$B$29:$B$38,"<"&X20,Форма2!$C$29:$C$38,">="&X20),MATCH(X$4,Форма2!$E$2:$K$2,0)),"---") -> --- | AG20: =IF(Y20,INDEX(Форма2!$E$29:$K$38,SUMIFS(Форма2!$A$29:$A$38,Форма2!$B$29:$B$38,"<"&Y20,Форма2!$C$29:$C$38,">="&Y20),MATCH(Y$4,Форма2!$E$2:$K$2,0)),"---") -> --- | AH20: =IF(Z20,INDEX(Форма2!$E$29:$K$38,SUMIFS(Форма2!$A$29:$A$38,Форма2!$B$29:$B$38,"<"&Z20,Форма2!$C$29:$C$38,">="&Z20),MATCH(Z$4,Форма2!$E$2:$K$2,0)),"---") -> --- | AI20: =IF(AA20,INDEX(Форма2!$E$29:$K$38,SUMIFS(Форма2!$A$29:$A$38,Форма2!$B$29:$B$38,"<"&AA20,Форма2!$C$29:$C$38,">="&AA20),MATCH(AA$4,Форма2!$E$2:$K$2,0)),"---") -> --- | AJ20: =SUM((($U20:$AA20)>Форма2!$B$40:$B$49)*(($U20:$AA20)<=Форма2!$C$40:$C$49)*(Форма2!$E$40:$K$49)) -> 0.7 | AK20: =IF(AJ20>=AJ$3,AK$3,INDEX(Форма3!$F$4:$J$4,,MAX(IFERROR(MATCH(RIGHT(AC20:AI20,2),Форма3!$F$4:$J$4,0),0)))) -> ЛУ | AL20: =SUM((($U20:$AA20)>Форма2!$B$7:$B$16)*(($U20:$AA20)<=Форма2!$C$7:$C$16)*(Форма2!$E$7:$K$16)) -> 0.2333333333 | AM20: 190 | AN20: =SUMIFS(Потребители!D:D,Потребители!$B:$B,$B20) -> 190 | AO20: =SUMIFS(Потребители!E:E,Потребители!$B:$B,$B20) -> 0 | AP20: 6380.2 | AQ20: =SUMIFS(Потребители!G:G,Потребители!$B:$B,$B20) -> 6380.2 | AR20: =SUMIFS(Потребители!H:H,Потребители!$B:$B,$B20) -> 0 | AT20: 131760 | AU20: =IF($AB20,MROUND(SUMIFS($I20:$K20,$I$3:$K$3,$AK20)*$AL20*Форма1!$E$45,10),0) -> 34780 | AV20: =IF($AB20,FLOOR(SUM($AQ20:$AR20*Форма1!$E$40:$F$40)*($AB20/Форма1!$E$42),10),0) -> 210 | AW20: =IF($AB20,MROUND(SUMIFS($I20:$K20,$I$3:$K$3,$AK20)*Форма1!$F$45*$AL20,10),0) -> 69550 | AX20: =IF($AB20,MROUND(SUMIFS($I20:$K20,$I$3:$K$3,$AK20)*Форма1!$G$45*$AL20,10),0) -> 27220 | AZ20: 1558200 | BA20: =$AB20*Форма1!$E$50 -> 1555200 | BB20: =IF($AB20>Форма1!$E$53,-CUMIPMT(Форма1!$E$55,ROUND($AB20/Форма1!$E$53*Форма1!$E$54,0),$AB20,1,ROUND($AB20/Форма1!$E$53*Форма1!$E$54,0),0),0) -> 0 | BC20: =MROUND(SUM(Форма1!$E$38:$F$38*AQ20:AR20)/365*($AB20/Форма1!$E$58),10) -> 3000 | BF20: 3800000 | BG20: =IF($AB20,MROUND(SUM($AN20:$AO20*Форма1!$K$40:$L$40),10),0) -> 3800000 | BL20: 0
A21: "Девятовка" | B21: Т20 | C21: ДC | D21: --- | E21: М3 | F21: Т20 | G21: --- | H21: 3 | I21: 80 | J21: =CHOOSE(Форма1!$M$22,IF(AVERAGEIFS(СтруктураСети!$G:$G,СтруктураСети!$H:$H,$B21)*Форма1!$M$23>I21,I21,AVERAGEIFS(СтруктураСети!$G:$G,СтруктураСети!$H:$H,$B21)*Форма1!$M$23),IF(VLOOKUP(C21,Форма1!$K$17:$M$20,3,0)*I21*Форма1!$M$23>I21,I21,VLOOKUP(C21,Форма1!$K$17:$M$20,3,0)*I21*Форма1!$M$23)) -> 19.2 | K21: =$J21*Форма1!$M$24 -> 4.8 | L21: 6 | M21: =COUNTIFS(Дефекты1!$A:$A,$B21,Дефекты1!$E:$E,M$4) -> 2 | N21: =COUNTIFS(Дефекты1!$A:$A,$B21,Дефекты1!$E:$E,N$4) -> 0 | O21: =COUNTIFS(Дефекты1!$A:$A,$B21,Дефекты1!$E:$E,O$4) -> 0 | P21: =COUNTIFS(Дефекты1!$A:$A,$B21,Дефекты1!$E:$E,P$4) -> 0 | Q21: =COUNTIFS(Дефекты1!$A:$A,$B21,Дефекты1!$E:$E,Q$4) -> 0 | R21: =COUNTIFS(Дефекты1!$A:$A,$B21,Дефекты1!$E:$E,R$4) -> 4 | S21: =COUNTIFS(Дефекты1!$A:$A,$B21,Дефекты1!$E:$E,S$4) -> 0 | T21: 75 | U21: 25 | V21: 0 | W21: 0 | X21: 0 | Y21: 0 | Z21: 50 | AA21: 0 | AB21: =IF(T21,IF(OR(NOT(ISERROR(MATCH(AB$3,$AC21:$AI21,0))),AJ21>=AJ$3),VLOOKUP(REPLACE(AB$3,6,2,$C21),Форма3!$M$17:$N$62,2,0)*$I21,SUM(MMULT((AC21:AI21=Форма3!$M$17:$M$62)*(Форма3!$N$17:$N$62),(TRANSPOSE(RIGHT(AC21:AI21,2))=($I$3:$K$3))*($I21:$K21)))),0) -> 1920000 | AC21: =IF(U21,INDEX(Форма2!$E$29:$K$38,SUMIFS(Форма2!$A$29:$A$38,Форма2!$B$29:$B$38,"<"&U21,Форма2!$C$29:$C$38,">="&U21),MATCH(U$4,Форма2!$E$2:$K$2,0)),"---") -> РМНТ-ЛУ | AD21: =IF(V21,INDEX(Форма2!$E$29:$K$38,SUMIFS(Форма2!$A$29:$A$38,Форма2!$B$29:$B$38,"<"&V21,Форма2!$C$29:$C$38,">="&V21),MATCH(V$4,Форма2!$E$2:$K$2,0)),"---") -> --- | AE21: =IF(W21,INDEX(Форма2!$E$29:$K$38,SUMIFS(Форма2!$A$29:$A$38,Форма2!$B$29:$B$38,"<"&W21,Форма2!$C$29:$C$38,">="&W21),MATCH(W$4,Форма2!$E$2:$K$2,0)),"---") -> --- | AF21: =IF(X21,INDEX(Форма2!$E$29:$K$38,SUMIFS(Форма2!$A$29:$A$38,Форма2!$B$29:$B$38,"<"&X21,Форма2!$C$29:$C$38,">="&X21),MATCH(X$4,Форма2!$E$2:$K$2,0)),"---") -> --- | AG21: =IF(Y21,INDEX(Форма2!$E$29:$K$38,SUMIFS(Форма2!$A$29:$A$38,Форма2!$B$29:$B$38,"<"&Y21,Форма2!$C$29:$C$38,">="&Y21),MATCH(Y$4,Форма2!$E$2:$K$2,0)),"---") -> --- | AH21: =IF(Z21,INDEX(Форма2!$E$29:$K$38,SUMIFS(Форма2!$A$29:$A$38,Форма2!$B$29:$B$38,"<"&Z21,Форма2!$C$29:$C$38,">="&Z21),MATCH(Z$4,Форма2!$E$2:$K$2,0)),"---") -> --- | AI21: =IF(AA21,INDEX(Форма2!$E$29:$K$38,SUMIFS(Форма2!$A$29:$A$38,Форма2!$B$29:$B$38,"<"&AA21,Форма2!$C$29:$C$38,">="&AA21),MATCH(AA$4,Форма2!$E$2:$K$2,0)),"---") -> --- | AJ21: =SUM((($U21:$AA21)>Форма2!$B$40:$B$49)*(($U21:$AA21)<=Форма2!$C$40:$C$49)*(Форма2!$E$40:$K$49)) -> 0.35 | AK21: =IF(AJ21>=AJ$3,AK$3,INDEX(Форма3!$F$4:$J$4,,MAX(IFERROR(MATCH(RIGHT(AC21:AI21,2),Форма3!$F$4:$J$4,0),0)))) -> ЛУ | AL21: =SUM((($U21:$AA21)>Форма2!$B$7:$B$16)*(($U21:$AA21)<=Форма2!$C$7:$C$16)*(Форма2!$E$7:$K$16)) -> 0.2333333333 | AM21: 110 | AN21: =SUMIFS(Потребители!D:D,Потребители!$B:$B,$B21) -> 110 | AO21: =SUMIFS(Потребители!E:E,Потребители!$B:$B,$B21) -> 0 | AP21: 3693.8 | AQ21: =SUMIFS(Потребители!G:G,Потребители!$B:$B,$B21) -> 3693.8 | AR21: =SUMIFS(Потребители!H:H,Потребители!$B:$B,$B21) -> 0 | AT21: 97480 | AU21: =IF($AB21,MROUND(SUMIFS($I21:$K21,$I$3:$K$3,$AK21)*$AL21*Форма1!$E$45,10),0) -> 25760 | AV21: =IF($AB21,FLOOR(SUM($AQ21:$AR21*Форма1!$E$40:$F$40)*($AB21/Форма1!$E$42),10),0) -> 40 | AW21: =IF($AB21,MROUND(SUMIFS($I21:$K21,$I$3:$K$3,$AK21)*Форма1!$F$45*$AL21,10),0) -> 51520 | AX21: =IF($AB21,MROUND(SUMIFS($I21:$K21,$I$3:$K$3,$AK21)*Форма1!$G$45*$AL21,10),0) -> 20160 | AZ21: 576640 | BA21: =$AB21*Форма1!$E$50 -> 576000 | BB21: =IF($AB21>Форма1!$E$53,-CUMIPMT(Форма1!$E$55,ROUND($AB21/Форма1!$E$53*Форма1!$E$54,0),$AB21,1,ROUND($AB21/Форма1!$E$53*Форма1!$E$54,0),0),0) -> 0 | BC21: =MROUND(SUM(Форма1!$E$38:$F$38*AQ21:AR21)/365*($AB21/Форма1!$E$58),10) -> 640 | BF21: 2200000 | BG21: =IF($AB21,MROUND(SUM($AN21:$AO21*Форма1!$K$40:$L$40),10),0) -> 2200000 | BL21: 0
A22: "Девятовка" | B22: Т21 | C22: ДC | D22: --- | E22: М3 | F22: Т21 | G22: --- | H22: 3 | I22: 38 | J22: =CHOOSE(Форма1!$M$22,IF(AVERAGEIFS(СтруктураСети!$G:$G,СтруктураСети!$H:$H,$B22)*Форма1!$M$23>I22,I22,AVERAGEIFS(СтруктураСети!$G:$G,СтруктураСети!$H:$H,$B22)*Форма1!$M$23),IF(VLOOKUP(C22,Форма1!$K$17:$M$20,3,0)*I22*Форма1!$M$23>I22,I22,VLOOKUP(C22,Форма1!$K$17:$M$20,3,0)*I22*Форма1!$M$23)) -> 9.12 | K22: =$J22*Форма1!$M$24 -> 2.28 | L22: 4 | M22: =COUNTIFS(Дефекты1!$A:$A,$B22,Дефекты1!$E:$E,M$4) -> 3 | N22: =COUNTIFS(Дефекты1!$A:$A,$B22,Дефекты1!$E:$E,N$4) -> 0 | O22: =COUNTIFS(Дефекты1!$A:$A,$B22,Дефекты1!$E:$E,O$4) -> 0 | P22: =COUNTIFS(Дефекты1!$A:$A,$B22,Дефекты1!$E:$E,P$4) -> 0 | Q22: =COUNTIFS(Дефекты1!$A:$A,$B22,Дефекты1!$E:$E,Q$4) -> 0 | R22: =COUNTIFS(Дефекты1!$A:$A,$B22,Дефекты1!$E:$E,R$4) -> 1 | S22: =COUNTIFS(Дефекты1!$A:$A,$B22,Дефекты1!$E:$E,S$4) -> 0 | T22: 105.2631579 | U22: 78.94736842 | V22: 0 | W22: 0 | X22: 0 | Y22: 0 | Z22: 26.31578947 | AA22: 0 | AB22: =IF(T22,IF(OR(NOT(ISERROR(MATCH(AB$3,$AC22:$AI22,0))),AJ22>=AJ$3),VLOOKUP(REPLACE(AB$3,6,2,$C22),Форма3!$M$17:$N$62,2,0)*$I22,SUM(MMULT((AC22:AI22=Форма3!$M$17:$M$62)*(Форма3!$N$17:$N$62),(TRANSPOSE(RIGHT(AC22:AI22,2))=($I$3:$K$3))*($I22:$K22)))),0) -> 912000 | AC22: =IF(U22,INDEX(Форма2!$E$29:$K$38,SUMIFS(Форма2!$A$29:$A$38,Форма2!$B$29:$B$38,"<"&U22,Форма2!$C$29:$C$38,">="&U22),MATCH(U$4,Форма2!$E$2:$K$2,0)),"---") -> РМНТ-ЛУ | AD22: =IF(V22,INDEX(Форма2!$E$29:$K$38,SUMIFS(Форма2!$A$29:$A$38,Форма2!$B$29:$B$38,"<"&V22,Форма2!$C$29:$C$38,">="&V22),MATCH(V$4,Форма2!$E$2:$K$2,0)),"---") -> --- | AE22: =IF(W22,INDEX(Форма2!$E$29:$K$38,SUMIFS(Форма2!$A$29:$A$38,Форма2!$B$29:$B$38,"<"&W22,Форма2!$C$29:$C$38,">="&W22),MATCH(W$4,Форма2!$E$2:$K$2,0)),"---") -> --- | AF22: =IF(X22,INDEX(Форма2!$E$29:$K$38,SUMIFS(Форма2!$A$29:$A$38,Форма2!$B$29:$B$38,"<"&X22,Форма2!$C$29:$C$38,">="&X22),MATCH(X$4,Форма2!$E$2:$K$2,0)),"---") -> --- | AG22: =IF(Y22,INDEX(Форма2!$E$29:$K$38,SUMIFS(Форма2!$A$29:$A$38,Форма2!$B$29:$B$38,"<"&Y22,Форма2!$C$29:$C$38,">="&Y22),MATCH(Y$4,Форма2!$E$2:$K$2,0)),"---") -> --- | AH22: =IF(Z22,INDEX(Форма2!$E$29:$K$38,SUMIFS(Форма2!$A$29:$A$38,Форма2!$B$29:$B$38,"<"&Z22,Форма2!$C$29:$C$38,">="&Z22),MATCH(Z$4,Форма2!$E$2:$K$2,0)),"---") -> --- | AI22: =IF(AA22,INDEX(Форма2!$E$29:$K$38,SUMIFS(Форма2!$A$29:$A$38,Форма2!$B$29:$B$38,"<"&AA22,Форма2!$C$29:$C$38,">="&AA22),MATCH(AA$4,Форма2!$E$2:$K$2,0)),"---") -> --- | AJ22: =SUM((($U22:$AA22)>Форма2!$B$40:$B$49)*(($U22:$AA22)<=Форма2!$C$40:$C$49)*(Форма2!$E$40:$K$49)) -> 0.35 | AK22: =IF(AJ22>=AJ$3,AK$3,INDEX(Форма3!$F$4:$J$4,,MAX(IFERROR(MATCH(RIGHT(AC22:AI22,2),Форма3!$F$4:$J$4,0),0)))) -> ЛУ | AL22: =SUM((($U22:$AA22)>Форма2!$B$7:$B$16)*(($U22:$AA22)<=Форма2!$C$7:$C$16)*(Форма2!$E$7:$K$16)) -> 0.3 | AM22: 177 | AN22: =SUMIFS(Потребители!D:D,Потребители!$B:$B,$B22) -> 177 | AO22: =SUMIFS(Потребители!E:E,Потребители!$B:$B,$B22) -> 0 | AP22: 5943.66 | AQ22: =SUMIFS(Потребители!G:G,Потребители!$B:$B,$B22) -> 5943.66 | AR22: =SUMIFS(Потребители!H:H,Потребители!$B:$B,$B22) -> 0 | AT22: 59530 | AU22: =IF($AB22,MROUND(SUMIFS($I22:$K22,$I$3:$K$3,$AK22)*$AL22*Форма1!$E$45,10),0) -> 15730 | AV22: =IF($AB22,FLOOR(SUM($AQ22:$AR22*Форма1!$E$40:$F$40)*($AB22/Форма1!$E$42),10),0) -> 30 | AW22: =IF($AB22,MROUND(SUMIFS($I22:$K22,$I$3:$K$3,$AK22)*Форма1!$F$45*$AL22,10),0) -> 31460 | AX22: =IF($AB22,MROUND(SUMIFS($I22:$K22,$I$3:$K$3,$AK22)*Форма1!$G$45*$AL22,10),0) -> 12310 | AZ22: 274090 | BA22: =$AB22*Форма1!$E$50 -> 273600 | BB22: =IF($AB22>Форма1!$E$53,-CUMIPMT(Форма1!$E$55,ROUND($AB22/Форма1!$E$53*Форма1!$E$54,0),$AB22,1,ROUND($AB22/Форма1!$E$53*Форма1!$E$54,0),0),0) -> 0 | BC22: =MROUND(SUM(Форма1!$E$38:$F$38*AQ22:AR22)/365*($AB22/Форма1!$E$58),10) -> 490 | BF22: 3540000 | BG22: =IF($AB22,MROUND(SUM($AN22:$AO22*Форма1!$K$40:$L$40),10),0) -> 3540000 | BL22: 0
A23: "Девятовка" | B23: Т22 | C23: ДC | D23: --- | E23: М3 | F23: Т22 | G23: --- | H23: 3 | I23: 96 | J23: =CHOOSE(Форма1!$M$22,IF(AVERAGEIFS(СтруктураСети!$G:$G,СтруктураСети!$H:$H,$B23)*Форма1!$M$23>I23,I23,AVERAGEIFS(СтруктураСети!$G:$G,СтруктураСети!$H:$H,$B23)*Форма1!$M$23),IF(VLOOKUP(C23,Форма1!$K$17:$M$20,3,0)*I23*Форма1!$M$23>I23,I23,VLOOKUP(C23,Форма1!$K$17:$M$20,3,0)*I23*Форма1!$M$23)) -> 23.04 | K23: =$J23*Форма1!$M$24 -> 5.76 | L23: 4 | M23: =COUNTIFS(Дефекты1!$A:$A,$B23,Дефекты1!$E:$E,M$4) -> 0 | N23: =COUNTIFS(Дефекты1!$A:$A,$B23,Дефекты1!$E:$E,N$4) -> 0 | O23: =COUNTIFS(Дефекты1!$A:$A,$B23,Дефекты1!$E:$E,O$4) -> 1 | P23: =COUNTIFS(Дефекты1!$A:$A,$B23,Дефекты1!$E:$E,P$4) -> 0 | Q23: =COUNTIFS(Дефекты1!$A:$A,$B23,Дефекты1!$E:$E,Q$4) -> 0 | R23: =COUNTIFS(Дефекты1!$A:$A,$B23,Дефекты1!$E:$E,R$4) -> 3 | S23: =COUNTIFS(Дефекты1!$A:$A,$B23,Дефекты1!$E:$E,S$4) -> 0 | T23: 41.66666667 | U23: 0 | V23: 0 | W23: 10.41666667 | X23: 0 | Y23: 0 | Z23: 31.25 | AA23: 0 | AB23: =IF(T23,IF(OR(NOT(ISERROR(MATCH(AB$3,$AC23:$AI23,0))),AJ23>=AJ$3),VLOOKUP(REPLACE(AB$3,6,2,$C23),Форма3!$M$17:$N$62,2,0)*$I23,SUM(MMULT((AC23:AI23=Форма3!$M$17:$M$62)*(Форма3!$N$17:$N$62),(TRANSPOSE(RIGHT(AC23:AI23,2))=($I$3:$K$3))*($I23:$K23)))),0) -> 3686400 | AC23: =IF(U23,INDEX(Форма2!$E$29:$K$38,SUMIFS(Форма2!$A$29:$A$38,Форма2!$B$29:$B$38,"<"&U23,Форма2!$C$29:$C$38,">="&U23),MATCH(U$4,Форма2!$E$2:$K$2,0)),"---") -> --- | AD23: =IF(V23,INDEX(Форма2!$E$29:$K$38,SUMIFS(Форма2!$A$29:$A$38,Форма2!$B$29:$B$38,"<"&V23,Форма2!$C$29:$C$38,">="&V23),MATCH(V$4,Форма2!$E$2:$K$2,0)),"---") -> --- | AE23: =IF(W23,INDEX(Форма2!$E$29:$K$38,SUMIFS(Форма2!$A$29:$A$38,Форма2!$B$29:$B$38,"<"&W23,Форма2!$C$29:$C$38,">="&W23),MATCH(W$4,Форма2!$E$2:$K$2,0)),"---") -> УСТР-ЛТ | AF23: =IF(X23,INDEX(Форма2!$E$29:$K$38,SUMIFS(Форма2!$A$29:$A$38,Форма2!$B$29:$B$38,"<"&X23,Форма2!$C$29:$C$38,">="&X23),MATCH(X$4,Форма2!$E$2:$K$2,0)),"---") -> --- | AG23: =IF(Y23,INDEX(Форма2!$E$29:$K$38,SUMIFS(Форма2!$A$29:$A$38,Форма2!$B$29:$B$38,"<"&Y23,Форма2!$C$29:$C$38,">="&Y23),MATCH(Y$4,Форма2!$E$2:$K$2,0)),"---") -> --- | AH23: =IF(Z23,INDEX(Форма2!$E$29:$K$38,SUMIFS(Форма2!$A$29:$A$38,Форма2!$B$29:$B$38,"<"&Z23,Форма2!$C$29:$C$38,">="&Z23),MATCH(Z$4,Форма2!$E$2:$K$2,0)),"---") -> --- | AI23: =IF(AA23,INDEX(Форма2!$E$29:$K$38,SUMIFS(Форма2!$A$29:$A$38,Форма2!$B$29:$B$38,"<"&AA23,Форма2!$C$29:$C$38,">="&AA23),MATCH(AA$4,Форма2!$E$2:$K$2,0)),"---") -> --- | AJ23: =SUM((($U23:$AA23)>Форма2!$B$40:$B$49)*(($U23:$AA23)<=Форма2!$C$40:$C$49)*(Форма2!$E$40:$K$49)) -> 0.4 | AK23: =IF(AJ23>=AJ$3,AK$3,INDEX(Форма3!$F$4:$J$4,,MAX(IFERROR(MATCH(RIGHT(AC23:AI23,2),Форма3!$F$4:$J$4,0),0)))) -> ЛТ | AL23: =SUM((($U23:$AA23)>Форма2!$B$7:$B$16)*(($U23:$AA23)<=Форма2!$C$7:$C$16)*(Форма2!$E$7:$K$16)) -> 0.1214285714 | AM23: 388 | AN23: =SUMIFS(Потребители!D:D,Потребители!$B:$B,$B23) -> 388 | AO23: =SUMIFS(Потребители!E:E,Потребители!$B:$B,$B23) -> 0 | AP23: 13029.04 | AQ23: =SUMIFS(Потребители!G:G,Потребители!$B:$B,$B23) -> 13029.04 | AR23: =SUMIFS(Потребители!H:H,Потребители!$B:$B,$B23) -> 0 | AT23: 243710 | AU23: =IF($AB23,MROUND(SUMIFS($I23:$K23,$I$3:$K$3,$AK23)*$AL23*Форма1!$E$45,10),0) -> 64350 | AV23: =IF($AB23,FLOOR(SUM($AQ23:$AR23*Форма1!$E$40:$F$40)*($AB23/Форма1!$E$42),10),0) -> 310 | AW23: =IF($AB23,MROUND(SUMIFS($I23:$K23,$I$3:$K$3,$AK23)*Форма1!$F$45*$AL23,10),0) -> 128690 | AX23: =IF($AB23,MROUND(SUMIFS($I23:$K23,$I$3:$K$3,$AK23)*Форма1!$G$45*$AL23,10),0) -> 50360 | AZ23: 1110270 | BA23: =$AB23*Форма1!$E$50 -> 1105920 | BB23: =IF($AB23>Форма1!$E$53,-CUMIPMT(Форма1!$E$55,ROUND($AB23/Форма1!$E$53*Форма1!$E$54,0),$AB23,1,ROUND($AB23/Форма1!$E$53*Форма1!$E$54,0),0),0) -> 0 | BC23: =MROUND(SUM(Форма1!$E$38:$F$38*AQ23:AR23)/365*($AB23/Форма1!$E$58),10) -> 4350 | BF23: 7760000 | BG23: =IF($AB23,MROUND(SUM($AN23:$AO23*Форма1!$K$40:$L$40),10),0) -> 7760000 | BL23: 0
A24: "Девятовка" | B24: Т23 | C24: ДC | D24: --- | E24: М3 | F24: Т23 | G24: --- | H24: 3 | I24: 10 | J24: =CHOOSE(Форма1!$M$22,IF(AVERAGEIFS(СтруктураСети!$G:$G,СтруктураСети!$H:$H,$B24)*Форма1!$M$23>I24,I24,AVERAGEIFS(СтруктураСети!$G:$G,СтруктураСети!$H:$H,$B24)*Форма1!$M$23),IF(VLOOKUP(C24,Форма1!$K$17:$M$20,3,0)*I24*Форма1!$M$23>I24,I24,VLOOKUP(C24,Форма1!$K$17:$M$20,3,0)*I24*Форма1!$M$23)) -> 2.4 | K24: =$J24*Форма1!$M$24 -> 0.6 | L24: 0 | M24: =COUNTIFS(Дефекты1!$A:$A,$B24,Дефекты1!$E:$E,M$4) -> 0 | N24: =COUNTIFS(Дефекты1!$A:$A,$B24,Дефекты1!$E:$E,N$4) -> 0 | O24: =COUNTIFS(Дефекты1!$A:$A,$B24,Дефекты1!$E:$E,O$4) -> 0 | P24: =COUNTIFS(Дефекты1!$A:$A,$B24,Дефекты1!$E:$E,P$4) -> 0 | Q24: =COUNTIFS(Дефекты1!$A:$A,$B24,Дефекты1!$E:$E,Q$4) -> 0 | R24: =COUNTIFS(Дефекты1!$A:$A,$B24,Дефекты1!$E:$E,R$4) -> 0 | S24: =COUNTIFS(Дефекты1!$A:$A,$B24,Дефекты1!$E:$E,S$4) -> 0 | T24: 0 | U24: 0 | V24: 0 | W24: 0 | X24: 0 | Y24: 0 | Z24: 0 | AA24: 0 | AB24: =IF(T24,IF(OR(NOT(ISERROR(MATCH(AB$3,$AC24:$AI24,0))),AJ24>=AJ$3),VLOOKUP(REPLACE(AB$3,6,2,$C24),Форма3!$M$17:$N$62,2,0)*$I24,SUM(MMULT((AC24:AI24=Форма3!$M$17:$M$62)*(Форма3!$N$17:$N$62),(TRANSPOSE(RIGHT(AC24:AI24,2))=($I$3:$K$3))*($I24:$K24)))),0) -> 0 | AC24: =IF(U24,INDEX(Форма2!$E$29:$K$38,SUMIFS(Форма2!$A$29:$A$38,Форма2!$B$29:$B$38,"<"&U24,Форма2!$C$29:$C$38,">="&U24),MATCH(U$4,Форма2!$E$2:$K$2,0)),"---") -> --- | AD24: =IF(V24,INDEX(Форма2!$E$29:$K$38,SUMIFS(Форма2!$A$29:$A$38,Форма2!$B$29:$B$38,"<"&V24,Форма2!$C$29:$C$38,">="&V24),MATCH(V$4,Форма2!$E$2:$K$2,0)),"---") -> --- | AE24: =IF(W24,INDEX(Форма2!$E$29:$K$38,SUMIFS(Форма2!$A$29:$A$38,Форма2!$B$29:$B$38,"<"&W24,Форма2!$C$29:$C$38,">="&W24),MATCH(W$4,Форма2!$E$2:$K$2,0)),"---") -> --- | AF24: =IF(X24,INDEX(Форма2!$E$29:$K$38,SUMIFS(Форма2!$A$29:$A$38,Форма2!$B$29:$B$38,"<"&X24,Форма2!$C$29:$C$38,">="&X24),MATCH(X$4,Форма2!$E$2:$K$2,0)),"---") -> --- | AG24: =IF(Y24,INDEX(Форма2!$E$29:$K$38,SUMIFS(Форма2!$A$29:$A$38,Форма2!$B$29:$B$38,"<"&Y24,Форма2!$C$29:$C$38,">="&Y24),MATCH(Y$4,Форма2!$E$2:$K$2,0)),"---") -> --- | AH24: =IF(Z24,INDEX(Форма2!$E$29:$K$38,SUMIFS(Форма2!$A$29:$A$38,Форма2!$B$29:$B$38,"<"&Z24,Форма2!$C$29:$C$38,">="&Z24),MATCH(Z$4,Форма2!$E$2:$K$2,0)),"---") -> --- | AI24: =IF(AA24,INDEX(Форма2!$E$29:$K$38,SUMIFS(Форма2!$A$29:$A$38,Форма2!$B$29:$B$38,"<"&AA24,Форма2!$C$29:$C$38,">="&AA24),MATCH(AA$4,Форма2!$E$2:$K$2,0)),"---") -> --- | AJ24: =SUM((($U24:$AA24)>Форма2!$B$40:$B$49)*(($U24:$AA24)<=Форма2!$C$40:$C$49)*(Форма2!$E$40:$K$49)) -> 0 | AK24: =IF(AJ24>=AJ$3,AK$3,INDEX(Форма3!$F$4:$J$4,,MAX(IFERROR(MATCH(RIGHT(AC24:AI24,2),Форма3!$F$4:$J$4,0),0)))) -> ЛУ | AL24: =SUM((($U24:$AA24)>Форма2!$B$7:$B$16)*(($U24:$AA24)<=Форма2!$C$7:$C$16)*(Форма2!$E$7:$K$16)) -> 0 | AM24: 1 | AN24: =SUMIFS(Потребители!D:D,Потребители!$B:$B,$B24) -> 0 | AO24: =SUMIFS(Потребители!E:E,Потребители!$B:$B,$B24) -> 1 | AP24: 924 | AQ24: =SUMIFS(Потребители!G:G,Потребители!$B:$B,$B24) -> 0 | AR24: =SUMIFS(Потребители!H:H,Потребители!$B:$B,$B24) -> 924 | AT24: 0 | AU24: =IF($AB24,MROUND(SUMIFS($I24:$K24,$I$3:$K$3,$AK24)*$AL24*Форма1!$E$45,10),0) -> 0 | AV24: =IF($AB24,FLOOR(SUM($AQ24:$AR24*Форма1!$E$40:$F$40)*($AB24/Форма1!$E$42),10),0) -> 0 | AW24: =IF($AB24,MROUND(SUMIFS($I24:$K24,$I$3:$K$3,$AK24)*Форма1!$F$45*$AL24,10),0) -> 0 | AX24: =IF($AB24,MROUND(SUMIFS($I24:$K24,$I$3:$K$3,$AK24)*Форма1!$G$45*$AL24,10),0) -> 0 | AZ24: 0 | BA24: =$AB24*Форма1!$E$50 -> 0 | BB24: =IF($AB24>Форма1!$E$53,-CUMIPMT(Форма1!$E$55,ROUND($AB24/Форма1!$E$53*Форма1!$E$54,0),$AB24,1,ROUND($AB24/Форма1!$E$53*Форма1!$E$54,0),0),0) -> 0 | BC24: =MROUND(SUM(Форма1!$E$38:$F$38*AQ24:AR24)/365*($AB24/Форма1!$E$58),10) -> 0 | BF24: 0 | BG24: =IF($AB24,MROUND(SUM($AN24:$AO24*Форма1!$K$40:$L$40),10),0) -> 0 | BL24: 0
A25: "Девятовка" | B25: Т24 | C25: ДC | D25: --- | E25: М3 | F25: Т24 | G25: --- | H25: 3 | I25: 118 | J25: =CHOOSE(Форма1!$M$22,IF(AVERAGEIFS(СтруктураСети!$G:$G,СтруктураСети!$H:$H,$B25)*Форма1!$M$23>I25,I25,AVERAGEIFS(СтруктураСети!$G:$G,СтруктураСети!$H:$H,$B25)*Форма1!$M$23),IF(VLOOKUP(C25,Форма1!$K$17:$M$20,3,0)*I25*Форма1!$M$23>I25,I25,VLOOKUP(C25,Форма1!$K$17:$M$20,3,0)*I25*Форма1!$M$23)) -> 28.32 | K25: =$J25*Форма1!$M$24 -> 7.08 | L25: 9 | M25: =COUNTIFS(Дефекты1!$A:$A,$B25,Дефекты1!$E:$E,M$4) -> 2 | N25: =COUNTIFS(Дефекты1!$A:$A,$B25,Дефекты1!$E:$E,N$4) -> 1 | O25: =COUNTIFS(Дефекты1!$A:$A,$B25,Дефекты1!$E:$E,O$4) -> 0 | P25: =COUNTIFS(Дефекты1!$A:$A,$B25,Дефекты1!$E:$E,P$4) -> 0 | Q25: =COUNTIFS(Дефекты1!$A:$A,$B25,Дефекты1!$E:$E,Q$4) -> 0 | R25: =COUNTIFS(Дефекты1!$A:$A,$B25,Дефекты1!$E:$E,R$4) -> 6 | S25: =COUNTIFS(Дефекты1!$A:$A,$B25,Дефекты1!$E:$E,S$4) -> 0 | T25: 76.27118644 | U25: 16.94915254 | V25: 8.474576271 | W25: 0 | X25: 0 | Y25: 0 | Z25: 50.84745763 | AA25: 0 | AB25: =IF(T25,IF(OR(NOT(ISERROR(MATCH(AB$3,$AC25:$AI25,0))),AJ25>=AJ$3),VLOOKUP(REPLACE(AB$3,6,2,$C25),Форма3!$M$17:$N$62,2,0)*$I25,SUM(MMULT((AC25:AI25=Форма3!$M$17:$M$62)*(Форма3!$N$17:$N$62),(TRANSPOSE(RIGHT(AC25:AI25,2))=($I$3:$K$3))*($I25:$K25)))),0) -> 5664000 | AC25: =IF(U25,INDEX(Форма2!$E$29:$K$38,SUMIFS(Форма2!$A$29:$A$38,Форма2!$B$29:$B$38,"<"&U25,Форма2!$C$29:$C$38,">="&U25),MATCH(U$4,Форма2!$E$2:$K$2,0)),"---") -> РМНТ-ЛУ | AD25: =IF(V25,INDEX(Форма2!$E$29:$K$38,SUMIFS(Форма2!$A$29:$A$38,Форма2!$B$29:$B$38,"<"&V25,Форма2!$C$29:$C$38,">="&V25),MATCH(V$4,Форма2!$E$2:$K$2,0)),"---") -> РМНТ-ЛУ | AE25: =IF(W25,INDEX(Форма2!$E$29:$K$38,SUMIFS(Форма2!$A$29:$A$38,Форма2!$B$29:$B$38,"<"&W25,Форма2!$C$29:$C$38,">="&W25),MATCH(W$4,Форма2!$E$2:$K$2,0)),"---") -> --- | AF25: =IF(X25,INDEX(Форма2!$E$29:$K$38,SUMIFS(Форма2!$A$29:$A$38,Форма2!$B$29:$B$38,"<"&X25,Форма2!$C$29:$C$38,">="&X25),MATCH(X$4,Форма2!$E$2:$K$2,0)),"---") -> --- | AG25: =IF(Y25,INDEX(Форма2!$E$29:$K$38,SUMIFS(Форма2!$A$29:$A$38,Форма2!$B$29:$B$38,"<"&Y25,Форма2!$C$29:$C$38,">="&Y25),MATCH(Y$4,Форма2!$E$2:$K$2,0)),"---") -> --- | AH25: =IF(Z25,INDEX(Форма2!$E$29:$K$38,SUMIFS(Форма2!$A$29:$A$38,Форма2!$B$29:$B$38,"<"&Z25,Форма2!$C$29:$C$38,">="&Z25),MATCH(Z$4,Форма2!$E$2:$K$2,0)),"---") -> --- | AI25: =IF(AA25,INDEX(Форма2!$E$29:$K$38,SUMIFS(Форма2!$A$29:$A$38,Форма2!$B$29:$B$38,"<"&AA25,Форма2!$C$29:$C$38,">="&AA25),MATCH(AA$4,Форма2!$E$2:$K$2,0)),"---") -> --- | AJ25: =SUM((($U25:$AA25)>Форма2!$B$40:$B$49)*(($U25:$AA25)<=Форма2!$C$40:$C$49)*(Форма2!$E$40:$K$49)) -> 0.7 | AK25: =IF(AJ25>=AJ$3,AK$3,INDEX(Форма3!$F$4:$J$4,,MAX(IFERROR(MATCH(RIGHT(AC25:AI25,2),Форма3!$F$4:$J$4,0),0)))) -> ЛУ | AL25: =SUM((($U25:$AA25)>Форма2!$B$7:$B$16)*(($U25:$AA25)<=Форма2!$C$7:$C$16)*(Форма2!$E$7:$K$16)) -> 0.3333333333 | AM25: 179 | AN25: =SUMIFS(Потребители!D:D,Потребители!$B:$B,$B25) -> 179 | AO25: =SUMIFS(Потребители!E:E,Потребители!$B:$B,$B25) -> 0 | AP25: 6010.82 | AQ25: =SUMIFS(Потребители!G:G,Потребители!$B:$B,$B25) -> 6010.82 | AR25: =SUMIFS(Потребители!H:H,Потребители!$B:$B,$B25) -> 0 | AT25: 205540 | AU25: =IF($AB25,MROUND(SUMIFS($I25:$K25,$I$3:$K$3,$AK25)*$AL25*Форма1!$E$45,10),0) -> 54280 | AV25: =IF($AB25,FLOOR(SUM($AQ25:$AR25*Форма1!$E$40:$F$40)*($AB25/Форма1!$E$42),10),0) -> 220 | AW25: =IF($AB25,MROUND(SUMIFS($I25:$K25,$I$3:$K$3,$AK25)*Форма1!$F$45*$AL25,10),0) -> 108560 | AX25: =IF($AB25,MROUND(SUMIFS($I25:$K25,$I$3:$K$3,$AK25)*Форма1!$G$45*$AL25,10),0) -> 42480 | AZ25: 1702290 | BA25: =$AB25*Форма1!$E$50 -> 1699200 | BB25: =IF($AB25>Форма1!$E$53,-CUMIPMT(Форма1!$E$55,ROUND($AB25/Форма1!$E$53*Форма1!$E$54,0),$AB25,1,ROUND($AB25/Форма1!$E$53*Форма1!$E$54,0),0),0) -> 0 | BC25: =MROUND(SUM(Форма1!$E$38:$F$38*AQ25:AR25)/365*($AB25/Форма1!$E$58),10) -> 3090 | BF25: 3580000 | BG25: =IF($AB25,MROUND(SUM($AN25:$AO25*Форма1!$K$40:$L$40),10),0) -> 3580000 | BL25: 0
A26: "Девятовка" | B26: Т25 | C26: ДC | D26: --- | E26: М3 | F26: Т25 | G26: --- | H26: 3 | I26: 98 | J26: =CHOOSE(Форма1!$M$22,IF(AVERAGEIFS(СтруктураСети!$G:$G,СтруктураСети!$H:$H,$B26)*Форма1!$M$23>I26,I26,AVERAGEIFS(СтруктураСети!$G:$G,СтруктураСети!$H:$H,$B26)*Форма1!$M$23),IF(VLOOKUP(C26,Форма1!$K$17:$M$20,3,0)*I26*Форма1!$M$23>I26,I26,VLOOKUP(C26,Форма1!$K$17:$M$20,3,0)*I26*Форма1!$M$23)) -> 23.52 | K26: =$J26*Форма1!$M$24 -> 5.88 | L26: 6 | M26: =COUNTIFS(Дефекты1!$A:$A,$B26,Дефекты1!$E:$E,M$4) -> 3 | N26: =COUNTIFS(Дефекты1!$A:$A,$B26,Дефекты1!$E:$E,N$4) -> 0 | O26: =COUNTIFS(Дефекты1!$A:$A,$B26,Дефекты1!$E:$E,O$4) -> 0 | P26: =COUNTIFS(Дефекты1!$A:$A,$B26,Дефекты1!$E:$E,P$4) -> 0 | Q26: =COUNTIFS(Дефекты1!$A:$A,$B26,Дефекты1!$E:$E,Q$4) -> 0 | R26: =COUNTIFS(Дефекты1!$A:$A,$B26,Дефекты1!$E:$E,R$4) -> 3 | S26: =COUNTIFS(Дефекты1!$A:$A,$B26,Дефекты1!$E:$E,S$4) -> 0 | T26: 61.2244898 | U26: 30.6122449 | V26: 0 | W26: 0 | X26: 0 | Y26: 0 | Z26: 30.6122449 | AA26: 0 | AB26: =IF(T26,IF(OR(NOT(ISERROR(MATCH(AB$3,$AC26:$AI26,0))),AJ26>=AJ$3),VLOOKUP(REPLACE(AB$3,6,2,$C26),Форма3!$M$17:$N$62,2,0)*$I26,SUM(MMULT((AC26:AI26=Форма3!$M$17:$M$62)*(Форма3!$N$17:$N$62),(TRANSPOSE(RIGHT(AC26:AI26,2))=($I$3:$K$3))*($I26:$K26)))),0) -> 2352000 | AC26: =IF(U26,INDEX(Форма2!$E$29:$K$38,SUMIFS(Форма2!$A$29:$A$38,Форма2!$B$29:$B$38,"<"&U26,Форма2!$C$29:$C$38,">="&U26),MATCH(U$4,Форма2!$E$2:$K$2,0)),"---") -> РМНТ-ЛУ | AD26: =IF(V26,INDEX(Форма2!$E$29:$K$38,SUMIFS(Форма2!$A$29:$A$38,Форма2!$B$29:$B$38,"<"&V26,Форма2!$C$29:$C$38,">="&V26),MATCH(V$4,Форма2!$E$2:$K$2,0)),"---") -> --- | AE26: =IF(W26,INDEX(Форма2!$E$29:$K$38,SUMIFS(Форма2!$A$29:$A$38,Форма2!$B$29:$B$38,"<"&W26,Форма2!$C$29:$C$38,">="&W26),MATCH(W$4,Форма2!$E$2:$K$2,0)),"---") -> --- | AF26: =IF(X26,INDEX(Форма2!$E$29:$K$38,SUMIFS(Форма2!$A$29:$A$38,Форма2!$B$29:$B$38,"<"&X26,Форма2!$C$29:$C$38,">="&X26),MATCH(X$4,Форма2!$E$2:$K$2,0)),"---") -> --- | AG26: =IF(Y26,INDEX(Форма2!$E$29:$K$38,SUMIFS(Форма2!$A$29:$A$38,Форма2!$B$29:$B$38,"<"&Y26,Форма2!$C$29:$C$38,">="&Y26),MATCH(Y$4,Форма2!$E$2:$K$2,0)),"---") -> --- | AH26: =IF(Z26,INDEX(Форма2!$E$29:$K$38,SUMIFS(Форма2!$A$29:$A$38,Форма2!$B$29:$B$38,"<"&Z26,Форма2!$C$29:$C$38,">="&Z26),MATCH(Z$4,Форма2!$E$2:$K$2,0)),"---") -> --- | AI26: =IF(AA26,INDEX(Форма2!$E$29:$K$38,SUMIFS(Форма2!$A$29:$A$38,Форма2!$B$29:$B$38,"<"&AA26,Форма2!$C$29:$C$38,">="&AA26),MATCH(AA$4,Форма2!$E$2:$K$2,0)),"---") -> --- | AJ26: =SUM((($U26:$AA26)>Форма2!$B$40:$B$49)*(($U26:$AA26)<=Форма2!$C$40:$C$49)*(Форма2!$E$40:$K$49)) -> 0.35 | AK26: =IF(AJ26>=AJ$3,AK$3,INDEX(Форма3!$F$4:$J$4,,MAX(IFERROR(MATCH(RIGHT(AC26:AI26,2),Форма3!$F$4:$J$4,0),0)))) -> ЛУ | AL26: =SUM((($U26:$AA26)>Форма2!$B$7:$B$16)*(($U26:$AA26)<=Форма2!$C$7:$C$16)*(Форма2!$E$7:$K$16)) -> 0.1333333333 | AM26: 0 | AN26: =SUMIFS(Потребители!D:D,Потребители!$B:$B,$B26) -> 0 | AO26: =SUMIFS(Потребители!E:E,Потребители!$B:$B,$B26) -> 0 | AP26: 0 | AQ26: =SUMIFS(Потребители!G:G,Потребители!$B:$B,$B26) -> 0 | AR26: =SUMIFS(Потребители!H:H,Потребители!$B:$B,$B26) -> 0 | AT26: 68200 | AU26: =IF($AB26,MROUND(SUMIFS($I26:$K26,$I$3:$K$3,$AK26)*$AL26*Форма1!$E$45,10),0) -> 18030 | AV26: =IF($AB26,FLOOR(SUM($AQ26:$AR26*Форма1!$E$40:$F$40)*($AB26/Форма1!$E$42),10),0) -> 0 | AW26: =IF($AB26,MROUND(SUMIFS($I26:$K26,$I$3:$K$3,$AK26)*Форма1!$F$45*$AL26,10),0) -> 36060 | AX26: =IF($AB26,MROUND(SUMIFS($I26:$K26,$I$3:$K$3,$AK26)*Форма1!$G$45*$AL26,10),0) -> 14110 | AZ26: 705600 | BA26: =$AB26*Форма1!$E$50 -> 705600 | BB26: =IF($AB26>Форма1!$E$53,-CUMIPMT(Форма1!$E$55,ROUND($AB26/Форма1!$E$53*Форма1!$E$54,0),$AB26,1,ROUND($AB26/Форма1!$E$53*Форма1!$E$54,0),0),0) -> 0 | BC26: =MROUND(SUM(Форма1!$E$38:$F$38*AQ26:AR26)/365*($AB26/Форма1!$E$58),10) -> 0 | BF26: 0 | BG26: =IF($AB26,MROUND(SUM($AN26:$AO26*Форма1!$K$40:$L$40),10),0) -> 0 | BL26: 0
A27: "Девятовка" | B27: Т26 | C27: ДC | D27: --- | E27: М3 | F27: Т26 | G27: --- | H27: 3 | I27: 60 | J27: =CHOOSE(Форма1!$M$22,IF(AVERAGEIFS(СтруктураСети!$G:$G,СтруктураСети!$H:$H,$B27)*Форма1!$M$23>I27,I27,AVERAGEIFS(СтруктураСети!$G:$G,СтруктураСети!$H:$H,$B27)*Форма1!$M$23),IF(VLOOKUP(C27,Форма1!$K$17:$M$20,3,0)*I27*Форма1!$M$23>I27,I27,VLOOKUP(C27,Форма1!$K$17:$M$20,3,0)*I27*Форма1!$M$23)) -> 14.4 | K27: =$J27*Форма1!$M$24 -> 3.6 | L27: 6 | M27: =COUNTIFS(Дефекты1!$A:$A,$B27,Дефекты1!$E:$E,M$4) -> 2 | N27: =COUNTIFS(Дефекты1!$A:$A,$B27,Дефекты1!$E:$E,N$4) -> 0 | O27: =COUNTIFS(Дефекты1!$A:$A,$B27,Дефекты1!$E:$E,O$4) -> 2 | P27: =COUNTIFS(Дефекты1!$A:$A,$B27,Дефекты1!$E:$E,P$4) -> 0 | Q27: =COUNTIFS(Дефекты1!$A:$A,$B27,Дефекты1!$E:$E,Q$4) -> 0 | R27: =COUNTIFS(Дефекты1!$A:$A,$B27,Дефекты1!$E:$E,R$4) -> 2 | S27: =COUNTIFS(Дефекты1!$A:$A,$B27,Дефекты1!$E:$E,S$4) -> 0 | T27: 100 | U27: 33.33333333 | V27: 0 | W27: 33.33333333 | X27: 0 | Y27: 0 | Z27: 33.33333333 | AA27: 0 | AB27: =IF(T27,IF(OR(NOT(ISERROR(MATCH(AB$3,$AC27:$AI27,0))),AJ27>=AJ$3),VLOOKUP(REPLACE(AB$3,6,2,$C27),Форма3!$M$17:$N$62,2,0)*$I27,SUM(MMULT((AC27:AI27=Форма3!$M$17:$M$62)*(Форма3!$N$17:$N$62),(TRANSPOSE(RIGHT(AC27:AI27,2))=($I$3:$K$3))*($I27:$K27)))),0) -> 3744000 | AC27: =IF(U27,INDEX(Форма2!$E$29:$K$38,SUMIFS(Форма2!$A$29:$A$38,Форма2!$B$29:$B$38,"<"&U27,Форма2!$C$29:$C$38,">="&U27),MATCH(U$4,Форма2!$E$2:$K$2,0)),"---") -> РМНТ-ЛУ | AD27: =IF(V27,INDEX(Форма2!$E$29:$K$38,SUMIFS(Форма2!$A$29:$A$38,Форма2!$B$29:$B$38,"<"&V27,Форма2!$C$29:$C$38,">="&V27),MATCH(V$4,Форма2!$E$2:$K$2,0)),"---") -> --- | AE27: =IF(W27,INDEX(Форма2!$E$29:$K$38,SUMIFS(Форма2!$A$29:$A$38,Форма2!$B$29:$B$38,"<"&W27,Форма2!$C$29:$C$38,">="&W27),MATCH(W$4,Форма2!$E$2:$K$2,0)),"---") -> УСТР-ЛТ | AF27: =IF(X27,INDEX(Форма2!$E$29:$K$38,SUMIFS(Форма2!$A$29:$A$38,Форма2!$B$29:$B$38,"<"&X27,Форма2!$C$29:$C$38,">="&X27),MATCH(X$4,Форма2!$E$2:$K$2,0)),"---") -> --- | AG27: =IF(Y27,INDEX(Форма2!$E$29:$K$38,SUMIFS(Форма2!$A$29:$A$38,Форма2!$B$29:$B$38,"<"&Y27,Форма2!$C$29:$C$38,">="&Y27),MATCH(Y$4,Форма2!$E$2:$K$2,0)),"---") -> --- | AH27: =IF(Z27,INDEX(Форма2!$E$29:$K$38,SUMIFS(Форма2!$A$29:$A$38,Форма2!$B$29:$B$38,"<"&Z27,Форма2!$C$29:$C$38,">="&Z27),MATCH(Z$4,Форма2!$E$2:$K$2,0)),"---") -> --- | AI27: =IF(AA27,INDEX(Форма2!$E$29:$K$38,SUMIFS(Форма2!$A$29:$A$38,Форма2!$B$29:$B$38,"<"&AA27,Форма2!$C$29:$C$38,">="&AA27),MATCH(AA$4,Форма2!$E$2:$K$2,0)),"---") -> --- | AJ27: =SUM((($U27:$AA27)>Форма2!$B$40:$B$49)*(($U27:$AA27)<=Форма2!$C$40:$C$49)*(Форма2!$E$40:$K$49)) -> 0.75 | AK27: =IF(AJ27>=AJ$3,AK$3,INDEX(Форма3!$F$4:$J$4,,MAX(IFERROR(MATCH(RIGHT(AC27:AI27,2),Форма3!$F$4:$J$4,0),0)))) -> ЛТ | AL27: =SUM((($U27:$AA27)>Форма2!$B$7:$B$16)*(($U27:$AA27)<=Форма2!$C$7:$C$16)*(Форма2!$E$7:$K$16)) -> 0.2047619048 | AM27: 193 | AN27: =SUMIFS(Потребители!D:D,Потребители!$B:$B,$B27) -> 193 | AO27: =SUMIFS(Потребители!E:E,Потребители!$B:$B,$B27) -> 0 | AP27: 6480.94 | AQ27: =SUMIFS(Потребители!G:G,Потребители!$B:$B,$B27) -> 6480.94 | AR27: =SUMIFS(Потребители!H:H,Потребители!$B:$B,$B27) -> 0 | AT27: 256680 | AU27: =IF($AB27,MROUND(SUMIFS($I27:$K27,$I$3:$K$3,$AK27)*$AL27*Форма1!$E$45,10),0) -> 67820 | AV27: =IF($AB27,FLOOR(SUM($AQ27:$AR27*Форма1!$E$40:$F$40)*($AB27/Форма1!$E$42),10),0) -> 160 | AW27: =IF($AB27,MROUND(SUMIFS($I27:$K27,$I$3:$K$3,$AK27)*Форма1!$F$45*$AL27,10),0) -> 135630 | AX27: =IF($AB27,MROUND(SUMIFS($I27:$K27,$I$3:$K$3,$AK27)*Форма1!$G$45*$AL27,10),0) -> 53070 | AZ27: 1125400 | BA27: =$AB27*Форма1!$E$50 -> 1123200 | BB27: =IF($AB27>Форма1!$E$53,-CUMIPMT(Форма1!$E$55,ROUND($AB27/Форма1!$E$53*Форма1!$E$54,0),$AB27,1,ROUND($AB27/Форма1!$E$53*Форма1!$E$54,0),0),0) -> 0 | BC27: =MROUND(SUM(Форма1!$E$38:$F$38*AQ27:AR27)/365*($AB27/Форма1!$E$58),10) -> 2200 | BF27: 3860000 | BG27: =IF($AB27,MROUND(SUM($AN27:$AO27*Форма1!$K$40:$L$40),10),0) -> 3860000 | BL27: 0
A28: "Девятовка" | B28: Т27 | C28: ДC | D28: --- | E28: М3 | F28: Т27 | G28: --- | H28: 3 | I28: 172 | J28: =CHOOSE(Форма1!$M$22,IF(AVERAGEIFS(СтруктураСети!$G:$G,СтруктураСети!$H:$H,$B28)*Форма1!$M$23>I28,I28,AVERAGEIFS(СтруктураСети!$G:$G,СтруктураСети!$H:$H,$B28)*Форма1!$M$23),IF(VLOOKUP(C28,Форма1!$K$17:$M$20,3,0)*I28*Форма1!$M$23>I28,I28,VLOOKUP(C28,Форма1!$K$17:$M$20,3,0)*I28*Форма1!$M$23)) -> 41.28 | K28: =$J28*Форма1!$M$24 -> 10.32 | L28: 3 | M28: =COUNTIFS(Дефекты1!$A:$A,$B28,Дефекты1!$E:$E,M$4) -> 0 | N28: =COUNTIFS(Дефекты1!$A:$A,$B28,Дефекты1!$E:$E,N$4) -> 0 | O28: =COUNTIFS(Дефекты1!$A:$A,$B28,Дефекты1!$E:$E,O$4) -> 3 | P28: =COUNTIFS(Дефекты1!$A:$A,$B28,Дефекты1!$E:$E,P$4) -> 0 | Q28: =COUNTIFS(Дефекты1!$A:$A,$B28,Дефекты1!$E:$E,Q$4) -> 0 | R28: =COUNTIFS(Дефекты1!$A:$A,$B28,Дефекты1!$E:$E,R$4) -> 0 | S28: =COUNTIFS(Дефекты1!$A:$A,$B28,Дефекты1!$E:$E,S$4) -> 0 | T28: 17.44186047 | U28: 0 | V28: 0 | W28: 17.44186047 | X28: 0 | Y28: 0 | Z28: 0 | AA28: 0 | AB28: =IF(T28,IF(OR(NOT(ISERROR(MATCH(AB$3,$AC28:$AI28,0))),AJ28>=AJ$3),VLOOKUP(REPLACE(AB$3,6,2,$C28),Форма3!$M$17:$N$62,2,0)*$I28,SUM(MMULT((AC28:AI28=Форма3!$M$17:$M$62)*(Форма3!$N$17:$N$62),(TRANSPOSE(RIGHT(AC28:AI28,2))=($I$3:$K$3))*($I28:$K28)))),0) -> 6604800 | AC28: =IF(U28,INDEX(Форма2!$E$29:$K$38,SUMIFS(Форма2!$A$29:$A$38,Форма2!$B$29:$B$38,"<"&U28,Форма2!$C$29:$C$38,">="&U28),MATCH(U$4,Форма2!$E$2:$K$2,0)),"---") -> --- | AD28: =IF(V28,INDEX(Форма2!$E$29:$K$38,SUMIFS(Форма2!$A$29:$A$38,Форма2!$B$29:$B$38,"<"&V28,Форма2!$C$29:$C$38,">="&V28),MATCH(V$4,Форма2!$E$2:$K$2,0)),"---") -> --- | AE28: =IF(W28,INDEX(Форма2!$E$29:$K$38,SUMIFS(Форма2!$A$29:$A$38,Форма2!$B$29:$B$38,"<"&W28,Форма2!$C$29:$C$38,">="&W28),MATCH(W$4,Форма2!$E$2:$K$2,0)),"---") -> УСТР-ЛТ | AF28: =IF(X28,INDEX(Форма2!$E$29:$K$38,SUMIFS(Форма2!$A$29:$A$38,Форма2!$B$29:$B$38,"<"&X28,Форма2!$C$29:$C$38,">="&X28),MATCH(X$4,Форма2!$E$2:$K$2,0)),"---") -> --- | AG28: =IF(Y28,INDEX(Форма2!$E$29:$K$38,SUMIFS(Форма2!$A$29:$A$38,Форма2!$B$29:$B$38,"<"&Y28,Форма2!$C$29:$C$38,">="&Y28),MATCH(Y$4,Форма2!$E$2:$K$2,0)),"---") -> --- | AH28: =IF(Z28,INDEX(Форма2!$E$29:$K$38,SUMIFS(Форма2!$A$29:$A$38,Форма2!$B$29:$B$38,"<"&Z28,Форма2!$C$29:$C$38,">="&Z28),MATCH(Z$4,Форма2!$E$2:$K$2,0)),"---") -> --- | AI28: =IF(AA28,INDEX(Форма2!$E$29:$K$38,SUMIFS(Форма2!$A$29:$A$38,Форма2!$B$29:$B$38,"<"&AA28,Форма2!$C$29:$C$38,">="&AA28),MATCH(AA$4,Форма2!$E$2:$K$2,0)),"---") -> --- | AJ28: =SUM((($U28:$AA28)>Форма2!$B$40:$B$49)*(($U28:$AA28)<=Форма2!$C$40:$C$49)*(Форма2!$E$40:$K$49)) -> 0.4 | AK28: =IF(AJ28>=AJ$3,AK$3,INDEX(Форма3!$F$4:$J$4,,MAX(IFERROR(MATCH(RIGHT(AC28:AI28,2),Форма3!$F$4:$J$4,0),0)))) -> ЛТ | AL28: =SUM((($U28:$AA28)>Форма2!$B$7:$B$16)*(($U28:$AA28)<=Форма2!$C$7:$C$16)*(Форма2!$E$7:$K$16)) -> 0.07142857143 | AM28: 184 | AN28: =SUMIFS(Потребители!D:D,Потребители!$B:$B,$B28) -> 184 | AO28: =SUMIFS(Потребители!E:E,Потребители!$B:$B,$B28) -> 0 | AP28: 6178.72 | AQ28: =SUMIFS(Потребители!G:G,Потребители!$B:$B,$B28) -> 6178.72 | AR28: =SUMIFS(Потребители!H:H,Потребители!$B:$B,$B28) -> 0 | AT28: 256790 | AU28: =IF($AB28,MROUND(SUMIFS($I28:$K28,$I$3:$K$3,$AK28)*$AL28*Форма1!$E$45,10),0) -> 67820 | AV28: =IF($AB28,FLOOR(SUM($AQ28:$AR28*Форма1!$E$40:$F$40)*($AB28/Форма1!$E$42),10),0) -> 270 | AW28: =IF($AB28,MROUND(SUMIFS($I28:$K28,$I$3:$K$3,$AK28)*Форма1!$F$45*$AL28,10),0) -> 135630 | AX28: =IF($AB28,MROUND(SUMIFS($I28:$K28,$I$3:$K$3,$AK28)*Форма1!$G$45*$AL28,10),0) -> 53070 | AZ28: 1985140 | BA28: =$AB28*Форма1!$E$50 -> 1981440 | BB28: =IF($AB28>Форма1!$E$53,-CUMIPMT(Форма1!$E$55,ROUND($AB28/Форма1!$E$53*Форма1!$E$54,0),$AB28,1,ROUND($AB28/Форма1!$E$53*Форма1!$E$54,0),0),0) -> 0 | BC28: =MROUND(SUM(Форма1!$E$38:$F$38*AQ28:AR28)/365*($AB28/Форма1!$E$58),10) -> 3700 | BF28: 3680000 | BG28: =IF($AB28,MROUND(SUM($AN28:$AO28*Форма1!$K$40:$L$40),10),0) -> 3680000 | BL28: 0
A29: "Девятовка" | B29: Т28 | C29: ДC | D29: --- | E29: М3 | F29: Т28 | G29: --- | H29: 3 | I29: 48 | J29: =CHOOSE(Форма1!$M$22,IF(AVERAGEIFS(СтруктураСети!$G:$G,СтруктураСети!$H:$H,$B29)*Форма1!$M$23>I29,I29,AVERAGEIFS(СтруктураСети!$G:$G,СтруктураСети!$H:$H,$B29)*Форма1!$M$23),IF(VLOOKUP(C29,Форма1!$K$17:$M$20,3,0)*I29*Форма1!$M$23>I29,I29,VLOOKUP(C29,Форма1!$K$17:$M$20,3,0)*I29*Форма1!$M$23)) -> 11.52 | K29: =$J29*Форма1!$M$24 -> 2.88 | L29: 10 | M29: =COUNTIFS(Дефекты1!$A:$A,$B29,Дефекты1!$E:$E,M$4) -> 3 | N29: =COUNTIFS(Дефекты1!$A:$A,$B29,Дефекты1!$E:$E,N$4) -> 0 | O29: =COUNTIFS(Дефекты1!$A:$A,$B29,Дефекты1!$E:$E,O$4) -> 1 | P29: =COUNTIFS(Дефекты1!$A:$A,$B29,Дефекты1!$E:$E,P$4) -> 0 | Q29: =COUNTIFS(Дефекты1!$A:$A,$B29,Дефекты1!$E:$E,Q$4) -> 0 | R29: =COUNTIFS(Дефекты1!$A:$A,$B29,Дефекты1!$E:$E,R$4) -> 6 | S29: =COUNTIFS(Дефекты1!$A:$A,$B29,Дефекты1!$E:$E,S$4) -> 0 | T29: 208.3333333 | U29: 62.5 | V29: 0 | W29: 20.83333333 | X29: 0 | Y29: 0 | Z29: 125 | AA29: 0 | AB29: =IF(T29,IF(OR(NOT(ISERROR(MATCH(AB$3,$AC29:$AI29,0))),AJ29>=AJ$3),VLOOKUP(REPLACE(AB$3,6,2,$C29),Форма3!$M$17:$N$62,2,0)*$I29,SUM(MMULT((AC29:AI29=Форма3!$M$17:$M$62)*(Форма3!$N$17:$N$62),(TRANSPOSE(RIGHT(AC29:AI29,2))=($I$3:$K$3))*($I29:$K29)))),0) -> 4147200 | AC29: =IF(U29,INDEX(Форма2!$E$29:$K$38,SUMIFS(Форма2!$A$29:$A$38,Форма2!$B$29:$B$38,"<"&U29,Форма2!$C$29:$C$38,">="&U29),MATCH(U$4,Форма2!$E$2:$K$2,0)),"---") -> РМНТ-ЛУ | AD29: =IF(V29,INDEX(Форма2!$E$29:$K$38,SUMIFS(Форма2!$A$29:$A$38,Форма2!$B$29:$B$38,"<"&V29,Форма2!$C$29:$C$38,">="&V29),MATCH(V$4,Форма2!$E$2:$K$2,0)),"---") -> --- | AE29: =IF(W29,INDEX(Форма2!$E$29:$K$38,SUMIFS(Форма2!$A$29:$A$38,Форма2!$B$29:$B$38,"<"&W29,Форма2!$C$29:$C$38,">="&W29),MATCH(W$4,Форма2!$E$2:$K$2,0)),"---") -> УСТР-ЛТ | AF29: =IF(X29,INDEX(Форма2!$E$29:$K$38,SUMIFS(Форма2!$A$29:$A$38,Форма2!$B$29:$B$38,"<"&X29,Форма2!$C$29:$C$38,">="&X29),MATCH(X$4,Форма2!$E$2:$K$2,0)),"---") -> --- | AG29: =IF(Y29,INDEX(Форма2!$E$29:$K$38,SUMIFS(Форма2!$A$29:$A$38,Форма2!$B$29:$B$38,"<"&Y29,Форма2!$C$29:$C$38,">="&Y29),MATCH(Y$4,Форма2!$E$2:$K$2,0)),"---") -> --- | AH29: =IF(Z29,INDEX(Форма2!$E$29:$K$38,SUMIFS(Форма2!$A$29:$A$38,Форма2!$B$29:$B$38,"<"&Z29,Форма2!$C$29:$C$38,">="&Z29),MATCH(Z$4,Форма2!$E$2:$K$2,0)),"---") -> РМНТ-ЛУ | AI29: =IF(AA29,INDEX(Форма2!$E$29:$K$38,SUMIFS(Форма2!$A$29:$A$38,Форма2!$B$29:$B$38,"<"&AA29,Форма2!$C$29:$C$38,">="&AA29),MATCH(AA$4,Форма2!$E$2:$K$2,0)),"---") -> --- | AJ29: =SUM((($U29:$AA29)>Форма2!$B$40:$B$49)*(($U29:$AA29)<=Форма2!$C$40:$C$49)*(Форма2!$E$40:$K$49)) -> 1.1 | AK29: =IF(AJ29>=AJ$3,AK$3,INDEX(Форма3!$F$4:$J$4,,MAX(IFERROR(MATCH(RIGHT(AC29:AI29,2),Форма3!$F$4:$J$4,0),0)))) -> ЛТ | AL29: =SUM((($U29:$AA29)>Форма2!$B$7:$B$16)*(($U29:$AA29)<=Форма2!$C$7:$C$16)*(Форма2!$E$7:$K$16)) -> 0.5714285714 | AM29: 209 | AN29: =SUMIFS(Потребители!D:D,Потребители!$B:$B,$B29) -> 209 | AO29: =SUMIFS(Потребители!E:E,Потребители!$B:$B,$B29) -> 0 | AP29: 7018.22 | AQ29: =SUMIFS(Потребители!G:G,Потребители!$B:$B,$B29) -> 7018.22 | AR29: =SUMIFS(Потребители!H:H,Потребители!$B:$B,$B29) -> 0 | AT29: 572900 | AU29: =IF($AB29,MROUND(SUMIFS($I29:$K29,$I$3:$K$3,$AK29)*$AL29*Форма1!$E$45,10),0) -> 151410 | AV29: =IF($AB29,FLOOR(SUM($AQ29:$AR29*Форма1!$E$40:$F$40)*($AB29/Форма1!$E$42),10),0) -> 190 | AW29: =IF($AB29,MROUND(SUMIFS($I29:$K29,$I$3:$K$3,$AK29)*Форма1!$F$45*$AL29,10),0) -> 302810 | AX29: =IF($AB29,MROUND(SUMIFS($I29:$K29,$I$3:$K$3,$AK29)*Форма1!$G$45*$AL29,10),0) -> 118490 | AZ29: 1246800 | BA29: =$AB29*Форма1!$E$50 -> 1244160 | BB29: =IF($AB29>Форма1!$E$53,-CUMIPMT(Форма1!$E$55,ROUND($AB29/Форма1!$E$53*Форма1!$E$54,0),$AB29,1,ROUND($AB29/Форма1!$E$53*Форма1!$E$54,0),0),0) -> 0 | BC29: =MROUND(SUM(Форма1!$E$38:$F$38*AQ29:AR29)/365*($AB29/Форма1!$E$58),10) -> 2640 | BF29: 4180000 | BG29: =IF($AB29,MROUND(SUM($AN29:$AO29*Форма1!$K$40:$L$40),10),0) -> 4180000 | BL29: 0
A30: "Девятовка" | B30: Т29 | C30: ДC | D30: --- | E30: М3 | F30: Т29 | G30: --- | H30: 3 | I30: 84 | J30: =CHOOSE(Форма1!$M$22,IF(AVERAGEIFS(СтруктураСети!$G:$G,СтруктураСети!$H:$H,$B30)*Форма1!$M$23>I30,I30,AVERAGEIFS(СтруктураСети!$G:$G,СтруктураСети!$H:$H,$B30)*Форма1!$M$23),IF(VLOOKUP(C30,Форма1!$K$17:$M$20,3,0)*I30*Форма1!$M$23>I30,I30,VLOOKUP(C30,Форма1!$K$17:$M$20,3,0)*I30*Форма1!$M$23)) -> 20.16 | K30: =$J30*Форма1!$M$24 -> 5.04 | L30: 32 | M30: =COUNTIFS(Дефекты1!$A:$A,$B30,Дефекты1!$E:$E,M$4) -> 0 | N30: =COUNTIFS(Дефекты1!$A:$A,$B30,Дефекты1!$E:$E,N$4) -> 1 | O30: =COUNTIFS(Дефекты1!$A:$A,$B30,Дефекты1!$E:$E,O$4) -> 18 | P30: =COUNTIFS(Дефекты1!$A:$A,$B30,Дефекты1!$E:$E,P$4) -> 0 | Q30: =COUNTIFS(Дефекты1!$A:$A,$B30,Дефекты1!$E:$E,Q$4) -> 0 | R30: =COUNTIFS(Дефекты1!$A:$A,$B30,Дефекты1!$E:$E,R$4) -> 13 | S30: =COUNTIFS(Дефекты1!$A:$A,$B30,Дефекты1!$E:$E,S$4) -> 0 | T30: 380.952381 | U30: 0 | V30: 11.9047619 | W30: 214.2857143 | X30: 0 | Y30: 0 | Z30: 154.7619048 | AA30: 0 | AB30: =IF(T30,IF(OR(NOT(ISERROR(MATCH(AB$3,$AC30:$AI30,0))),AJ30>=AJ$3),VLOOKUP(REPLACE(AB$3,6,2,$C30),Форма3!$M$17:$N$62,2,0)*$I30,SUM(MMULT((AC30:AI30=Форма3!$M$17:$M$62)*(Форма3!$N$17:$N$62),(TRANSPOSE(RIGHT(AC30:AI30,2))=($I$3:$K$3))*($I30:$K30)))),0) -> 84000000 | AC30: =IF(U30,INDEX(Форма2!$E$29:$K$38,SUMIFS(Форма2!$A$29:$A$38,Форма2!$B$29:$B$38,"<"&U30,Форма2!$C$29:$C$38,">="&U30),MATCH(U$4,Форма2!$E$2:$K$2,0)),"---") -> --- | AD30: =IF(V30,INDEX(Форма2!$E$29:$K$38,SUMIFS(Форма2!$A$29:$A$38,Форма2!$B$29:$B$38,"<"&V30,Форма2!$C$29:$C$38,">="&V30),MATCH(V$4,Форма2!$E$2:$K$2,0)),"---") -> РМНТ-ЛУ | AE30: =IF(W30,INDEX(Форма2!$E$29:$K$38,SUMIFS(Форма2!$A$29:$A$38,Форма2!$B$29:$B$38,"<"&W30,Форма2!$C$29:$C$38,">="&W30),MATCH(W$4,Форма2!$E$2:$K$2,0)),"---") -> УСТР-ЛТ | AF30: =IF(X30,INDEX(Форма2!$E$29:$K$38,SUMIFS(Форма2!$A$29:$A$38,Форма2!$B$29:$B$38,"<"&X30,Форма2!$C$29:$C$38,">="&X30),MATCH(X$4,Форма2!$E$2:$K$2,0)),"---") -> --- | AG30: =IF(Y30,INDEX(Форма2!$E$29:$K$38,SUMIFS(Форма2!$A$29:$A$38,Форма2!$B$29:$B$38,"<"&Y30,Форма2!$C$29:$C$38,">="&Y30),MATCH(Y$4,Форма2!$E$2:$K$2,0)),"---") -> --- | AH30: =IF(Z30,INDEX(Форма2!$E$29:$K$38,SUMIFS(Форма2!$A$29:$A$38,Форма2!$B$29:$B$38,"<"&Z30,Форма2!$C$29:$C$38,">="&Z30),MATCH(Z$4,Форма2!$E$2:$K$2,0)),"---") -> РМНТ-ЛТ | AI30: =IF(AA30,INDEX(Форма2!$E$29:$K$38,SUMIFS(Форма2!$A$29:$A$38,Форма2!$B$29:$B$38,"<"&AA30,Форма2!$C$29:$C$38,">="&AA30),MATCH(AA$4,Форма2!$E$2:$K$2,0)),"---") -> --- | AJ30: =SUM((($U30:$AA30)>Форма2!$B$40:$B$49)*(($U30:$AA30)<=Форма2!$C$40:$C$49)*(Форма2!$E$40:$K$49)) -> 1.3 | AK30: =IF(AJ30>=AJ$3,AK$3,INDEX(Форма3!$F$4:$J$4,,MAX(IFERROR(MATCH(RIGHT(AC30:AI30,2),Форма3!$F$4:$J$4,0),0)))) -> ИС | AL30: =SUM((($U30:$AA30)>Форма2!$B$7:$B$16)*(($U30:$AA30)<=Форма2!$C$7:$C$16)*(Форма2!$E$7:$K$16)) -> 1.092857143 | AM30: 284 | AN30: =SUMIFS(Потребители!D:D,Потребители!$B:$B,$B30) -> 284 | AO30: =SUMIFS(Потребители!E:E,Потребители!$B:$B,$B30) -> 0 | AP30: 9536.72 | AQ30: =SUMIFS(Потребители!G:G,Потребители!$B:$B,$B30) -> 9536.72 | AR30: =SUMIFS(Потребители!H:H,Потребители!$B:$B,$B30) -> 0 | AT30: 5300 | AU30: =IF($AB30,MROUND(SUMIFS($I30:$K30,$I$3:$K$3,$AK30)*$AL30*Форма1!$E$45,10),0) -> 0 | AV30: =IF($AB30,FLOOR(SUM($AQ30:$AR30*Форма1!$E$40:$F$40)*($AB30/Форма1!$E$42),10),0) -> 5300 | AW30: =IF($AB30,MROUND(SUMIFS($I30:$K30,$I$3:$K$3,$AK30)*Форма1!$F$45*$AL30,10),0) -> 0 | AX30: =IF($AB30,MROUND(SUMIFS($I30:$K30,$I$3:$K$3,$AK30)*Форма1!$G$45*$AL30,10),0) -> 0 | AZ30: 37297629.75 | BA30: =$AB30*Форма1!$E$50 -> 25200000 | BB30: =IF($AB30>Форма1!$E$53,-CUMIPMT(Форма1!$E$55,ROUND($AB30/Форма1!$E$53*Форма1!$E$54,0),$AB30,1,ROUND($AB30/Форма1!$E$53*Форма1!$E$54,0),0),0) -> 12025019.75 | BC30: =MROUND(SUM(Форма1!$E$38:$F$38*AQ30:AR30)/365*($AB30/Форма1!$E$58),10) -> 72610 | BF30: 5680000 | BG30: =IF($AB30,MROUND(SUM($AN30:$AO30*Форма1!$K$40:$L$40),10),0) -> 5680000 | BL30: 0
A31: "Девятовка" | B31: Т3 | C31: ДC | D31: --- | E31: М1 | F31: Т3 | G31: --- | H31: 3 | I31: 236 | J31: =CHOOSE(Форма1!$M$22,IF(AVERAGEIFS(СтруктураСети!$G:$G,СтруктураСети!$H:$H,$B31)*Форма1!$M$23>I31,I31,AVERAGEIFS(СтруктураСети!$G:$G,СтруктураСети!$H:$H,$B31)*Форма1!$M$23),IF(VLOOKUP(C31,Форма1!$K$17:$M$20,3,0)*I31*Форма1!$M$23>I31,I31,VLOOKUP(C31,Форма1!$K$17:$M$20,3,0)*I31*Форма1!$M$23)) -> 56.64 | K31: =$J31*Форма1!$M$24 -> 14.16 | L31: 4 | M31: =COUNTIFS(Дефекты1!$A:$A,$B31,Дефекты1!$E:$E,M$4) -> 1 | N31: =COUNTIFS(Дефекты1!$A:$A,$B31,Дефекты1!$E:$E,N$4) -> 0 | O31: =COUNTIFS(Дефекты1!$A:$A,$B31,Дефекты1!$E:$E,O$4) -> 0 | P31: =COUNTIFS(Дефекты1!$A:$A,$B31,Дефекты1!$E:$E,P$4) -> 0 | Q31: =COUNTIFS(Дефекты1!$A:$A,$B31,Дефекты1!$E:$E,Q$4) -> 0 | R31: =COUNTIFS(Дефекты1!$A:$A,$B31,Дефекты1!$E:$E,R$4) -> 3 | S31: =COUNTIFS(Дефекты1!$A:$A,$B31,Дефекты1!$E:$E,S$4) -> 0 | T31: 16.94915254 | U31: 4.237288136 | V31: 0 | W31: 0 | X31: 0 | Y31: 0 | Z31: 12.71186441 | AA31: 0 | AB31: =IF(T31,IF(OR(NOT(ISERROR(MATCH(AB$3,$AC31:$AI31,0))),AJ31>=AJ$3),VLOOKUP(REPLACE(AB$3,6,2,$C31),Форма3!$M$17:$N$62,2,0)*$I31,SUM(MMULT((AC31:AI31=Форма3!$M$17:$M$62)*(Форма3!$N$17:$N$62),(TRANSPOSE(RIGHT(AC31:AI31,2))=($I$3:$K$3))*($I31:$K31)))),0) -> 5664000 | AC31: =IF(U31,INDEX(Форма2!$E$29:$K$38,SUMIFS(Форма2!$A$29:$A$38,Форма2!$B$29:$B$38,"<"&U31,Форма2!$C$29:$C$38,">="&U31),MATCH(U$4,Форма2!$E$2:$K$2,0)),"---") -> РМНТ-ЛУ | AD31: =IF(V31,INDEX(Форма2!$E$29:$K$38,SUMIFS(Форма2!$A$29:$A$38,Форма2!$B$29:$B$38,"<"&V31,Форма2!$C$29:$C$38,">="&V31),MATCH(V$4,Форма2!$E$2:$K$2,0)),"---") -> --- | AE31: =IF(W31,INDEX(Форма2!$E$29:$K$38,SUMIFS(Форма2!$A$29:$A$38,Форма2!$B$29:$B$38,"<"&W31,Форма2!$C$29:$C$38,">="&W31),MATCH(W$4,Форма2!$E$2:$K$2,0)),"---") -> --- | AF31: =IF(X31,INDEX(Форма2!$E$29:$K$38,SUMIFS(Форма2!$A$29:$A$38,Форма2!$B$29:$B$38,"<"&X31,Форма2!$C$29:$C$38,">="&X31),MATCH(X$4,Форма2!$E$2:$K$2,0)),"---") -> --- | AG31: =IF(Y31,INDEX(Форма2!$E$29:$K$38,SUMIFS(Форма2!$A$29:$A$38,Форма2!$B$29:$B$38,"<"&Y31,Форма2!$C$29:$C$38,">="&Y31),MATCH(Y$4,Форма2!$E$2:$K$2,0)),"---") -> --- | AH31: =IF(Z31,INDEX(Форма2!$E$29:$K$38,SUMIFS(Форма2!$A$29:$A$38,Форма2!$B$29:$B$38,"<"&Z31,Форма2!$C$29:$C$38,">="&Z31),MATCH(Z$4,Форма2!$E$2:$K$2,0)),"---") -> --- | AI31: =IF(AA31,INDEX(Форма2!$E$29:$K$38,SUMIFS(Форма2!$A$29:$A$38,Форма2!$B$29:$B$38,"<"&AA31,Форма2!$C$29:$C$38,">="&AA31),MATCH(AA$4,Форма2!$E$2:$K$2,0)),"---") -> --- | AJ31: =SUM((($U31:$AA31)>Форма2!$B$40:$B$49)*(($U31:$AA31)<=Форма2!$C$40:$C$49)*(Форма2!$E$40:$K$49)) -> 0.35 | AK31: =IF(AJ31>=AJ$3,AK$3,INDEX(Форма3!$F$4:$J$4,,MAX(IFERROR(MATCH(RIGHT(AC31:AI31,2),Форма3!$F$4:$J$4,0),0)))) -> ЛУ | AL31: =SUM((($U31:$AA31)>Форма2!$B$7:$B$16)*(($U31:$AA31)<=Форма2!$C$7:$C$16)*(Форма2!$E$7:$K$16)) -> 0.1333333333 | AM31: 1 | AN31: =SUMIFS(Потребители!D:D,Потребители!$B:$B,$B31) -> 0 | AO31: =SUMIFS(Потребители!E:E,Потребители!$B:$B,$B31) -> 1 | AP31: 3024 | AQ31: =SUMIFS(Потребители!G:G,Потребители!$B:$B,$B31) -> 0 | AR31: =SUMIFS(Потребители!H:H,Потребители!$B:$B,$B31) -> 3024 | AT31: 166010 | AU31: =IF($AB31,MROUND(SUMIFS($I31:$K31,$I$3:$K$3,$AK31)*$AL31*Форма1!$E$45,10),0) -> 43420 | AV31: =IF($AB31,FLOOR(SUM($AQ31:$AR31*Форма1!$E$40:$F$40)*($AB31/Форма1!$E$42),10),0) -> 1760 | AW31: =IF($AB31,MROUND(SUMIFS($I31:$K31,$I$3:$K$3,$AK31)*Форма1!$F$45*$AL31,10),0) -> 86850 | AX31: =IF($AB31,MROUND(SUMIFS($I31:$K31,$I$3:$K$3,$AK31)*Форма1!$G$45*$AL31,10),0) -> 33980 | AZ31: 1723390 | BA31: =$AB31*Форма1!$E$50 -> 1699200 | BB31: =IF($AB31>Форма1!$E$53,-CUMIPMT(Форма1!$E$55,ROUND($AB31/Форма1!$E$53*Форма1!$E$54,0),$AB31,1,ROUND($AB31/Форма1!$E$53*Форма1!$E$54,0),0),0) -> 0 | BC31: =MROUND(SUM(Форма1!$E$38:$F$38*AQ31:AR31)/365*($AB31/Форма1!$E$58),10) -> 24190 | BF31: 16000 | BG31: =IF($AB31,MROUND(SUM($AN31:$AO31*Форма1!$K$40:$L$40),10),0) -> 16000 | BL31: 0
A32: "Девятовка" | B32: Т30 | C32: ДC | D32: --- | E32: М3 | F32: Т30 | G32: --- | H32: 3 | I32: 53 | J32: =CHOOSE(Форма1!$M$22,IF(AVERAGEIFS(СтруктураСети!$G:$G,СтруктураСети!$H:$H,$B32)*Форма1!$M$23>I32,I32,AVERAGEIFS(СтруктураСети!$G:$G,СтруктураСети!$H:$H,$B32)*Форма1!$M$23),IF(VLOOKUP(C32,Форма1!$K$17:$M$20,3,0)*I32*Форма1!$M$23>I32,I32,VLOOKUP(C32,Форма1!$K$17:$M$20,3,0)*I32*Форма1!$M$23)) -> 12.72 | K32: =$J32*Форма1!$M$24 -> 3.18 | L32: 7 | M32: =COUNTIFS(Дефекты1!$A:$A,$B32,Дефекты1!$E:$E,M$4) -> 3 | N32: =COUNTIFS(Дефекты1!$A:$A,$B32,Дефекты1!$E:$E,N$4) -> 0 | O32: =COUNTIFS(Дефекты1!$A:$A,$B32,Дефекты1!$E:$E,O$4) -> 0 | P32: =COUNTIFS(Дефекты1!$A:$A,$B32,Дефекты1!$E:$E,P$4) -> 0 | Q32: =COUNTIFS(Дефекты1!$A:$A,$B32,Дефекты1!$E:$E,Q$4) -> 0 | R32: =COUNTIFS(Дефекты1!$A:$A,$B32,Дефекты1!$E:$E,R$4) -> 4 | S32: =COUNTIFS(Дефекты1!$A:$A,$B32,Дефекты1!$E:$E,S$4) -> 0 | T32: 132.0754717 | U32: 56.60377358 | V32: 0 | W32: 0 | X32: 0 | Y32: 0 | Z32: 75.47169811 | AA32: 0 | AB32: =IF(T32,IF(OR(NOT(ISERROR(MATCH(AB$3,$AC32:$AI32,0))),AJ32>=AJ$3),VLOOKUP(REPLACE(AB$3,6,2,$C32),Форма3!$M$17:$N$62,2,0)*$I32,SUM(MMULT((AC32:AI32=Форма3!$M$17:$M$62)*(Форма3!$N$17:$N$62),(TRANSPOSE(RIGHT(AC32:AI32,2))=($I$3:$K$3))*($I32:$K32)))),0) -> 1272000 | AC32: =IF(U32,INDEX(Форма2!$E$29:$K$38,SUMIFS(Форма2!$A$29:$A$38,Форма2!$B$29:$B$38,"<"&U32,Форма2!$C$29:$C$38,">="&U32),MATCH(U$4,Форма2!$E$2:$K$2,0)),"---") -> РМНТ-ЛУ | AD32: =IF(V32,INDEX(Форма2!$E$29:$K$38,SUMIFS(Форма2!$A$29:$A$38,Форма2!$B$29:$B$38,"<"&V32,Форма2!$C$29:$C$38,">="&V32),MATCH(V$4,Форма2!$E$2:$K$2,0)),"---") -> --- | AE32: =IF(W32,INDEX(Форма2!$E$29:$K$38,SUMIFS(Форма2!$A$29:$A$38,Форма2!$B$29:$B$38,"<"&W32,Форма2!$C$29:$C$38,">="&W32),MATCH(W$4,Форма2!$E$2:$K$2,0)),"---") -> --- | AF32: =IF(X32,INDEX(Форма2!$E$29:$K$38,SUMIFS(Форма2!$A$29:$A$38,Форма2!$B$29:$B$38,"<"&X32,Форма2!$C$29:$C$38,">="&X32),MATCH(X$4,Форма2!$E$2:$K$2,0)),"---") -> --- | AG32: =IF(Y32,INDEX(Форма2!$E$29:$K$38,SUMIFS(Форма2!$A$29:$A$38,Форма2!$B$29:$B$38,"<"&Y32,Форма2!$C$29:$C$38,">="&Y32),MATCH(Y$4,Форма2!$E$2:$K$2,0)),"---") -> --- | AH32: =IF(Z32,INDEX(Форма2!$E$29:$K$38,SUMIFS(Форма2!$A$29:$A$38,Форма2!$B$29:$B$38,"<"&Z32,Форма2!$C$29:$C$38,">="&Z32),MATCH(Z$4,Форма2!$E$2:$K$2,0)),"---") -> --- | AI32: =IF(AA32,INDEX(Форма2!$E$29:$K$38,SUMIFS(Форма2!$A$29:$A$38,Форма2!$B$29:$B$38,"<"&AA32,Форма2!$C$29:$C$38,">="&AA32),MATCH(AA$4,Форма2!$E$2:$K$2,0)),"---") -> --- | AJ32: =SUM((($U32:$AA32)>Форма2!$B$40:$B$49)*(($U32:$AA32)<=Форма2!$C$40:$C$49)*(Форма2!$E$40:$K$49)) -> 0.35 | AK32: =IF(AJ32>=AJ$3,AK$3,INDEX(Форма3!$F$4:$J$4,,MAX(IFERROR(MATCH(RIGHT(AC32:AI32,2),Форма3!$F$4:$J$4,0),0)))) -> ЛУ | AL32: =SUM((($U32:$AA32)>Форма2!$B$7:$B$16)*(($U32:$AA32)<=Форма2!$C$7:$C$16)*(Форма2!$E$7:$K$16)) -> 0.4 | AM32: 173 | AN32: =SUMIFS(Потребители!D:D,Потребители!$B:$B,$B32) -> 173 | AO32: =SUMIFS(Потребители!E:E,Потребители!$B:$B,$B32) -> 0 | AP32: 5809.34 | AQ32: =SUMIFS(Потребители!G:G,Потребители!$B:$B,$B32) -> 5809.34 | AR32: =SUMIFS(Потребители!H:H,Потребители!$B:$B,$B32) -> 0 | AT32: 110710 | AU32: =IF($AB32,MROUND(SUMIFS($I32:$K32,$I$3:$K$3,$AK32)*$AL32*Форма1!$E$45,10),0) -> 29260 | AV32: =IF($AB32,FLOOR(SUM($AQ32:$AR32*Форма1!$E$40:$F$40)*($AB32/Форма1!$E$42),10),0) -> 40 | AW32: =IF($AB32,MROUND(SUMIFS($I32:$K32,$I$3:$K$3,$AK32)*Форма1!$F$45*$AL32,10),0) -> 58510 | AX32: =IF($AB32,MROUND(SUMIFS($I32:$K32,$I$3:$K$3,$AK32)*Форма1!$G$45*$AL32,10),0) -> 22900 | AZ32: 382270 | BA32: =$AB32*Форма1!$E$50 -> 381600 | BB32: =IF($AB32>Форма1!$E$53,-CUMIPMT(Форма1!$E$55,ROUND($AB32/Форма1!$E$53*Форма1!$E$54,0),$AB32,1,ROUND($AB32/Форма1!$E$53*Форма1!$E$54,0),0),0) -> 0 | BC32: =MROUND(SUM(Форма1!$E$38:$F$38*AQ32:AR32)/365*($AB32/Форма1!$E$58),10) -> 670 | BF32: 3460000 | BG32: =IF($AB32,MROUND(SUM($AN32:$AO32*Форма1!$K$40:$L$40),10),0) -> 3460000 | BL32: 0
A33: "Девятовка" | B33: Т31 | C33: ДC | D33: --- | E33: М3 | F33: Т31 | G33: --- | H33: 3 | I33: 76 | J33: =CHOOSE(Форма1!$M$22,IF(AVERAGEIFS(СтруктураСети!$G:$G,СтруктураСети!$H:$H,$B33)*Форма1!$M$23>I33,I33,AVERAGEIFS(СтруктураСети!$G:$G,СтруктураСети!$H:$H,$B33)*Форма1!$M$23),IF(VLOOKUP(C33,Форма1!$K$17:$M$20,3,0)*I33*Форма1!$M$23>I33,I33,VLOOKUP(C33,Форма1!$K$17:$M$20,3,0)*I33*Форма1!$M$23)) -> 18.24 | K33: =$J33*Форма1!$M$24 -> 4.56 | L33: 5 | M33: =COUNTIFS(Дефекты1!$A:$A,$B33,Дефекты1!$E:$E,M$4) -> 0 | N33: =COUNTIFS(Дефекты1!$A:$A,$B33,Дефекты1!$E:$E,N$4) -> 0 | O33: =COUNTIFS(Дефекты1!$A:$A,$B33,Дефекты1!$E:$E,O$4) -> 2 | P33: =COUNTIFS(Дефекты1!$A:$A,$B33,Дефекты1!$E:$E,P$4) -> 0 | Q33: =COUNTIFS(Дефекты1!$A:$A,$B33,Дефекты1!$E:$E,Q$4) -> 0 | R33: =COUNTIFS(Дефекты1!$A:$A,$B33,Дефекты1!$E:$E,R$4) -> 3 | S33: =COUNTIFS(Дефекты1!$A:$A,$B33,Дефекты1!$E:$E,S$4) -> 0 | T33: 65.78947368 | U33: 0 | V33: 0 | W33: 26.31578947 | X33: 0 | Y33: 0 | Z33: 39.47368421 | AA33: 0 | AB33: =IF(T33,IF(OR(NOT(ISERROR(MATCH(AB$3,$AC33:$AI33,0))),AJ33>=AJ$3),VLOOKUP(REPLACE(AB$3,6,2,$C33),Форма3!$M$17:$N$62,2,0)*$I33,SUM(MMULT((AC33:AI33=Форма3!$M$17:$M$62)*(Форма3!$N$17:$N$62),(TRANSPOSE(RIGHT(AC33:AI33,2))=($I$3:$K$3))*($I33:$K33)))),0) -> 2918400 | AC33: =IF(U33,INDEX(Форма2!$E$29:$K$38,SUMIFS(Форма2!$A$29:$A$38,Форма2!$B$29:$B$38,"<"&U33,Форма2!$C$29:$C$38,">="&U33),MATCH(U$4,Форма2!$E$2:$K$2,0)),"---") -> --- | AD33: =IF(V33,INDEX(Форма2!$E$29:$K$38,SUMIFS(Форма2!$A$29:$A$38,Форма2!$B$29:$B$38,"<"&V33,Форма2!$C$29:$C$38,">="&V33),MATCH(V$4,Форма2!$E$2:$K$2,0)),"---") -> --- | AE33: =IF(W33,INDEX(Форма2!$E$29:$K$38,SUMIFS(Форма2!$A$29:$A$38,Форма2!$B$29:$B$38,"<"&W33,Форма2!$C$29:$C$38,">="&W33),MATCH(W$4,Форма2!$E$2:$K$2,0)),"---") -> УСТР-ЛТ | AF33: =IF(X33,INDEX(Форма2!$E$29:$K$38,SUMIFS(Форма2!$A$29:$A$38,Форма2!$B$29:$B$38,"<"&X33,Форма2!$C$29:$C$38,">="&X33),MATCH(X$4,Форма2!$E$2:$K$2,0)),"---") -> --- | AG33: =IF(Y33,INDEX(Форма2!$E$29:$K$38,SUMIFS(Форма2!$A$29:$A$38,Форма2!$B$29:$B$38,"<"&Y33,Форма2!$C$29:$C$38,">="&Y33),MATCH(Y$4,Форма2!$E$2:$K$2,0)),"---") -> --- | AH33: =IF(Z33,INDEX(Форма2!$E$29:$K$38,SUMIFS(Форма2!$A$29:$A$38,Форма2!$B$29:$B$38,"<"&Z33,Форма2!$C$29:$C$38,">="&Z33),MATCH(Z$4,Форма2!$E$2:$K$2,0)),"---") -> --- | AI33: =IF(AA33,INDEX(Форма2!$E$29:$K$38,SUMIFS(Форма2!$A$29:$A$38,Форма2!$B$29:$B$38,"<"&AA33,Форма2!$C$29:$C$38,">="&AA33),MATCH(AA$4,Форма2!$E$2:$K$2,0)),"---") -> --- | AJ33: =SUM((($U33:$AA33)>Форма2!$B$40:$B$49)*(($U33:$AA33)<=Форма2!$C$40:$C$49)*(Форма2!$E$40:$K$49)) -> 0.4 | AK33: =IF(AJ33>=AJ$3,AK$3,INDEX(Форма3!$F$4:$J$4,,MAX(IFERROR(MATCH(RIGHT(AC33:AI33,2),Форма3!$F$4:$J$4,0),0)))) -> ЛТ | AL33: =SUM((($U33:$AA33)>Форма2!$B$7:$B$16)*(($U33:$AA33)<=Форма2!$C$7:$C$16)*(Форма2!$E$7:$K$16)) -> 0.1214285714 | AM33: 265 | AN33: =SUMIFS(Потребители!D:D,Потребители!$B:$B,$B33) -> 265 | AO33: =SUMIFS(Потребители!E:E,Потребители!$B:$B,$B33) -> 0 | AP33: 8898.7 | AQ33: =SUMIFS(Потребители!G:G,Потребители!$B:$B,$B33) -> 8898.7 | AR33: =SUMIFS(Потребители!H:H,Потребители!$B:$B,$B33) -> 0 | AT33: 192860 | AU33: =IF($AB33,MROUND(SUMIFS($I33:$K33,$I$3:$K$3,$AK33)*$AL33*Форма1!$E$45,10),0) -> 50940 | AV33: =IF($AB33,FLOOR(SUM($AQ33:$AR33*Форма1!$E$40:$F$40)*($AB33/Форма1!$E$42),10),0) -> 170 | AW33: =IF($AB33,MROUND(SUMIFS($I33:$K33,$I$3:$K$3,$AK33)*Форма1!$F$45*$AL33,10),0) -> 101880 | AX33: =IF($AB33,MROUND(SUMIFS($I33:$K33,$I$3:$K$3,$AK33)*Форма1!$G$45*$AL33,10),0) -> 39870 | AZ33: 877870 | BA33: =$AB33*Форма1!$E$50 -> 875520 | BB33: =IF($AB33>Форма1!$E$53,-CUMIPMT(Форма1!$E$55,ROUND($AB33/Форма1!$E$53*Форма1!$E$54,0),$AB33,1,ROUND($AB33/Форма1!$E$53*Форма1!$E$54,0),0),0) -> 0 | BC33: =MROUND(SUM(Форма1!$E$38:$F$38*AQ33:AR33)/365*($AB33/Форма1!$E$58),10) -> 2350 | BF33: 5300000 | BG33: =IF($AB33,MROUND(SUM($AN33:$AO33*Форма1!$K$40:$L$40),10),0) -> 5300000 | BL33: 0
A34: "Девятовка" | B34: Т32 | C34: ДC | D34: --- | E34: М3 | F34: Т32 | G34: --- | H34: 3 | I34: 120 | J34: =CHOOSE(Форма1!$M$22,IF(AVERAGEIFS(СтруктураСети!$G:$G,СтруктураСети!$H:$H,$B34)*Форма1!$M$23>I34,I34,AVERAGEIFS(СтруктураСети!$G:$G,СтруктураСети!$H:$H,$B34)*Форма1!$M$23),IF(VLOOKUP(C34,Форма1!$K$17:$M$20,3,0)*I34*Форма1!$M$23>I34,I34,VLOOKUP(C34,Форма1!$K$17:$M$20,3,0)*I34*Форма1!$M$23)) -> 28.8 | K34: =$J34*Форма1!$M$24 -> 7.2 | L34: 4 | M34: =COUNTIFS(Дефекты1!$A:$A,$B34,Дефекты1!$E:$E,M$4) -> 3 | N34: =COUNTIFS(Дефекты1!$A:$A,$B34,Дефекты1!$E:$E,N$4) -> 0 | O34: =COUNTIFS(Дефекты1!$A:$A,$B34,Дефекты1!$E:$E,O$4) -> 1 | P34: =COUNTIFS(Дефекты1!$A:$A,$B34,Дефекты1!$E:$E,P$4) -> 0 | Q34: =COUNTIFS(Дефекты1!$A:$A,$B34,Дефекты1!$E:$E,Q$4) -> 0 | R34: =COUNTIFS(Дефекты1!$A:$A,$B34,Дефекты1!$E:$E,R$4) -> 0 | S34: =COUNTIFS(Дефекты1!$A:$A,$B34,Дефекты1!$E:$E,S$4) -> 0 | T34: 33.33333333 | U34: 25 | V34: 0 | W34: 8.333333333 | X34: 0 | Y34: 0 | Z34: 0 | AA34: 0 | AB34: =IF(T34,IF(OR(NOT(ISERROR(MATCH(AB$3,$AC34:$AI34,0))),AJ34>=AJ$3),VLOOKUP(REPLACE(AB$3,6,2,$C34),Форма3!$M$17:$N$62,2,0)*$I34,SUM(MMULT((AC34:AI34=Форма3!$M$17:$M$62)*(Форма3!$N$17:$N$62),(TRANSPOSE(RIGHT(AC34:AI34,2))=($I$3:$K$3))*($I34:$K34)))),0) -> 7488000 | AC34: =IF(U34,INDEX(Форма2!$E$29:$K$38,SUMIFS(Форма2!$A$29:$A$38,Форма2!$B$29:$B$38,"<"&U34,Форма2!$C$29:$C$38,">="&U34),MATCH(U$4,Форма2!$E$2:$K$2,0)),"---") -> РМНТ-ЛУ | AD34: =IF(V34,INDEX(Форма2!$E$29:$K$38,SUMIFS(Форма2!$A$29:$A$38,Форма2!$B$29:$B$38,"<"&V34,Форма2!$C$29:$C$38,">="&V34),MATCH(V$4,Форма2!$E$2:$K$2,0)),"---") -> --- | AE34: =IF(W34,INDEX(Форма2!$E$29:$K$38,SUMIFS(Форма2!$A$29:$A$38,Форма2!$B$29:$B$38,"<"&W34,Форма2!$C$29:$C$38,">="&W34),MATCH(W$4,Форма2!$E$2:$K$2,0)),"---") -> УСТР-ЛТ | AF34: =IF(X34,INDEX(Форма2!$E$29:$K$38,SUMIFS(Форма2!$A$29:$A$38,Форма2!$B$29:$B$38,"<"&X34,Форма2!$C$29:$C$38,">="&X34),MATCH(X$4,Форма2!$E$2:$K$2,0)),"---") -> --- | AG34: =IF(Y34,INDEX(Форма2!$E$29:$K$38,SUMIFS(Форма2!$A$29:$A$38,Форма2!$B$29:$B$38,"<"&Y34,Форма2!$C$29:$C$38,">="&Y34),MATCH(Y$4,Форма2!$E$2:$K$2,0)),"---") -> --- | AH34: =IF(Z34,INDEX(Форма2!$E$29:$K$38,SUMIFS(Форма2!$A$29:$A$38,Форма2!$B$29:$B$38,"<"&Z34,Форма2!$C$29:$C$38,">="&Z34),MATCH(Z$4,Форма2!$E$2:$K$2,0)),"---") -> --- | AI34: =IF(AA34,INDEX(Форма2!$E$29:$K$38,SUMIFS(Форма2!$A$29:$A$38,Форма2!$B$29:$B$38,"<"&AA34,Форма2!$C$29:$C$38,">="&AA34),MATCH(AA$4,Форма2!$E$2:$K$2,0)),"---") -> --- | AJ34: =SUM((($U34:$AA34)>Форма2!$B$40:$B$49)*(($U34:$AA34)<=Форма2!$C$40:$C$49)*(Форма2!$E$40:$K$49)) -> 0.75 | AK34: =IF(AJ34>=AJ$3,AK$3,INDEX(Форма3!$F$4:$J$4,,MAX(IFERROR(MATCH(RIGHT(AC34:AI34,2),Форма3!$F$4:$J$4,0),0)))) -> ЛТ | AL34: =SUM((($U34:$AA34)>Форма2!$B$7:$B$16)*(($U34:$AA34)<=Форма2!$C$7:$C$16)*(Форма2!$E$7:$K$16)) -> 0.1547619048 | AM34: 300 | AN34: =SUMIFS(Потребители!D:D,Потребители!$B:$B,$B34) -> 300 | AO34: =SUMIFS(Потребители!E:E,Потребители!$B:$B,$B34) -> 0 | AP34: 10074 | AQ34: =SUMIFS(Потребители!G:G,Потребители!$B:$B,$B34) -> 10074 | AR34: =SUMIFS(Потребители!H:H,Потребители!$B:$B,$B34) -> 0 | AT34: 388260 | AU34: =IF($AB34,MROUND(SUMIFS($I34:$K34,$I$3:$K$3,$AK34)*$AL34*Форма1!$E$45,10),0) -> 102510 | AV34: =IF($AB34,FLOOR(SUM($AQ34:$AR34*Форма1!$E$40:$F$40)*($AB34/Форма1!$E$42),10),0) -> 490 | AW34: =IF($AB34,MROUND(SUMIFS($I34:$K34,$I$3:$K$3,$AK34)*Форма1!$F$45*$AL34,10),0) -> 205030 | AX34: =IF($AB34,MROUND(SUMIFS($I34:$K34,$I$3:$K$3,$AK34)*Форма1!$G$45*$AL34,10),0) -> 80230 | AZ34: 2253240 | BA34: =$AB34*Форма1!$E$50 -> 2246400 | BB34: =IF($AB34>Форма1!$E$53,-CUMIPMT(Форма1!$E$55,ROUND($AB34/Форма1!$E$53*Форма1!$E$54,0),$AB34,1,ROUND($AB34/Форма1!$E$53*Форма1!$E$54,0),0),0) -> 0 | BC34: =MROUND(SUM(Форма1!$E$38:$F$38*AQ34:AR34)/365*($AB34/Форма1!$E$58),10) -> 6840 | BF34: 6000000 | BG34: =IF($AB34,MROUND(SUM($AN34:$AO34*Форма1!$K$40:$L$40),10),0) -> 6000000 | BL34: 0
A35: "Девятовка" | B35: Т33 | C35: ДC | D35: --- | E35: М1 | F35: Т33 | G35: --- | H35: 3 | I35: 18 | J35: =CHOOSE(Форма1!$M$22,IF(AVERAGEIFS(СтруктураСети!$G:$G,СтруктураСети!$H:$H,$B35)*Форма1!$M$23>I35,I35,AVERAGEIFS(СтруктураСети!$G:$G,СтруктураСети!$H:$H,$B35)*Форма1!$M$23),IF(VLOOKUP(C35,Форма1!$K$17:$M$20,3,0)*I35*Форма1!$M$23>I35,I35,VLOOKUP(C35,Форма1!$K$17:$M$20,3,0)*I35*Форма1!$M$23)) -> 4.32 | K35: =$J35*Форма1!$M$24 -> 1.08 | L35: 5 | M35: =COUNTIFS(Дефекты1!$A:$A,$B35,Дефекты1!$E:$E,M$4) -> 1 | N35: =COUNTIFS(Дефекты1!$A:$A,$B35,Дефекты1!$E:$E,N$4) -> 0 | O35: =COUNTIFS(Дефекты1!$A:$A,$B35,Дефекты1!$E:$E,O$4) -> 3 | P35: =COUNTIFS(Дефекты1!$A:$A,$B35,Дефекты1!$E:$E,P$4) -> 0 | Q35: =COUNTIFS(Дефекты1!$A:$A,$B35,Дефекты1!$E:$E,Q$4) -> 0 | R35: =COUNTIFS(Дефекты1!$A:$A,$B35,Дефекты1!$E:$E,R$4) -> 1 | S35: =COUNTIFS(Дефекты1!$A:$A,$B35,Дефекты1!$E:$E,S$4) -> 0 | T35: 277.7777778 | U35: 55.55555556 | V35: 0 | W35: 166.6666667 | X35: 0 | Y35: 0 | Z35: 55.55555556 | AA35: 0 | AB35: =IF(T35,IF(OR(NOT(ISERROR(MATCH(AB$3,$AC35:$AI35,0))),AJ35>=AJ$3),VLOOKUP(REPLACE(AB$3,6,2,$C35),Форма3!$M$17:$N$62,2,0)*$I35,SUM(MMULT((AC35:AI35=Форма3!$M$17:$M$62)*(Форма3!$N$17:$N$62),(TRANSPOSE(RIGHT(AC35:AI35,2))=($I$3:$K$3))*($I35:$K35)))),0) -> 1123200 | AC35: =IF(U35,INDEX(Форма2!$E$29:$K$38,SUMIFS(Форма2!$A$29:$A$38,Форма2!$B$29:$B$38,"<"&U35,Форма2!$C$29:$C$38,">="&U35),MATCH(U$4,Форма2!$E$2:$K$2,0)),"---") -> РМНТ-ЛУ | AD35: =IF(V35,INDEX(Форма2!$E$29:$K$38,SUMIFS(Форма2!$A$29:$A$38,Форма2!$B$29:$B$38,"<"&V35,Форма2!$C$29:$C$38,">="&V35),MATCH(V$4,Форма2!$E$2:$K$2,0)),"---") -> --- | AE35: =IF(W35,INDEX(Форма2!$E$29:$K$38,SUMIFS(Форма2!$A$29:$A$38,Форма2!$B$29:$B$38,"<"&W35,Форма2!$C$29:$C$38,">="&W35),MATCH(W$4,Форма2!$E$2:$K$2,0)),"---") -> УСТР-ЛТ | AF35: =IF(X35,INDEX(Форма2!$E$29:$K$38,SUMIFS(Форма2!$A$29:$A$38,Форма2!$B$29:$B$38,"<"&X35,Форма2!$C$29:$C$38,">="&X35),MATCH(X$4,Форма2!$E$2:$K$2,0)),"---") -> --- | AG35: =IF(Y35,INDEX(Форма2!$E$29:$K$38,SUMIFS(Форма2!$A$29:$A$38,Форма2!$B$29:$B$38,"<"&Y35,Форма2!$C$29:$C$38,">="&Y35),MATCH(Y$4,Форма2!$E$2:$K$2,0)),"---") -> --- | AH35: =IF(Z35,INDEX(Форма2!$E$29:$K$38,SUMIFS(Форма2!$A$29:$A$38,Форма2!$B$29:$B$38,"<"&Z35,Форма2!$C$29:$C$38,">="&Z35),MATCH(Z$4,Форма2!$E$2:$K$2,0)),"---") -> --- | AI35: =IF(AA35,INDEX(Форма2!$E$29:$K$38,SUMIFS(Форма2!$A$29:$A$38,Форма2!$B$29:$B$38,"<"&AA35,Форма2!$C$29:$C$38,">="&AA35),MATCH(AA$4,Форма2!$E$2:$K$2,0)),"---") -> --- | AJ35: =SUM((($U35:$AA35)>Форма2!$B$40:$B$49)*(($U35:$AA35)<=Форма2!$C$40:$C$49)*(Форма2!$E$40:$K$49)) -> 0.75 | AK35: =IF(AJ35>=AJ$3,AK$3,INDEX(Форма3!$F$4:$J$4,,MAX(IFERROR(MATCH(RIGHT(AC35:AI35,2),Форма3!$F$4:$J$4,0),0)))) -> ЛТ | AL35: =SUM((($U35:$AA35)>Форма2!$B$7:$B$16)*(($U35:$AA35)<=Форма2!$C$7:$C$16)*(Форма2!$E$7:$K$16)) -> 0.9 | AM35: 101 | AN35: =SUMIFS(Потребители!D:D,Потребители!$B:$B,$B35) -> 101 | AO35: =SUMIFS(Потребители!E:E,Потребители!$B:$B,$B35) -> 0 | AP35: 3391.58 | AQ35: =SUMIFS(Потребители!G:G,Потребители!$B:$B,$B35) -> 3391.58 | AR35: =SUMIFS(Потребители!H:H,Потребители!$B:$B,$B35) -> 0 | AT35: 338270 | AU35: =IF($AB35,MROUND(SUMIFS($I35:$K35,$I$3:$K$3,$AK35)*$AL35*Форма1!$E$45,10),0) -> 89420 | AV35: =IF($AB35,FLOOR(SUM($AQ35:$AR35*Форма1!$E$40:$F$40)*($AB35/Форма1!$E$42),10),0) -> 20 | AW35: =IF($AB35,MROUND(SUMIFS($I35:$K35,$I$3:$K$3,$AK35)*Форма1!$F$45*$AL35,10),0) -> 178850 | AX35: =IF($AB35,MROUND(SUMIFS($I35:$K35,$I$3:$K$3,$AK35)*Форма1!$G$45*$AL35,10),0) -> 69980 | AZ35: 337310 | BA35: =$AB35*Форма1!$E$50 -> 336960 | BB35: =IF($AB35>Форма1!$E$53,-CUMIPMT(Форма1!$E$55,ROUND($AB35/Форма1!$E$53*Форма1!$E$54,0),$AB35,1,ROUND($AB35/Форма1!$E$53*Форма1!$E$54,0),0),0) -> 0 | BC35: =MROUND(SUM(Форма1!$E$38:$F$38*AQ35:AR35)/365*($AB35/Форма1!$E$58),10) -> 350 | BF35: 2020000 | BG35: =IF($AB35,MROUND(SUM($AN35:$AO35*Форма1!$K$40:$L$40),10),0) -> 2020000 | BL35: 0
A36: "Девятовка" | B36: Т34 | C36: ДC | D36: --- | E36: М1 | F36: Т34 | G36: --- | H36: 3 | I36: 91 | J36: =CHOOSE(Форма1!$M$22,IF(AVERAGEIFS(СтруктураСети!$G:$G,СтруктураСети!$H:$H,$B36)*Форма1!$M$23>I36,I36,AVERAGEIFS(СтруктураСети!$G:$G,СтруктураСети!$H:$H,$B36)*Форма1!$M$23),IF(VLOOKUP(C36,Форма1!$K$17:$M$20,3,0)*I36*Форма1!$M$23>I36,I36,VLOOKUP(C36,Форма1!$K$17:$M$20,3,0)*I36*Форма1!$M$23)) -> 21.84 | K36: =$J36*Форма1!$M$24 -> 5.46 | L36: 6 | M36: =COUNTIFS(Дефекты1!$A:$A,$B36,Дефекты1!$E:$E,M$4) -> 3 | N36: =COUNTIFS(Дефекты1!$A:$A,$B36,Дефекты1!$E:$E,N$4) -> 0 | O36: =COUNTIFS(Дефекты1!$A:$A,$B36,Дефекты1!$E:$E,O$4) -> 1 | P36: =COUNTIFS(Дефекты1!$A:$A,$B36,Дефекты1!$E:$E,P$4) -> 0 | Q36: =COUNTIFS(Дефекты1!$A:$A,$B36,Дефекты1!$E:$E,Q$4) -> 0 | R36: =COUNTIFS(Дефекты1!$A:$A,$B36,Дефекты1!$E:$E,R$4) -> 2 | S36: =COUNTIFS(Дефекты1!$A:$A,$B36,Дефекты1!$E:$E,S$4) -> 0 | T36: 65.93406593 | U36: 32.96703297 | V36: 0 | W36: 10.98901099 | X36: 0 | Y36: 0 | Z36: 21.97802198 | AA36: 0 | AB36: =IF(T36,IF(OR(NOT(ISERROR(MATCH(AB$3,$AC36:$AI36,0))),AJ36>=AJ$3),VLOOKUP(REPLACE(AB$3,6,2,$C36),Форма3!$M$17:$N$62,2,0)*$I36,SUM(MMULT((AC36:AI36=Форма3!$M$17:$M$62)*(Форма3!$N$17:$N$62),(TRANSPOSE(RIGHT(AC36:AI36,2))=($I$3:$K$3))*($I36:$K36)))),0) -> 5678400 | AC36: =IF(U36,INDEX(Форма2!$E$29:$K$38,SUMIFS(Форма2!$A$29:$A$38,Форма2!$B$29:$B$38,"<"&U36,Форма2!$C$29:$C$38,">="&U36),MATCH(U$4,Форма2!$E$2:$K$2,0)),"---") -> РМНТ-ЛУ | AD36: =IF(V36,INDEX(Форма2!$E$29:$K$38,SUMIFS(Форма2!$A$29:$A$38,Форма2!$B$29:$B$38,"<"&V36,Форма2!$C$29:$C$38,">="&V36),MATCH(V$4,Форма2!$E$2:$K$2,0)),"---") -> --- | AE36: =IF(W36,INDEX(Форма2!$E$29:$K$38,SUMIFS(Форма2!$A$29:$A$38,Форма2!$B$29:$B$38,"<"&W36,Форма2!$C$29:$C$38,">="&W36),MATCH(W$4,Форма2!$E$2:$K$2,0)),"---") -> УСТР-ЛТ | AF36: =IF(X36,INDEX(Форма2!$E$29:$K$38,SUMIFS(Форма2!$A$29:$A$38,Форма2!$B$29:$B$38,"<"&X36,Форма2!$C$29:$C$38,">="&X36),MATCH(X$4,Форма2!$E$2:$K$2,0)),"---") -> --- | AG36: =IF(Y36,INDEX(Форма2!$E$29:$K$38,SUMIFS(Форма2!$A$29:$A$38,Форма2!$B$29:$B$38,"<"&Y36,Форма2!$C$29:$C$38,">="&Y36),MATCH(Y$4,Форма2!$E$2:$K$2,0)),"---") -> --- | AH36: =IF(Z36,INDEX(Форма2!$E$29:$K$38,SUMIFS(Форма2!$A$29:$A$38,Форма2!$B$29:$B$38,"<"&Z36,Форма2!$C$29:$C$38,">="&Z36),MATCH(Z$4,Форма2!$E$2:$K$2,0)),"---") -> --- | AI36: =IF(AA36,INDEX(Форма2!$E$29:$K$38,SUMIFS(Форма2!$A$29:$A$38,Форма2!$B$29:$B$38,"<"&AA36,Форма2!$C$29:$C$38,">="&AA36),MATCH(AA$4,Форма2!$E$2:$K$2,0)),"---") -> --- | AJ36: =SUM((($U36:$AA36)>Форма2!$B$40:$B$49)*(($U36:$AA36)<=Форма2!$C$40:$C$49)*(Форма2!$E$40:$K$49)) -> 0.75 | AK36: =IF(AJ36>=AJ$3,AK$3,INDEX(Форма3!$F$4:$J$4,,MAX(IFERROR(MATCH(RIGHT(AC36:AI36,2),Форма3!$F$4:$J$4,0),0)))) -> ЛТ | AL36: =SUM((($U36:$AA36)>Форма2!$B$7:$B$16)*(($U36:$AA36)<=Форма2!$C$7:$C$16)*(Форма2!$E$7:$K$16)) -> 0.2047619048 | AM36: 308 | AN36: =SUMIFS(Потребители!D:D,Потребители!$B:$B,$B36) -> 308 | AO36: =SUMIFS(Потребители!E:E,Потребители!$B:$B,$B36) -> 0 | AP36: 10342.64 | AQ36: =SUMIFS(Потребители!G:G,Потребители!$B:$B,$B36) -> 10342.64 | AR36: =SUMIFS(Потребители!H:H,Потребители!$B:$B,$B36) -> 0 | AT36: 389450 | AU36: =IF($AB36,MROUND(SUMIFS($I36:$K36,$I$3:$K$3,$AK36)*$AL36*Форма1!$E$45,10),0) -> 102860 | AV36: =IF($AB36,FLOOR(SUM($AQ36:$AR36*Форма1!$E$40:$F$40)*($AB36/Форма1!$E$42),10),0) -> 380 | AW36: =IF($AB36,MROUND(SUMIFS($I36:$K36,$I$3:$K$3,$AK36)*Форма1!$F$45*$AL36,10),0) -> 205710 | AX36: =IF($AB36,MROUND(SUMIFS($I36:$K36,$I$3:$K$3,$AK36)*Форма1!$G$45*$AL36,10),0) -> 80500 | AZ36: 1708840 | BA36: =$AB36*Форма1!$E$50 -> 1703520 | BB36: =IF($AB36>Форма1!$E$53,-CUMIPMT(Форма1!$E$55,ROUND($AB36/Форма1!$E$53*Форма1!$E$54,0),$AB36,1,ROUND($AB36/Форма1!$E$53*Форма1!$E$54,0),0),0) -> 0 | BC36: =MROUND(SUM(Форма1!$E$38:$F$38*AQ36:AR36)/365*($AB36/Форма1!$E$58),10) -> 5320 | BF36: 6160000 | BG36: =IF($AB36,MROUND(SUM($AN36:$AO36*Форма1!$K$40:$L$40),10),0) -> 6160000 | BL36: 0
A37: "Девятовка" | B37: Т35 | C37: ДC | D37: --- | E37: М1 | F37: Т35 | G37: --- | H37: 3 | I37: 66 | J37: =CHOOSE(Форма1!$M$22,IF(AVERAGEIFS(СтруктураСети!$G:$G,СтруктураСети!$H:$H,$B37)*Форма1!$M$23>I37,I37,AVERAGEIFS(СтруктураСети!$G:$G,СтруктураСети!$H:$H,$B37)*Форма1!$M$23),IF(VLOOKUP(C37,Форма1!$K$17:$M$20,3,0)*I37*Форма1!$M$23>I37,I37,VLOOKUP(C37,Форма1!$K$17:$M$20,3,0)*I37*Форма1!$M$23)) -> 15.84 | K37: =$J37*Форма1!$M$24 -> 3.96 | L37: 4 | M37: =COUNTIFS(Дефекты1!$A:$A,$B37,Дефекты1!$E:$E,M$4) -> 1 | N37: =COUNTIFS(Дефекты1!$A:$A,$B37,Дефекты1!$E:$E,N$4) -> 1 | O37: =COUNTIFS(Дефекты1!$A:$A,$B37,Дефекты1!$E:$E,O$4) -> 2 | P37: =COUNTIFS(Дефекты1!$A:$A,$B37,Дефекты1!$E:$E,P$4) -> 0 | Q37: =COUNTIFS(Дефекты1!$A:$A,$B37,Дефекты1!$E:$E,Q$4) -> 0 | R37: =COUNTIFS(Дефекты1!$A:$A,$B37,Дефекты1!$E:$E,R$4) -> 0 | S37: =COUNTIFS(Дефекты1!$A:$A,$B37,Дефекты1!$E:$E,S$4) -> 0 | T37: 60.60606061 | U37: 15.15151515 | V37: 15.15151515 | W37: 30.3030303 | X37: 0 | Y37: 0 | Z37: 0 | AA37: 0 | AB37: =IF(T37,IF(OR(NOT(ISERROR(MATCH(AB$3,$AC37:$AI37,0))),AJ37>=AJ$3),VLOOKUP(REPLACE(AB$3,6,2,$C37),Форма3!$M$17:$N$62,2,0)*$I37,SUM(MMULT((AC37:AI37=Форма3!$M$17:$M$62)*(Форма3!$N$17:$N$62),(TRANSPOSE(RIGHT(AC37:AI37,2))=($I$3:$K$3))*($I37:$K37)))),0) -> 5702400 | AC37: =IF(U37,INDEX(Форма2!$E$29:$K$38,SUMIFS(Форма2!$A$29:$A$38,Форма2!$B$29:$B$38,"<"&U37,Форма2!$C$29:$C$38,">="&U37),MATCH(U$4,Форма2!$E$2:$K$2,0)),"---") -> РМНТ-ЛУ | AD37: =IF(V37,INDEX(Форма2!$E$29:$K$38,SUMIFS(Форма2!$A$29:$A$38,Форма2!$B$29:$B$38,"<"&V37,Форма2!$C$29:$C$38,">="&V37),MATCH(V$4,Форма2!$E$2:$K$2,0)),"---") -> РМНТ-ЛУ | AE37: =IF(W37,INDEX(Форма2!$E$29:$K$38,SUMIFS(Форма2!$A$29:$A$38,Форма2!$B$29:$B$38,"<"&W37,Форма2!$C$29:$C$38,">="&W37),MATCH(W$4,Форма2!$E$2:$K$2,0)),"---") -> УСТР-ЛТ | AF37: =IF(X37,INDEX(Форма2!$E$29:$K$38,SUMIFS(Форма2!$A$29:$A$38,Форма2!$B$29:$B$38,"<"&X37,Форма2!$C$29:$C$38,">="&X37),MATCH(X$4,Форма2!$E$2:$K$2,0)),"---") -> --- | AG37: =IF(Y37,INDEX(Форма2!$E$29:$K$38,SUMIFS(Форма2!$A$29:$A$38,Форма2!$B$29:$B$38,"<"&Y37,Форма2!$C$29:$C$38,">="&Y37),MATCH(Y$4,Форма2!$E$2:$K$2,0)),"---") -> --- | AH37: =IF(Z37,INDEX(Форма2!$E$29:$K$38,SUMIFS(Форма2!$A$29:$A$38,Форма2!$B$29:$B$38,"<"&Z37,Форма2!$C$29:$C$38,">="&Z37),MATCH(Z$4,Форма2!$E$2:$K$2,0)),"---") -> --- | AI37: =IF(AA37,INDEX(Форма2!$E$29:$K$38,SUMIFS(Форма2!$A$29:$A$38,Форма2!$B$29:$B$38,"<"&AA37,Форма2!$C$29:$C$38,">="&AA37),MATCH(AA$4,Форма2!$E$2:$K$2,0)),"---") -> --- | AJ37: =SUM((($U37:$AA37)>Форма2!$B$40:$B$49)*(($U37:$AA37)<=Форма2!$C$40:$C$49)*(Форма2!$E$40:$K$49)) -> 1.1 | AK37: =IF(AJ37>=AJ$3,AK$3,INDEX(Форма3!$F$4:$J$4,,MAX(IFERROR(MATCH(RIGHT(AC37:AI37,2),Форма3!$F$4:$J$4,0),0)))) -> ЛТ | AL37: =SUM((($U37:$AA37)>Форма2!$B$7:$B$16)*(($U37:$AA37)<=Форма2!$C$7:$C$16)*(Форма2!$E$7:$K$16)) -> 0.2547619048 | AM37: 223 | AN37: =SUMIFS(Потребители!D:D,Потребители!$B:$B,$B37) -> 223 | AO37: =SUMIFS(Потребители!E:E,Потребители!$B:$B,$B37) -> 0 | AP37: 7488.34 | AQ37: =SUMIFS(Потребители!G:G,Потребители!$B:$B,$B37) -> 7488.34 | AR37: =SUMIFS(Потребители!H:H,Потребители!$B:$B,$B37) -> 0 | AT37: 351360 | AU37: =IF($AB37,MROUND(SUMIFS($I37:$K37,$I$3:$K$3,$AK37)*$AL37*Форма1!$E$45,10),0) -> 92810 | AV37: =IF($AB37,FLOOR(SUM($AQ37:$AR37*Форма1!$E$40:$F$40)*($AB37/Форма1!$E$42),10),0) -> 280 | AW37: =IF($AB37,MROUND(SUMIFS($I37:$K37,$I$3:$K$3,$AK37)*Форма1!$F$45*$AL37,10),0) -> 185630 | AX37: =IF($AB37,MROUND(SUMIFS($I37:$K37,$I$3:$K$3,$AK37)*Форма1!$G$45*$AL37,10),0) -> 72640 | AZ37: 1714590 | BA37: =$AB37*Форма1!$E$50 -> 1710720 | BB37: =IF($AB37>Форма1!$E$53,-CUMIPMT(Форма1!$E$55,ROUND($AB37/Форма1!$E$53*Форма1!$E$54,0),$AB37,1,ROUND($AB37/Форма1!$E$53*Форма1!$E$54,0),0),0) -> 0 | BC37: =MROUND(SUM(Форма1!$E$38:$F$38*AQ37:AR37)/365*($AB37/Форма1!$E$58),10) -> 3870 | BF37: 4460000 | BG37: =IF($AB37,MROUND(SUM($AN37:$AO37*Форма1!$K$40:$L$40),10),0) -> 4460000 | BL37: 0
A38: "Девятовка" | B38: Т36 | C38: ДC | D38: --- | E38: М1 | F38: Т36 | G38: --- | H38: 3 | I38: 68 | J38: =CHOOSE(Форма1!$M$22,IF(AVERAGEIFS(СтруктураСети!$G:$G,СтруктураСети!$H:$H,$B38)*Форма1!$M$23>I38,I38,AVERAGEIFS(СтруктураСети!$G:$G,СтруктураСети!$H:$H,$B38)*Форма1!$M$23),IF(VLOOKUP(C38,Форма1!$K$17:$M$20,3,0)*I38*Форма1!$M$23>I38,I38,VLOOKUP(C38,Форма1!$K$17:$M$20,3,0)*I38*Форма1!$M$23)) -> 16.32 | K38: =$J38*Форма1!$M$24 -> 4.08 | L38: 8 | M38: =COUNTIFS(Дефекты1!$A:$A,$B38,Дефекты1!$E:$E,M$4) -> 2 | N38: =COUNTIFS(Дефекты1!$A:$A,$B38,Дефекты1!$E:$E,N$4) -> 0 | O38: =COUNTIFS(Дефекты1!$A:$A,$B38,Дефекты1!$E:$E,O$4) -> 1 | P38: =COUNTIFS(Дефекты1!$A:$A,$B38,Дефекты1!$E:$E,P$4) -> 0 | Q38: =COUNTIFS(Дефекты1!$A:$A,$B38,Дефекты1!$E:$E,Q$4) -> 0 | R38: =COUNTIFS(Дефекты1!$A:$A,$B38,Дефекты1!$E:$E,R$4) -> 5 | S38: =COUNTIFS(Дефекты1!$A:$A,$B38,Дефекты1!$E:$E,S$4) -> 0 | T38: 117.6470588 | U38: 29.41176471 | V38: 0 | W38: 14.70588235 | X38: 0 | Y38: 0 | Z38: 73.52941176 | AA38: 0 | AB38: =IF(T38,IF(OR(NOT(ISERROR(MATCH(AB$3,$AC38:$AI38,0))),AJ38>=AJ$3),VLOOKUP(REPLACE(AB$3,6,2,$C38),Форма3!$M$17:$N$62,2,0)*$I38,SUM(MMULT((AC38:AI38=Форма3!$M$17:$M$62)*(Форма3!$N$17:$N$62),(TRANSPOSE(RIGHT(AC38:AI38,2))=($I$3:$K$3))*($I38:$K38)))),0) -> 4243200 | AC38: =IF(U38,INDEX(Форма2!$E$29:$K$38,SUMIFS(Форма2!$A$29:$A$38,Форма2!$B$29:$B$38,"<"&U38,Форма2!$C$29:$C$38,">="&U38),MATCH(U$4,Форма2!$E$2:$K$2,0)),"---") -> РМНТ-ЛУ | AD38: =IF(V38,INDEX(Форма2!$E$29:$K$38,SUMIFS(Форма2!$A$29:$A$38,Форма2!$B$29:$B$38,"<"&V38,Форма2!$C$29:$C$38,">="&V38),MATCH(V$4,Форма2!$E$2:$K$2,0)),"---") -> --- | AE38: =IF(W38,INDEX(Форма2!$E$29:$K$38,SUMIFS(Форма2!$A$29:$A$38,Форма2!$B$29:$B$38,"<"&W38,Форма2!$C$29:$C$38,">="&W38),MATCH(W$4,Форма2!$E$2:$K$2,0)),"---") -> УСТР-ЛТ | AF38: =IF(X38,INDEX(Форма2!$E$29:$K$38,SUMIFS(Форма2!$A$29:$A$38,Форма2!$B$29:$B$38,"<"&X38,Форма2!$C$29:$C$38,">="&X38),MATCH(X$4,Форма2!$E$2:$K$2,0)),"---") -> --- | AG38: =IF(Y38,INDEX(Форма2!$E$29:$K$38,SUMIFS(Форма2!$A$29:$A$38,Форма2!$B$29:$B$38,"<"&Y38,Форма2!$C$29:$C$38,">="&Y38),MATCH(Y$4,Форма2!$E$2:$K$2,0)),"---") -> --- | AH38: =IF(Z38,INDEX(Форма2!$E$29:$K$38,SUMIFS(Форма2!$A$29:$A$38,Форма2!$B$29:$B$38,"<"&Z38,Форма2!$C$29:$C$38,">="&Z38),MATCH(Z$4,Форма2!$E$2:$K$2,0)),"---") -> --- | AI38: =IF(AA38,INDEX(Форма2!$E$29:$K$38,SUMIFS(Форма2!$A$29:$A$38,Форма2!$B$29:$B$38,"<"&AA38,Форма2!$C$29:$C$38,">="&AA38),MATCH(AA$4,Форма2!$E$2:$K$2,0)),"---") -> --- | AJ38: =SUM((($U38:$AA38)>Форма2!$B$40:$B$49)*(($U38:$AA38)<=Форма2!$C$40:$C$49)*(Форма2!$E$40:$K$49)) -> 0.75 | AK38: =IF(AJ38>=AJ$3,AK$3,INDEX(Форма3!$F$4:$J$4,,MAX(IFERROR(MATCH(RIGHT(AC38:AI38,2),Форма3!$F$4:$J$4,0),0)))) -> ЛТ | AL38: =SUM((($U38:$AA38)>Форма2!$B$7:$B$16)*(($U38:$AA38)<=Форма2!$C$7:$C$16)*(Форма2!$E$7:$K$16)) -> 0.3047619048 | AM38: 216 | AN38: =SUMIFS(Потребители!D:D,Потребители!$B:$B,$B38) -> 216 | AO38: =SUMIFS(Потребители!E:E,Потребители!$B:$B,$B38) -> 0 | AP38: 7253.28 | AQ38: =SUMIFS(Потребители!G:G,Потребители!$B:$B,$B38) -> 7253.28 | AR38: =SUMIFS(Потребители!H:H,Потребители!$B:$B,$B38) -> 0 | AT38: 432920 | AU38: =IF($AB38,MROUND(SUMIFS($I38:$K38,$I$3:$K$3,$AK38)*$AL38*Форма1!$E$45,10),0) -> 114400 | AV38: =IF($AB38,FLOOR(SUM($AQ38:$AR38*Форма1!$E$40:$F$40)*($AB38/Форма1!$E$42),10),0) -> 200 | AW38: =IF($AB38,MROUND(SUMIFS($I38:$K38,$I$3:$K$3,$AK38)*Форма1!$F$45*$AL38,10),0) -> 228790 | AX38: =IF($AB38,MROUND(SUMIFS($I38:$K38,$I$3:$K$3,$AK38)*Форма1!$G$45*$AL38,10),0) -> 89530 | AZ38: 1275750 | BA38: =$AB38*Форма1!$E$50 -> 1272960 | BB38: =IF($AB38>Форма1!$E$53,-CUMIPMT(Форма1!$E$55,ROUND($AB38/Форма1!$E$53*Форма1!$E$54,0),$AB38,1,ROUND($AB38/Форма1!$E$53*Форма1!$E$54,0),0),0) -> 0 | BC38: =MROUND(SUM(Форма1!$E$38:$F$38*AQ38:AR38)/365*($AB38/Форма1!$E$58),10) -> 2790 | BF38: 4320000 | BG38: =IF($AB38,MROUND(SUM($AN38:$AO38*Форма1!$K$40:$L$40),10),0) -> 4320000 | BL38: 0
A39: "Девятовка" | B39: Т37 | C39: ДC | D39: --- | E39: М1 | F39: Т37 | G39: --- | H39: 3 | I39: 20 | J39: =CHOOSE(Форма1!$M$22,IF(AVERAGEIFS(СтруктураСети!$G:$G,СтруктураСети!$H:$H,$B39)*Форма1!$M$23>I39,I39,AVERAGEIFS(СтруктураСети!$G:$G,СтруктураСети!$H:$H,$B39)*Форма1!$M$23),IF(VLOOKUP(C39,Форма1!$K$17:$M$20,3,0)*I39*Форма1!$M$23>I39,I39,VLOOKUP(C39,Форма1!$K$17:$M$20,3,0)*I39*Форма1!$M$23)) -> 4.8 | K39: =$J39*Форма1!$M$24 -> 1.2 | L39: 3 | M39: =COUNTIFS(Дефекты1!$A:$A,$B39,Дефекты1!$E:$E,M$4) -> 0 | N39: =COUNTIFS(Дефекты1!$A:$A,$B39,Дефекты1!$E:$E,N$4) -> 0 | O39: =COUNTIFS(Дефекты1!$A:$A,$B39,Дефекты1!$E:$E,O$4) -> 2 | P39: =COUNTIFS(Дефекты1!$A:$A,$B39,Дефекты1!$E:$E,P$4) -> 0 | Q39: =COUNTIFS(Дефекты1!$A:$A,$B39,Дефекты1!$E:$E,Q$4) -> 0 | R39: =COUNTIFS(Дефекты1!$A:$A,$B39,Дефекты1!$E:$E,R$4) -> 1 | S39: =COUNTIFS(Дефекты1!$A:$A,$B39,Дефекты1!$E:$E,S$4) -> 0 | T39: 150 | U39: 0 | V39: 0 | W39: 100 | X39: 0 | Y39: 0 | Z39: 50 | AA39: 0 | AB39: =IF(T39,IF(OR(NOT(ISERROR(MATCH(AB$3,$AC39:$AI39,0))),AJ39>=AJ$3),VLOOKUP(REPLACE(AB$3,6,2,$C39),Форма3!$M$17:$N$62,2,0)*$I39,SUM(MMULT((AC39:AI39=Форма3!$M$17:$M$62)*(Форма3!$N$17:$N$62),(TRANSPOSE(RIGHT(AC39:AI39,2))=($I$3:$K$3))*($I39:$K39)))),0) -> 768000 | AC39: =IF(U39,INDEX(Форма2!$E$29:$K$38,SUMIFS(Форма2!$A$29:$A$38,Форма2!$B$29:$B$38,"<"&U39,Форма2!$C$29:$C$38,">="&U39),MATCH(U$4,Форма2!$E$2:$K$2,0)),"---") -> --- | AD39: =IF(V39,INDEX(Форма2!$E$29:$K$38,SUMIFS(Форма2!$A$29:$A$38,Форма2!$B$29:$B$38,"<"&V39,Форма2!$C$29:$C$38,">="&V39),MATCH(V$4,Форма2!$E$2:$K$2,0)),"---") -> --- | AE39: =IF(W39,INDEX(Форма2!$E$29:$K$38,SUMIFS(Форма2!$A$29:$A$38,Форма2!$B$29:$B$38,"<"&W39,Форма2!$C$29:$C$38,">="&W39),MATCH(W$4,Форма2!$E$2:$K$2,0)),"---") -> УСТР-ЛТ | AF39: =IF(X39,INDEX(Форма2!$E$29:$K$38,SUMIFS(Форма2!$A$29:$A$38,Форма2!$B$29:$B$38,"<"&X39,Форма2!$C$29:$C$38,">="&X39),MATCH(X$4,Форма2!$E$2:$K$2,0)),"---") -> --- | AG39: =IF(Y39,INDEX(Форма2!$E$29:$K$38,SUMIFS(Форма2!$A$29:$A$38,Форма2!$B$29:$B$38,"<"&Y39,Форма2!$C$29:$C$38,">="&Y39),MATCH(Y$4,Форма2!$E$2:$K$2,0)),"---") -> --- | AH39: =IF(Z39,INDEX(Форма2!$E$29:$K$38,SUMIFS(Форма2!$A$29:$A$38,Форма2!$B$29:$B$38,"<"&Z39,Форма2!$C$29:$C$38,">="&Z39),MATCH(Z$4,Форма2!$E$2:$K$2,0)),"---") -> --- | AI39: =IF(AA39,INDEX(Форма2!$E$29:$K$38,SUMIFS(Форма2!$A$29:$A$38,Форма2!$B$29:$B$38,"<"&AA39,Форма2!$C$29:$C$38,">="&AA39),MATCH(AA$4,Форма2!$E$2:$K$2,0)),"---") -> --- | AJ39: =SUM((($U39:$AA39)>Форма2!$B$40:$B$49)*(($U39:$AA39)<=Форма2!$C$40:$C$49)*(Форма2!$E$40:$K$49)) -> 0.4 | AK39: =IF(AJ39>=AJ$3,AK$3,INDEX(Форма3!$F$4:$J$4,,MAX(IFERROR(MATCH(RIGHT(AC39:AI39,2),Форма3!$F$4:$J$4,0),0)))) -> ЛТ | AL39: =SUM((($U39:$AA39)>Форма2!$B$7:$B$16)*(($U39:$AA39)<=Форма2!$C$7:$C$16)*(Форма2!$E$7:$K$16)) -> 0.5071428571 | AM39: 85 | AN39: =SUMIFS(Потребители!D:D,Потребители!$B:$B,$B39) -> 85 | AO39: =SUMIFS(Потребители!E:E,Потребители!$B:$B,$B39) -> 0 | AP39: 2854.3 | AQ39: =SUMIFS(Потребители!G:G,Потребители!$B:$B,$B39) -> 2854.3 | AR39: =SUMIFS(Потребители!H:H,Потребители!$B:$B,$B39) -> 0 | AT39: 211800 | AU39: =IF($AB39,MROUND(SUMIFS($I39:$K39,$I$3:$K$3,$AK39)*$AL39*Форма1!$E$45,10),0) -> 55990 | AV39: =IF($AB39,FLOOR(SUM($AQ39:$AR39*Форма1!$E$40:$F$40)*($AB39/Форма1!$E$42),10),0) -> 10 | AW39: =IF($AB39,MROUND(SUMIFS($I39:$K39,$I$3:$K$3,$AK39)*Форма1!$F$45*$AL39,10),0) -> 111980 | AX39: =IF($AB39,MROUND(SUMIFS($I39:$K39,$I$3:$K$3,$AK39)*Форма1!$G$45*$AL39,10),0) -> 43820 | AZ39: 230600 | BA39: =$AB39*Форма1!$E$50 -> 230400 | BB39: =IF($AB39>Форма1!$E$53,-CUMIPMT(Форма1!$E$55,ROUND($AB39/Форма1!$E$53*Форма1!$E$54,0),$AB39,1,ROUND($AB39/Форма1!$E$53*Форма1!$E$54,0),0),0) -> 0 | BC39: =MROUND(SUM(Форма1!$E$38:$F$38*AQ39:AR39)/365*($AB39/Форма1!$E$58),10) -> 200 | BF39: 1700000 | BG39: =IF($AB39,MROUND(SUM($AN39:$AO39*Форма1!$K$40:$L$40),10),0) -> 1700000 | BL39: 0
A40: "Девятовка" | B40: Т38 | C40: ДC | D40: --- | E40: М1 | F40: Т38 | G40: --- | H40: 3 | I40: 32 | J40: =CHOOSE(Форма1!$M$22,IF(AVERAGEIFS(СтруктураСети!$G:$G,СтруктураСети!$H:$H,$B40)*Форма1!$M$23>I40,I40,AVERAGEIFS(СтруктураСети!$G:$G,СтруктураСети!$H:$H,$B40)*Форма1!$M$23),IF(VLOOKUP(C40,Форма1!$K$17:$M$20,3,0)*I40*Форма1!$M$23>I40,I40,VLOOKUP(C40,Форма1!$K$17:$M$20,3,0)*I40*Форма1!$M$23)) -> 7.68 | K40: =$J40*Форма1!$M$24 -> 1.92 | L40: 1 | M40: =COUNTIFS(Дефекты1!$A:$A,$B40,Дефекты1!$E:$E,M$4) -> 0 | N40: =COUNTIFS(Дефекты1!$A:$A,$B40,Дефекты1!$E:$E,N$4) -> 1 | O40: =COUNTIFS(Дефекты1!$A:$A,$B40,Дефекты1!$E:$E,O$4) -> 0 | P40: =COUNTIFS(Дефекты1!$A:$A,$B40,Дефекты1!$E:$E,P$4) -> 0 | Q40: =COUNTIFS(Дефекты1!$A:$A,$B40,Дефекты1!$E:$E,Q$4) -> 0 | R40: =COUNTIFS(Дефекты1!$A:$A,$B40,Дефекты1!$E:$E,R$4) -> 0 | S40: =COUNTIFS(Дефекты1!$A:$A,$B40,Дефекты1!$E:$E,S$4) -> 0 | T40: 31.25 | U40: 0 | V40: 31.25 | W40: 0 | X40: 0 | Y40: 0 | Z40: 0 | AA40: 0 | AB40: =IF(T40,IF(OR(NOT(ISERROR(MATCH(AB$3,$AC40:$AI40,0))),AJ40>=AJ$3),VLOOKUP(REPLACE(AB$3,6,2,$C40),Форма3!$M$17:$N$62,2,0)*$I40,SUM(MMULT((AC40:AI40=Форма3!$M$17:$M$62)*(Форма3!$N$17:$N$62),(TRANSPOSE(RIGHT(AC40:AI40,2))=($I$3:$K$3))*($I40:$K40)))),0) -> 768000 | AC40: =IF(U40,INDEX(Форма2!$E$29:$K$38,SUMIFS(Форма2!$A$29:$A$38,Форма2!$B$29:$B$38,"<"&U40,Форма2!$C$29:$C$38,">="&U40),MATCH(U$4,Форма2!$E$2:$K$2,0)),"---") -> --- | AD40: =IF(V40,INDEX(Форма2!$E$29:$K$38,SUMIFS(Форма2!$A$29:$A$38,Форма2!$B$29:$B$38,"<"&V40,Форма2!$C$29:$C$38,">="&V40),MATCH(V$4,Форма2!$E$2:$K$2,0)),"---") -> РМНТ-ЛУ | AE40: =IF(W40,INDEX(Форма2!$E$29:$K$38,SUMIFS(Форма2!$A$29:$A$38,Форма2!$B$29:$B$38,"<"&W40,Форма2!$C$29:$C$38,">="&W40),MATCH(W$4,Форма2!$E$2:$K$2,0)),"---") -> --- | AF40: =IF(X40,INDEX(Форма2!$E$29:$K$38,SUMIFS(Форма2!$A$29:$A$38,Форма2!$B$29:$B$38,"<"&X40,Форма2!$C$29:$C$38,">="&X40),MATCH(X$4,Форма2!$E$2:$K$2,0)),"---") -> --- | AG40: =IF(Y40,INDEX(Форма2!$E$29:$K$38,SUMIFS(Форма2!$A$29:$A$38,Форма2!$B$29:$B$38,"<"&Y40,Форма2!$C$29:$C$38,">="&Y40),MATCH(Y$4,Форма2!$E$2:$K$2,0)),"---") -> --- | AH40: =IF(Z40,INDEX(Форма2!$E$29:$K$38,SUMIFS(Форма2!$A$29:$A$38,Форма2!$B$29:$B$38,"<"&Z40,Форма2!$C$29:$C$38,">="&Z40),MATCH(Z$4,Форма2!$E$2:$K$2,0)),"---") -> --- | AI40: =IF(AA40,INDEX(Форма2!$E$29:$K$38,SUMIFS(Форма2!$A$29:$A$38,Форма2!$B$29:$B$38,"<"&AA40,Форма2!$C$29:$C$38,">="&AA40),MATCH(AA$4,Форма2!$E$2:$K$2,0)),"---") -> --- | AJ40: =SUM((($U40:$AA40)>Форма2!$B$40:$B$49)*(($U40:$AA40)<=Форма2!$C$40:$C$49)*(Форма2!$E$40:$K$49)) -> 0.35 | AK40: =IF(AJ40>=AJ$3,AK$3,INDEX(Форма3!$F$4:$J$4,,MAX(IFERROR(MATCH(RIGHT(AC40:AI40,2),Форма3!$F$4:$J$4,0),0)))) -> ЛУ | AL40: =SUM((($U40:$AA40)>Форма2!$B$7:$B$16)*(($U40:$AA40)<=Форма2!$C$7:$C$16)*(Форма2!$E$7:$K$16)) -> 0.1 | AM40: 138 | AN40: =SUMIFS(Потребители!D:D,Потребители!$B:$B,$B40) -> 138 | AO40: =SUMIFS(Потребители!E:E,Потребители!$B:$B,$B40) -> 0 | AP40: 4634.04 | AQ40: =SUMIFS(Потребители!G:G,Потребители!$B:$B,$B40) -> 4634.04 | AR40: =SUMIFS(Потребители!H:H,Потребители!$B:$B,$B40) -> 0 | AT40: 16730 | AU40: =IF($AB40,MROUND(SUMIFS($I40:$K40,$I$3:$K$3,$AK40)*$AL40*Форма1!$E$45,10),0) -> 4420 | AV40: =IF($AB40,FLOOR(SUM($AQ40:$AR40*Форма1!$E$40:$F$40)*($AB40/Форма1!$E$42),10),0) -> 20 | AW40: =IF($AB40,MROUND(SUMIFS($I40:$K40,$I$3:$K$3,$AK40)*Форма1!$F$45*$AL40,10),0) -> 8830 | AX40: =IF($AB40,MROUND(SUMIFS($I40:$K40,$I$3:$K$3,$AK40)*Форма1!$G$45*$AL40,10),0) -> 3460 | AZ40: 230720 | BA40: =$AB40*Форма1!$E$50 -> 230400 | BB40: =IF($AB40>Форма1!$E$53,-CUMIPMT(Форма1!$E$55,ROUND($AB40/Форма1!$E$53*Форма1!$E$54,0),$AB40,1,ROUND($AB40/Форма1!$E$53*Форма1!$E$54,0),0),0) -> 0 | BC40: =MROUND(SUM(Форма1!$E$38:$F$38*AQ40:AR40)/365*($AB40/Форма1!$E$58),10) -> 320 | BF40: 2760000 | BG40: =IF($AB40,MROUND(SUM($AN40:$AO40*Форма1!$K$40:$L$40),10),0) -> 2760000 | BL40: 0
A41: "Девятовка" | B41: Т39 | C41: ДC | D41: --- | E41: М1 | F41: Т39 | G41: --- | H41: 3 | I41: 36 | J41: =CHOOSE(Форма1!$M$22,IF(AVERAGEIFS(СтруктураСети!$G:$G,СтруктураСети!$H:$H,$B41)*Форма1!$M$23>I41,I41,AVERAGEIFS(СтруктураСети!$G:$G,СтруктураСети!$H:$H,$B41)*Форма1!$M$23),IF(VLOOKUP(C41,Форма1!$K$17:$M$20,3,0)*I41*Форма1!$M$23>I41,I41,VLOOKUP(C41,Форма1!$K$17:$M$20,3,0)*I41*Форма1!$M$23)) -> 8.64 | K41: =$J41*Форма1!$M$24 -> 2.16 | L41: 3 | M41: =COUNTIFS(Дефекты1!$A:$A,$B41,Дефекты1!$E:$E,M$4) -> 0 | N41: =COUNTIFS(Дефекты1!$A:$A,$B41,Дефекты1!$E:$E,N$4) -> 0 | O41: =COUNTIFS(Дефекты1!$A:$A,$B41,Дефекты1!$E:$E,O$4) -> 2 | P41: =COUNTIFS(Дефекты1!$A:$A,$B41,Дефекты1!$E:$E,P$4) -> 0 | Q41: =COUNTIFS(Дефекты1!$A:$A,$B41,Дефекты1!$E:$E,Q$4) -> 0 | R41: =COUNTIFS(Дефекты1!$A:$A,$B41,Дефекты1!$E:$E,R$4) -> 1 | S41: =COUNTIFS(Дефекты1!$A:$A,$B41,Дефекты1!$E:$E,S$4) -> 0 | T41: 83.33333333 | U41: 0 | V41: 0 | W41: 55.55555556 | X41: 0 | Y41: 0 | Z41: 27.77777778 | AA41: 0 | AB41: =IF(T41,IF(OR(NOT(ISERROR(MATCH(AB$3,$AC41:$AI41,0))),AJ41>=AJ$3),VLOOKUP(REPLACE(AB$3,6,2,$C41),Форма3!$M$17:$N$62,2,0)*$I41,SUM(MMULT((AC41:AI41=Форма3!$M$17:$M$62)*(Форма3!$N$17:$N$62),(TRANSPOSE(RIGHT(AC41:AI41,2))=($I$3:$K$3))*($I41:$K41)))),0) -> 1382400 | AC41: =IF(U41,INDEX(Форма2!$E$29:$K$38,SUMIFS(Форма2!$A$29:$A$38,Форма2!$B$29:$B$38,"<"&U41,Форма2!$C$29:$C$38,">="&U41),MATCH(U$4,Форма2!$E$2:$K$2,0)),"---") -> --- | AD41: =IF(V41,INDEX(Форма2!$E$29:$K$38,SUMIFS(Форма2!$A$29:$A$38,Форма2!$B$29:$B$38,"<"&V41,Форма2!$C$29:$C$38,">="&V41),MATCH(V$4,Форма2!$E$2:$K$2,0)),"---") -> --- | AE41: =IF(W41,INDEX(Форма2!$E$29:$K$38,SUMIFS(Форма2!$A$29:$A$38,Форма2!$B$29:$B$38,"<"&W41,Форма2!$C$29:$C$38,">="&W41),MATCH(W$4,Форма2!$E$2:$K$2,0)),"---") -> УСТР-ЛТ | AF41: =IF(X41,INDEX(Форма2!$E$29:$K$38,SUMIFS(Форма2!$A$29:$A$38,Форма2!$B$29:$B$38,"<"&X41,Форма2!$C$29:$C$38,">="&X41),MATCH(X$4,Форма2!$E$2:$K$2,0)),"---") -> --- | AG41: =IF(Y41,INDEX(Форма2!$E$29:$K$38,SUMIFS(Форма2!$A$29:$A$38,Форма2!$B$29:$B$38,"<"&Y41,Форма2!$C$29:$C$38,">="&Y41),MATCH(Y$4,Форма2!$E$2:$K$2,0)),"---") -> --- | AH41: =IF(Z41,INDEX(Форма2!$E$29:$K$38,SUMIFS(Форма2!$A$29:$A$38,Форма2!$B$29:$B$38,"<"&Z41,Форма2!$C$29:$C$38,">="&Z41),MATCH(Z$4,Форма2!$E$2:$K$2,0)),"---") -> --- | AI41: =IF(AA41,INDEX(Форма2!$E$29:$K$38,SUMIFS(Форма2!$A$29:$A$38,Форма2!$B$29:$B$38,"<"&AA41,Форма2!$C$29:$C$38,">="&AA41),MATCH(AA$4,Форма2!$E$2:$K$2,0)),"---") -> --- | AJ41: =SUM((($U41:$AA41)>Форма2!$B$40:$B$49)*(($U41:$AA41)<=Форма2!$C$40:$C$49)*(Форма2!$E$40:$K$49)) -> 0.4 | AK41: =IF(AJ41>=AJ$3,AK$3,INDEX(Форма3!$F$4:$J$4,,MAX(IFERROR(MATCH(RIGHT(AC41:AI41,2),Форма3!$F$4:$J$4,0),0)))) -> ЛТ | AL41: =SUM((($U41:$AA41)>Форма2!$B$7:$B$16)*(($U41:$AA41)<=Форма2!$C$7:$C$16)*(Форма2!$E$7:$K$16)) -> 0.2642857143 | AM41: 100 | AN41: =SUMIFS(Потребители!D:D,Потребители!$B:$B,$B41) -> 100 | AO41: =SUMIFS(Потребители!E:E,Потребители!$B:$B,$B41) -> 0 | AP41: 3358 | AQ41: =SUMIFS(Потребители!G:G,Потребители!$B:$B,$B41) -> 3358 | AR41: =SUMIFS(Потребители!H:H,Потребители!$B:$B,$B41) -> 0 | AT41: 198690 | AU41: =IF($AB41,MROUND(SUMIFS($I41:$K41,$I$3:$K$3,$AK41)*$AL41*Форма1!$E$45,10),0) -> 52520 | AV41: =IF($AB41,FLOOR(SUM($AQ41:$AR41*Форма1!$E$40:$F$40)*($AB41/Форма1!$E$42),10),0) -> 30 | AW41: =IF($AB41,MROUND(SUMIFS($I41:$K41,$I$3:$K$3,$AK41)*Форма1!$F$45*$AL41,10),0) -> 105040 | AX41: =IF($AB41,MROUND(SUMIFS($I41:$K41,$I$3:$K$3,$AK41)*Форма1!$G$45*$AL41,10),0) -> 41100 | AZ41: 415140 | BA41: =$AB41*Форма1!$E$50 -> 414720 | BB41: =IF($AB41>Форма1!$E$53,-CUMIPMT(Форма1!$E$55,ROUND($AB41/Форма1!$E$53*Форма1!$E$54,0),$AB41,1,ROUND($AB41/Форма1!$E$53*Форма1!$E$54,0),0),0) -> 0 | BC41: =MROUND(SUM(Форма1!$E$38:$F$38*AQ41:AR41)/365*($AB41/Форма1!$E$58),10) -> 420 | BF41: 2000000 | BG41: =IF($AB41,MROUND(SUM($AN41:$AO41*Форма1!$K$40:$L$40),10),0) -> 2000000 | BL41: 0
A42: "Девятовка" | B42: Т4 | C42: ДC | D42: --- | E42: М1 | F42: Т4 | G42: --- | H42: 3 | I42: 216 | J42: =CHOOSE(Форма1!$M$22,IF(AVERAGEIFS(СтруктураСети!$G:$G,СтруктураСети!$H:$H,$B42)*Форма1!$M$23>I42,I42,AVERAGEIFS(СтруктураСети!$G:$G,СтруктураСети!$H:$H,$B42)*Форма1!$M$23),IF(VLOOKUP(C42,Форма1!$K$17:$M$20,3,0)*I42*Форма1!$M$23>I42,I42,VLOOKUP(C42,Форма1!$K$17:$M$20,3,0)*I42*Форма1!$M$23)) -> 51.84 | K42: =$J42*Форма1!$M$24 -> 12.96 | L42: 7 | M42: =COUNTIFS(Дефекты1!$A:$A,$B42,Дефекты1!$E:$E,M$4) -> 1 | N42: =COUNTIFS(Дефекты1!$A:$A,$B42,Дефекты1!$E:$E,N$4) -> 0 | O42: =COUNTIFS(Дефекты1!$A:$A,$B42,Дефекты1!$E:$E,O$4) -> 2 | P42: =COUNTIFS(Дефекты1!$A:$A,$B42,Дефекты1!$E:$E,P$4) -> 0 | Q42: =COUNTIFS(Дефекты1!$A:$A,$B42,Дефекты1!$E:$E,Q$4) -> 0 | R42: =COUNTIFS(Дефекты1!$A:$A,$B42,Дефекты1!$E:$E,R$4) -> 4 | S42: =COUNTIFS(Дефекты1!$A:$A,$B42,Дефекты1!$E:$E,S$4) -> 0 | T42: 32.40740741 | U42: 4.62962963 | V42: 0 | W42: 9.259259259 | X42: 0 | Y42: 0 | Z42: 18.51851852 | AA42: 0 | AB42: =IF(T42,IF(OR(NOT(ISERROR(MATCH(AB$3,$AC42:$AI42,0))),AJ42>=AJ$3),VLOOKUP(REPLACE(AB$3,6,2,$C42),Форма3!$M$17:$N$62,2,0)*$I42,SUM(MMULT((AC42:AI42=Форма3!$M$17:$M$62)*(Форма3!$N$17:$N$62),(TRANSPOSE(RIGHT(AC42:AI42,2))=($I$3:$K$3))*($I42:$K42)))),0) -> 13478400 | AC42: =IF(U42,INDEX(Форма2!$E$29:$K$38,SUMIFS(Форма2!$A$29:$A$38,Форма2!$B$29:$B$38,"<"&U42,Форма2!$C$29:$C$38,">="&U42),MATCH(U$4,Форма2!$E$2:$K$2,0)),"---") -> РМНТ-ЛУ | AD42: =IF(V42,INDEX(Форма2!$E$29:$K$38,SUMIFS(Форма2!$A$29:$A$38,Форма2!$B$29:$B$38,"<"&V42,Форма2!$C$29:$C$38,">="&V42),MATCH(V$4,Форма2!$E$2:$K$2,0)),"---") -> --- | AE42: =IF(W42,INDEX(Форма2!$E$29:$K$38,SUMIFS(Форма2!$A$29:$A$38,Форма2!$B$29:$B$38,"<"&W42,Форма2!$C$29:$C$38,">="&W42),MATCH(W$4,Форма2!$E$2:$K$2,0)),"---") -> УСТР-ЛТ | AF42: =IF(X42,INDEX(Форма2!$E$29:$K$38,SUMIFS(Форма2!$A$29:$A$38,Форма2!$B$29:$B$38,"<"&X42,Форма2!$C$29:$C$38,">="&X42),MATCH(X$4,Форма2!$E$2:$K$2,0)),"---") -> --- | AG42: =IF(Y42,INDEX(Форма2!$E$29:$K$38,SUMIFS(Форма2!$A$29:$A$38,Форма2!$B$29:$B$38,"<"&Y42,Форма2!$C$29:$C$38,">="&Y42),MATCH(Y$4,Форма2!$E$2:$K$2,0)),"---") -> --- | AH42: =IF(Z42,INDEX(Форма2!$E$29:$K$38,SUMIFS(Форма2!$A$29:$A$38,Форма2!$B$29:$B$38,"<"&Z42,Форма2!$C$29:$C$38,">="&Z42),MATCH(Z$4,Форма2!$E$2:$K$2,0)),"---") -> --- | AI42: =IF(AA42,INDEX(Форма2!$E$29:$K$38,SUMIFS(Форма2!$A$29:$A$38,Форма2!$B$29:$B$38,"<"&AA42,Форма2!$C$29:$C$38,">="&AA42),MATCH(AA$4,Форма2!$E$2:$K$2,0)),"---") -> --- | AJ42: =SUM((($U42:$AA42)>Форма2!$B$40:$B$49)*(($U42:$AA42)<=Форма2!$C$40:$C$49)*(Форма2!$E$40:$K$49)) -> 0.75 | AK42: =IF(AJ42>=AJ$3,AK$3,INDEX(Форма3!$F$4:$J$4,,MAX(IFERROR(MATCH(RIGHT(AC42:AI42,2),Форма3!$F$4:$J$4,0),0)))) -> ЛТ | AL42: =SUM((($U42:$AA42)>Форма2!$B$7:$B$16)*(($U42:$AA42)<=Форма2!$C$7:$C$16)*(Форма2!$E$7:$K$16)) -> 0.2047619048 | AM42: 387 | AN42: =SUMIFS(Потребители!D:D,Потребители!$B:$B,$B42) -> 387 | AO42: =SUMIFS(Потребители!E:E,Потребители!$B:$B,$B42) -> 0 | AP42: 12995.46 | AQ42: =SUMIFS(Потребители!G:G,Потребители!$B:$B,$B42) -> 12995.46 | AR42: =SUMIFS(Потребители!H:H,Потребители!$B:$B,$B42) -> 0 | AT42: 924640 | AU42: =IF($AB42,MROUND(SUMIFS($I42:$K42,$I$3:$K$3,$AK42)*$AL42*Форма1!$E$45,10),0) -> 244140 | AV42: =IF($AB42,FLOOR(SUM($AQ42:$AR42*Форма1!$E$40:$F$40)*($AB42/Форма1!$E$42),10),0) -> 1150 | AW42: =IF($AB42,MROUND(SUMIFS($I42:$K42,$I$3:$K$3,$AK42)*Форма1!$F$45*$AL42,10),0) -> 488280 | AX42: =IF($AB42,MROUND(SUMIFS($I42:$K42,$I$3:$K$3,$AK42)*Форма1!$G$45*$AL42,10),0) -> 191070 | AZ42: 4059400 | BA42: =$AB42*Форма1!$E$50 -> 4043520 | BB42: =IF($AB42>Форма1!$E$53,-CUMIPMT(Форма1!$E$55,ROUND($AB42/Форма1!$E$53*Форма1!$E$54,0),$AB42,1,ROUND($AB42/Форма1!$E$53*Форма1!$E$54,0),0),0) -> 0 | BC42: =MROUND(SUM(Форма1!$E$38:$F$38*AQ42:AR42)/365*($AB42/Форма1!$E$58),10) -> 15880 | BF42: 7740000 | BG42: =IF($AB42,MROUND(SUM($AN42:$AO42*Форма1!$K$40:$L$40),10),0) -> 7740000 | BL42: 0
A43: "Девятовка" | B43: Т40 | C43: ДC | D43: --- | E43: М1 | F43: Т40 | G43: --- | H43: 3 | I43: 228 | J43: =CHOOSE(Форма1!$M$22,IF(AVERAGEIFS(СтруктураСети!$G:$G,СтруктураСети!$H:$H,$B43)*Форма1!$M$23>I43,I43,AVERAGEIFS(СтруктураСети!$G:$G,СтруктураСети!$H:$H,$B43)*Форма1!$M$23),IF(VLOOKUP(C43,Форма1!$K$17:$M$20,3,0)*I43*Форма1!$M$23>I43,I43,VLOOKUP(C43,Форма1!$K$17:$M$20,3,0)*I43*Форма1!$M$23)) -> 54.72 | K43: =$J43*Форма1!$M$24 -> 13.68 | L43: 10 | M43: =COUNTIFS(Дефекты1!$A:$A,$B43,Дефекты1!$E:$E,M$4) -> 2 | N43: =COUNTIFS(Дефекты1!$A:$A,$B43,Дефекты1!$E:$E,N$4) -> 0 | O43: =COUNTIFS(Дефекты1!$A:$A,$B43,Дефекты1!$E:$E,O$4) -> 2 | P43: =COUNTIFS(Дефекты1!$A:$A,$B43,Дефекты1!$E:$E,P$4) -> 0 | Q43: =COUNTIFS(Дефекты1!$A:$A,$B43,Дефекты1!$E:$E,Q$4) -> 0 | R43: =COUNTIFS(Дефекты1!$A:$A,$B43,Дефекты1!$E:$E,R$4) -> 6 | S43: =COUNTIFS(Дефекты1!$A:$A,$B43,Дефекты1!$E:$E,S$4) -> 0 | T43: 43.85964912 | U43: 8.771929825 | V43: 0 | W43: 8.771929825 | X43: 0 | Y43: 0 | Z43: 26.31578947 | AA43: 0 | AB43: =IF(T43,IF(OR(NOT(ISERROR(MATCH(AB$3,$AC43:$AI43,0))),AJ43>=AJ$3),VLOOKUP(REPLACE(AB$3,6,2,$C43),Форма3!$M$17:$N$62,2,0)*$I43,SUM(MMULT((AC43:AI43=Форма3!$M$17:$M$62)*(Форма3!$N$17:$N$62),(TRANSPOSE(RIGHT(AC43:AI43,2))=($I$3:$K$3))*($I43:$K43)))),0) -> 14227200 | AC43: =IF(U43,INDEX(Форма2!$E$29:$K$38,SUMIFS(Форма2!$A$29:$A$38,Форма2!$B$29:$B$38,"<"&U43,Форма2!$C$29:$C$38,">="&U43),MATCH(U$4,Форма2!$E$2:$K$2,0)),"---") -> РМНТ-ЛУ | AD43: =IF(V43,INDEX(Форма2!$E$29:$K$38,SUMIFS(Форма2!$A$29:$A$38,Форма2!$B$29:$B$38,"<"&V43,Форма2!$C$29:$C$38,">="&V43),MATCH(V$4,Форма2!$E$2:$K$2,0)),"---") -> --- | AE43: =IF(W43,INDEX(Форма2!$E$29:$K$38,SUMIFS(Форма2!$A$29:$A$38,Форма2!$B$29:$B$38,"<"&W43,Форма2!$C$29:$C$38,">="&W43),MATCH(W$4,Форма2!$E$2:$K$2,0)),"---") -> УСТР-ЛТ | AF43: =IF(X43,INDEX(Форма2!$E$29:$K$38,SUMIFS(Форма2!$A$29:$A$38,Форма2!$B$29:$B$38,"<"&X43,Форма2!$C$29:$C$38,">="&X43),MATCH(X$4,Форма2!$E$2:$K$2,0)),"---") -> --- | AG43: =IF(Y43,INDEX(Форма2!$E$29:$K$38,SUMIFS(Форма2!$A$29:$A$38,Форма2!$B$29:$B$38,"<"&Y43,Форма2!$C$29:$C$38,">="&Y43),MATCH(Y$4,Форма2!$E$2:$K$2,0)),"---") -> --- | AH43: =IF(Z43,INDEX(Форма2!$E$29:$K$38,SUMIFS(Форма2!$A$29:$A$38,Форма2!$B$29:$B$38,"<"&Z43,Форма2!$C$29:$C$38,">="&Z43),MATCH(Z$4,Форма2!$E$2:$K$2,0)),"---") -> --- | AI43: =IF(AA43,INDEX(Форма2!$E$29:$K$38,SUMIFS(Форма2!$A$29:$A$38,Форма2!$B$29:$B$38,"<"&AA43,Форма2!$C$29:$C$38,">="&AA43),MATCH(AA$4,Форма2!$E$2:$K$2,0)),"---") -> --- | AJ43: =SUM((($U43:$AA43)>Форма2!$B$40:$B$49)*(($U43:$AA43)<=Форма2!$C$40:$C$49)*(Форма2!$E$40:$K$49)) -> 0.75 | AK43: =IF(AJ43>=AJ$3,AK$3,INDEX(Форма3!$F$4:$J$4,,MAX(IFERROR(MATCH(RIGHT(AC43:AI43,2),Форма3!$F$4:$J$4,0),0)))) -> ЛТ | AL43: =SUM((($U43:$AA43)>Форма2!$B$7:$B$16)*(($U43:$AA43)<=Форма2!$C$7:$C$16)*(Форма2!$E$7:$K$16)) -> 0.2047619048 | AM43: 216 | AN43: =SUMIFS(Потребители!D:D,Потребители!$B:$B,$B43) -> 216 | AO43: =SUMIFS(Потребители!E:E,Потребители!$B:$B,$B43) -> 0 | AP43: 7253.28 | AQ43: =SUMIFS(Потребители!G:G,Потребители!$B:$B,$B43) -> 7253.28 | AR43: =SUMIFS(Потребители!H:H,Потребители!$B:$B,$B43) -> 0 | AT43: 975480 | AU43: =IF($AB43,MROUND(SUMIFS($I43:$K43,$I$3:$K$3,$AK43)*$AL43*Форма1!$E$45,10),0) -> 257710 | AV43: =IF($AB43,FLOOR(SUM($AQ43:$AR43*Форма1!$E$40:$F$40)*($AB43/Форма1!$E$42),10),0) -> 680 | AW43: =IF($AB43,MROUND(SUMIFS($I43:$K43,$I$3:$K$3,$AK43)*Форма1!$F$45*$AL43,10),0) -> 515410 | AX43: =IF($AB43,MROUND(SUMIFS($I43:$K43,$I$3:$K$3,$AK43)*Форма1!$G$45*$AL43,10),0) -> 201680 | AZ43: 4277510 | BA43: =$AB43*Форма1!$E$50 -> 4268160 | BB43: =IF($AB43>Форма1!$E$53,-CUMIPMT(Форма1!$E$55,ROUND($AB43/Форма1!$E$53*Форма1!$E$54,0),$AB43,1,ROUND($AB43/Форма1!$E$53*Форма1!$E$54,0),0),0) -> 0 | BC43: =MROUND(SUM(Форма1!$E$38:$F$38*AQ43:AR43)/365*($AB43/Форма1!$E$58),10) -> 9350 | BF43: 4320000 | BG43: =IF($AB43,MROUND(SUM($AN43:$AO43*Форма1!$K$40:$L$40),10),0) -> 4320000 | BL43: 0
A44: "Девятовка" | B44: Т41 | C44: ДC | D44: --- | E44: М3 | F44: Т41 | G44: --- | H44: 3 | I44: 72 | J44: =CHOOSE(Форма1!$M$22,IF(AVERAGEIFS(СтруктураСети!$G:$G,СтруктураСети!$H:$H,$B44)*Форма1!$M$23>I44,I44,AVERAGEIFS(СтруктураСети!$G:$G,СтруктураСети!$H:$H,$B44)*Форма1!$M$23),IF(VLOOKUP(C44,Форма1!$K$17:$M$20,3,0)*I44*Форма1!$M$23>I44,I44,VLOOKUP(C44,Форма1!$K$17:$M$20,3,0)*I44*Форма1!$M$23)) -> 17.28 | K44: =$J44*Форма1!$M$24 -> 4.32 | L44: 0 | M44: =COUNTIFS(Дефекты1!$A:$A,$B44,Дефекты1!$E:$E,M$4) -> 0 | N44: =COUNTIFS(Дефекты1!$A:$A,$B44,Дефекты1!$E:$E,N$4) -> 0 | O44: =COUNTIFS(Дефекты1!$A:$A,$B44,Дефекты1!$E:$E,O$4) -> 0 | P44: =COUNTIFS(Дефекты1!$A:$A,$B44,Дефекты1!$E:$E,P$4) -> 0 | Q44: =COUNTIFS(Дефекты1!$A:$A,$B44,Дефекты1!$E:$E,Q$4) -> 0 | R44: =COUNTIFS(Дефекты1!$A:$A,$B44,Дефекты1!$E:$E,R$4) -> 0 | S44: =COUNTIFS(Дефекты1!$A:$A,$B44,Дефекты1!$E:$E,S$4) -> 0 | T44: 0 | U44: 0 | V44: 0 | W44: 0 | X44: 0 | Y44: 0 | Z44: 0 | AA44: 0 | AB44: =IF(T44,IF(OR(NOT(ISERROR(MATCH(AB$3,$AC44:$AI44,0))),AJ44>=AJ$3),VLOOKUP(REPLACE(AB$3,6,2,$C44),Форма3!$M$17:$N$62,2,0)*$I44,SUM(MMULT((AC44:AI44=Форма3!$M$17:$M$62)*(Форма3!$N$17:$N$62),(TRANSPOSE(RIGHT(AC44:AI44,2))=($I$3:$K$3))*($I44:$K44)))),0) -> 0 | AC44: =IF(U44,INDEX(Форма2!$E$29:$K$38,SUMIFS(Форма2!$A$29:$A$38,Форма2!$B$29:$B$38,"<"&U44,Форма2!$C$29:$C$38,">="&U44),MATCH(U$4,Форма2!$E$2:$K$2,0)),"---") -> --- | AD44: =IF(V44,INDEX(Форма2!$E$29:$K$38,SUMIFS(Форма2!$A$29:$A$38,Форма2!$B$29:$B$38,"<"&V44,Форма2!$C$29:$C$38,">="&V44),MATCH(V$4,Форма2!$E$2:$K$2,0)),"---") -> --- | AE44: =IF(W44,INDEX(Форма2!$E$29:$K$38,SUMIFS(Форма2!$A$29:$A$38,Форма2!$B$29:$B$38,"<"&W44,Форма2!$C$29:$C$38,">="&W44),MATCH(W$4,Форма2!$E$2:$K$2,0)),"---") -> --- | AF44: =IF(X44,INDEX(Форма2!$E$29:$K$38,SUMIFS(Форма2!$A$29:$A$38,Форма2!$B$29:$B$38,"<"&X44,Форма2!$C$29:$C$38,">="&X44),MATCH(X$4,Форма2!$E$2:$K$2,0)),"---") -> --- | AG44: =IF(Y44,INDEX(Форма2!$E$29:$K$38,SUMIFS(Форма2!$A$29:$A$38,Форма2!$B$29:$B$38,"<"&Y44,Форма2!$C$29:$C$38,">="&Y44),MATCH(Y$4,Форма2!$E$2:$K$2,0)),"---") -> --- | AH44: =IF(Z44,INDEX(Форма2!$E$29:$K$38,SUMIFS(Форма2!$A$29:$A$38,Форма2!$B$29:$B$38,"<"&Z44,Форма2!$C$29:$C$38,">="&Z44),MATCH(Z$4,Форма2!$E$2:$K$2,0)),"---") -> --- | AI44: =IF(AA44,INDEX(Форма2!$E$29:$K$38,SUMIFS(Форма2!$A$29:$A$38,Форма2!$B$29:$B$38,"<"&AA44,Форма2!$C$29:$C$38,">="&AA44),MATCH(AA$4,Форма2!$E$2:$K$2,0)),"---") -> --- | AJ44: =SUM((($U44:$AA44)>Форма2!$B$40:$B$49)*(($U44:$AA44)<=Форма2!$C$40:$C$49)*(Форма2!$E$40:$K$49)) -> 0 | AK44: =IF(AJ44>=AJ$3,AK$3,INDEX(Форма3!$F$4:$J$4,,MAX(IFERROR(MATCH(RIGHT(AC44:AI44,2),Форма3!$F$4:$J$4,0),0)))) -> ЛУ | AL44: =SUM((($U44:$AA44)>Форма2!$B$7:$B$16)*(($U44:$AA44)<=Форма2!$C$7:$C$16)*(Форма2!$E$7:$K$16)) -> 0 | AM44: 1 | AN44: =SUMIFS(Потребители!D:D,Потребители!$B:$B,$B44) -> 0 | AO44: =SUMIFS(Потребители!E:E,Потребители!$B:$B,$B44) -> 1 | AP44: 4560 | AQ44: =SUMIFS(Потребители!G:G,Потребители!$B:$B,$B44) -> 0 | AR44: =SUMIFS(Потребители!H:H,Потребители!$B:$B,$B44) -> 4560 | AT44: 0 | AU44: =IF($AB44,MROUND(SUMIFS($I44:$K44,$I$3:$K$3,$AK44)*$AL44*Форма1!$E$45,10),0) -> 0 | AV44: =IF($AB44,FLOOR(SUM($AQ44:$AR44*Форма1!$E$40:$F$40)*($AB44/Форма1!$E$42),10),0) -> 0 | AW44: =IF($AB44,MROUND(SUMIFS($I44:$K44,$I$3:$K$3,$AK44)*Форма1!$F$45*$AL44,10),0) -> 0 | AX44: =IF($AB44,MROUND(SUMIFS($I44:$K44,$I$3:$K$3,$AK44)*Форма1!$G$45*$AL44,10),0) -> 0 | AZ44: 0 | BA44: =$AB44*Форма1!$E$50 -> 0 | BB44: =IF($AB44>Форма1!$E$53,-CUMIPMT(Форма1!$E$55,ROUND($AB44/Форма1!$E$53*Форма1!$E$54,0),$AB44,1,ROUND($AB44/Форма1!$E$53*Форма1!$E$54,0),0),0) -> 0 | BC44: =MROUND(SUM(Форма1!$E$38:$F$38*AQ44:AR44)/365*($AB44/Форма1!$E$58),10) -> 0 | BF44: 0 | BG44: =IF($AB44,MROUND(SUM($AN44:$AO44*Форма1!$K$40:$L$40),10),0) -> 0 | BL44: 0
A45: "Девятовка" | B45: Т42 | C45: ДC | D45: --- | E45: М3 | F45: Т42 | G45: --- | H45: 3 | I45: 85 | J45: =CHOOSE(Форма1!$M$22,IF(AVERAGEIFS(СтруктураСети!$G:$G,СтруктураСети!$H:$H,$B45)*Форма1!$M$23>I45,I45,AVERAGEIFS(СтруктураСети!$G:$G,СтруктураСети!$H:$H,$B45)*Форма1!$M$23),IF(VLOOKUP(C45,Форма1!$K$17:$M$20,3,0)*I45*Форма1!$M$23>I45,I45,VLOOKUP(C45,Форма1!$K$17:$M$20,3,0)*I45*Форма1!$M$23)) -> 20.4 | K45: =$J45*Форма1!$M$24 -> 5.1 | L45: 0 | M45: =COUNTIFS(Дефекты1!$A:$A,$B45,Дефекты1!$E:$E,M$4) -> 0 | N45: =COUNTIFS(Дефекты1!$A:$A,$B45,Дефекты1!$E:$E,N$4) -> 0 | O45: =COUNTIFS(Дефекты1!$A:$A,$B45,Дефекты1!$E:$E,O$4) -> 0 | P45: =COUNTIFS(Дефекты1!$A:$A,$B45,Дефекты1!$E:$E,P$4) -> 0 | Q45: =COUNTIFS(Дефекты1!$A:$A,$B45,Дефекты1!$E:$E,Q$4) -> 0 | R45: =COUNTIFS(Дефекты1!$A:$A,$B45,Дефекты1!$E:$E,R$4) -> 0 | S45: =COUNTIFS(Дефекты1!$A:$A,$B45,Дефекты1!$E:$E,S$4) -> 0 | T45: 0 | U45: 0 | V45: 0 | W45: 0 | X45: 0 | Y45: 0 | Z45: 0 | AA45: 0 | AB45: =IF(T45,IF(OR(NOT(ISERROR(MATCH(AB$3,$AC45:$AI45,0))),AJ45>=AJ$3),VLOOKUP(REPLACE(AB$3,6,2,$C45),Форма3!$M$17:$N$62,2,0)*$I45,SUM(MMULT((AC45:AI45=Форма3!$M$17:$M$62)*(Форма3!$N$17:$N$62),(TRANSPOSE(RIGHT(AC45:AI45,2))=($I$3:$K$3))*($I45:$K45)))),0) -> 0 | AC45: =IF(U45,INDEX(Форма2!$E$29:$K$38,SUMIFS(Форма2!$A$29:$A$38,Форма2!$B$29:$B$38,"<"&U45,Форма2!$C$29:$C$38,">="&U45),MATCH(U$4,Форма2!$E$2:$K$2,0)),"---") -> --- | AD45: =IF(V45,INDEX(Форма2!$E$29:$K$38,SUMIFS(Форма2!$A$29:$A$38,Форма2!$B$29:$B$38,"<"&V45,Форма2!$C$29:$C$38,">="&V45),MATCH(V$4,Форма2!$E$2:$K$2,0)),"---") -> --- | AE45: =IF(W45,INDEX(Форма2!$E$29:$K$38,SUMIFS(Форма2!$A$29:$A$38,Форма2!$B$29:$B$38,"<"&W45,Форма2!$C$29:$C$38,">="&W45),MATCH(W$4,Форма2!$E$2:$K$2,0)),"---") -> --- | AF45: =IF(X45,INDEX(Форма2!$E$29:$K$38,SUMIFS(Форма2!$A$29:$A$38,Форма2!$B$29:$B$38,"<"&X45,Форма2!$C$29:$C$38,">="&X45),MATCH(X$4,Форма2!$E$2:$K$2,0)),"---") -> --- | AG45: =IF(Y45,INDEX(Форма2!$E$29:$K$38,SUMIFS(Форма2!$A$29:$A$38,Форма2!$B$29:$B$38,"<"&Y45,Форма2!$C$29:$C$38,">="&Y45),MATCH(Y$4,Форма2!$E$2:$K$2,0)),"---") -> --- | AH45: =IF(Z45,INDEX(Форма2!$E$29:$K$38,SUMIFS(Форма2!$A$29:$A$38,Форма2!$B$29:$B$38,"<"&Z45,Форма2!$C$29:$C$38,">="&Z45),MATCH(Z$4,Форма2!$E$2:$K$2,0)),"---") -> --- | AI45: =IF(AA45,INDEX(Форма2!$E$29:$K$38,SUMIFS(Форма2!$A$29:$A$38,Форма2!$B$29:$B$38,"<"&AA45,Форма2!$C$29:$C$38,">="&AA45),MATCH(AA$4,Форма2!$E$2:$K$2,0)),"---") -> --- | AJ45: =SUM((($U45:$AA45)>Форма2!$B$40:$B$49)*(($U45:$AA45)<=Форма2!$C$40:$C$49)*(Форма2!$E$40:$K$49)) -> 0 | AK45: =IF(AJ45>=AJ$3,AK$3,INDEX(Форма3!$F$4:$J$4,,MAX(IFERROR(MATCH(RIGHT(AC45:AI45,2),Форма3!$F$4:$J$4,0),0)))) -> ЛУ | AL45: =SUM((($U45:$AA45)>Форма2!$B$7:$B$16)*(($U45:$AA45)<=Форма2!$C$7:$C$16)*(Форма2!$E$7:$K$16)) -> 0 | AM45: 1 | AN45: =SUMIFS(Потребители!D:D,Потребители!$B:$B,$B45) -> 0 | AO45: =SUMIFS(Потребители!E:E,Потребители!$B:$B,$B45) -> 1 | AP45: 3852 | AQ45: =SUMIFS(Потребители!G:G,Потребители!$B:$B,$B45) -> 0 | AR45: =SUMIFS(Потребители!H:H,Потребители!$B:$B,$B45) -> 3852 | AT45: 0 | AU45: =IF($AB45,MROUND(SUMIFS($I45:$K45,$I$3:$K$3,$AK45)*$AL45*Форма1!$E$45,10),0) -> 0 | AV45: =IF($AB45,FLOOR(SUM($AQ45:$AR45*Форма1!$E$40:$F$40)*($AB45/Форма1!$E$42),10),0) -> 0 | AW45: =IF($AB45,MROUND(SUMIFS($I45:$K45,$I$3:$K$3,$AK45)*Форма1!$F$45*$AL45,10),0) -> 0 | AX45: =IF($AB45,MROUND(SUMIFS($I45:$K45,$I$3:$K$3,$AK45)*Форма1!$G$45*$AL45,10),0) -> 0 | AZ45: 0 | BA45: =$AB45*Форма1!$E$50 -> 0 | BB45: =IF($AB45>Форма1!$E$53,-CUMIPMT(Форма1!$E$55,ROUND($AB45/Форма1!$E$53*Форма1!$E$54,0),$AB45,1,ROUND($AB45/Форма1!$E$53*Форма1!$E$54,0),0),0) -> 0 | BC45: =MROUND(SUM(Форма1!$E$38:$F$38*AQ45:AR45)/365*($AB45/Форма1!$E$58),10) -> 0 | BF45: 0 | BG45: =IF($AB45,MROUND(SUM($AN45:$AO45*Форма1!$K$40:$L$40),10),0) -> 0 | BL45: 0
A46: "Девятовка" | B46: Т43 | C46: ДC | D46: --- | E46: М4 | F46: Т43 | G46: --- | H46: 3 | I46: 41 | J46: =CHOOSE(Форма1!$M$22,IF(AVERAGEIFS(СтруктураСети!$G:$G,СтруктураСети!$H:$H,$B46)*Форма1!$M$23>I46,I46,AVERAGEIFS(СтруктураСети!$G:$G,СтруктураСети!$H:$H,$B46)*Форма1!$M$23),IF(VLOOKUP(C46,Форма1!$K$17:$M$20,3,0)*I46*Форма1!$M$23>I46,I46,VLOOKUP(C46,Форма1!$K$17:$M$20,3,0)*I46*Форма1!$M$23)) -> 9.84 | K46: =$J46*Форма1!$M$24 -> 2.46 | L46: 1 | M46: =COUNTIFS(Дефекты1!$A:$A,$B46,Дефекты1!$E:$E,M$4) -> 0 | N46: =COUNTIFS(Дефекты1!$A:$A,$B46,Дефекты1!$E:$E,N$4) -> 0 | O46: =COUNTIFS(Дефекты1!$A:$A,$B46,Дефекты1!$E:$E,O$4) -> 0 | P46: =COUNTIFS(Дефекты1!$A:$A,$B46,Дефекты1!$E:$E,P$4) -> 0 | Q46: =COUNTIFS(Дефекты1!$A:$A,$B46,Дефекты1!$E:$E,Q$4) -> 0 | R46: =COUNTIFS(Дефекты1!$A:$A,$B46,Дефекты1!$E:$E,R$4) -> 1 | S46: =COUNTIFS(Дефекты1!$A:$A,$B46,Дефекты1!$E:$E,S$4) -> 0 | T46: 24.3902439 | U46: 0 | V46: 0 | W46: 0 | X46: 0 | Y46: 0 | Z46: 24.3902439 | AA46: 0 | AB46: =IF(T46,IF(OR(NOT(ISERROR(MATCH(AB$3,$AC46:$AI46,0))),AJ46>=AJ$3),VLOOKUP(REPLACE(AB$3,6,2,$C46),Форма3!$M$17:$N$62,2,0)*$I46,SUM(MMULT((AC46:AI46=Форма3!$M$17:$M$62)*(Форма3!$N$17:$N$62),(TRANSPOSE(RIGHT(AC46:AI46,2))=($I$3:$K$3))*($I46:$K46)))),0) -> 0 | AC46: =IF(U46,INDEX(Форма2!$E$29:$K$38,SUMIFS(Форма2!$A$29:$A$38,Форма2!$B$29:$B$38,"<"&U46,Форма2!$C$29:$C$38,">="&U46),MATCH(U$4,Форма2!$E$2:$K$2,0)),"---") -> --- | AD46: =IF(V46,INDEX(Форма2!$E$29:$K$38,SUMIFS(Форма2!$A$29:$A$38,Форма2!$B$29:$B$38,"<"&V46,Форма2!$C$29:$C$38,">="&V46),MATCH(V$4,Форма2!$E$2:$K$2,0)),"---") -> --- | AE46: =IF(W46,INDEX(Форма2!$E$29:$K$38,SUMIFS(Форма2!$A$29:$A$38,Форма2!$B$29:$B$38,"<"&W46,Форма2!$C$29:$C$38,">="&W46),MATCH(W$4,Форма2!$E$2:$K$2,0)),"---") -> --- | AF46: =IF(X46,INDEX(Форма2!$E$29:$K$38,SUMIFS(Форма2!$A$29:$A$38,Форма2!$B$29:$B$38,"<"&X46,Форма2!$C$29:$C$38,">="&X46),MATCH(X$4,Форма2!$E$2:$K$2,0)),"---") -> --- | AG46: =IF(Y46,INDEX(Форма2!$E$29:$K$38,SUMIFS(Форма2!$A$29:$A$38,Форма2!$B$29:$B$38,"<"&Y46,Форма2!$C$29:$C$38,">="&Y46),MATCH(Y$4,Форма2!$E$2:$K$2,0)),"---") -> --- | AH46: =IF(Z46,INDEX(Форма2!$E$29:$K$38,SUMIFS(Форма2!$A$29:$A$38,Форма2!$B$29:$B$38,"<"&Z46,Форма2!$C$29:$C$38,">="&Z46),MATCH(Z$4,Форма2!$E$2:$K$2,0)),"---") -> --- | AI46: =IF(AA46,INDEX(Форма2!$E$29:$K$38,SUMIFS(Форма2!$A$29:$A$38,Форма2!$B$29:$B$38,"<"&AA46,Форма2!$C$29:$C$38,">="&AA46),MATCH(AA$4,Форма2!$E$2:$K$2,0)),"---") -> --- | AJ46: =SUM((($U46:$AA46)>Форма2!$B$40:$B$49)*(($U46:$AA46)<=Форма2!$C$40:$C$49)*(Форма2!$E$40:$K$49)) -> 0 | AK46: =IF(AJ46>=AJ$3,AK$3,INDEX(Форма3!$F$4:$J$4,,MAX(IFERROR(MATCH(RIGHT(AC46:AI46,2),Форма3!$F$4:$J$4,0),0)))) -> ЛУ | AL46: =SUM((($U46:$AA46)>Форма2!$B$7:$B$16)*(($U46:$AA46)<=Форма2!$C$7:$C$16)*(Форма2!$E$7:$K$16)) -> 0.05 | AM46: 235 | AN46: =SUMIFS(Потребители!D:D,Потребители!$B:$B,$B46) -> 235 | AO46: =SUMIFS(Потребители!E:E,Потребители!$B:$B,$B46) -> 0 | AP46: 7891.3 | AQ46: =SUMIFS(Потребители!G:G,Потребители!$B:$B,$B46) -> 7891.3 | AR46: =SUMIFS(Потребители!H:H,Потребители!$B:$B,$B46) -> 0 | AT46: 0 | AU46: =IF($AB46,MROUND(SUMIFS($I46:$K46,$I$3:$K$3,$AK46)*$AL46*Форма1!$E$45,10),0) -> 0 | AV46: =IF($AB46,FLOOR(SUM($AQ46:$AR46*Форма1!$E$40:$F$40)*($AB46/Форма1!$E$42),10),0) -> 0 | AW46: =IF($AB46,MROUND(SUMIFS($I46:$K46,$I$3:$K$3,$AK46)*Форма1!$F$45*$AL46,10),0) -> 0 | AX46: =IF($AB46,MROUND(SUMIFS($I46:$K46,$I$3:$K$3,$AK46)*Форма1!$G$45*$AL46,10),0) -> 0 | AZ46: 0 | BA46: =$AB46*Форма1!$E$50 -> 0 | BB46: =IF($AB46>Форма1!$E$53,-CUMIPMT(Форма1!$E$55,ROUND($AB46/Форма1!$E$53*Форма1!$E$54,0),$AB46,1,ROUND($AB46/Форма1!$E$53*Форма1!$E$54,0),0),0) -> 0 | BC46: =MROUND(SUM(Форма1!$E$38:$F$38*AQ46:AR46)/365*($AB46/Форма1!$E$58),10) -> 0 | BF46: 0 | BG46: =IF($AB46,MROUND(SUM($AN46:$AO46*Форма1!$K$40:$L$40),10),0) -> 0 | BL46: 0
A47: "Девятовка" | B47: Т44 | C47: ДC | D47: --- | E47: М4 | F47: Т44 | G47: --- | H47: 3 | I47: 134 | J47: =CHOOSE(Форма1!$M$22,IF(AVERAGEIFS(СтруктураСети!$G:$G,СтруктураСети!$H:$H,$B47)*Форма1!$M$23>I47,I47,AVERAGEIFS(СтруктураСети!$G:$G,СтруктураСети!$H:$H,$B47)*Форма1!$M$23),IF(VLOOKUP(C47,Форма1!$K$17:$M$20,3,0)*I47*Форма1!$M$23>I47,I47,VLOOKUP(C47,Форма1!$K$17:$M$20,3,0)*I47*Форма1!$M$23)) -> 32.16 | K47: =$J47*Форма1!$M$24 -> 8.04 | L47: 0 | M47: =COUNTIFS(Дефекты1!$A:$A,$B47,Дефекты1!$E:$E,M$4) -> 0 | N47: =COUNTIFS(Дефекты1!$A:$A,$B47,Дефекты1!$E:$E,N$4) -> 0 | O47: =COUNTIFS(Дефекты1!$A:$A,$B47,Дефекты1!$E:$E,O$4) -> 0 | P47: =COUNTIFS(Дефекты1!$A:$A,$B47,Дефекты1!$E:$E,P$4) -> 0 | Q47: =COUNTIFS(Дефекты1!$A:$A,$B47,Дефекты1!$E:$E,Q$4) -> 0 | R47: =COUNTIFS(Дефекты1!$A:$A,$B47,Дефекты1!$E:$E,R$4) -> 0 | S47: =COUNTIFS(Дефекты1!$A:$A,$B47,Дефекты1!$E:$E,S$4) -> 0 | T47: 0 | U47: 0 | V47: 0 | W47: 0 | X47: 0 | Y47: 0 | Z47: 0 | AA47: 0 | AB47: =IF(T47,IF(OR(NOT(ISERROR(MATCH(AB$3,$AC47:$AI47,0))),AJ47>=AJ$3),VLOOKUP(REPLACE(AB$3,6,2,$C47),Форма3!$M$17:$N$62,2,0)*$I47,SUM(MMULT((AC47:AI47=Форма3!$M$17:$M$62)*(Форма3!$N$17:$N$62),(TRANSPOSE(RIGHT(AC47:AI47,2))=($I$3:$K$3))*($I47:$K47)))),0) -> 0 | AC47: =IF(U47,INDEX(Форма2!$E$29:$K$38,SUMIFS(Форма2!$A$29:$A$38,Форма2!$B$29:$B$38,"<"&U47,Форма2!$C$29:$C$38,">="&U47),MATCH(U$4,Форма2!$E$2:$K$2,0)),"---") -> --- | AD47: =IF(V47,INDEX(Форма2!$E$29:$K$38,SUMIFS(Форма2!$A$29:$A$38,Форма2!$B$29:$B$38,"<"&V47,Форма2!$C$29:$C$38,">="&V47),MATCH(V$4,Форма2!$E$2:$K$2,0)),"---") -> --- | AE47: =IF(W47,INDEX(Форма2!$E$29:$K$38,SUMIFS(Форма2!$A$29:$A$38,Форма2!$B$29:$B$38,"<"&W47,Форма2!$C$29:$C$38,">="&W47),MATCH(W$4,Форма2!$E$2:$K$2,0)),"---") -> --- | AF47: =IF(X47,INDEX(Форма2!$E$29:$K$38,SUMIFS(Форма2!$A$29:$A$38,Форма2!$B$29:$B$38,"<"&X47,Форма2!$C$29:$C$38,">="&X47),MATCH(X$4,Форма2!$E$2:$K$2,0)),"---") -> --- | AG47: =IF(Y47,INDEX(Форма2!$E$29:$K$38,SUMIFS(Форма2!$A$29:$A$38,Форма2!$B$29:$B$38,"<"&Y47,Форма2!$C$29:$C$38,">="&Y47),MATCH(Y$4,Форма2!$E$2:$K$2,0)),"---") -> --- | AH47: =IF(Z47,INDEX(Форма2!$E$29:$K$38,SUMIFS(Форма2!$A$29:$A$38,Форма2!$B$29:$B$38,"<"&Z47,Форма2!$C$29:$C$38,">="&Z47),MATCH(Z$4,Форма2!$E$2:$K$2,0)),"---") -> --- | AI47: =IF(AA47,INDEX(Форма2!$E$29:$K$38,SUMIFS(Форма2!$A$29:$A$38,Форма2!$B$29:$B$38,"<"&AA47,Форма2!$C$29:$C$38,">="&AA47),MATCH(AA$4,Форма2!$E$2:$K$2,0)),"---") -> --- | AJ47: =SUM((($U47:$AA47)>Форма2!$B$40:$B$49)*(($U47:$AA47)<=Форма2!$C$40:$C$49)*(Форма2!$E$40:$K$49)) -> 0 | AK47: =IF(AJ47>=AJ$3,AK$3,INDEX(Форма3!$F$4:$J$4,,MAX(IFERROR(MATCH(RIGHT(AC47:AI47,2),Форма3!$F$4:$J$4,0),0)))) -> ЛУ | AL47: =SUM((($U47:$AA47)>Форма2!$B$7:$B$16)*(($U47:$AA47)<=Форма2!$C$7:$C$16)*(Форма2!$E$7:$K$16)) -> 0 | AM47: 453 | AN47: =SUMIFS(Потребители!D:D,Потребители!$B:$B,$B47) -> 453 | AO47: =SUMIFS(Потребители!E:E,Потребители!$B:$B,$B47) -> 0 | AP47: 15211.74 | AQ47: =SUMIFS(Потребители!G:G,Потребители!$B:$B,$B47) -> 15211.74 | AR47: =SUMIFS(Потребители!H:H,Потребители!$B:$B,$B47) -> 0 | AT47: 0 | AU47: =IF($AB47,MROUND(SUMIFS($I47:$K47,$I$3:$K$3,$AK47)*$AL47*Форма1!$E$45,10),0) -> 0 | AV47: =IF($AB47,FLOOR(SUM($AQ47:$AR47*Форма1!$E$40:$F$40)*($AB47/Форма1!$E$42),10),0) -> 0 | AW47: =IF($AB47,MROUND(SUMIFS($I47:$K47,$I$3:$K$3,$AK47)*Форма1!$F$45*$AL47,10),0) -> 0 | AX47: =IF($AB47,MROUND(SUMIFS($I47:$K47,$I$3:$K$3,$AK47)*Форма1!$G$45*$AL47,10),0) -> 0 | AZ47: 0 | BA47: =$AB47*Форма1!$E$50 -> 0 | BB47: =IF($AB47>Форма1!$E$53,-CUMIPMT(Форма1!$E$55,ROUND($AB47/Форма1!$E$53*Форма1!$E$54,0),$AB47,1,ROUND($AB47/Форма1!$E$53*Форма1!$E$54,0),0),0) -> 0 | BC47: =MROUND(SUM(Форма1!$E$38:$F$38*AQ47:AR47)/365*($AB47/Форма1!$E$58),10) -> 0 | BF47: 0 | BG47: =IF($AB47,MROUND(SUM($AN47:$AO47*Форма1!$K$40:$L$40),10),0) -> 0 | BL47: 0
A48: "Девятовка" | B48: Т45 | C48: ДC | D48: --- | E48: М4 | F48: Т45 | G48: --- | H48: 3 | I48: 114 | J48: =CHOOSE(Форма1!$M$22,IF(AVERAGEIFS(СтруктураСети!$G:$G,СтруктураСети!$H:$H,$B48)*Форма1!$M$23>I48,I48,AVERAGEIFS(СтруктураСети!$G:$G,СтруктураСети!$H:$H,$B48)*Форма1!$M$23),IF(VLOOKUP(C48,Форма1!$K$17:$M$20,3,0)*I48*Форма1!$M$23>I48,I48,VLOOKUP(C48,Форма1!$K$17:$M$20,3,0)*I48*Форма1!$M$23)) -> 27.36 | K48: =$J48*Форма1!$M$24 -> 6.84 | L48: 4 | M48: =COUNTIFS(Дефекты1!$A:$A,$B48,Дефекты1!$E:$E,M$4) -> 0 | N48: =COUNTIFS(Дефекты1!$A:$A,$B48,Дефекты1!$E:$E,N$4) -> 1 | O48: =COUNTIFS(Дефекты1!$A:$A,$B48,Дефекты1!$E:$E,O$4) -> 3 | P48: =COUNTIFS(Дефекты1!$A:$A,$B48,Дефекты1!$E:$E,P$4) -> 0 | Q48: =COUNTIFS(Дефекты1!$A:$A,$B48,Дефекты1!$E:$E,Q$4) -> 0 | R48: =COUNTIFS(Дефекты1!$A:$A,$B48,Дефекты1!$E:$E,R$4) -> 0 | S48: =COUNTIFS(Дефекты1!$A:$A,$B48,Дефекты1!$E:$E,S$4) -> 0 | T48: 35.0877193 | U48: 0 | V48: 8.771929825 | W48: 26.31578947 | X48: 0 | Y48: 0 | Z48: 0 | AA48: 0 | AB48: =IF(T48,IF(OR(NOT(ISERROR(MATCH(AB$3,$AC48:$AI48,0))),AJ48>=AJ$3),VLOOKUP(REPLACE(AB$3,6,2,$C48),Форма3!$M$17:$N$62,2,0)*$I48,SUM(MMULT((AC48:AI48=Форма3!$M$17:$M$62)*(Форма3!$N$17:$N$62),(TRANSPOSE(RIGHT(AC48:AI48,2))=($I$3:$K$3))*($I48:$K48)))),0) -> 7113600 | AC48: =IF(U48,INDEX(Форма2!$E$29:$K$38,SUMIFS(Форма2!$A$29:$A$38,Форма2!$B$29:$B$38,"<"&U48,Форма2!$C$29:$C$38,">="&U48),MATCH(U$4,Форма2!$E$2:$K$2,0)),"---") -> --- | AD48: =IF(V48,INDEX(Форма2!$E$29:$K$38,SUMIFS(Форма2!$A$29:$A$38,Форма2!$B$29:$B$38,"<"&V48,Форма2!$C$29:$C$38,">="&V48),MATCH(V$4,Форма2!$E$2:$K$2,0)),"---") -> РМНТ-ЛУ | AE48: =IF(W48,INDEX(Форма2!$E$29:$K$38,SUMIFS(Форма2!$A$29:$A$38,Форма2!$B$29:$B$38,"<"&W48,Форма2!$C$29:$C$38,">="&W48),MATCH(W$4,Форма2!$E$2:$K$2,0)),"---") -> УСТР-ЛТ | AF48: =IF(X48,INDEX(Форма2!$E$29:$K$38,SUMIFS(Форма2!$A$29:$A$38,Форма2!$B$29:$B$38,"<"&X48,Форма2!$C$29:$C$38,">="&X48),MATCH(X$4,Форма2!$E$2:$K$2,0)),"---") -> --- | AG48: =IF(Y48,INDEX(Форма2!$E$29:$K$38,SUMIFS(Форма2!$A$29:$A$38,Форма2!$B$29:$B$38,"<"&Y48,Форма2!$C$29:$C$38,">="&Y48),MATCH(Y$4,Форма2!$E$2:$K$2,0)),"---") -> --- | AH48: =IF(Z48,INDEX(Форма2!$E$29:$K$38,SUMIFS(Форма2!$A$29:$A$38,Форма2!$B$29:$B$38,"<"&Z48,Форма2!$C$29:$C$38,">="&Z48),MATCH(Z$4,Форма2!$E$2:$K$2,0)),"---") -> --- | AI48: =IF(AA48,INDEX(Форма2!$E$29:$K$38,SUMIFS(Форма2!$A$29:$A$38,Форма2!$B$29:$B$38,"<"&AA48,Форма2!$C$29:$C$38,">="&AA48),MATCH(AA$4,Форма2!$E$2:$K$2,0)),"---") -> --- | AJ48: =SUM((($U48:$AA48)>Форма2!$B$40:$B$49)*(($U48:$AA48)<=Форма2!$C$40:$C$49)*(Форма2!$E$40:$K$49)) -> 0.75 | AK48: =IF(AJ48>=AJ$3,AK$3,INDEX(Форма3!$F$4:$J$4,,MAX(IFERROR(MATCH(RIGHT(AC48:AI48,2),Форма3!$F$4:$J$4,0),0)))) -> ЛТ | AL48: =SUM((($U48:$AA48)>Форма2!$B$7:$B$16)*(($U48:$AA48)<=Форма2!$C$7:$C$16)*(Форма2!$E$7:$K$16)) -> 0.1714285714 | AM48: 184 | AN48: =SUMIFS(Потребители!D:D,Потребители!$B:$B,$B48) -> 184 | AO48: =SUMIFS(Потребители!E:E,Потребители!$B:$B,$B48) -> 0 | AP48: 6178.72 | AQ48: =SUMIFS(Потребители!G:G,Потребители!$B:$B,$B48) -> 6178.72 | AR48: =SUMIFS(Потребители!H:H,Потребители!$B:$B,$B48) -> 0 | AT48: 408350 | AU48: =IF($AB48,MROUND(SUMIFS($I48:$K48,$I$3:$K$3,$AK48)*$AL48*Форма1!$E$45,10),0) -> 107880 | AV48: =IF($AB48,FLOOR(SUM($AQ48:$AR48*Форма1!$E$40:$F$40)*($AB48/Форма1!$E$42),10),0) -> 290 | AW48: =IF($AB48,MROUND(SUMIFS($I48:$K48,$I$3:$K$3,$AK48)*Форма1!$F$45*$AL48,10),0) -> 215750 | AX48: =IF($AB48,MROUND(SUMIFS($I48:$K48,$I$3:$K$3,$AK48)*Форма1!$G$45*$AL48,10),0) -> 84430 | AZ48: 2138060 | BA48: =$AB48*Форма1!$E$50 -> 2134080 | BB48: =IF($AB48>Форма1!$E$53,-CUMIPMT(Форма1!$E$55,ROUND($AB48/Форма1!$E$53*Форма1!$E$54,0),$AB48,1,ROUND($AB48/Форма1!$E$53*Форма1!$E$54,0),0),0) -> 0 | BC48: =MROUND(SUM(Форма1!$E$38:$F$38*AQ48:AR48)/365*($AB48/Форма1!$E$58),10) -> 3980 | BF48: 3680000 | BG48: =IF($AB48,MROUND(SUM($AN48:$AO48*Форма1!$K$40:$L$40),10),0) -> 3680000 | BL48: 0
A49: "Девятовка" | B49: Т46 | C49: ДC | D49: --- | E49: М4 | F49: Т46 | G49: --- | H49: 3 | I49: 234 | J49: =CHOOSE(Форма1!$M$22,IF(AVERAGEIFS(СтруктураСети!$G:$G,СтруктураСети!$H:$H,$B49)*Форма1!$M$23>I49,I49,AVERAGEIFS(СтруктураСети!$G:$G,СтруктураСети!$H:$H,$B49)*Форма1!$M$23),IF(VLOOKUP(C49,Форма1!$K$17:$M$20,3,0)*I49*Форма1!$M$23>I49,I49,VLOOKUP(C49,Форма1!$K$17:$M$20,3,0)*I49*Форма1!$M$23)) -> 56.16 | K49: =$J49*Форма1!$M$24 -> 14.04 | L49: 3 | M49: =COUNTIFS(Дефекты1!$A:$A,$B49,Дефекты1!$E:$E,M$4) -> 0 | N49: =COUNTIFS(Дефекты1!$A:$A,$B49,Дефекты1!$E:$E,N$4) -> 0 | O49: =COUNTIFS(Дефекты1!$A:$A,$B49,Дефекты1!$E:$E,O$4) -> 2 | P49: =COUNTIFS(Дефекты1!$A:$A,$B49,Дефекты1!$E:$E,P$4) -> 0 | Q49: =COUNTIFS(Дефекты1!$A:$A,$B49,Дефекты1!$E:$E,Q$4) -> 0 | R49: =COUNTIFS(Дефекты1!$A:$A,$B49,Дефекты1!$E:$E,R$4) -> 1 | S49: =COUNTIFS(Дефекты1!$A:$A,$B49,Дефекты1!$E:$E,S$4) -> 0 | T49: 12.82051282 | U49: 0 | V49: 0 | W49: 8.547008547 | X49: 0 | Y49: 0 | Z49: 4.273504274 | AA49: 0 | AB49: =IF(T49,IF(OR(NOT(ISERROR(MATCH(AB$3,$AC49:$AI49,0))),AJ49>=AJ$3),VLOOKUP(REPLACE(AB$3,6,2,$C49),Форма3!$M$17:$N$62,2,0)*$I49,SUM(MMULT((AC49:AI49=Форма3!$M$17:$M$62)*(Форма3!$N$17:$N$62),(TRANSPOSE(RIGHT(AC49:AI49,2))=($I$3:$K$3))*($I49:$K49)))),0) -> 8985600 | AC49: =IF(U49,INDEX(Форма2!$E$29:$K$38,SUMIFS(Форма2!$A$29:$A$38,Форма2!$B$29:$B$38,"<"&U49,Форма2!$C$29:$C$38,">="&U49),MATCH(U$4,Форма2!$E$2:$K$2,0)),"---") -> --- | AD49: =IF(V49,INDEX(Форма2!$E$29:$K$38,SUMIFS(Форма2!$A$29:$A$38,Форма2!$B$29:$B$38,"<"&V49,Форма2!$C$29:$C$38,">="&V49),MATCH(V$4,Форма2!$E$2:$K$2,0)),"---") -> --- | AE49: =IF(W49,INDEX(Форма2!$E$29:$K$38,SUMIFS(Форма2!$A$29:$A$38,Форма2!$B$29:$B$38,"<"&W49,Форма2!$C$29:$C$38,">="&W49),MATCH(W$4,Форма2!$E$2:$K$2,0)),"---") -> УСТР-ЛТ | AF49: =IF(X49,INDEX(Форма2!$E$29:$K$38,SUMIFS(Форма2!$A$29:$A$38,Форма2!$B$29:$B$38,"<"&X49,Форма2!$C$29:$C$38,">="&X49),MATCH(X$4,Форма2!$E$2:$K$2,0)),"---") -> --- | AG49: =IF(Y49,INDEX(Форма2!$E$29:$K$38,SUMIFS(Форма2!$A$29:$A$38,Форма2!$B$29:$B$38,"<"&Y49,Форма2!$C$29:$C$38,">="&Y49),MATCH(Y$4,Форма2!$E$2:$K$2,0)),"---") -> --- | AH49: =IF(Z49,INDEX(Форма2!$E$29:$K$38,SUMIFS(Форма2!$A$29:$A$38,Форма2!$B$29:$B$38,"<"&Z49,Форма2!$C$29:$C$38,">="&Z49),MATCH(Z$4,Форма2!$E$2:$K$2,0)),"---") -> --- | AI49: =IF(AA49,INDEX(Форма2!$E$29:$K$38,SUMIFS(Форма2!$A$29:$A$38,Форма2!$B$29:$B$38,"<"&AA49,Форма2!$C$29:$C$38,">="&AA49),MATCH(AA$4,Форма2!$E$2:$K$2,0)),"---") -> --- | AJ49: =SUM((($U49:$AA49)>Форма2!$B$40:$B$49)*(($U49:$AA49)<=Форма2!$C$40:$C$49)*(Форма2!$E$40:$K$49)) -> 0.4 | AK49: =IF(AJ49>=AJ$3,AK$3,INDEX(Форма3!$F$4:$J$4,,MAX(IFERROR(MATCH(RIGHT(AC49:AI49,2),Форма3!$F$4:$J$4,0),0)))) -> ЛТ | AL49: =SUM((($U49:$AA49)>Форма2!$B$7:$B$16)*(($U49:$AA49)<=Форма2!$C$7:$C$16)*(Форма2!$E$7:$K$16)) -> 0.1214285714 | AM49: 100 | AN49: =SUMIFS(Потребители!D:D,Потребители!$B:$B,$B49) -> 100 | AO49: =SUMIFS(Потребители!E:E,Потребители!$B:$B,$B49) -> 0 | AP49: 3358 | AQ49: =SUMIFS(Потребители!G:G,Потребители!$B:$B,$B49) -> 3358 | AR49: =SUMIFS(Потребители!H:H,Потребители!$B:$B,$B49) -> 0 | AT49: 593480 | AU49: =IF($AB49,MROUND(SUMIFS($I49:$K49,$I$3:$K$3,$AK49)*$AL49*Форма1!$E$45,10),0) -> 156850 | AV49: =IF($AB49,FLOOR(SUM($AQ49:$AR49*Форма1!$E$40:$F$40)*($AB49/Форма1!$E$42),10),0) -> 190 | AW49: =IF($AB49,MROUND(SUMIFS($I49:$K49,$I$3:$K$3,$AK49)*Форма1!$F$45*$AL49,10),0) -> 313690 | AX49: =IF($AB49,MROUND(SUMIFS($I49:$K49,$I$3:$K$3,$AK49)*Форма1!$G$45*$AL49,10),0) -> 122750 | AZ49: 2698420 | BA49: =$AB49*Форма1!$E$50 -> 2695680 | BB49: =IF($AB49>Форма1!$E$53,-CUMIPMT(Форма1!$E$55,ROUND($AB49/Форма1!$E$53*Форма1!$E$54,0),$AB49,1,ROUND($AB49/Форма1!$E$53*Форма1!$E$54,0),0),0) -> 0 | BC49: =MROUND(SUM(Форма1!$E$38:$F$38*AQ49:AR49)/365*($AB49/Форма1!$E$58),10) -> 2740 | BF49: 2000000 | BG49: =IF($AB49,MROUND(SUM($AN49:$AO49*Форма1!$K$40:$L$40),10),0) -> 2000000 | BL49: 0
A50: "Девятовка" | B50: Т47 | C50: ДC | D50: --- | E50: М4 | F50: Т47 | G50: --- | H50: 3 | I50: 132 | J50: =CHOOSE(Форма1!$M$22,IF(AVERAGEIFS(СтруктураСети!$G:$G,СтруктураСети!$H:$H,$B50)*Форма1!$M$23>I50,I50,AVERAGEIFS(СтруктураСети!$G:$G,СтруктураСети!$H:$H,$B50)*Форма1!$M$23),IF(VLOOKUP(C50,Форма1!$K$17:$M$20,3,0)*I50*Форма1!$M$23>I50,I50,VLOOKUP(C50,Форма1!$K$17:$M$20,3,0)*I50*Форма1!$M$23)) -> 31.68 | K50: =$J50*Форма1!$M$24 -> 7.92 | L50: 7 | M50: =COUNTIFS(Дефекты1!$A:$A,$B50,Дефекты1!$E:$E,M$4) -> 1 | N50: =COUNTIFS(Дефекты1!$A:$A,$B50,Дефекты1!$E:$E,N$4) -> 0 | O50: =COUNTIFS(Дефекты1!$A:$A,$B50,Дефекты1!$E:$E,O$4) -> 4 | P50: =COUNTIFS(Дефекты1!$A:$A,$B50,Дефекты1!$E:$E,P$4) -> 0 | Q50: =COUNTIFS(Дефекты1!$A:$A,$B50,Дефекты1!$E:$E,Q$4) -> 0 | R50: =COUNTIFS(Дефекты1!$A:$A,$B50,Дефекты1!$E:$E,R$4) -> 2 | S50: =COUNTIFS(Дефекты1!$A:$A,$B50,Дефекты1!$E:$E,S$4) -> 0 | T50: 53.03030303 | U50: 7.575757576 | V50: 0 | W50: 30.3030303 | X50: 0 | Y50: 0 | Z50: 15.15151515 | AA50: 0 | AB50: =IF(T50,IF(OR(NOT(ISERROR(MATCH(AB$3,$AC50:$AI50,0))),AJ50>=AJ$3),VLOOKUP(REPLACE(AB$3,6,2,$C50),Форма3!$M$17:$N$62,2,0)*$I50,SUM(MMULT((AC50:AI50=Форма3!$M$17:$M$62)*(Форма3!$N$17:$N$62),(TRANSPOSE(RIGHT(AC50:AI50,2))=($I$3:$K$3))*($I50:$K50)))),0) -> 8236800 | AC50: =IF(U50,INDEX(Форма2!$E$29:$K$38,SUMIFS(Форма2!$A$29:$A$38,Форма2!$B$29:$B$38,"<"&U50,Форма2!$C$29:$C$38,">="&U50),MATCH(U$4,Форма2!$E$2:$K$2,0)),"---") -> РМНТ-ЛУ | AD50: =IF(V50,INDEX(Форма2!$E$29:$K$38,SUMIFS(Форма2!$A$29:$A$38,Форма2!$B$29:$B$38,"<"&V50,Форма2!$C$29:$C$38,">="&V50),MATCH(V$4,Форма2!$E$2:$K$2,0)),"---") -> --- | AE50: =IF(W50,INDEX(Форма2!$E$29:$K$38,SUMIFS(Форма2!$A$29:$A$38,Форма2!$B$29:$B$38,"<"&W50,Форма2!$C$29:$C$38,">="&W50),MATCH(W$4,Форма2!$E$2:$K$2,0)),"---") -> УСТР-ЛТ | AF50: =IF(X50,INDEX(Форма2!$E$29:$K$38,SUMIFS(Форма2!$A$29:$A$38,Форма2!$B$29:$B$38,"<"&X50,Форма2!$C$29:$C$38,">="&X50),MATCH(X$4,Форма2!$E$2:$K$2,0)),"---") -> --- | AG50: =IF(Y50,INDEX(Форма2!$E$29:$K$38,SUMIFS(Форма2!$A$29:$A$38,Форма2!$B$29:$B$38,"<"&Y50,Форма2!$C$29:$C$38,">="&Y50),MATCH(Y$4,Форма2!$E$2:$K$2,0)),"---") -> --- | AH50: =IF(Z50,INDEX(Форма2!$E$29:$K$38,SUMIFS(Форма2!$A$29:$A$38,Форма2!$B$29:$B$38,"<"&Z50,Форма2!$C$29:$C$38,">="&Z50),MATCH(Z$4,Форма2!$E$2:$K$2,0)),"---") -> --- | AI50: =IF(AA50,INDEX(Форма2!$E$29:$K$38,SUMIFS(Форма2!$A$29:$A$38,Форма2!$B$29:$B$38,"<"&AA50,Форма2!$C$29:$C$38,">="&AA50),MATCH(AA$4,Форма2!$E$2:$K$2,0)),"---") -> --- | AJ50: =SUM((($U50:$AA50)>Форма2!$B$40:$B$49)*(($U50:$AA50)<=Форма2!$C$40:$C$49)*(Форма2!$E$40:$K$49)) -> 0.75 | AK50: =IF(AJ50>=AJ$3,AK$3,INDEX(Форма3!$F$4:$J$4,,MAX(IFERROR(MATCH(RIGHT(AC50:AI50,2),Форма3!$F$4:$J$4,0),0)))) -> ЛТ | AL50: =SUM((($U50:$AA50)>Форма2!$B$7:$B$16)*(($U50:$AA50)<=Форма2!$C$7:$C$16)*(Форма2!$E$7:$K$16)) -> 0.2047619048 | AM50: 1 | AN50: =SUMIFS(Потребители!D:D,Потребители!$B:$B,$B50) -> 0 | AO50: =SUMIFS(Потребители!E:E,Потребители!$B:$B,$B50) -> 1 | AP50: 7896 | AQ50: =SUMIFS(Потребители!G:G,Потребители!$B:$B,$B50) -> 0 | AR50: =SUMIFS(Потребители!H:H,Потребители!$B:$B,$B50) -> 7896 | AT50: 571060 | AU50: =IF($AB50,MROUND(SUMIFS($I50:$K50,$I$3:$K$3,$AK50)*$AL50*Форма1!$E$45,10),0) -> 149200 | AV50: =IF($AB50,FLOOR(SUM($AQ50:$AR50*Форма1!$E$40:$F$40)*($AB50/Форма1!$E$42),10),0) -> 6700 | AW50: =IF($AB50,MROUND(SUMIFS($I50:$K50,$I$3:$K$3,$AK50)*Форма1!$F$45*$AL50,10),0) -> 298400 | AX50: =IF($AB50,MROUND(SUMIFS($I50:$K50,$I$3:$K$3,$AK50)*Форма1!$G$45*$AL50,10),0) -> 116760 | AZ50: 2562900 | BA50: =$AB50*Форма1!$E$50 -> 2471040 | BB50: =IF($AB50>Форма1!$E$53,-CUMIPMT(Форма1!$E$55,ROUND($AB50/Форма1!$E$53*Форма1!$E$54,0),$AB50,1,ROUND($AB50/Форма1!$E$53*Форма1!$E$54,0),0),0) -> 0 | BC50: =MROUND(SUM(Форма1!$E$38:$F$38*AQ50:AR50)/365*($AB50/Форма1!$E$58),10) -> 91860 | BF50: 16000 | BG50: =IF($AB50,MROUND(SUM($AN50:$AO50*Форма1!$K$40:$L$40),10),0) -> 16000 | BL50: 0
A51: "Девятовка" | B51: Т48 | C51: ДC | D51: --- | E51: М4 | F51: Т48 | G51: --- | H51: 3 | I51: 46 | J51: =CHOOSE(Форма1!$M$22,IF(AVERAGEIFS(СтруктураСети!$G:$G,СтруктураСети!$H:$H,$B51)*Форма1!$M$23>I51,I51,AVERAGEIFS(СтруктураСети!$G:$G,СтруктураСети!$H:$H,$B51)*Форма1!$M$23),IF(VLOOKUP(C51,Форма1!$K$17:$M$20,3,0)*I51*Форма1!$M$23>I51,I51,VLOOKUP(C51,Форма1!$K$17:$M$20,3,0)*I51*Форма1!$M$23)) -> 11.04 | K51: =$J51*Форма1!$M$24 -> 2.76 | L51: 4 | M51: =COUNTIFS(Дефекты1!$A:$A,$B51,Дефекты1!$E:$E,M$4) -> 3 | N51: =COUNTIFS(Дефекты1!$A:$A,$B51,Дефекты1!$E:$E,N$4) -> 0 | O51: =COUNTIFS(Дефекты1!$A:$A,$B51,Дефекты1!$E:$E,O$4) -> 0 | P51: =COUNTIFS(Дефекты1!$A:$A,$B51,Дефекты1!$E:$E,P$4) -> 0 | Q51: =COUNTIFS(Дефекты1!$A:$A,$B51,Дефекты1!$E:$E,Q$4) -> 0 | R51: =COUNTIFS(Дефекты1!$A:$A,$B51,Дефекты1!$E:$E,R$4) -> 1 | S51: =COUNTIFS(Дефекты1!$A:$A,$B51,Дефекты1!$E:$E,S$4) -> 0 | T51: 86.95652174 | U51: 65.2173913 | V51: 0 | W51: 0 | X51: 0 | Y51: 0 | Z51: 21.73913043 | AA51: 0 | AB51: =IF(T51,IF(OR(NOT(ISERROR(MATCH(AB$3,$AC51:$AI51,0))),AJ51>=AJ$3),VLOOKUP(REPLACE(AB$3,6,2,$C51),Форма3!$M$17:$N$62,2,0)*$I51,SUM(MMULT((AC51:AI51=Форма3!$M$17:$M$62)*(Форма3!$N$17:$N$62),(TRANSPOSE(RIGHT(AC51:AI51,2))=($I$3:$K$3))*($I51:$K51)))),0) -> 1104000 | AC51: =IF(U51,INDEX(Форма2!$E$29:$K$38,SUMIFS(Форма2!$A$29:$A$38,Форма2!$B$29:$B$38,"<"&U51,Форма2!$C$29:$C$38,">="&U51),MATCH(U$4,Форма2!$E$2:$K$2,0)),"---") -> РМНТ-ЛУ | AD51: =IF(V51,INDEX(Форма2!$E$29:$K$38,SUMIFS(Форма2!$A$29:$A$38,Форма2!$B$29:$B$38,"<"&V51,Форма2!$C$29:$C$38,">="&V51),MATCH(V$4,Форма2!$E$2:$K$2,0)),"---") -> --- | AE51: =IF(W51,INDEX(Форма2!$E$29:$K$38,SUMIFS(Форма2!$A$29:$A$38,Форма2!$B$29:$B$38,"<"&W51,Форма2!$C$29:$C$38,">="&W51),MATCH(W$4,Форма2!$E$2:$K$2,0)),"---") -> --- | AF51: =IF(X51,INDEX(Форма2!$E$29:$K$38,SUMIFS(Форма2!$A$29:$A$38,Форма2!$B$29:$B$38,"<"&X51,Форма2!$C$29:$C$38,">="&X51),MATCH(X$4,Форма2!$E$2:$K$2,0)),"---") -> --- | AG51: =IF(Y51,INDEX(Форма2!$E$29:$K$38,SUMIFS(Форма2!$A$29:$A$38,Форма2!$B$29:$B$38,"<"&Y51,Форма2!$C$29:$C$38,">="&Y51),MATCH(Y$4,Форма2!$E$2:$K$2,0)),"---") -> --- | AH51: =IF(Z51,INDEX(Форма2!$E$29:$K$38,SUMIFS(Форма2!$A$29:$A$38,Форма2!$B$29:$B$38,"<"&Z51,Форма2!$C$29:$C$38,">="&Z51),MATCH(Z$4,Форма2!$E$2:$K$2,0)),"---") -> --- | AI51: =IF(AA51,INDEX(Форма2!$E$29:$K$38,SUMIFS(Форма2!$A$29:$A$38,Форма2!$B$29:$B$38,"<"&AA51,Форма2!$C$29:$C$38,">="&AA51),MATCH(AA$4,Форма2!$E$2:$K$2,0)),"---") -> --- | AJ51: =SUM((($U51:$AA51)>Форма2!$B$40:$B$49)*(($U51:$AA51)<=Форма2!$C$40:$C$49)*(Форма2!$E$40:$K$49)) -> 0.35 | AK51: =IF(AJ51>=AJ$3,AK$3,INDEX(Форма3!$F$4:$J$4,,MAX(IFERROR(MATCH(RIGHT(AC51:AI51,2),Форма3!$F$4:$J$4,0),0)))) -> ЛУ | AL51: =SUM((($U51:$AA51)>Форма2!$B$7:$B$16)*(($U51:$AA51)<=Форма2!$C$7:$C$16)*(Форма2!$E$7:$K$16)) -> 0.3 | AM51: 203 | AN51: =SUMIFS(Потребители!D:D,Потребители!$B:$B,$B51) -> 203 | AO51: =SUMIFS(Потребители!E:E,Потребители!$B:$B,$B51) -> 0 | AP51: 6816.74 | AQ51: =SUMIFS(Потребители!G:G,Потребители!$B:$B,$B51) -> 6816.74 | AR51: =SUMIFS(Потребители!H:H,Потребители!$B:$B,$B51) -> 0 | AT51: 72070 | AU51: =IF($AB51,MROUND(SUMIFS($I51:$K51,$I$3:$K$3,$AK51)*$AL51*Форма1!$E$45,10),0) -> 19040 | AV51: =IF($AB51,FLOOR(SUM($AQ51:$AR51*Форма1!$E$40:$F$40)*($AB51/Форма1!$E$42),10),0) -> 40 | AW51: =IF($AB51,MROUND(SUMIFS($I51:$K51,$I$3:$K$3,$AK51)*Форма1!$F$45*$AL51,10),0) -> 38090 | AX51: =IF($AB51,MROUND(SUMIFS($I51:$K51,$I$3:$K$3,$AK51)*Форма1!$G$45*$AL51,10),0) -> 14900 | AZ51: 331880 | BA51: =$AB51*Форма1!$E$50 -> 331200 | BB51: =IF($AB51>Форма1!$E$53,-CUMIPMT(Форма1!$E$55,ROUND($AB51/Форма1!$E$53*Форма1!$E$54,0),$AB51,1,ROUND($AB51/Форма1!$E$53*Форма1!$E$54,0),0),0) -> 0 | BC51: =MROUND(SUM(Форма1!$E$38:$F$38*AQ51:AR51)/365*($AB51/Форма1!$E$58),10) -> 680 | BF51: 4060000 | BG51: =IF($AB51,MROUND(SUM($AN51:$AO51*Форма1!$K$40:$L$40),10),0) -> 4060000 | BL51: 0
A52: "Девятовка" | B52: Т49 | C52: ДC | D52: --- | E52: М4 | F52: Т49 | G52: --- | H52: 3 | I52: 88 | J52: =CHOOSE(Форма1!$M$22,IF(AVERAGEIFS(СтруктураСети!$G:$G,СтруктураСети!$H:$H,$B52)*Форма1!$M$23>I52,I52,AVERAGEIFS(СтруктураСети!$G:$G,СтруктураСети!$H:$H,$B52)*Форма1!$M$23),IF(VLOOKUP(C52,Форма1!$K$17:$M$20,3,0)*I52*Форма1!$M$23>I52,I52,VLOOKUP(C52,Форма1!$K$17:$M$20,3,0)*I52*Форма1!$M$23)) -> 21.12 | K52: =$J52*Форма1!$M$24 -> 5.28 | L52: 5 | M52: =COUNTIFS(Дефекты1!$A:$A,$B52,Дефекты1!$E:$E,M$4) -> 1 | N52: =COUNTIFS(Дефекты1!$A:$A,$B52,Дефекты1!$E:$E,N$4) -> 0 | O52: =COUNTIFS(Дефекты1!$A:$A,$B52,Дефекты1!$E:$E,O$4) -> 1 | P52: =COUNTIFS(Дефекты1!$A:$A,$B52,Дефекты1!$E:$E,P$4) -> 0 | Q52: =COUNTIFS(Дефекты1!$A:$A,$B52,Дефекты1!$E:$E,Q$4) -> 0 | R52: =COUNTIFS(Дефекты1!$A:$A,$B52,Дефекты1!$E:$E,R$4) -> 3 | S52: =COUNTIFS(Дефекты1!$A:$A,$B52,Дефекты1!$E:$E,S$4) -> 0 | T52: 56.81818182 | U52: 11.36363636 | V52: 0 | W52: 11.36363636 | X52: 0 | Y52: 0 | Z52: 34.09090909 | AA52: 0 | AB52: =IF(T52,IF(OR(NOT(ISERROR(MATCH(AB$3,$AC52:$AI52,0))),AJ52>=AJ$3),VLOOKUP(REPLACE(AB$3,6,2,$C52),Форма3!$M$17:$N$62,2,0)*$I52,SUM(MMULT((AC52:AI52=Форма3!$M$17:$M$62)*(Форма3!$N$17:$N$62),(TRANSPOSE(RIGHT(AC52:AI52,2))=($I$3:$K$3))*($I52:$K52)))),0) -> 5491200 | AC52: =IF(U52,INDEX(Форма2!$E$29:$K$38,SUMIFS(Форма2!$A$29:$A$38,Форма2!$B$29:$B$38,"<"&U52,Форма2!$C$29:$C$38,">="&U52),MATCH(U$4,Форма2!$E$2:$K$2,0)),"---") -> РМНТ-ЛУ | AD52: =IF(V52,INDEX(Форма2!$E$29:$K$38,SUMIFS(Форма2!$A$29:$A$38,Форма2!$B$29:$B$38,"<"&V52,Форма2!$C$29:$C$38,">="&V52),MATCH(V$4,Форма2!$E$2:$K$2,0)),"---") -> --- | AE52: =IF(W52,INDEX(Форма2!$E$29:$K$38,SUMIFS(Форма2!$A$29:$A$38,Форма2!$B$29:$B$38,"<"&W52,Форма2!$C$29:$C$38,">="&W52),MATCH(W$4,Форма2!$E$2:$K$2,0)),"---") -> УСТР-ЛТ | AF52: =IF(X52,INDEX(Форма2!$E$29:$K$38,SUMIFS(Форма2!$A$29:$A$38,Форма2!$B$29:$B$38,"<"&X52,Форма2!$C$29:$C$38,">="&X52),MATCH(X$4,Форма2!$E$2:$K$2,0)),"---") -> --- | AG52: =IF(Y52,INDEX(Форма2!$E$29:$K$38,SUMIFS(Форма2!$A$29:$A$38,Форма2!$B$29:$B$38,"<"&Y52,Форма2!$C$29:$C$38,">="&Y52),MATCH(Y$4,Форма2!$E$2:$K$2,0)),"---") -> --- | AH52: =IF(Z52,INDEX(Форма2!$E$29:$K$38,SUMIFS(Форма2!$A$29:$A$38,Форма2!$B$29:$B$38,"<"&Z52,Форма2!$C$29:$C$38,">="&Z52),MATCH(Z$4,Форма2!$E$2:$K$2,0)),"---") -> --- | AI52: =IF(AA52,INDEX(Форма2!$E$29:$K$38,SUMIFS(Форма2!$A$29:$A$38,Форма2!$B$29:$B$38,"<"&AA52,Форма2!$C$29:$C$38,">="&AA52),MATCH(AA$4,Форма2!$E$2:$K$2,0)),"---") -> --- | AJ52: =SUM((($U52:$AA52)>Форма2!$B$40:$B$49)*(($U52:$AA52)<=Форма2!$C$40:$C$49)*(Форма2!$E$40:$K$49)) -> 0.75 | AK52: =IF(AJ52>=AJ$3,AK$3,INDEX(Форма3!$F$4:$J$4,,MAX(IFERROR(MATCH(RIGHT(AC52:AI52,2),Форма3!$F$4:$J$4,0),0)))) -> ЛТ | AL52: =SUM((($U52:$AA52)>Форма2!$B$7:$B$16)*(($U52:$AA52)<=Форма2!$C$7:$C$16)*(Форма2!$E$7:$K$16)) -> 0.2047619048 | AM52: 303 | AN52: =SUMIFS(Потребители!D:D,Потребители!$B:$B,$B52) -> 303 | AO52: =SUMIFS(Потребители!E:E,Потребители!$B:$B,$B52) -> 0 | AP52: 10174.74 | AQ52: =SUMIFS(Потребители!G:G,Потребители!$B:$B,$B52) -> 10174.74 | AR52: =SUMIFS(Потребители!H:H,Потребители!$B:$B,$B52) -> 0 | AT52: 376600 | AU52: =IF($AB52,MROUND(SUMIFS($I52:$K52,$I$3:$K$3,$AK52)*$AL52*Форма1!$E$45,10),0) -> 99470 | AV52: =IF($AB52,FLOOR(SUM($AQ52:$AR52*Форма1!$E$40:$F$40)*($AB52/Форма1!$E$42),10),0) -> 360 | AW52: =IF($AB52,MROUND(SUMIFS($I52:$K52,$I$3:$K$3,$AK52)*Форма1!$F$45*$AL52,10),0) -> 198930 | AX52: =IF($AB52,MROUND(SUMIFS($I52:$K52,$I$3:$K$3,$AK52)*Форма1!$G$45*$AL52,10),0) -> 77840 | AZ52: 1652420 | BA52: =$AB52*Форма1!$E$50 -> 1647360 | BB52: =IF($AB52>Форма1!$E$53,-CUMIPMT(Форма1!$E$55,ROUND($AB52/Форма1!$E$53*Форма1!$E$54,0),$AB52,1,ROUND($AB52/Форма1!$E$53*Форма1!$E$54,0),0),0) -> 0 | BC52: =MROUND(SUM(Форма1!$E$38:$F$38*AQ52:AR52)/365*($AB52/Форма1!$E$58),10) -> 5060 | BF52: 6060000 | BG52: =IF($AB52,MROUND(SUM($AN52:$AO52*Форма1!$K$40:$L$40),10),0) -> 6060000 | BL52: 0
A53: "Девятовка" | B53: Т5 | C53: ДC | D53: --- | E53: М1 | F53: Т5 | G53: --- | H53: 3 | I53: 127 | J53: =CHOOSE(Форма1!$M$22,IF(AVERAGEIFS(СтруктураСети!$G:$G,СтруктураСети!$H:$H,$B53)*Форма1!$M$23>I53,I53,AVERAGEIFS(СтруктураСети!$G:$G,СтруктураСети!$H:$H,$B53)*Форма1!$M$23),IF(VLOOKUP(C53,Форма1!$K$17:$M$20,3,0)*I53*Форма1!$M$23>I53,I53,VLOOKUP(C53,Форма1!$K$17:$M$20,3,0)*I53*Форма1!$M$23)) -> 30.48 | K53: =$J53*Форма1!$M$24 -> 7.62 | L53: 13 | M53: =COUNTIFS(Дефекты1!$A:$A,$B53,Дефекты1!$E:$E,M$4) -> 3 | N53: =COUNTIFS(Дефекты1!$A:$A,$B53,Дефекты1!$E:$E,N$4) -> 0 | O53: =COUNTIFS(Дефекты1!$A:$A,$B53,Дефекты1!$E:$E,O$4) -> 3 | P53: =COUNTIFS(Дефекты1!$A:$A,$B53,Дефекты1!$E:$E,P$4) -> 0 | Q53: =COUNTIFS(Дефекты1!$A:$A,$B53,Дефекты1!$E:$E,Q$4) -> 0 | R53: =COUNTIFS(Дефекты1!$A:$A,$B53,Дефекты1!$E:$E,R$4) -> 7 | S53: =COUNTIFS(Дефекты1!$A:$A,$B53,Дефекты1!$E:$E,S$4) -> 0 | T53: 102.3622047 | U53: 23.62204724 | V53: 0 | W53: 23.62204724 | X53: 0 | Y53: 0 | Z53: 55.11811024 | AA53: 0 | AB53: =IF(T53,IF(OR(NOT(ISERROR(MATCH(AB$3,$AC53:$AI53,0))),AJ53>=AJ$3),VLOOKUP(REPLACE(AB$3,6,2,$C53),Форма3!$M$17:$N$62,2,0)*$I53,SUM(MMULT((AC53:AI53=Форма3!$M$17:$M$62)*(Форма3!$N$17:$N$62),(TRANSPOSE(RIGHT(AC53:AI53,2))=($I$3:$K$3))*($I53:$K53)))),0) -> 7924800 | AC53: =IF(U53,INDEX(Форма2!$E$29:$K$38,SUMIFS(Форма2!$A$29:$A$38,Форма2!$B$29:$B$38,"<"&U53,Форма2!$C$29:$C$38,">="&U53),MATCH(U$4,Форма2!$E$2:$K$2,0)),"---") -> РМНТ-ЛУ | AD53: =IF(V53,INDEX(Форма2!$E$29:$K$38,SUMIFS(Форма2!$A$29:$A$38,Форма2!$B$29:$B$38,"<"&V53,Форма2!$C$29:$C$38,">="&V53),MATCH(V$4,Форма2!$E$2:$K$2,0)),"---") -> --- | AE53: =IF(W53,INDEX(Форма2!$E$29:$K$38,SUMIFS(Форма2!$A$29:$A$38,Форма2!$B$29:$B$38,"<"&W53,Форма2!$C$29:$C$38,">="&W53),MATCH(W$4,Форма2!$E$2:$K$2,0)),"---") -> УСТР-ЛТ | AF53: =IF(X53,INDEX(Форма2!$E$29:$K$38,SUMIFS(Форма2!$A$29:$A$38,Форма2!$B$29:$B$38,"<"&X53,Форма2!$C$29:$C$38,">="&X53),MATCH(X$4,Форма2!$E$2:$K$2,0)),"---") -> --- | AG53: =IF(Y53,INDEX(Форма2!$E$29:$K$38,SUMIFS(Форма2!$A$29:$A$38,Форма2!$B$29:$B$38,"<"&Y53,Форма2!$C$29:$C$38,">="&Y53),MATCH(Y$4,Форма2!$E$2:$K$2,0)),"---") -> --- | AH53: =IF(Z53,INDEX(Форма2!$E$29:$K$38,SUMIFS(Форма2!$A$29:$A$38,Форма2!$B$29:$B$38,"<"&Z53,Форма2!$C$29:$C$38,">="&Z53),MATCH(Z$4,Форма2!$E$2:$K$2,0)),"---") -> --- | AI53: =IF(AA53,INDEX(Форма2!$E$29:$K$38,SUMIFS(Форма2!$A$29:$A$38,Форма2!$B$29:$B$38,"<"&AA53,Форма2!$C$29:$C$38,">="&AA53),MATCH(AA$4,Форма2!$E$2:$K$2,0)),"---") -> --- | AJ53: =SUM((($U53:$AA53)>Форма2!$B$40:$B$49)*(($U53:$AA53)<=Форма2!$C$40:$C$49)*(Форма2!$E$40:$K$49)) -> 0.75 | AK53: =IF(AJ53>=AJ$3,AK$3,INDEX(Форма3!$F$4:$J$4,,MAX(IFERROR(MATCH(RIGHT(AC53:AI53,2),Форма3!$F$4:$J$4,0),0)))) -> ЛТ | AL53: =SUM((($U53:$AA53)>Форма2!$B$7:$B$16)*(($U53:$AA53)<=Форма2!$C$7:$C$16)*(Форма2!$E$7:$K$16)) -> 0.3047619048 | AM53: 129 | AN53: =SUMIFS(Потребители!D:D,Потребители!$B:$B,$B53) -> 129 | AO53: =SUMIFS(Потребители!E:E,Потребители!$B:$B,$B53) -> 0 | AP53: 4331.82 | AQ53: =SUMIFS(Потребители!G:G,Потребители!$B:$B,$B53) -> 4331.82 | AR53: =SUMIFS(Потребители!H:H,Потребители!$B:$B,$B53) -> 0 | AT53: 808370 | AU53: =IF($AB53,MROUND(SUMIFS($I53:$K53,$I$3:$K$3,$AK53)*$AL53*Форма1!$E$45,10),0) -> 213650 | AV53: =IF($AB53,FLOOR(SUM($AQ53:$AR53*Форма1!$E$40:$F$40)*($AB53/Форма1!$E$42),10),0) -> 220 | AW53: =IF($AB53,MROUND(SUMIFS($I53:$K53,$I$3:$K$3,$AK53)*Форма1!$F$45*$AL53,10),0) -> 427300 | AX53: =IF($AB53,MROUND(SUMIFS($I53:$K53,$I$3:$K$3,$AK53)*Форма1!$G$45*$AL53,10),0) -> 167200 | AZ53: 2380550 | BA53: =$AB53*Форма1!$E$50 -> 2377440 | BB53: =IF($AB53>Форма1!$E$53,-CUMIPMT(Форма1!$E$55,ROUND($AB53/Форма1!$E$53*Форма1!$E$54,0),$AB53,1,ROUND($AB53/Форма1!$E$53*Форма1!$E$54,0),0),0) -> 0 | BC53: =MROUND(SUM(Форма1!$E$38:$F$38*AQ53:AR53)/365*($AB53/Форма1!$E$58),10) -> 3110 | BF53: 2580000 | BG53: =IF($AB53,MROUND(SUM($AN53:$AO53*Форма1!$K$40:$L$40),10),0) -> 2580000 | BL53: 0
A54: "Девятовка" | B54: Т50 | C54: ДC | D54: --- | E54: М4 | F54: Т50 | G54: --- | H54: 3 | I54: 194 | J54: =CHOOSE(Форма1!$M$22,IF(AVERAGEIFS(СтруктураСети!$G:$G,СтруктураСети!$H:$H,$B54)*Форма1!$M$23>I54,I54,AVERAGEIFS(СтруктураСети!$G:$G,СтруктураСети!$H:$H,$B54)*Форма1!$M$23),IF(VLOOKUP(C54,Форма1!$K$17:$M$20,3,0)*I54*Форма1!$M$23>I54,I54,VLOOKUP(C54,Форма1!$K$17:$M$20,3,0)*I54*Форма1!$M$23)) -> 46.56 | K54: =$J54*Форма1!$M$24 -> 11.64 | L54: 3 | M54: =COUNTIFS(Дефекты1!$A:$A,$B54,Дефекты1!$E:$E,M$4) -> 0 | N54: =COUNTIFS(Дефекты1!$A:$A,$B54,Дефекты1!$E:$E,N$4) -> 0 | O54: =COUNTIFS(Дефекты1!$A:$A,$B54,Дефекты1!$E:$E,O$4) -> 0 | P54: =COUNTIFS(Дефекты1!$A:$A,$B54,Дефекты1!$E:$E,P$4) -> 0 | Q54: =COUNTIFS(Дефекты1!$A:$A,$B54,Дефекты1!$E:$E,Q$4) -> 0 | R54: =COUNTIFS(Дефекты1!$A:$A,$B54,Дефекты1!$E:$E,R$4) -> 3 | S54: =COUNTIFS(Дефекты1!$A:$A,$B54,Дефекты1!$E:$E,S$4) -> 0 | T54: 15.46391753 | U54: 0 | V54: 0 | W54: 0 | X54: 0 | Y54: 0 | Z54: 15.46391753 | AA54: 0 | AB54: =IF(T54,IF(OR(NOT(ISERROR(MATCH(AB$3,$AC54:$AI54,0))),AJ54>=AJ$3),VLOOKUP(REPLACE(AB$3,6,2,$C54),Форма3!$M$17:$N$62,2,0)*$I54,SUM(MMULT((AC54:AI54=Форма3!$M$17:$M$62)*(Форма3!$N$17:$N$62),(TRANSPOSE(RIGHT(AC54:AI54,2))=($I$3:$K$3))*($I54:$K54)))),0) -> 0 | AC54: =IF(U54,INDEX(Форма2!$E$29:$K$38,SUMIFS(Форма2!$A$29:$A$38,Форма2!$B$29:$B$38,"<"&U54,Форма2!$C$29:$C$38,">="&U54),MATCH(U$4,Форма2!$E$2:$K$2,0)),"---") -> --- | AD54: =IF(V54,INDEX(Форма2!$E$29:$K$38,SUMIFS(Форма2!$A$29:$A$38,Форма2!$B$29:$B$38,"<"&V54,Форма2!$C$29:$C$38,">="&V54),MATCH(V$4,Форма2!$E$2:$K$2,0)),"---") -> --- | AE54: =IF(W54,INDEX(Форма2!$E$29:$K$38,SUMIFS(Форма2!$A$29:$A$38,Форма2!$B$29:$B$38,"<"&W54,Форма2!$C$29:$C$38,">="&W54),MATCH(W$4,Форма2!$E$2:$K$2,0)),"---") -> --- | AF54: =IF(X54,INDEX(Форма2!$E$29:$K$38,SUMIFS(Форма2!$A$29:$A$38,Форма2!$B$29:$B$38,"<"&X54,Форма2!$C$29:$C$38,">="&X54),MATCH(X$4,Форма2!$E$2:$K$2,0)),"---") -> --- | AG54: =IF(Y54,INDEX(Форма2!$E$29:$K$38,SUMIFS(Форма2!$A$29:$A$38,Форма2!$B$29:$B$38,"<"&Y54,Форма2!$C$29:$C$38,">="&Y54),MATCH(Y$4,Форма2!$E$2:$K$2,0)),"---") -> --- | AH54: =IF(Z54,INDEX(Форма2!$E$29:$K$38,SUMIFS(Форма2!$A$29:$A$38,Форма2!$B$29:$B$38,"<"&Z54,Форма2!$C$29:$C$38,">="&Z54),MATCH(Z$4,Форма2!$E$2:$K$2,0)),"---") -> --- | AI54: =IF(AA54,INDEX(Форма2!$E$29:$K$38,SUMIFS(Форма2!$A$29:$A$38,Форма2!$B$29:$B$38,"<"&AA54,Форма2!$C$29:$C$38,">="&AA54),MATCH(AA$4,Форма2!$E$2:$K$2,0)),"---") -> --- | AJ54: =SUM((($U54:$AA54)>Форма2!$B$40:$B$49)*(($U54:$AA54)<=Форма2!$C$40:$C$49)*(Форма2!$E$40:$K$49)) -> 0 | AK54: =IF(AJ54>=AJ$3,AK$3,INDEX(Форма3!$F$4:$J$4,,MAX(IFERROR(MATCH(RIGHT(AC54:AI54,2),Форма3!$F$4:$J$4,0),0)))) -> ЛУ | AL54: =SUM((($U54:$AA54)>Форма2!$B$7:$B$16)*(($U54:$AA54)<=Форма2!$C$7:$C$16)*(Форма2!$E$7:$K$16)) -> 0.05 | AM54: 398 | AN54: =SUMIFS(Потребители!D:D,Потребители!$B:$B,$B54) -> 398 | AO54: =SUMIFS(Потребители!E:E,Потребители!$B:$B,$B54) -> 0 | AP54: 13364.84 | AQ54: =SUMIFS(Потребители!G:G,Потребители!$B:$B,$B54) -> 13364.84 | AR54: =SUMIFS(Потребители!H:H,Потребители!$B:$B,$B54) -> 0 | AT54: 0 | AU54: =IF($AB54,MROUND(SUMIFS($I54:$K54,$I$3:$K$3,$AK54)*$AL54*Форма1!$E$45,10),0) -> 0 | AV54: =IF($AB54,FLOOR(SUM($AQ54:$AR54*Форма1!$E$40:$F$40)*($AB54/Форма1!$E$42),10),0) -> 0 | AW54: =IF($AB54,MROUND(SUMIFS($I54:$K54,$I$3:$K$3,$AK54)*Форма1!$F$45*$AL54,10),0) -> 0 | AX54: =IF($AB54,MROUND(SUMIFS($I54:$K54,$I$3:$K$3,$AK54)*Форма1!$G$45*$AL54,10),0) -> 0 | AZ54: 0 | BA54: =$AB54*Форма1!$E$50 -> 0 | BB54: =IF($AB54>Форма1!$E$53,-CUMIPMT(Форма1!$E$55,ROUND($AB54/Форма1!$E$53*Форма1!$E$54,0),$AB54,1,ROUND($AB54/Форма1!$E$53*Форма1!$E$54,0),0),0) -> 0 | BC54: =MROUND(SUM(Форма1!$E$38:$F$38*AQ54:AR54)/365*($AB54/Форма1!$E$58),10) -> 0 | BF54: 0 | BG54: =IF($AB54,MROUND(SUM($AN54:$AO54*Форма1!$K$40:$L$40),10),0) -> 0 | BL54: 0
A55: "Девятовка" | B55: Т51 | C55: ДC | D55: --- | E55: М4 | F55: Т51 | G55: --- | H55: 3 | I55: 204 | J55: =CHOOSE(Форма1!$M$22,IF(AVERAGEIFS(СтруктураСети!$G:$G,СтруктураСети!$H:$H,$B55)*Форма1!$M$23>I55,I55,AVERAGEIFS(СтруктураСети!$G:$G,СтруктураСети!$H:$H,$B55)*Форма1!$M$23),IF(VLOOKUP(C55,Форма1!$K$17:$M$20,3,0)*I55*Форма1!$M$23>I55,I55,VLOOKUP(C55,Форма1!$K$17:$M$20,3,0)*I55*Форма1!$M$23)) -> 48.96 | K55: =$J55*Форма1!$M$24 -> 12.24 | L55: 5 | M55: =COUNTIFS(Дефекты1!$A:$A,$B55,Дефекты1!$E:$E,M$4) -> 4 | N55: =COUNTIFS(Дефекты1!$A:$A,$B55,Дефекты1!$E:$E,N$4) -> 0 | O55: =COUNTIFS(Дефекты1!$A:$A,$B55,Дефекты1!$E:$E,O$4) -> 1 | P55: =COUNTIFS(Дефекты1!$A:$A,$B55,Дефекты1!$E:$E,P$4) -> 0 | Q55: =COUNTIFS(Дефекты1!$A:$A,$B55,Дефекты1!$E:$E,Q$4) -> 0 | R55: =COUNTIFS(Дефекты1!$A:$A,$B55,Дефекты1!$E:$E,R$4) -> 0 | S55: =COUNTIFS(Дефекты1!$A:$A,$B55,Дефекты1!$E:$E,S$4) -> 0 | T55: 24.50980392 | U55: 19.60784314 | V55: 0 | W55: 4.901960784 | X55: 0 | Y55: 0 | Z55: 0 | AA55: 0 | AB55: =IF(T55,IF(OR(NOT(ISERROR(MATCH(AB$3,$AC55:$AI55,0))),AJ55>=AJ$3),VLOOKUP(REPLACE(AB$3,6,2,$C55),Форма3!$M$17:$N$62,2,0)*$I55,SUM(MMULT((AC55:AI55=Форма3!$M$17:$M$62)*(Форма3!$N$17:$N$62),(TRANSPOSE(RIGHT(AC55:AI55,2))=($I$3:$K$3))*($I55:$K55)))),0) -> 12729600 | AC55: =IF(U55,INDEX(Форма2!$E$29:$K$38,SUMIFS(Форма2!$A$29:$A$38,Форма2!$B$29:$B$38,"<"&U55,Форма2!$C$29:$C$38,">="&U55),MATCH(U$4,Форма2!$E$2:$K$2,0)),"---") -> РМНТ-ЛУ | AD55: =IF(V55,INDEX(Форма2!$E$29:$K$38,SUMIFS(Форма2!$A$29:$A$38,Форма2!$B$29:$B$38,"<"&V55,Форма2!$C$29:$C$38,">="&V55),MATCH(V$4,Форма2!$E$2:$K$2,0)),"---") -> --- | AE55: =IF(W55,INDEX(Форма2!$E$29:$K$38,SUMIFS(Форма2!$A$29:$A$38,Форма2!$B$29:$B$38,"<"&W55,Форма2!$C$29:$C$38,">="&W55),MATCH(W$4,Форма2!$E$2:$K$2,0)),"---") -> УСТР-ЛТ | AF55: =IF(X55,INDEX(Форма2!$E$29:$K$38,SUMIFS(Форма2!$A$29:$A$38,Форма2!$B$29:$B$38,"<"&X55,Форма2!$C$29:$C$38,">="&X55),MATCH(X$4,Форма2!$E$2:$K$2,0)),"---") -> --- | AG55: =IF(Y55,INDEX(Форма2!$E$29:$K$38,SUMIFS(Форма2!$A$29:$A$38,Форма2!$B$29:$B$38,"<"&Y55,Форма2!$C$29:$C$38,">="&Y55),MATCH(Y$4,Форма2!$E$2:$K$2,0)),"---") -> --- | AH55: =IF(Z55,INDEX(Форма2!$E$29:$K$38,SUMIFS(Форма2!$A$29:$A$38,Форма2!$B$29:$B$38,"<"&Z55,Форма2!$C$29:$C$38,">="&Z55),MATCH(Z$4,Форма2!$E$2:$K$2,0)),"---") -> --- | AI55: =IF(AA55,INDEX(Форма2!$E$29:$K$38,SUMIFS(Форма2!$A$29:$A$38,Форма2!$B$29:$B$38,"<"&AA55,Форма2!$C$29:$C$38,">="&AA55),MATCH(AA$4,Форма2!$E$2:$K$2,0)),"---") -> --- | AJ55: =SUM((($U55:$AA55)>Форма2!$B$40:$B$49)*(($U55:$AA55)<=Форма2!$C$40:$C$49)*(Форма2!$E$40:$K$49)) -> 0.75 | AK55: =IF(AJ55>=AJ$3,AK$3,INDEX(Форма3!$F$4:$J$4,,MAX(IFERROR(MATCH(RIGHT(AC55:AI55,2),Форма3!$F$4:$J$4,0),0)))) -> ЛТ | AL55: =SUM((($U55:$AA55)>Форма2!$B$7:$B$16)*(($U55:$AA55)<=Форма2!$C$7:$C$16)*(Форма2!$E$7:$K$16)) -> 0.1547619048 | AM55: 656 | AN55: =SUMIFS(Потребители!D:D,Потребители!$B:$B,$B55) -> 656 | AO55: =SUMIFS(Потребители!E:E,Потребители!$B:$B,$B55) -> 0 | AP55: 22028.48 | AQ55: =SUMIFS(Потребители!G:G,Потребители!$B:$B,$B55) -> 22028.48 | AR55: =SUMIFS(Потребители!H:H,Потребители!$B:$B,$B55) -> 0 | AT55: 661060 | AU55: =IF($AB55,MROUND(SUMIFS($I55:$K55,$I$3:$K$3,$AK55)*$AL55*Форма1!$E$45,10),0) -> 174270 | AV55: =IF($AB55,FLOOR(SUM($AQ55:$AR55*Форма1!$E$40:$F$40)*($AB55/Форма1!$E$42),10),0) -> 1850 | AW55: =IF($AB55,MROUND(SUMIFS($I55:$K55,$I$3:$K$3,$AK55)*Форма1!$F$45*$AL55,10),0) -> 348550 | AX55: =IF($AB55,MROUND(SUMIFS($I55:$K55,$I$3:$K$3,$AK55)*Форма1!$G$45*$AL55,10),0) -> 136390 | AZ55: 3844300 | BA55: =$AB55*Форма1!$E$50 -> 3818880 | BB55: =IF($AB55>Форма1!$E$53,-CUMIPMT(Форма1!$E$55,ROUND($AB55/Форма1!$E$53*Форма1!$E$54,0),$AB55,1,ROUND($AB55/Форма1!$E$53*Форма1!$E$54,0),0),0) -> 0 | BC55: =MROUND(SUM(Форма1!$E$38:$F$38*AQ55:AR55)/365*($AB55/Форма1!$E$58),10) -> 25420 | BF55: 13120000 | BG55: =IF($AB55,MROUND(SUM($AN55:$AO55*Форма1!$K$40:$L$40),10),0) -> 13120000 | BL55: 0
A56: "Девятовка" | B56: Т52 | C56: ДC | D56: --- | E56: М4 | F56: Т52 | G56: --- | H56: 3 | I56: 81 | J56: =CHOOSE(Форма1!$M$22,IF(AVERAGEIFS(СтруктураСети!$G:$G,СтруктураСети!$H:$H,$B56)*Форма1!$M$23>I56,I56,AVERAGEIFS(СтруктураСети!$G:$G,СтруктураСети!$H:$H,$B56)*Форма1!$M$23),IF(VLOOKUP(C56,Форма1!$K$17:$M$20,3,0)*I56*Форма1!$M$23>I56,I56,VLOOKUP(C56,Форма1!$K$17:$M$20,3,0)*I56*Форма1!$M$23)) -> 19.44 | K56: =$J56*Форма1!$M$24 -> 4.86 | L56: 5 | M56: =COUNTIFS(Дефекты1!$A:$A,$B56,Дефекты1!$E:$E,M$4) -> 3 | N56: =COUNTIFS(Дефекты1!$A:$A,$B56,Дефекты1!$E:$E,N$4) -> 0 | O56: =COUNTIFS(Дефекты1!$A:$A,$B56,Дефекты1!$E:$E,O$4) -> 2 | P56: =COUNTIFS(Дефекты1!$A:$A,$B56,Дефекты1!$E:$E,P$4) -> 0 | Q56: =COUNTIFS(Дефекты1!$A:$A,$B56,Дефекты1!$E:$E,Q$4) -> 0 | R56: =COUNTIFS(Дефекты1!$A:$A,$B56,Дефекты1!$E:$E,R$4) -> 0 | S56: =COUNTIFS(Дефекты1!$A:$A,$B56,Дефекты1!$E:$E,S$4) -> 0 | T56: 61.72839506 | U56: 37.03703704 | V56: 0 | W56: 24.69135802 | X56: 0 | Y56: 0 | Z56: 0 | AA56: 0 | AB56: =IF(T56,IF(OR(NOT(ISERROR(MATCH(AB$3,$AC56:$AI56,0))),AJ56>=AJ$3),VLOOKUP(REPLACE(AB$3,6,2,$C56),Форма3!$M$17:$N$62,2,0)*$I56,SUM(MMULT((AC56:AI56=Форма3!$M$17:$M$62)*(Форма3!$N$17:$N$62),(TRANSPOSE(RIGHT(AC56:AI56,2))=($I$3:$K$3))*($I56:$K56)))),0) -> 5054400 | AC56: =IF(U56,INDEX(Форма2!$E$29:$K$38,SUMIFS(Форма2!$A$29:$A$38,Форма2!$B$29:$B$38,"<"&U56,Форма2!$C$29:$C$38,">="&U56),MATCH(U$4,Форма2!$E$2:$K$2,0)),"---") -> РМНТ-ЛУ | AD56: =IF(V56,INDEX(Форма2!$E$29:$K$38,SUMIFS(Форма2!$A$29:$A$38,Форма2!$B$29:$B$38,"<"&V56,Форма2!$C$29:$C$38,">="&V56),MATCH(V$4,Форма2!$E$2:$K$2,0)),"---") -> --- | AE56: =IF(W56,INDEX(Форма2!$E$29:$K$38,SUMIFS(Форма2!$A$29:$A$38,Форма2!$B$29:$B$38,"<"&W56,Форма2!$C$29:$C$38,">="&W56),MATCH(W$4,Форма2!$E$2:$K$2,0)),"---") -> УСТР-ЛТ | AF56: =IF(X56,INDEX(Форма2!$E$29:$K$38,SUMIFS(Форма2!$A$29:$A$38,Форма2!$B$29:$B$38,"<"&X56,Форма2!$C$29:$C$38,">="&X56),MATCH(X$4,Форма2!$E$2:$K$2,0)),"---") -> --- | AG56: =IF(Y56,INDEX(Форма2!$E$29:$K$38,SUMIFS(Форма2!$A$29:$A$38,Форма2!$B$29:$B$38,"<"&Y56,Форма2!$C$29:$C$38,">="&Y56),MATCH(Y$4,Форма2!$E$2:$K$2,0)),"---") -> --- | AH56: =IF(Z56,INDEX(Форма2!$E$29:$K$38,SUMIFS(Форма2!$A$29:$A$38,Форма2!$B$29:$B$38,"<"&Z56,Форма2!$C$29:$C$38,">="&Z56),MATCH(Z$4,Форма2!$E$2:$K$2,0)),"---") -> --- | AI56: =IF(AA56,INDEX(Форма2!$E$29:$K$38,SUMIFS(Форма2!$A$29:$A$38,Форма2!$B$29:$B$38,"<"&AA56,Форма2!$C$29:$C$38,">="&AA56),MATCH(AA$4,Форма2!$E$2:$K$2,0)),"---") -> --- | AJ56: =SUM((($U56:$AA56)>Форма2!$B$40:$B$49)*(($U56:$AA56)<=Форма2!$C$40:$C$49)*(Форма2!$E$40:$K$49)) -> 0.75 | AK56: =IF(AJ56>=AJ$3,AK$3,INDEX(Форма3!$F$4:$J$4,,MAX(IFERROR(MATCH(RIGHT(AC56:AI56,2),Форма3!$F$4:$J$4,0),0)))) -> ЛТ | AL56: =SUM((($U56:$AA56)>Форма2!$B$7:$B$16)*(($U56:$AA56)<=Форма2!$C$7:$C$16)*(Форма2!$E$7:$K$16)) -> 0.1547619048 | AM56: 172 | AN56: =SUMIFS(Потребители!D:D,Потребители!$B:$B,$B56) -> 172 | AO56: =SUMIFS(Потребители!E:E,Потребители!$B:$B,$B56) -> 0 | AP56: 5775.76 | AQ56: =SUMIFS(Потребители!G:G,Потребители!$B:$B,$B56) -> 5775.76 | AR56: =SUMIFS(Потребители!H:H,Потребители!$B:$B,$B56) -> 0 | AT56: 261930 | AU56: =IF($AB56,MROUND(SUMIFS($I56:$K56,$I$3:$K$3,$AK56)*$AL56*Форма1!$E$45,10),0) -> 69200 | AV56: =IF($AB56,FLOOR(SUM($AQ56:$AR56*Форма1!$E$40:$F$40)*($AB56/Форма1!$E$42),10),0) -> 190 | AW56: =IF($AB56,MROUND(SUMIFS($I56:$K56,$I$3:$K$3,$AK56)*Форма1!$F$45*$AL56,10),0) -> 138390 | AX56: =IF($AB56,MROUND(SUMIFS($I56:$K56,$I$3:$K$3,$AK56)*Форма1!$G$45*$AL56,10),0) -> 54150 | AZ56: 1518970 | BA56: =$AB56*Форма1!$E$50 -> 1516320 | BB56: =IF($AB56>Форма1!$E$53,-CUMIPMT(Форма1!$E$55,ROUND($AB56/Форма1!$E$53*Форма1!$E$54,0),$AB56,1,ROUND($AB56/Форма1!$E$53*Форма1!$E$54,0),0),0) -> 0 | BC56: =MROUND(SUM(Форма1!$E$38:$F$38*AQ56:AR56)/365*($AB56/Форма1!$E$58),10) -> 2650 | BF56: 3440000 | BG56: =IF($AB56,MROUND(SUM($AN56:$AO56*Форма1!$K$40:$L$40),10),0) -> 3440000 | BL56: 0
A57: "Девятовка" | B57: Т53 | C57: ДC | D57: --- | E57: М4 | F57: Т53 | G57: --- | H57: 3 | I57: 108 | J57: =CHOOSE(Форма1!$M$22,IF(AVERAGEIFS(СтруктураСети!$G:$G,СтруктураСети!$H:$H,$B57)*Форма1!$M$23>I57,I57,AVERAGEIFS(СтруктураСети!$G:$G,СтруктураСети!$H:$H,$B57)*Форма1!$M$23),IF(VLOOKUP(C57,Форма1!$K$17:$M$20,3,0)*I57*Форма1!$M$23>I57,I57,VLOOKUP(C57,Форма1!$K$17:$M$20,3,0)*I57*Форма1!$M$23)) -> 25.92 | K57: =$J57*Форма1!$M$24 -> 6.48 | L57: 6 | M57: =COUNTIFS(Дефекты1!$A:$A,$B57,Дефекты1!$E:$E,M$4) -> 1 | N57: =COUNTIFS(Дефекты1!$A:$A,$B57,Дефекты1!$E:$E,N$4) -> 0 | O57: =COUNTIFS(Дефекты1!$A:$A,$B57,Дефекты1!$E:$E,O$4) -> 3 | P57: =COUNTIFS(Дефекты1!$A:$A,$B57,Дефекты1!$E:$E,P$4) -> 0 | Q57: =COUNTIFS(Дефекты1!$A:$A,$B57,Дефекты1!$E:$E,Q$4) -> 0 | R57: =COUNTIFS(Дефекты1!$A:$A,$B57,Дефекты1!$E:$E,R$4) -> 2 | S57: =COUNTIFS(Дефекты1!$A:$A,$B57,Дефекты1!$E:$E,S$4) -> 0 | T57: 55.55555556 | U57: 9.259259259 | V57: 0 | W57: 27.77777778 | X57: 0 | Y57: 0 | Z57: 18.51851852 | AA57: 0 | AB57: =IF(T57,IF(OR(NOT(ISERROR(MATCH(AB$3,$AC57:$AI57,0))),AJ57>=AJ$3),VLOOKUP(REPLACE(AB$3,6,2,$C57),Форма3!$M$17:$N$62,2,0)*$I57,SUM(MMULT((AC57:AI57=Форма3!$M$17:$M$62)*(Форма3!$N$17:$N$62),(TRANSPOSE(RIGHT(AC57:AI57,2))=($I$3:$K$3))*($I57:$K57)))),0) -> 6739200 | AC57: =IF(U57,INDEX(Форма2!$E$29:$K$38,SUMIFS(Форма2!$A$29:$A$38,Форма2!$B$29:$B$38,"<"&U57,Форма2!$C$29:$C$38,">="&U57),MATCH(U$4,Форма2!$E$2:$K$2,0)),"---") -> РМНТ-ЛУ | AD57: =IF(V57,INDEX(Форма2!$E$29:$K$38,SUMIFS(Форма2!$A$29:$A$38,Форма2!$B$29:$B$38,"<"&V57,Форма2!$C$29:$C$38,">="&V57),MATCH(V$4,Форма2!$E$2:$K$2,0)),"---") -> --- | AE57: =IF(W57,INDEX(Форма2!$E$29:$K$38,SUMIFS(Форма2!$A$29:$A$38,Форма2!$B$29:$B$38,"<"&W57,Форма2!$C$29:$C$38,">="&W57),MATCH(W$4,Форма2!$E$2:$K$2,0)),"---") -> УСТР-ЛТ | AF57: =IF(X57,INDEX(Форма2!$E$29:$K$38,SUMIFS(Форма2!$A$29:$A$38,Форма2!$B$29:$B$38,"<"&X57,Форма2!$C$29:$C$38,">="&X57),MATCH(X$4,Форма2!$E$2:$K$2,0)),"---") -> --- | AG57: =IF(Y57,INDEX(Форма2!$E$29:$K$38,SUMIFS(Форма2!$A$29:$A$38,Форма2!$B$29:$B$38,"<"&Y57,Форма2!$C$29:$C$38,">="&Y57),MATCH(Y$4,Форма2!$E$2:$K$2,0)),"---") -> --- | AH57: =IF(Z57,INDEX(Форма2!$E$29:$K$38,SUMIFS(Форма2!$A$29:$A$38,Форма2!$B$29:$B$38,"<"&Z57,Форма2!$C$29:$C$38,">="&Z57),MATCH(Z$4,Форма2!$E$2:$K$2,0)),"---") -> --- | AI57: =IF(AA57,INDEX(Форма2!$E$29:$K$38,SUMIFS(Форма2!$A$29:$A$38,Форма2!$B$29:$B$38,"<"&AA57,Форма2!$C$29:$C$38,">="&AA57),MATCH(AA$4,Форма2!$E$2:$K$2,0)),"---") -> --- | AJ57: =SUM((($U57:$AA57)>Форма2!$B$40:$B$49)*(($U57:$AA57)<=Форма2!$C$40:$C$49)*(Форма2!$E$40:$K$49)) -> 0.75 | AK57: =IF(AJ57>=AJ$3,AK$3,INDEX(Форма3!$F$4:$J$4,,MAX(IFERROR(MATCH(RIGHT(AC57:AI57,2),Форма3!$F$4:$J$4,0),0)))) -> ЛТ | AL57: =SUM((($U57:$AA57)>Форма2!$B$7:$B$16)*(($U57:$AA57)<=Форма2!$C$7:$C$16)*(Форма2!$E$7:$K$16)) -> 0.2047619048 | AM57: 140 | AN57: =SUMIFS(Потребители!D:D,Потребители!$B:$B,$B57) -> 140 | AO57: =SUMIFS(Потребители!E:E,Потребители!$B:$B,$B57) -> 0 | AP57: 4701.2 | AQ57: =SUMIFS(Потребители!G:G,Потребители!$B:$B,$B57) -> 4701.2 | AR57: =SUMIFS(Потребители!H:H,Потребители!$B:$B,$B57) -> 0 | AT57: 461940 | AU57: =IF($AB57,MROUND(SUMIFS($I57:$K57,$I$3:$K$3,$AK57)*$AL57*Форма1!$E$45,10),0) -> 122070 | AV57: =IF($AB57,FLOOR(SUM($AQ57:$AR57*Форма1!$E$40:$F$40)*($AB57/Форма1!$E$42),10),0) -> 200 | AW57: =IF($AB57,MROUND(SUMIFS($I57:$K57,$I$3:$K$3,$AK57)*Форма1!$F$45*$AL57,10),0) -> 244140 | AX57: =IF($AB57,MROUND(SUMIFS($I57:$K57,$I$3:$K$3,$AK57)*Форма1!$G$45*$AL57,10),0) -> 95530 | AZ57: 2024630 | BA57: =$AB57*Форма1!$E$50 -> 2021760 | BB57: =IF($AB57>Форма1!$E$53,-CUMIPMT(Форма1!$E$55,ROUND($AB57/Форма1!$E$53*Форма1!$E$54,0),$AB57,1,ROUND($AB57/Форма1!$E$53*Форма1!$E$54,0),0),0) -> 0 | BC57: =MROUND(SUM(Форма1!$E$38:$F$38*AQ57:AR57)/365*($AB57/Форма1!$E$58),10) -> 2870 | BF57: 2800000 | BG57: =IF($AB57,MROUND(SUM($AN57:$AO57*Форма1!$K$40:$L$40),10),0) -> 2800000 | BL57: 0
A58: "Девятовка" | B58: Т54 | C58: ДC | D58: --- | E58: М4 | F58: Т54 | G58: --- | H58: 3 | I58: 102 | J58: =CHOOSE(Форма1!$M$22,IF(AVERAGEIFS(СтруктураСети!$G:$G,СтруктураСети!$H:$H,$B58)*Форма1!$M$23>I58,I58,AVERAGEIFS(СтруктураСети!$G:$G,СтруктураСети!$H:$H,$B58)*Форма1!$M$23),IF(VLOOKUP(C58,Форма1!$K$17:$M$20,3,0)*I58*Форма1!$M$23>I58,I58,VLOOKUP(C58,Форма1!$K$17:$M$20,3,0)*I58*Форма1!$M$23)) -> 24.48 | K58: =$J58*Форма1!$M$24 -> 6.12 | L58: 7 | M58: =COUNTIFS(Дефекты1!$A:$A,$B58,Дефекты1!$E:$E,M$4) -> 2 | N58: =COUNTIFS(Дефекты1!$A:$A,$B58,Дефекты1!$E:$E,N$4) -> 0 | O58: =COUNTIFS(Дефекты1!$A:$A,$B58,Дефекты1!$E:$E,O$4) -> 1 | P58: =COUNTIFS(Дефекты1!$A:$A,$B58,Дефекты1!$E:$E,P$4) -> 0 | Q58: =COUNTIFS(Дефекты1!$A:$A,$B58,Дефекты1!$E:$E,Q$4) -> 0 | R58: =COUNTIFS(Дефекты1!$A:$A,$B58,Дефекты1!$E:$E,R$4) -> 4 | S58: =COUNTIFS(Дефекты1!$A:$A,$B58,Дефекты1!$E:$E,S$4) -> 0 | T58: 68.62745098 | U58: 19.60784314 | V58: 0 | W58: 9.803921569 | X58: 0 | Y58: 0 | Z58: 39.21568627 | AA58: 0 | AB58: =IF(T58,IF(OR(NOT(ISERROR(MATCH(AB$3,$AC58:$AI58,0))),AJ58>=AJ$3),VLOOKUP(REPLACE(AB$3,6,2,$C58),Форма3!$M$17:$N$62,2,0)*$I58,SUM(MMULT((AC58:AI58=Форма3!$M$17:$M$62)*(Форма3!$N$17:$N$62),(TRANSPOSE(RIGHT(AC58:AI58,2))=($I$3:$K$3))*($I58:$K58)))),0) -> 6364800 | AC58: =IF(U58,INDEX(Форма2!$E$29:$K$38,SUMIFS(Форма2!$A$29:$A$38,Форма2!$B$29:$B$38,"<"&U58,Форма2!$C$29:$C$38,">="&U58),MATCH(U$4,Форма2!$E$2:$K$2,0)),"---") -> РМНТ-ЛУ | AD58: =IF(V58,INDEX(Форма2!$E$29:$K$38,SUMIFS(Форма2!$A$29:$A$38,Форма2!$B$29:$B$38,"<"&V58,Форма2!$C$29:$C$38,">="&V58),MATCH(V$4,Форма2!$E$2:$K$2,0)),"---") -> --- | AE58: =IF(W58,INDEX(Форма2!$E$29:$K$38,SUMIFS(Форма2!$A$29:$A$38,Форма2!$B$29:$B$38,"<"&W58,Форма2!$C$29:$C$38,">="&W58),MATCH(W$4,Форма2!$E$2:$K$2,0)),"---") -> УСТР-ЛТ | AF58: =IF(X58,INDEX(Форма2!$E$29:$K$38,SUMIFS(Форма2!$A$29:$A$38,Форма2!$B$29:$B$38,"<"&X58,Форма2!$C$29:$C$38,">="&X58),MATCH(X$4,Форма2!$E$2:$K$2,0)),"---") -> --- | AG58: =IF(Y58,INDEX(Форма2!$E$29:$K$38,SUMIFS(Форма2!$A$29:$A$38,Форма2!$B$29:$B$38,"<"&Y58,Форма2!$C$29:$C$38,">="&Y58),MATCH(Y$4,Форма2!$E$2:$K$2,0)),"---") -> --- | AH58: =IF(Z58,INDEX(Форма2!$E$29:$K$38,SUMIFS(Форма2!$A$29:$A$38,Форма2!$B$29:$B$38,"<"&Z58,Форма2!$C$29:$C$38,">="&Z58),MATCH(Z$4,Форма2!$E$2:$K$2,0)),"---") -> --- | AI58: =IF(AA58,INDEX(Форма2!$E$29:$K$38,SUMIFS(Форма2!$A$29:$A$38,Форма2!$B$29:$B$38,"<"&AA58,Форма2!$C$29:$C$38,">="&AA58),MATCH(AA$4,Форма2!$E$2:$K$2,0)),"---") -> --- | AJ58: =SUM((($U58:$AA58)>Форма2!$B$40:$B$49)*(($U58:$AA58)<=Форма2!$C$40:$C$49)*(Форма2!$E$40:$K$49)) -> 0.75 | AK58: =IF(AJ58>=AJ$3,AK$3,INDEX(Форма3!$F$4:$J$4,,MAX(IFERROR(MATCH(RIGHT(AC58:AI58,2),Форма3!$F$4:$J$4,0),0)))) -> ЛТ | AL58: =SUM((($U58:$AA58)>Форма2!$B$7:$B$16)*(($U58:$AA58)<=Форма2!$C$7:$C$16)*(Форма2!$E$7:$K$16)) -> 0.2047619048 | AM58: 79 | AN58: =SUMIFS(Потребители!D:D,Потребители!$B:$B,$B58) -> 79 | AO58: =SUMIFS(Потребители!E:E,Потребители!$B:$B,$B58) -> 0 | AP58: 2652.82 | AQ58: =SUMIFS(Потребители!G:G,Потребители!$B:$B,$B58) -> 2652.82 | AR58: =SUMIFS(Потребители!H:H,Потребители!$B:$B,$B58) -> 0 | AT58: 436210 | AU58: =IF($AB58,MROUND(SUMIFS($I58:$K58,$I$3:$K$3,$AK58)*$AL58*Форма1!$E$45,10),0) -> 115290 | AV58: =IF($AB58,FLOOR(SUM($AQ58:$AR58*Форма1!$E$40:$F$40)*($AB58/Форма1!$E$42),10),0) -> 110 | AW58: =IF($AB58,MROUND(SUMIFS($I58:$K58,$I$3:$K$3,$AK58)*Форма1!$F$45*$AL58,10),0) -> 230580 | AX58: =IF($AB58,MROUND(SUMIFS($I58:$K58,$I$3:$K$3,$AK58)*Форма1!$G$45*$AL58,10),0) -> 90230 | AZ58: 1910970 | BA58: =$AB58*Форма1!$E$50 -> 1909440 | BB58: =IF($AB58>Форма1!$E$53,-CUMIPMT(Форма1!$E$55,ROUND($AB58/Форма1!$E$53*Форма1!$E$54,0),$AB58,1,ROUND($AB58/Форма1!$E$53*Форма1!$E$54,0),0),0) -> 0 | BC58: =MROUND(SUM(Форма1!$E$38:$F$38*AQ58:AR58)/365*($AB58/Форма1!$E$58),10) -> 1530 | BF58: 1580000 | BG58: =IF($AB58,MROUND(SUM($AN58:$AO58*Форма1!$K$40:$L$40),10),0) -> 1580000 | BL58: 0
A59: "Девятовка" | B59: Т55 | C59: ДC | D59: --- | E59: М4 | F59: Т55 | G59: --- | H59: 3 | I59: 337 | J59: =CHOOSE(Форма1!$M$22,IF(AVERAGEIFS(СтруктураСети!$G:$G,СтруктураСети!$H:$H,$B59)*Форма1!$M$23>I59,I59,AVERAGEIFS(СтруктураСети!$G:$G,СтруктураСети!$H:$H,$B59)*Форма1!$M$23),IF(VLOOKUP(C59,Форма1!$K$17:$M$20,3,0)*I59*Форма1!$M$23>I59,I59,VLOOKUP(C59,Форма1!$K$17:$M$20,3,0)*I59*Форма1!$M$23)) -> 80.88 | K59: =$J59*Форма1!$M$24 -> 20.22 | L59: 2 | M59: =COUNTIFS(Дефекты1!$A:$A,$B59,Дефекты1!$E:$E,M$4) -> 0 | N59: =COUNTIFS(Дефекты1!$A:$A,$B59,Дефекты1!$E:$E,N$4) -> 0 | O59: =COUNTIFS(Дефекты1!$A:$A,$B59,Дефекты1!$E:$E,O$4) -> 0 | P59: =COUNTIFS(Дефекты1!$A:$A,$B59,Дефекты1!$E:$E,P$4) -> 0 | Q59: =COUNTIFS(Дефекты1!$A:$A,$B59,Дефекты1!$E:$E,Q$4) -> 0 | R59: =COUNTIFS(Дефекты1!$A:$A,$B59,Дефекты1!$E:$E,R$4) -> 2 | S59: =COUNTIFS(Дефекты1!$A:$A,$B59,Дефекты1!$E:$E,S$4) -> 0 | T59: 5.934718101 | U59: 0 | V59: 0 | W59: 0 | X59: 0 | Y59: 0 | Z59: 5.934718101 | AA59: 0 | AB59: =IF(T59,IF(OR(NOT(ISERROR(MATCH(AB$3,$AC59:$AI59,0))),AJ59>=AJ$3),VLOOKUP(REPLACE(AB$3,6,2,$C59),Форма3!$M$17:$N$62,2,0)*$I59,SUM(MMULT((AC59:AI59=Форма3!$M$17:$M$62)*(Форма3!$N$17:$N$62),(TRANSPOSE(RIGHT(AC59:AI59,2))=($I$3:$K$3))*($I59:$K59)))),0) -> 0 | AC59: =IF(U59,INDEX(Форма2!$E$29:$K$38,SUMIFS(Форма2!$A$29:$A$38,Форма2!$B$29:$B$38,"<"&U59,Форма2!$C$29:$C$38,">="&U59),MATCH(U$4,Форма2!$E$2:$K$2,0)),"---") -> --- | AD59: =IF(V59,INDEX(Форма2!$E$29:$K$38,SUMIFS(Форма2!$A$29:$A$38,Форма2!$B$29:$B$38,"<"&V59,Форма2!$C$29:$C$38,">="&V59),MATCH(V$4,Форма2!$E$2:$K$2,0)),"---") -> --- | AE59: =IF(W59,INDEX(Форма2!$E$29:$K$38,SUMIFS(Форма2!$A$29:$A$38,Форма2!$B$29:$B$38,"<"&W59,Форма2!$C$29:$C$38,">="&W59),MATCH(W$4,Форма2!$E$2:$K$2,0)),"---") -> --- | AF59: =IF(X59,INDEX(Форма2!$E$29:$K$38,SUMIFS(Форма2!$A$29:$A$38,Форма2!$B$29:$B$38,"<"&X59,Форма2!$C$29:$C$38,">="&X59),MATCH(X$4,Форма2!$E$2:$K$2,0)),"---") -> --- | AG59: =IF(Y59,INDEX(Форма2!$E$29:$K$38,SUMIFS(Форма2!$A$29:$A$38,Форма2!$B$29:$B$38,"<"&Y59,Форма2!$C$29:$C$38,">="&Y59),MATCH(Y$4,Форма2!$E$2:$K$2,0)),"---") -> --- | AH59: =IF(Z59,INDEX(Форма2!$E$29:$K$38,SUMIFS(Форма2!$A$29:$A$38,Форма2!$B$29:$B$38,"<"&Z59,Форма2!$C$29:$C$38,">="&Z59),MATCH(Z$4,Форма2!$E$2:$K$2,0)),"---") -> --- | AI59: =IF(AA59,INDEX(Форма2!$E$29:$K$38,SUMIFS(Форма2!$A$29:$A$38,Форма2!$B$29:$B$38,"<"&AA59,Форма2!$C$29:$C$38,">="&AA59),MATCH(AA$4,Форма2!$E$2:$K$2,0)),"---") -> --- | AJ59: =SUM((($U59:$AA59)>Форма2!$B$40:$B$49)*(($U59:$AA59)<=Форма2!$C$40:$C$49)*(Форма2!$E$40:$K$49)) -> 0 | AK59: =IF(AJ59>=AJ$3,AK$3,INDEX(Форма3!$F$4:$J$4,,MAX(IFERROR(MATCH(RIGHT(AC59:AI59,2),Форма3!$F$4:$J$4,0),0)))) -> ЛУ | AL59: =SUM((($U59:$AA59)>Форма2!$B$7:$B$16)*(($U59:$AA59)<=Форма2!$C$7:$C$16)*(Форма2!$E$7:$K$16)) -> 0.05 | AM59: 619 | AN59: =SUMIFS(Потребители!D:D,Потребители!$B:$B,$B59) -> 619 | AO59: =SUMIFS(Потребители!E:E,Потребители!$B:$B,$B59) -> 0 | AP59: 20786.02 | AQ59: =SUMIFS(Потребители!G:G,Потребители!$B:$B,$B59) -> 20786.02 | AR59: =SUMIFS(Потребители!H:H,Потребители!$B:$B,$B59) -> 0 | AT59: 0 | AU59: =IF($AB59,MROUND(SUMIFS($I59:$K59,$I$3:$K$3,$AK59)*$AL59*Форма1!$E$45,10),0) -> 0 | AV59: =IF($AB59,FLOOR(SUM($AQ59:$AR59*Форма1!$E$40:$F$40)*($AB59/Форма1!$E$42),10),0) -> 0 | AW59: =IF($AB59,MROUND(SUMIFS($I59:$K59,$I$3:$K$3,$AK59)*Форма1!$F$45*$AL59,10),0) -> 0 | AX59: =IF($AB59,MROUND(SUMIFS($I59:$K59,$I$3:$K$3,$AK59)*Форма1!$G$45*$AL59,10),0) -> 0 | AZ59: 0 | BA59: =$AB59*Форма1!$E$50 -> 0 | BB59: =IF($AB59>Форма1!$E$53,-CUMIPMT(Форма1!$E$55,ROUND($AB59/Форма1!$E$53*Форма1!$E$54,0),$AB59,1,ROUND($AB59/Форма1!$E$53*Форма1!$E$54,0),0),0) -> 0 | BC59: =MROUND(SUM(Форма1!$E$38:$F$38*AQ59:AR59)/365*($AB59/Форма1!$E$58),10) -> 0 | BF59: 0 | BG59: =IF($AB59,MROUND(SUM($AN59:$AO59*Форма1!$K$40:$L$40),10),0) -> 0 | BL59: 0
A60: "Девятовка" | B60: Т56 | C60: ДC | D60: --- | E60: М4 | F60: Т56 | G60: --- | H60: 3 | I60: 150 | J60: =CHOOSE(Форма1!$M$22,IF(AVERAGEIFS(СтруктураСети!$G:$G,СтруктураСети!$H:$H,$B60)*Форма1!$M$23>I60,I60,AVERAGEIFS(СтруктураСети!$G:$G,СтруктураСети!$H:$H,$B60)*Форма1!$M$23),IF(VLOOKUP(C60,Форма1!$K$17:$M$20,3,0)*I60*Форма1!$M$23>I60,I60,VLOOKUP(C60,Форма1!$K$17:$M$20,3,0)*I60*Форма1!$M$23)) -> 36 | K60: =$J60*Форма1!$M$24 -> 9 | L60: 4 | M60: =COUNTIFS(Дефекты1!$A:$A,$B60,Дефекты1!$E:$E,M$4) -> 0 | N60: =COUNTIFS(Дефекты1!$A:$A,$B60,Дефекты1!$E:$E,N$4) -> 0 | O60: =COUNTIFS(Дефекты1!$A:$A,$B60,Дефекты1!$E:$E,O$4) -> 3 | P60: =COUNTIFS(Дефекты1!$A:$A,$B60,Дефекты1!$E:$E,P$4) -> 0 | Q60: =COUNTIFS(Дефекты1!$A:$A,$B60,Дефекты1!$E:$E,Q$4) -> 0 | R60: =COUNTIFS(Дефекты1!$A:$A,$B60,Дефекты1!$E:$E,R$4) -> 1 | S60: =COUNTIFS(Дефекты1!$A:$A,$B60,Дефекты1!$E:$E,S$4) -> 0 | T60: 26.66666667 | U60: 0 | V60: 0 | W60: 20 | X60: 0 | Y60: 0 | Z60: 6.666666667 | AA60: 0 | AB60: =IF(T60,IF(OR(NOT(ISERROR(MATCH(AB$3,$AC60:$AI60,0))),AJ60>=AJ$3),VLOOKUP(REPLACE(AB$3,6,2,$C60),Форма3!$M$17:$N$62,2,0)*$I60,SUM(MMULT((AC60:AI60=Форма3!$M$17:$M$62)*(Форма3!$N$17:$N$62),(TRANSPOSE(RIGHT(AC60:AI60,2))=($I$3:$K$3))*($I60:$K60)))),0) -> 5760000 | AC60: =IF(U60,INDEX(Форма2!$E$29:$K$38,SUMIFS(Форма2!$A$29:$A$38,Форма2!$B$29:$B$38,"<"&U60,Форма2!$C$29:$C$38,">="&U60),MATCH(U$4,Форма2!$E$2:$K$2,0)),"---") -> --- | AD60: =IF(V60,INDEX(Форма2!$E$29:$K$38,SUMIFS(Форма2!$A$29:$A$38,Форма2!$B$29:$B$38,"<"&V60,Форма2!$C$29:$C$38,">="&V60),MATCH(V$4,Форма2!$E$2:$K$2,0)),"---") -> --- | AE60: =IF(W60,INDEX(Форма2!$E$29:$K$38,SUMIFS(Форма2!$A$29:$A$38,Форма2!$B$29:$B$38,"<"&W60,Форма2!$C$29:$C$38,">="&W60),MATCH(W$4,Форма2!$E$2:$K$2,0)),"---") -> УСТР-ЛТ | AF60: =IF(X60,INDEX(Форма2!$E$29:$K$38,SUMIFS(Форма2!$A$29:$A$38,Форма2!$B$29:$B$38,"<"&X60,Форма2!$C$29:$C$38,">="&X60),MATCH(X$4,Форма2!$E$2:$K$2,0)),"---") -> --- | AG60: =IF(Y60,INDEX(Форма2!$E$29:$K$38,SUMIFS(Форма2!$A$29:$A$38,Форма2!$B$29:$B$38,"<"&Y60,Форма2!$C$29:$C$38,">="&Y60),MATCH(Y$4,Форма2!$E$2:$K$2,0)),"---") -> --- | AH60: =IF(Z60,INDEX(Форма2!$E$29:$K$38,SUMIFS(Форма2!$A$29:$A$38,Форма2!$B$29:$B$38,"<"&Z60,Форма2!$C$29:$C$38,">="&Z60),MATCH(Z$4,Форма2!$E$2:$K$2,0)),"---") -> --- | AI60: =IF(AA60,INDEX(Форма2!$E$29:$K$38,SUMIFS(Форма2!$A$29:$A$38,Форма2!$B$29:$B$38,"<"&AA60,Форма2!$C$29:$C$38,">="&AA60),MATCH(AA$4,Форма2!$E$2:$K$2,0)),"---") -> --- | AJ60: =SUM((($U60:$AA60)>Форма2!$B$40:$B$49)*(($U60:$AA60)<=Форма2!$C$40:$C$49)*(Форма2!$E$40:$K$49)) -> 0.4 | AK60: =IF(AJ60>=AJ$3,AK$3,INDEX(Форма3!$F$4:$J$4,,MAX(IFERROR(MATCH(RIGHT(AC60:AI60,2),Форма3!$F$4:$J$4,0),0)))) -> ЛТ | AL60: =SUM((($U60:$AA60)>Форма2!$B$7:$B$16)*(($U60:$AA60)<=Форма2!$C$7:$C$16)*(Форма2!$E$7:$K$16)) -> 0.1214285714 | AM60: 0 | AN60: =SUMIFS(Потребители!D:D,Потребители!$B:$B,$B60) -> 0 | AO60: =SUMIFS(Потребители!E:E,Потребители!$B:$B,$B60) -> 0 | AP60: 0 | AQ60: =SUMIFS(Потребители!G:G,Потребители!$B:$B,$B60) -> 0 | AR60: =SUMIFS(Потребители!H:H,Потребители!$B:$B,$B60) -> 0 | AT60: 380320 | AU60: =IF($AB60,MROUND(SUMIFS($I60:$K60,$I$3:$K$3,$AK60)*$AL60*Форма1!$E$45,10),0) -> 100540 | AV60: =IF($AB60,FLOOR(SUM($AQ60:$AR60*Форма1!$E$40:$F$40)*($AB60/Форма1!$E$42),10),0) -> 0 | AW60: =IF($AB60,MROUND(SUMIFS($I60:$K60,$I$3:$K$3,$AK60)*Форма1!$F$45*$AL60,10),0) -> 201090 | AX60: =IF($AB60,MROUND(SUMIFS($I60:$K60,$I$3:$K$3,$AK60)*Форма1!$G$45*$AL60,10),0) -> 78690 | AZ60: 1728000 | BA60: =$AB60*Форма1!$E$50 -> 1728000 | BB60: =IF($AB60>Форма1!$E$53,-CUMIPMT(Форма1!$E$55,ROUND($AB60/Форма1!$E$53*Форма1!$E$54,0),$AB60,1,ROUND($AB60/Форма1!$E$53*Форма1!$E$54,0),0),0) -> 0 | BC60: =MROUND(SUM(Форма1!$E$38:$F$38*AQ60:AR60)/365*($AB60/Форма1!$E$58),10) -> 0 | BF60: 0 | BG60: =IF($AB60,MROUND(SUM($AN60:$AO60*Форма1!$K$40:$L$40),10),0) -> 0 | BL60: 0
A61: "Девятовка" | B61: Т57 | C61: ДC | D61: --- | E61: М4 | F61: Т57 | G61: --- | H61: 3 | I61: 36 | J61: =CHOOSE(Форма1!$M$22,IF(AVERAGEIFS(СтруктураСети!$G:$G,СтруктураСети!$H:$H,$B61)*Форма1!$M$23>I61,I61,AVERAGEIFS(СтруктураСети!$G:$G,СтруктураСети!$H:$H,$B61)*Форма1!$M$23),IF(VLOOKUP(C61,Форма1!$K$17:$M$20,3,0)*I61*Форма1!$M$23>I61,I61,VLOOKUP(C61,Форма1!$K$17:$M$20,3,0)*I61*Форма1!$M$23)) -> 8.64 | K61: =$J61*Форма1!$M$24 -> 2.16 | L61: 7 | M61: =COUNTIFS(Дефекты1!$A:$A,$B61,Дефекты1!$E:$E,M$4) -> 5 | N61: =COUNTIFS(Дефекты1!$A:$A,$B61,Дефекты1!$E:$E,N$4) -> 0 | O61: =COUNTIFS(Дефекты1!$A:$A,$B61,Дефекты1!$E:$E,O$4) -> 1 | P61: =COUNTIFS(Дефекты1!$A:$A,$B61,Дефекты1!$E:$E,P$4) -> 0 | Q61: =COUNTIFS(Дефекты1!$A:$A,$B61,Дефекты1!$E:$E,Q$4) -> 0 | R61: =COUNTIFS(Дефекты1!$A:$A,$B61,Дефекты1!$E:$E,R$4) -> 1 | S61: =COUNTIFS(Дефекты1!$A:$A,$B61,Дефекты1!$E:$E,S$4) -> 0 | T61: 194.4444444 | U61: 138.8888889 | V61: 0 | W61: 27.77777778 | X61: 0 | Y61: 0 | Z61: 27.77777778 | AA61: 0 | AB61: =IF(T61,IF(OR(NOT(ISERROR(MATCH(AB$3,$AC61:$AI61,0))),AJ61>=AJ$3),VLOOKUP(REPLACE(AB$3,6,2,$C61),Форма3!$M$17:$N$62,2,0)*$I61,SUM(MMULT((AC61:AI61=Форма3!$M$17:$M$62)*(Форма3!$N$17:$N$62),(TRANSPOSE(RIGHT(AC61:AI61,2))=($I$3:$K$3))*($I61:$K61)))),0) -> 6566400 | AC61: =IF(U61,INDEX(Форма2!$E$29:$K$38,SUMIFS(Форма2!$A$29:$A$38,Форма2!$B$29:$B$38,"<"&U61,Форма2!$C$29:$C$38,">="&U61),MATCH(U$4,Форма2!$E$2:$K$2,0)),"---") -> РМНТ-ЛТ | AD61: =IF(V61,INDEX(Форма2!$E$29:$K$38,SUMIFS(Форма2!$A$29:$A$38,Форма2!$B$29:$B$38,"<"&V61,Форма2!$C$29:$C$38,">="&V61),MATCH(V$4,Форма2!$E$2:$K$2,0)),"---") -> --- | AE61: =IF(W61,INDEX(Форма2!$E$29:$K$38,SUMIFS(Форма2!$A$29:$A$38,Форма2!$B$29:$B$38,"<"&W61,Форма2!$C$29:$C$38,">="&W61),MATCH(W$4,Форма2!$E$2:$K$2,0)),"---") -> УСТР-ЛТ | AF61: =IF(X61,INDEX(Форма2!$E$29:$K$38,SUMIFS(Форма2!$A$29:$A$38,Форма2!$B$29:$B$38,"<"&X61,Форма2!$C$29:$C$38,">="&X61),MATCH(X$4,Форма2!$E$2:$K$2,0)),"---") -> --- | AG61: =IF(Y61,INDEX(Форма2!$E$29:$K$38,SUMIFS(Форма2!$A$29:$A$38,Форма2!$B$29:$B$38,"<"&Y61,Форма2!$C$29:$C$38,">="&Y61),MATCH(Y$4,Форма2!$E$2:$K$2,0)),"---") -> --- | AH61: =IF(Z61,INDEX(Форма2!$E$29:$K$38,SUMIFS(Форма2!$A$29:$A$38,Форма2!$B$29:$B$38,"<"&Z61,Форма2!$C$29:$C$38,">="&Z61),MATCH(Z$4,Форма2!$E$2:$K$2,0)),"---") -> --- | AI61: =IF(AA61,INDEX(Форма2!$E$29:$K$38,SUMIFS(Форма2!$A$29:$A$38,Форма2!$B$29:$B$38,"<"&AA61,Форма2!$C$29:$C$38,">="&AA61),MATCH(AA$4,Форма2!$E$2:$K$2,0)),"---") -> --- | AJ61: =SUM((($U61:$AA61)>Форма2!$B$40:$B$49)*(($U61:$AA61)<=Форма2!$C$40:$C$49)*(Форма2!$E$40:$K$49)) -> 0.95 | AK61: =IF(AJ61>=AJ$3,AK$3,INDEX(Форма3!$F$4:$J$4,,MAX(IFERROR(MATCH(RIGHT(AC61:AI61,2),Форма3!$F$4:$J$4,0),0)))) -> ЛТ | AL61: =SUM((($U61:$AA61)>Форма2!$B$7:$B$16)*(($U61:$AA61)<=Форма2!$C$7:$C$16)*(Форма2!$E$7:$K$16)) -> 0.7047619048 | AM61: 100 | AN61: =SUMIFS(Потребители!D:D,Потребители!$B:$B,$B61) -> 100 | AO61: =SUMIFS(Потребители!E:E,Потребители!$B:$B,$B61) -> 0 | AP61: 3358 | AQ61: =SUMIFS(Потребители!G:G,Потребители!$B:$B,$B61) -> 3358 | AR61: =SUMIFS(Потребители!H:H,Потребители!$B:$B,$B61) -> 0 | AT61: 529890 | AU61: =IF($AB61,MROUND(SUMIFS($I61:$K61,$I$3:$K$3,$AK61)*$AL61*Форма1!$E$45,10),0) -> 140050 | AV61: =IF($AB61,FLOOR(SUM($AQ61:$AR61*Форма1!$E$40:$F$40)*($AB61/Форма1!$E$42),10),0) -> 140 | AW61: =IF($AB61,MROUND(SUMIFS($I61:$K61,$I$3:$K$3,$AK61)*Форма1!$F$45*$AL61,10),0) -> 280100 | AX61: =IF($AB61,MROUND(SUMIFS($I61:$K61,$I$3:$K$3,$AK61)*Форма1!$G$45*$AL61,10),0) -> 109600 | AZ61: 1971920 | BA61: =$AB61*Форма1!$E$50 -> 1969920 | BB61: =IF($AB61>Форма1!$E$53,-CUMIPMT(Форма1!$E$55,ROUND($AB61/Форма1!$E$53*Форма1!$E$54,0),$AB61,1,ROUND($AB61/Форма1!$E$53*Форма1!$E$54,0),0),0) -> 0 | BC61: =MROUND(SUM(Форма1!$E$38:$F$38*AQ61:AR61)/365*($AB61/Форма1!$E$58),10) -> 2000 | BF61: 2000000 | BG61: =IF($AB61,MROUND(SUM($AN61:$AO61*Форма1!$K$40:$L$40),10),0) -> 2000000 | BL61: 0
A62: "Девятовка" | B62: Т58 | C62: ДC | D62: --- | E62: М4 | F62: Т58 | G62: --- | H62: 3 | I62: 112 | J62: =CHOOSE(Форма1!$M$22,IF(AVERAGEIFS(СтруктураСети!$G:$G,СтруктураСети!$H:$H,$B62)*Форма1!$M$23>I62,I62,AVERAGEIFS(СтруктураСети!$G:$G,СтруктураСети!$H:$H,$B62)*Форма1!$M$23),IF(VLOOKUP(C62,Форма1!$K$17:$M$20,3,0)*I62*Форма1!$M$23>I62,I62,VLOOKUP(C62,Форма1!$K$17:$M$20,3,0)*I62*Форма1!$M$23)) -> 26.88 | K62: =$J62*Форма1!$M$24 -> 6.72 | L62: 6 | M62: =COUNTIFS(Дефекты1!$A:$A,$B62,Дефекты1!$E:$E,M$4) -> 3 | N62: =COUNTIFS(Дефекты1!$A:$A,$B62,Дефекты1!$E:$E,N$4) -> 0 | O62: =COUNTIFS(Дефекты1!$A:$A,$B62,Дефекты1!$E:$E,O$4) -> 2 | P62: =COUNTIFS(Дефекты1!$A:$A,$B62,Дефекты1!$E:$E,P$4) -> 0 | Q62: =COUNTIFS(Дефекты1!$A:$A,$B62,Дефекты1!$E:$E,Q$4) -> 0 | R62: =COUNTIFS(Дефекты1!$A:$A,$B62,Дефекты1!$E:$E,R$4) -> 1 | S62: =COUNTIFS(Дефекты1!$A:$A,$B62,Дефекты1!$E:$E,S$4) -> 0 | T62: 53.57142857 | U62: 26.78571429 | V62: 0 | W62: 17.85714286 | X62: 0 | Y62: 0 | Z62: 8.928571429 | AA62: 0 | AB62: =IF(T62,IF(OR(NOT(ISERROR(MATCH(AB$3,$AC62:$AI62,0))),AJ62>=AJ$3),VLOOKUP(REPLACE(AB$3,6,2,$C62),Форма3!$M$17:$N$62,2,0)*$I62,SUM(MMULT((AC62:AI62=Форма3!$M$17:$M$62)*(Форма3!$N$17:$N$62),(TRANSPOSE(RIGHT(AC62:AI62,2))=($I$3:$K$3))*($I62:$K62)))),0) -> 6988800 | AC62: =IF(U62,INDEX(Форма2!$E$29:$K$38,SUMIFS(Форма2!$A$29:$A$38,Форма2!$B$29:$B$38,"<"&U62,Форма2!$C$29:$C$38,">="&U62),MATCH(U$4,Форма2!$E$2:$K$2,0)),"---") -> РМНТ-ЛУ | AD62: =IF(V62,INDEX(Форма2!$E$29:$K$38,SUMIFS(Форма2!$A$29:$A$38,Форма2!$B$29:$B$38,"<"&V62,Форма2!$C$29:$C$38,">="&V62),MATCH(V$4,Форма2!$E$2:$K$2,0)),"---") -> --- | AE62: =IF(W62,INDEX(Форма2!$E$29:$K$38,SUMIFS(Форма2!$A$29:$A$38,Форма2!$B$29:$B$38,"<"&W62,Форма2!$C$29:$C$38,">="&W62),MATCH(W$4,Форма2!$E$2:$K$2,0)),"---") -> УСТР-ЛТ | AF62: =IF(X62,INDEX(Форма2!$E$29:$K$38,SUMIFS(Форма2!$A$29:$A$38,Форма2!$B$29:$B$38,"<"&X62,Форма2!$C$29:$C$38,">="&X62),MATCH(X$4,Форма2!$E$2:$K$2,0)),"---") -> --- | AG62: =IF(Y62,INDEX(Форма2!$E$29:$K$38,SUMIFS(Форма2!$A$29:$A$38,Форма2!$B$29:$B$38,"<"&Y62,Форма2!$C$29:$C$38,">="&Y62),MATCH(Y$4,Форма2!$E$2:$K$2,0)),"---") -> --- | AH62: =IF(Z62,INDEX(Форма2!$E$29:$K$38,SUMIFS(Форма2!$A$29:$A$38,Форма2!$B$29:$B$38,"<"&Z62,Форма2!$C$29:$C$38,">="&Z62),MATCH(Z$4,Форма2!$E$2:$K$2,0)),"---") -> --- | AI62: =IF(AA62,INDEX(Форма2!$E$29:$K$38,SUMIFS(Форма2!$A$29:$A$38,Форма2!$B$29:$B$38,"<"&AA62,Форма2!$C$29:$C$38,">="&AA62),MATCH(AA$4,Форма2!$E$2:$K$2,0)),"---") -> --- | AJ62: =SUM((($U62:$AA62)>Форма2!$B$40:$B$49)*(($U62:$AA62)<=Форма2!$C$40:$C$49)*(Форма2!$E$40:$K$49)) -> 0.75 | AK62: =IF(AJ62>=AJ$3,AK$3,INDEX(Форма3!$F$4:$J$4,,MAX(IFERROR(MATCH(RIGHT(AC62:AI62,2),Форма3!$F$4:$J$4,0),0)))) -> ЛТ | AL62: =SUM((($U62:$AA62)>Форма2!$B$7:$B$16)*(($U62:$AA62)<=Форма2!$C$7:$C$16)*(Форма2!$E$7:$K$16)) -> 0.2047619048 | AM62: 194 | AN62: =SUMIFS(Потребители!D:D,Потребители!$B:$B,$B62) -> 194 | AO62: =SUMIFS(Потребители!E:E,Потребители!$B:$B,$B62) -> 0 | AP62: 6514.52 | AQ62: =SUMIFS(Потребители!G:G,Потребители!$B:$B,$B62) -> 6514.52 | AR62: =SUMIFS(Потребители!H:H,Потребители!$B:$B,$B62) -> 0 | AT62: 479140 | AU62: =IF($AB62,MROUND(SUMIFS($I62:$K62,$I$3:$K$3,$AK62)*$AL62*Форма1!$E$45,10),0) -> 126590 | AV62: =IF($AB62,FLOOR(SUM($AQ62:$AR62*Форма1!$E$40:$F$40)*($AB62/Форма1!$E$42),10),0) -> 300 | AW62: =IF($AB62,MROUND(SUMIFS($I62:$K62,$I$3:$K$3,$AK62)*Форма1!$F$45*$AL62,10),0) -> 253180 | AX62: =IF($AB62,MROUND(SUMIFS($I62:$K62,$I$3:$K$3,$AK62)*Форма1!$G$45*$AL62,10),0) -> 99070 | AZ62: 2100770 | BA62: =$AB62*Форма1!$E$50 -> 2096640 | BB62: =IF($AB62>Форма1!$E$53,-CUMIPMT(Форма1!$E$55,ROUND($AB62/Форма1!$E$53*Форма1!$E$54,0),$AB62,1,ROUND($AB62/Форма1!$E$53*Форма1!$E$54,0),0),0) -> 0 | BC62: =MROUND(SUM(Форма1!$E$38:$F$38*AQ62:AR62)/365*($AB62/Форма1!$E$58),10) -> 4130 | BF62: 3880000 | BG62: =IF($AB62,MROUND(SUM($AN62:$AO62*Форма1!$K$40:$L$40),10),0) -> 3880000 | BL62: 0
A63: "Девятовка" | B63: Т59 | C63: ДC | D63: --- | E63: М4 | F63: Т59 | G63: --- | H63: 3 | I63: 100 | J63: =CHOOSE(Форма1!$M$22,IF(AVERAGEIFS(СтруктураСети!$G:$G,СтруктураСети!$H:$H,$B63)*Форма1!$M$23>I63,I63,AVERAGEIFS(СтруктураСети!$G:$G,СтруктураСети!$H:$H,$B63)*Форма1!$M$23),IF(VLOOKUP(C63,Форма1!$K$17:$M$20,3,0)*I63*Форма1!$M$23>I63,I63,VLOOKUP(C63,Форма1!$K$17:$M$20,3,0)*I63*Форма1!$M$23)) -> 24 | K63: =$J63*Форма1!$M$24 -> 6 | L63: 4 | M63: =COUNTIFS(Дефекты1!$A:$A,$B63,Дефекты1!$E:$E,M$4) -> 1 | N63: =COUNTIFS(Дефекты1!$A:$A,$B63,Дефекты1!$E:$E,N$4) -> 0 | O63: =COUNTIFS(Дефекты1!$A:$A,$B63,Дефекты1!$E:$E,O$4) -> 3 | P63: =COUNTIFS(Дефекты1!$A:$A,$B63,Дефекты1!$E:$E,P$4) -> 0 | Q63: =COUNTIFS(Дефекты1!$A:$A,$B63,Дефекты1!$E:$E,Q$4) -> 0 | R63: =COUNTIFS(Дефекты1!$A:$A,$B63,Дефекты1!$E:$E,R$4) -> 0 | S63: =COUNTIFS(Дефекты1!$A:$A,$B63,Дефекты1!$E:$E,S$4) -> 0 | T63: 40 | U63: 10 | V63: 0 | W63: 30 | X63: 0 | Y63: 0 | Z63: 0 | AA63: 0 | AB63: =IF(T63,IF(OR(NOT(ISERROR(MATCH(AB$3,$AC63:$AI63,0))),AJ63>=AJ$3),VLOOKUP(REPLACE(AB$3,6,2,$C63),Форма3!$M$17:$N$62,2,0)*$I63,SUM(MMULT((AC63:AI63=Форма3!$M$17:$M$62)*(Форма3!$N$17:$N$62),(TRANSPOSE(RIGHT(AC63:AI63,2))=($I$3:$K$3))*($I63:$K63)))),0) -> 6240000 | AC63: =IF(U63,INDEX(Форма2!$E$29:$K$38,SUMIFS(Форма2!$A$29:$A$38,Форма2!$B$29:$B$38,"<"&U63,Форма2!$C$29:$C$38,">="&U63),MATCH(U$4,Форма2!$E$2:$K$2,0)),"---") -> РМНТ-ЛУ | AD63: =IF(V63,INDEX(Форма2!$E$29:$K$38,SUMIFS(Форма2!$A$29:$A$38,Форма2!$B$29:$B$38,"<"&V63,Форма2!$C$29:$C$38,">="&V63),MATCH(V$4,Форма2!$E$2:$K$2,0)),"---") -> --- | AE63: =IF(W63,INDEX(Форма2!$E$29:$K$38,SUMIFS(Форма2!$A$29:$A$38,Форма2!$B$29:$B$38,"<"&W63,Форма2!$C$29:$C$38,">="&W63),MATCH(W$4,Форма2!$E$2:$K$2,0)),"---") -> УСТР-ЛТ | AF63: =IF(X63,INDEX(Форма2!$E$29:$K$38,SUMIFS(Форма2!$A$29:$A$38,Форма2!$B$29:$B$38,"<"&X63,Форма2!$C$29:$C$38,">="&X63),MATCH(X$4,Форма2!$E$2:$K$2,0)),"---") -> --- | AG63: =IF(Y63,INDEX(Форма2!$E$29:$K$38,SUMIFS(Форма2!$A$29:$A$38,Форма2!$B$29:$B$38,"<"&Y63,Форма2!$C$29:$C$38,">="&Y63),MATCH(Y$4,Форма2!$E$2:$K$2,0)),"---") -> --- | AH63: =IF(Z63,INDEX(Форма2!$E$29:$K$38,SUMIFS(Форма2!$A$29:$A$38,Форма2!$B$29:$B$38,"<"&Z63,Форма2!$C$29:$C$38,">="&Z63),MATCH(Z$4,Форма2!$E$2:$K$2,0)),"---") -> --- | AI63: =IF(AA63,INDEX(Форма2!$E$29:$K$38,SUMIFS(Форма2!$A$29:$A$38,Форма2!$B$29:$B$38,"<"&AA63,Форма2!$C$29:$C$38,">="&AA63),MATCH(AA$4,Форма2!$E$2:$K$2,0)),"---") -> --- | AJ63: =SUM((($U63:$AA63)>Форма2!$B$40:$B$49)*(($U63:$AA63)<=Форма2!$C$40:$C$49)*(Форма2!$E$40:$K$49)) -> 0.75 | AK63: =IF(AJ63>=AJ$3,AK$3,INDEX(Форма3!$F$4:$J$4,,MAX(IFERROR(MATCH(RIGHT(AC63:AI63,2),Форма3!$F$4:$J$4,0),0)))) -> ЛТ | AL63: =SUM((($U63:$AA63)>Форма2!$B$7:$B$16)*(($U63:$AA63)<=Форма2!$C$7:$C$16)*(Форма2!$E$7:$K$16)) -> 0.1547619048 | AM63: 194 | AN63: =SUMIFS(Потребители!D:D,Потребители!$B:$B,$B63) -> 194 | AO63: =SUMIFS(Потребители!E:E,Потребители!$B:$B,$B63) -> 0 | AP63: 6514.52 | AQ63: =SUMIFS(Потребители!G:G,Потребители!$B:$B,$B63) -> 6514.52 | AR63: =SUMIFS(Потребители!H:H,Потребители!$B:$B,$B63) -> 0 | AT63: 323410 | AU63: =IF($AB63,MROUND(SUMIFS($I63:$K63,$I$3:$K$3,$AK63)*$AL63*Форма1!$E$45,10),0) -> 85430 | AV63: =IF($AB63,FLOOR(SUM($AQ63:$AR63*Форма1!$E$40:$F$40)*($AB63/Форма1!$E$42),10),0) -> 260 | AW63: =IF($AB63,MROUND(SUMIFS($I63:$K63,$I$3:$K$3,$AK63)*Форма1!$F$45*$AL63,10),0) -> 170860 | AX63: =IF($AB63,MROUND(SUMIFS($I63:$K63,$I$3:$K$3,$AK63)*Форма1!$G$45*$AL63,10),0) -> 66860 | AZ63: 1875680 | BA63: =$AB63*Форма1!$E$50 -> 1872000 | BB63: =IF($AB63>Форма1!$E$53,-CUMIPMT(Форма1!$E$55,ROUND($AB63/Форма1!$E$53*Форма1!$E$54,0),$AB63,1,ROUND($AB63/Форма1!$E$53*Форма1!$E$54,0),0),0) -> 0 | BC63: =MROUND(SUM(Форма1!$E$38:$F$38*AQ63:AR63)/365*($AB63/Форма1!$E$58),10) -> 3680 | BF63: 3880000 | BG63: =IF($AB63,MROUND(SUM($AN63:$AO63*Форма1!$K$40:$L$40),10),0) -> 3880000 | BL63: 0
A64: "Девятовка" | B64: Т6 | C64: ДC | D64: --- | E64: М1 | F64: Т6 | G64: --- | H64: 3 | I64: 210 | J64: =CHOOSE(Форма1!$M$22,IF(AVERAGEIFS(СтруктураСети!$G:$G,СтруктураСети!$H:$H,$B64)*Форма1!$M$23>I64,I64,AVERAGEIFS(СтруктураСети!$G:$G,СтруктураСети!$H:$H,$B64)*Форма1!$M$23),IF(VLOOKUP(C64,Форма1!$K$17:$M$20,3,0)*I64*Форма1!$M$23>I64,I64,VLOOKUP(C64,Форма1!$K$17:$M$20,3,0)*I64*Форма1!$M$23)) -> 50.4 | K64: =$J64*Форма1!$M$24 -> 12.6 | L64: 8 | M64: =COUNTIFS(Дефекты1!$A:$A,$B64,Дефекты1!$E:$E,M$4) -> 1 | N64: =COUNTIFS(Дефекты1!$A:$A,$B64,Дефекты1!$E:$E,N$4) -> 1 | O64: =COUNTIFS(Дефекты1!$A:$A,$B64,Дефекты1!$E:$E,O$4) -> 0 | P64: =COUNTIFS(Дефекты1!$A:$A,$B64,Дефекты1!$E:$E,P$4) -> 0 | Q64: =COUNTIFS(Дефекты1!$A:$A,$B64,Дефекты1!$E:$E,Q$4) -> 0 | R64: =COUNTIFS(Дефекты1!$A:$A,$B64,Дефекты1!$E:$E,R$4) -> 6 | S64: =COUNTIFS(Дефекты1!$A:$A,$B64,Дефекты1!$E:$E,S$4) -> 0 | T64: 38.0952381 | U64: 4.761904762 | V64: 4.761904762 | W64: 0 | X64: 0 | Y64: 0 | Z64: 28.57142857 | AA64: 0 | AB64: =IF(T64,IF(OR(NOT(ISERROR(MATCH(AB$3,$AC64:$AI64,0))),AJ64>=AJ$3),VLOOKUP(REPLACE(AB$3,6,2,$C64),Форма3!$M$17:$N$62,2,0)*$I64,SUM(MMULT((AC64:AI64=Форма3!$M$17:$M$62)*(Форма3!$N$17:$N$62),(TRANSPOSE(RIGHT(AC64:AI64,2))=($I$3:$K$3))*($I64:$K64)))),0) -> 10080000 | AC64: =IF(U64,INDEX(Форма2!$E$29:$K$38,SUMIFS(Форма2!$A$29:$A$38,Форма2!$B$29:$B$38,"<"&U64,Форма2!$C$29:$C$38,">="&U64),MATCH(U$4,Форма2!$E$2:$K$2,0)),"---") -> РМНТ-ЛУ | AD64: =IF(V64,INDEX(Форма2!$E$29:$K$38,SUMIFS(Форма2!$A$29:$A$38,Форма2!$B$29:$B$38,"<"&V64,Форма2!$C$29:$C$38,">="&V64),MATCH(V$4,Форма2!$E$2:$K$2,0)),"---") -> РМНТ-ЛУ | AE64: =IF(W64,INDEX(Форма2!$E$29:$K$38,SUMIFS(Форма2!$A$29:$A$38,Форма2!$B$29:$B$38,"<"&W64,Форма2!$C$29:$C$38,">="&W64),MATCH(W$4,Форма2!$E$2:$K$2,0)),"---") -> --- | AF64: =IF(X64,INDEX(Форма2!$E$29:$K$38,SUMIFS(Форма2!$A$29:$A$38,Форма2!$B$29:$B$38,"<"&X64,Форма2!$C$29:$C$38,">="&X64),MATCH(X$4,Форма2!$E$2:$K$2,0)),"---") -> --- | AG64: =IF(Y64,INDEX(Форма2!$E$29:$K$38,SUMIFS(Форма2!$A$29:$A$38,Форма2!$B$29:$B$38,"<"&Y64,Форма2!$C$29:$C$38,">="&Y64),MATCH(Y$4,Форма2!$E$2:$K$2,0)),"---") -> --- | AH64: =IF(Z64,INDEX(Форма2!$E$29:$K$38,SUMIFS(Форма2!$A$29:$A$38,Форма2!$B$29:$B$38,"<"&Z64,Форма2!$C$29:$C$38,">="&Z64),MATCH(Z$4,Форма2!$E$2:$K$2,0)),"---") -> --- | AI64: =IF(AA64,INDEX(Форма2!$E$29:$K$38,SUMIFS(Форма2!$A$29:$A$38,Форма2!$B$29:$B$38,"<"&AA64,Форма2!$C$29:$C$38,">="&AA64),MATCH(AA$4,Форма2!$E$2:$K$2,0)),"---") -> --- | AJ64: =SUM((($U64:$AA64)>Форма2!$B$40:$B$49)*(($U64:$AA64)<=Форма2!$C$40:$C$49)*(Форма2!$E$40:$K$49)) -> 0.7 | AK64: =IF(AJ64>=AJ$3,AK$3,INDEX(Форма3!$F$4:$J$4,,MAX(IFERROR(MATCH(RIGHT(AC64:AI64,2),Форма3!$F$4:$J$4,0),0)))) -> ЛУ | AL64: =SUM((($U64:$AA64)>Форма2!$B$7:$B$16)*(($U64:$AA64)<=Форма2!$C$7:$C$16)*(Форма2!$E$7:$K$16)) -> 0.2333333333 | AM64: 381 | AN64: =SUMIFS(Потребители!D:D,Потребители!$B:$B,$B64) -> 381 | AO64: =SUMIFS(Потребители!E:E,Потребители!$B:$B,$B64) -> 0 | AP64: 12793.98 | AQ64: =SUMIFS(Потребители!G:G,Потребители!$B:$B,$B64) -> 12793.98 | AR64: =SUMIFS(Потребители!H:H,Потребители!$B:$B,$B64) -> 0 | AT64: 256630 | AU64: =IF($AB64,MROUND(SUMIFS($I64:$K64,$I$3:$K$3,$AK64)*$AL64*Форма1!$E$45,10),0) -> 67620 | AV64: =IF($AB64,FLOOR(SUM($AQ64:$AR64*Форма1!$E$40:$F$40)*($AB64/Форма1!$E$42),10),0) -> 850 | AW64: =IF($AB64,MROUND(SUMIFS($I64:$K64,$I$3:$K$3,$AK64)*Форма1!$F$45*$AL64,10),0) -> 135240 | AX64: =IF($AB64,MROUND(SUMIFS($I64:$K64,$I$3:$K$3,$AK64)*Форма1!$G$45*$AL64,10),0) -> 52920 | AZ64: 3035690 | BA64: =$AB64*Форма1!$E$50 -> 3024000 | BB64: =IF($AB64>Форма1!$E$53,-CUMIPMT(Форма1!$E$55,ROUND($AB64/Форма1!$E$53*Форма1!$E$54,0),$AB64,1,ROUND($AB64/Форма1!$E$53*Форма1!$E$54,0),0),0) -> 0 | BC64: =MROUND(SUM(Форма1!$E$38:$F$38*AQ64:AR64)/365*($AB64/Форма1!$E$58),10) -> 11690 | BF64: 7620000 | BG64: =IF($AB64,MROUND(SUM($AN64:$AO64*Форма1!$K$40:$L$40),10),0) -> 7620000 | BL64: 0
A65: "Девятовка" | B65: Т60 | C65: ДC | D65: --- | E65: М1 | F65: Т60 | G65: --- | H65: 3 | I65: 78 | J65: =CHOOSE(Форма1!$M$22,IF(AVERAGEIFS(СтруктураСети!$G:$G,СтруктураСети!$H:$H,$B65)*Форма1!$M$23>I65,I65,AVERAGEIFS(СтруктураСети!$G:$G,СтруктураСети!$H:$H,$B65)*Форма1!$M$23),IF(VLOOKUP(C65,Форма1!$K$17:$M$20,3,0)*I65*Форма1!$M$23>I65,I65,VLOOKUP(C65,Форма1!$K$17:$M$20,3,0)*I65*Форма1!$M$23)) -> 18.72 | K65: =$J65*Форма1!$M$24 -> 4.68 | L65: 12 | M65: =COUNTIFS(Дефекты1!$A:$A,$B65,Дефекты1!$E:$E,M$4) -> 4 | N65: =COUNTIFS(Дефекты1!$A:$A,$B65,Дефекты1!$E:$E,N$4) -> 0 | O65: =COUNTIFS(Дефекты1!$A:$A,$B65,Дефекты1!$E:$E,O$4) -> 3 | P65: =COUNTIFS(Дефекты1!$A:$A,$B65,Дефекты1!$E:$E,P$4) -> 0 | Q65: =COUNTIFS(Дефекты1!$A:$A,$B65,Дефекты1!$E:$E,Q$4) -> 0 | R65: =COUNTIFS(Дефекты1!$A:$A,$B65,Дефекты1!$E:$E,R$4) -> 5 | S65: =COUNTIFS(Дефекты1!$A:$A,$B65,Дефекты1!$E:$E,S$4) -> 0 | T65: 153.8461538 | U65: 51.28205128 | V65: 0 | W65: 38.46153846 | X65: 0 | Y65: 0 | Z65: 64.1025641 | AA65: 0 | AB65: =IF(T65,IF(OR(NOT(ISERROR(MATCH(AB$3,$AC65:$AI65,0))),AJ65>=AJ$3),VLOOKUP(REPLACE(AB$3,6,2,$C65),Форма3!$M$17:$N$62,2,0)*$I65,SUM(MMULT((AC65:AI65=Форма3!$M$17:$M$62)*(Форма3!$N$17:$N$62),(TRANSPOSE(RIGHT(AC65:AI65,2))=($I$3:$K$3))*($I65:$K65)))),0) -> 4867200 | AC65: =IF(U65,INDEX(Форма2!$E$29:$K$38,SUMIFS(Форма2!$A$29:$A$38,Форма2!$B$29:$B$38,"<"&U65,Форма2!$C$29:$C$38,">="&U65),MATCH(U$4,Форма2!$E$2:$K$2,0)),"---") -> РМНТ-ЛУ | AD65: =IF(V65,INDEX(Форма2!$E$29:$K$38,SUMIFS(Форма2!$A$29:$A$38,Форма2!$B$29:$B$38,"<"&V65,Форма2!$C$29:$C$38,">="&V65),MATCH(V$4,Форма2!$E$2:$K$2,0)),"---") -> --- | AE65: =IF(W65,INDEX(Форма2!$E$29:$K$38,SUMIFS(Форма2!$A$29:$A$38,Форма2!$B$29:$B$38,"<"&W65,Форма2!$C$29:$C$38,">="&W65),MATCH(W$4,Форма2!$E$2:$K$2,0)),"---") -> УСТР-ЛТ | AF65: =IF(X65,INDEX(Форма2!$E$29:$K$38,SUMIFS(Форма2!$A$29:$A$38,Форма2!$B$29:$B$38,"<"&X65,Форма2!$C$29:$C$38,">="&X65),MATCH(X$4,Форма2!$E$2:$K$2,0)),"---") -> --- | AG65: =IF(Y65,INDEX(Форма2!$E$29:$K$38,SUMIFS(Форма2!$A$29:$A$38,Форма2!$B$29:$B$38,"<"&Y65,Форма2!$C$29:$C$38,">="&Y65),MATCH(Y$4,Форма2!$E$2:$K$2,0)),"---") -> --- | AH65: =IF(Z65,INDEX(Форма2!$E$29:$K$38,SUMIFS(Форма2!$A$29:$A$38,Форма2!$B$29:$B$38,"<"&Z65,Форма2!$C$29:$C$38,">="&Z65),MATCH(Z$4,Форма2!$E$2:$K$2,0)),"---") -> --- | AI65: =IF(AA65,INDEX(Форма2!$E$29:$K$38,SUMIFS(Форма2!$A$29:$A$38,Форма2!$B$29:$B$38,"<"&AA65,Форма2!$C$29:$C$38,">="&AA65),MATCH(AA$4,Форма2!$E$2:$K$2,0)),"---") -> --- | AJ65: =SUM((($U65:$AA65)>Форма2!$B$40:$B$49)*(($U65:$AA65)<=Форма2!$C$40:$C$49)*(Форма2!$E$40:$K$49)) -> 0.75 | AK65: =IF(AJ65>=AJ$3,AK$3,INDEX(Форма3!$F$4:$J$4,,MAX(IFERROR(MATCH(RIGHT(AC65:AI65,2),Форма3!$F$4:$J$4,0),0)))) -> ЛТ | AL65: =SUM((($U65:$AA65)>Форма2!$B$7:$B$16)*(($U65:$AA65)<=Форма2!$C$7:$C$16)*(Форма2!$E$7:$K$16)) -> 0.4714285714 | AM65: 307 | AN65: =SUMIFS(Потребители!D:D,Потребители!$B:$B,$B65) -> 307 | AO65: =SUMIFS(Потребители!E:E,Потребители!$B:$B,$B65) -> 0 | AP65: 10309.06 | AQ65: =SUMIFS(Потребители!G:G,Потребители!$B:$B,$B65) -> 10309.06 | AR65: =SUMIFS(Потребители!H:H,Потребители!$B:$B,$B65) -> 0 | AT65: 768120 | AU65: =IF($AB65,MROUND(SUMIFS($I65:$K65,$I$3:$K$3,$AK65)*$AL65*Форма1!$E$45,10),0) -> 202980 | AV65: =IF($AB65,FLOOR(SUM($AQ65:$AR65*Форма1!$E$40:$F$40)*($AB65/Форма1!$E$42),10),0) -> 330 | AW65: =IF($AB65,MROUND(SUMIFS($I65:$K65,$I$3:$K$3,$AK65)*Форма1!$F$45*$AL65,10),0) -> 405960 | AX65: =IF($AB65,MROUND(SUMIFS($I65:$K65,$I$3:$K$3,$AK65)*Форма1!$G$45*$AL65,10),0) -> 158850 | AZ65: 1464710 | BA65: =$AB65*Форма1!$E$50 -> 1460160 | BB65: =IF($AB65>Форма1!$E$53,-CUMIPMT(Форма1!$E$55,ROUND($AB65/Форма1!$E$53*Форма1!$E$54,0),$AB65,1,ROUND($AB65/Форма1!$E$53*Форма1!$E$54,0),0),0) -> 0 | BC65: =MROUND(SUM(Форма1!$E$38:$F$38*AQ65:AR65)/365*($AB65/Форма1!$E$58),10) -> 4550 | BF65: 6140000 | BG65: =IF($AB65,MROUND(SUM($AN65:$AO65*Форма1!$K$40:$L$40),10),0) -> 6140000 | BL65: 0
A66: "Девятовка" | B66: Т61 | C66: ДC | D66: --- | E66: М2 | F66: Т61 | G66: --- | H66: 3 | I66: 238 | J66: =CHOOSE(Форма1!$M$22,IF(AVERAGEIFS(СтруктураСети!$G:$G,СтруктураСети!$H:$H,$B66)*Форма1!$M$23>I66,I66,AVERAGEIFS(СтруктураСети!$G:$G,СтруктураСети!$H:$H,$B66)*Форма1!$M$23),IF(VLOOKUP(C66,Форма1!$K$17:$M$20,3,0)*I66*Форма1!$M$23>I66,I66,VLOOKUP(C66,Форма1!$K$17:$M$20,3,0)*I66*Форма1!$M$23)) -> 57.12 | K66: =$J66*Форма1!$M$24 -> 14.28 | L66: 4 | M66: =COUNTIFS(Дефекты1!$A:$A,$B66,Дефекты1!$E:$E,M$4) -> 1 | N66: =COUNTIFS(Дефекты1!$A:$A,$B66,Дефекты1!$E:$E,N$4) -> 0 | O66: =COUNTIFS(Дефекты1!$A:$A,$B66,Дефекты1!$E:$E,O$4) -> 2 | P66: =COUNTIFS(Дефекты1!$A:$A,$B66,Дефекты1!$E:$E,P$4) -> 0 | Q66: =COUNTIFS(Дефекты1!$A:$A,$B66,Дефекты1!$E:$E,Q$4) -> 0 | R66: =COUNTIFS(Дефекты1!$A:$A,$B66,Дефекты1!$E:$E,R$4) -> 1 | S66: =COUNTIFS(Дефекты1!$A:$A,$B66,Дефекты1!$E:$E,S$4) -> 0 | T66: 16.80672269 | U66: 4.201680672 | V66: 0 | W66: 8.403361345 | X66: 0 | Y66: 0 | Z66: 4.201680672 | AA66: 0 | AB66: =IF(T66,IF(OR(NOT(ISERROR(MATCH(AB$3,$AC66:$AI66,0))),AJ66>=AJ$3),VLOOKUP(REPLACE(AB$3,6,2,$C66),Форма3!$M$17:$N$62,2,0)*$I66,SUM(MMULT((AC66:AI66=Форма3!$M$17:$M$62)*(Форма3!$N$17:$N$62),(TRANSPOSE(RIGHT(AC66:AI66,2))=($I$3:$K$3))*($I66:$K66)))),0) -> 14851200 | AC66: =IF(U66,INDEX(Форма2!$E$29:$K$38,SUMIFS(Форма2!$A$29:$A$38,Форма2!$B$29:$B$38,"<"&U66,Форма2!$C$29:$C$38,">="&U66),MATCH(U$4,Форма2!$E$2:$K$2,0)),"---") -> РМНТ-ЛУ | AD66: =IF(V66,INDEX(Форма2!$E$29:$K$38,SUMIFS(Форма2!$A$29:$A$38,Форма2!$B$29:$B$38,"<"&V66,Форма2!$C$29:$C$38,">="&V66),MATCH(V$4,Форма2!$E$2:$K$2,0)),"---") -> --- | AE66: =IF(W66,INDEX(Форма2!$E$29:$K$38,SUMIFS(Форма2!$A$29:$A$38,Форма2!$B$29:$B$38,"<"&W66,Форма2!$C$29:$C$38,">="&W66),MATCH(W$4,Форма2!$E$2:$K$2,0)),"---") -> УСТР-ЛТ | AF66: =IF(X66,INDEX(Форма2!$E$29:$K$38,SUMIFS(Форма2!$A$29:$A$38,Форма2!$B$29:$B$38,"<"&X66,Форма2!$C$29:$C$38,">="&X66),MATCH(X$4,Форма2!$E$2:$K$2,0)),"---") -> --- | AG66: =IF(Y66,INDEX(Форма2!$E$29:$K$38,SUMIFS(Форма2!$A$29:$A$38,Форма2!$B$29:$B$38,"<"&Y66,Форма2!$C$29:$C$38,">="&Y66),MATCH(Y$4,Форма2!$E$2:$K$2,0)),"---") -> --- | AH66: =IF(Z66,INDEX(Форма2!$E$29:$K$38,SUMIFS(Форма2!$A$29:$A$38,Форма2!$B$29:$B$38,"<"&Z66,Форма2!$C$29:$C$38,">="&Z66),MATCH(Z$4,Форма2!$E$2:$K$2,0)),"---") -> --- | AI66: =IF(AA66,INDEX(Форма2!$E$29:$K$38,SUMIFS(Форма2!$A$29:$A$38,Форма2!$B$29:$B$38,"<"&AA66,Форма2!$C$29:$C$38,">="&AA66),MATCH(AA$4,Форма2!$E$2:$K$2,0)),"---") -> --- | AJ66: =SUM((($U66:$AA66)>Форма2!$B$40:$B$49)*(($U66:$AA66)<=Форма2!$C$40:$C$49)*(Форма2!$E$40:$K$49)) -> 0.75 | AK66: =IF(AJ66>=AJ$3,AK$3,INDEX(Форма3!$F$4:$J$4,,MAX(IFERROR(MATCH(RIGHT(AC66:AI66,2),Форма3!$F$4:$J$4,0),0)))) -> ЛТ | AL66: =SUM((($U66:$AA66)>Форма2!$B$7:$B$16)*(($U66:$AA66)<=Форма2!$C$7:$C$16)*(Форма2!$E$7:$K$16)) -> 0.2047619048 | AM66: 551 | AN66: =SUMIFS(Потребители!D:D,Потребители!$B:$B,$B66) -> 551 | AO66: =SUMIFS(Потребители!E:E,Потребители!$B:$B,$B66) -> 0 | AP66: 18502.58 | AQ66: =SUMIFS(Потребители!G:G,Потребители!$B:$B,$B66) -> 18502.58 | AR66: =SUMIFS(Потребители!H:H,Потребители!$B:$B,$B66) -> 0 | AT66: 1019370 | AU66: =IF($AB66,MROUND(SUMIFS($I66:$K66,$I$3:$K$3,$AK66)*$AL66*Форма1!$E$45,10),0) -> 269010 | AV66: =IF($AB66,FLOOR(SUM($AQ66:$AR66*Форма1!$E$40:$F$40)*($AB66/Форма1!$E$42),10),0) -> 1810 | AW66: =IF($AB66,MROUND(SUMIFS($I66:$K66,$I$3:$K$3,$AK66)*Форма1!$F$45*$AL66,10),0) -> 538020 | AX66: =IF($AB66,MROUND(SUMIFS($I66:$K66,$I$3:$K$3,$AK66)*Форма1!$G$45*$AL66,10),0) -> 210530 | AZ66: 4480270 | BA66: =$AB66*Форма1!$E$50 -> 4455360 | BB66: =IF($AB66>Форма1!$E$53,-CUMIPMT(Форма1!$E$55,ROUND($AB66/Форма1!$E$53*Форма1!$E$54,0),$AB66,1,ROUND($AB66/Форма1!$E$53*Форма1!$E$54,0),0),0) -> 0 | BC66: =MROUND(SUM(Форма1!$E$38:$F$38*AQ66:AR66)/365*($AB66/Форма1!$E$58),10) -> 24910 | BF66: 11020000 | BG66: =IF($AB66,MROUND(SUM($AN66:$AO66*Форма1!$K$40:$L$40),10),0) -> 11020000 | BL66: 0
A67: "Девятовка" | B67: Т62 | C67: ДC | D67: --- | E67: М2 | F67: Т62 | G67: --- | H67: 3 | I67: 94 | J67: =CHOOSE(Форма1!$M$22,IF(AVERAGEIFS(СтруктураСети!$G:$G,СтруктураСети!$H:$H,$B67)*Форма1!$M$23>I67,I67,AVERAGEIFS(СтруктураСети!$G:$G,СтруктураСети!$H:$H,$B67)*Форма1!$M$23),IF(VLOOKUP(C67,Форма1!$K$17:$M$20,3,0)*I67*Форма1!$M$23>I67,I67,VLOOKUP(C67,Форма1!$K$17:$M$20,3,0)*I67*Форма1!$M$23)) -> 22.56 | K67: =$J67*Форма1!$M$24 -> 5.64 | L67: 10 | M67: =COUNTIFS(Дефекты1!$A:$A,$B67,Дефекты1!$E:$E,M$4) -> 2 | N67: =COUNTIFS(Дефекты1!$A:$A,$B67,Дефекты1!$E:$E,N$4) -> 0 | O67: =COUNTIFS(Дефекты1!$A:$A,$B67,Дефекты1!$E:$E,O$4) -> 3 | P67: =COUNTIFS(Дефекты1!$A:$A,$B67,Дефекты1!$E:$E,P$4) -> 0 | Q67: =COUNTIFS(Дефекты1!$A:$A,$B67,Дефекты1!$E:$E,Q$4) -> 0 | R67: =COUNTIFS(Дефекты1!$A:$A,$B67,Дефекты1!$E:$E,R$4) -> 5 | S67: =COUNTIFS(Дефекты1!$A:$A,$B67,Дефекты1!$E:$E,S$4) -> 0 | T67: 106.3829787 | U67: 21.27659574 | V67: 0 | W67: 31.91489362 | X67: 0 | Y67: 0 | Z67: 53.19148936 | AA67: 0 | AB67: =IF(T67,IF(OR(NOT(ISERROR(MATCH(AB$3,$AC67:$AI67,0))),AJ67>=AJ$3),VLOOKUP(REPLACE(AB$3,6,2,$C67),Форма3!$M$17:$N$62,2,0)*$I67,SUM(MMULT((AC67:AI67=Форма3!$M$17:$M$62)*(Форма3!$N$17:$N$62),(TRANSPOSE(RIGHT(AC67:AI67,2))=($I$3:$K$3))*($I67:$K67)))),0) -> 5865600 | AC67: =IF(U67,INDEX(Форма2!$E$29:$K$38,SUMIFS(Форма2!$A$29:$A$38,Форма2!$B$29:$B$38,"<"&U67,Форма2!$C$29:$C$38,">="&U67),MATCH(U$4,Форма2!$E$2:$K$2,0)),"---") -> РМНТ-ЛУ | AD67: =IF(V67,INDEX(Форма2!$E$29:$K$38,SUMIFS(Форма2!$A$29:$A$38,Форма2!$B$29:$B$38,"<"&V67,Форма2!$C$29:$C$38,">="&V67),MATCH(V$4,Форма2!$E$2:$K$2,0)),"---") -> --- | AE67: =IF(W67,INDEX(Форма2!$E$29:$K$38,SUMIFS(Форма2!$A$29:$A$38,Форма2!$B$29:$B$38,"<"&W67,Форма2!$C$29:$C$38,">="&W67),MATCH(W$4,Форма2!$E$2:$K$2,0)),"---") -> УСТР-ЛТ | AF67: =IF(X67,INDEX(Форма2!$E$29:$K$38,SUMIFS(Форма2!$A$29:$A$38,Форма2!$B$29:$B$38,"<"&X67,Форма2!$C$29:$C$38,">="&X67),MATCH(X$4,Форма2!$E$2:$K$2,0)),"---") -> --- | AG67: =IF(Y67,INDEX(Форма2!$E$29:$K$38,SUMIFS(Форма2!$A$29:$A$38,Форма2!$B$29:$B$38,"<"&Y67,Форма2!$C$29:$C$38,">="&Y67),MATCH(Y$4,Форма2!$E$2:$K$2,0)),"---") -> --- | AH67: =IF(Z67,INDEX(Форма2!$E$29:$K$38,SUMIFS(Форма2!$A$29:$A$38,Форма2!$B$29:$B$38,"<"&Z67,Форма2!$C$29:$C$38,">="&Z67),MATCH(Z$4,Форма2!$E$2:$K$2,0)),"---") -> --- | AI67: =IF(AA67,INDEX(Форма2!$E$29:$K$38,SUMIFS(Форма2!$A$29:$A$38,Форма2!$B$29:$B$38,"<"&AA67,Форма2!$C$29:$C$38,">="&AA67),MATCH(AA$4,Форма2!$E$2:$K$2,0)),"---") -> --- | AJ67: =SUM((($U67:$AA67)>Форма2!$B$40:$B$49)*(($U67:$AA67)<=Форма2!$C$40:$C$49)*(Форма2!$E$40:$K$49)) -> 0.75 | AK67: =IF(AJ67>=AJ$3,AK$3,INDEX(Форма3!$F$4:$J$4,,MAX(IFERROR(MATCH(RIGHT(AC67:AI67,2),Форма3!$F$4:$J$4,0),0)))) -> ЛТ | AL67: =SUM((($U67:$AA67)>Форма2!$B$7:$B$16)*(($U67:$AA67)<=Форма2!$C$7:$C$16)*(Форма2!$E$7:$K$16)) -> 0.3047619048 | AM67: 381 | AN67: =SUMIFS(Потребители!D:D,Потребители!$B:$B,$B67) -> 381 | AO67: =SUMIFS(Потребители!E:E,Потребители!$B:$B,$B67) -> 0 | AP67: 12793.98 | AQ67: =SUMIFS(Потребители!G:G,Потребители!$B:$B,$B67) -> 12793.98 | AR67: =SUMIFS(Потребители!H:H,Потребители!$B:$B,$B67) -> 0 | AT67: 598650 | AU67: =IF($AB67,MROUND(SUMIFS($I67:$K67,$I$3:$K$3,$AK67)*$AL67*Форма1!$E$45,10),0) -> 158130 | AV67: =IF($AB67,FLOOR(SUM($AQ67:$AR67*Форма1!$E$40:$F$40)*($AB67/Форма1!$E$42),10),0) -> 490 | AW67: =IF($AB67,MROUND(SUMIFS($I67:$K67,$I$3:$K$3,$AK67)*Форма1!$F$45*$AL67,10),0) -> 316270 | AX67: =IF($AB67,MROUND(SUMIFS($I67:$K67,$I$3:$K$3,$AK67)*Форма1!$G$45*$AL67,10),0) -> 123760 | AZ67: 1766480 | BA67: =$AB67*Форма1!$E$50 -> 1759680 | BB67: =IF($AB67>Форма1!$E$53,-CUMIPMT(Форма1!$E$55,ROUND($AB67/Форма1!$E$53*Форма1!$E$54,0),$AB67,1,ROUND($AB67/Форма1!$E$53*Форма1!$E$54,0),0),0) -> 0 | BC67: =MROUND(SUM(Форма1!$E$38:$F$38*AQ67:AR67)/365*($AB67/Форма1!$E$58),10) -> 6800 | BF67: 7620000 | BG67: =IF($AB67,MROUND(SUM($AN67:$AO67*Форма1!$K$40:$L$40),10),0) -> 7620000 | BL67: 0
A68: "Девятовка" | B68: Т63 | C68: ДC | D68: --- | E68: М2 | F68: Т63 | G68: --- | H68: 3 | I68: 183 | J68: =CHOOSE(Форма1!$M$22,IF(AVERAGEIFS(СтруктураСети!$G:$G,СтруктураСети!$H:$H,$B68)*Форма1!$M$23>I68,I68,AVERAGEIFS(СтруктураСети!$G:$G,СтруктураСети!$H:$H,$B68)*Форма1!$M$23),IF(VLOOKUP(C68,Форма1!$K$17:$M$20,3,0)*I68*Форма1!$M$23>I68,I68,VLOOKUP(C68,Форма1!$K$17:$M$20,3,0)*I68*Форма1!$M$23)) -> 43.92 | K68: =$J68*Форма1!$M$24 -> 10.98 | L68: 5 | M68: =COUNTIFS(Дефекты1!$A:$A,$B68,Дефекты1!$E:$E,M$4) -> 1 | N68: =COUNTIFS(Дефекты1!$A:$A,$B68,Дефекты1!$E:$E,N$4) -> 0 | O68: =COUNTIFS(Дефекты1!$A:$A,$B68,Дефекты1!$E:$E,O$4) -> 1 | P68: =COUNTIFS(Дефекты1!$A:$A,$B68,Дефекты1!$E:$E,P$4) -> 0 | Q68: =COUNTIFS(Дефекты1!$A:$A,$B68,Дефекты1!$E:$E,Q$4) -> 0 | R68: =COUNTIFS(Дефекты1!$A:$A,$B68,Дефекты1!$E:$E,R$4) -> 3 | S68: =COUNTIFS(Дефекты1!$A:$A,$B68,Дефекты1!$E:$E,S$4) -> 0 | T68: 27.32240437 | U68: 5.464480874 | V68: 0 | W68: 5.464480874 | X68: 0 | Y68: 0 | Z68: 16.39344262 | AA68: 0 | AB68: =IF(T68,IF(OR(NOT(ISERROR(MATCH(AB$3,$AC68:$AI68,0))),AJ68>=AJ$3),VLOOKUP(REPLACE(AB$3,6,2,$C68),Форма3!$M$17:$N$62,2,0)*$I68,SUM(MMULT((AC68:AI68=Форма3!$M$17:$M$62)*(Форма3!$N$17:$N$62),(TRANSPOSE(RIGHT(AC68:AI68,2))=($I$3:$K$3))*($I68:$K68)))),0) -> 11419200 | AC68: =IF(U68,INDEX(Форма2!$E$29:$K$38,SUMIFS(Форма2!$A$29:$A$38,Форма2!$B$29:$B$38,"<"&U68,Форма2!$C$29:$C$38,">="&U68),MATCH(U$4,Форма2!$E$2:$K$2,0)),"---") -> РМНТ-ЛУ | AD68: =IF(V68,INDEX(Форма2!$E$29:$K$38,SUMIFS(Форма2!$A$29:$A$38,Форма2!$B$29:$B$38,"<"&V68,Форма2!$C$29:$C$38,">="&V68),MATCH(V$4,Форма2!$E$2:$K$2,0)),"---") -> --- | AE68: =IF(W68,INDEX(Форма2!$E$29:$K$38,SUMIFS(Форма2!$A$29:$A$38,Форма2!$B$29:$B$38,"<"&W68,Форма2!$C$29:$C$38,">="&W68),MATCH(W$4,Форма2!$E$2:$K$2,0)),"---") -> УСТР-ЛТ | AF68: =IF(X68,INDEX(Форма2!$E$29:$K$38,SUMIFS(Форма2!$A$29:$A$38,Форма2!$B$29:$B$38,"<"&X68,Форма2!$C$29:$C$38,">="&X68),MATCH(X$4,Форма2!$E$2:$K$2,0)),"---") -> --- | AG68: =IF(Y68,INDEX(Форма2!$E$29:$K$38,SUMIFS(Форма2!$A$29:$A$38,Форма2!$B$29:$B$38,"<"&Y68,Форма2!$C$29:$C$38,">="&Y68),MATCH(Y$4,Форма2!$E$2:$K$2,0)),"---") -> --- | AH68: =IF(Z68,INDEX(Форма2!$E$29:$K$38,SUMIFS(Форма2!$A$29:$A$38,Форма2!$B$29:$B$38,"<"&Z68,Форма2!$C$29:$C$38,">="&Z68),MATCH(Z$4,Форма2!$E$2:$K$2,0)),"---") -> --- | AI68: =IF(AA68,INDEX(Форма2!$E$29:$K$38,SUMIFS(Форма2!$A$29:$A$38,Форма2!$B$29:$B$38,"<"&AA68,Форма2!$C$29:$C$38,">="&AA68),MATCH(AA$4,Форма2!$E$2:$K$2,0)),"---") -> --- | AJ68: =SUM((($U68:$AA68)>Форма2!$B$40:$B$49)*(($U68:$AA68)<=Форма2!$C$40:$C$49)*(Форма2!$E$40:$K$49)) -> 0.75 | AK68: =IF(AJ68>=AJ$3,AK$3,INDEX(Форма3!$F$4:$J$4,,MAX(IFERROR(MATCH(RIGHT(AC68:AI68,2),Форма3!$F$4:$J$4,0),0)))) -> ЛТ | AL68: =SUM((($U68:$AA68)>Форма2!$B$7:$B$16)*(($U68:$AA68)<=Форма2!$C$7:$C$16)*(Форма2!$E$7:$K$16)) -> 0.2047619048 | AM68: 269 | AN68: =SUMIFS(Потребители!D:D,Потребители!$B:$B,$B68) -> 269 | AO68: =SUMIFS(Потребители!E:E,Потребители!$B:$B,$B68) -> 0 | AP68: 9033.02 | AQ68: =SUMIFS(Потребители!G:G,Потребители!$B:$B,$B68) -> 9033.02 | AR68: =SUMIFS(Потребители!H:H,Потребители!$B:$B,$B68) -> 0 | AT68: 783080 | AU68: =IF($AB68,MROUND(SUMIFS($I68:$K68,$I$3:$K$3,$AK68)*$AL68*Форма1!$E$45,10),0) -> 206840 | AV68: =IF($AB68,FLOOR(SUM($AQ68:$AR68*Форма1!$E$40:$F$40)*($AB68/Форма1!$E$42),10),0) -> 680 | AW68: =IF($AB68,MROUND(SUMIFS($I68:$K68,$I$3:$K$3,$AK68)*Форма1!$F$45*$AL68,10),0) -> 413680 | AX68: =IF($AB68,MROUND(SUMIFS($I68:$K68,$I$3:$K$3,$AK68)*Форма1!$G$45*$AL68,10),0) -> 161880 | AZ68: 3435110 | BA68: =$AB68*Форма1!$E$50 -> 3425760 | BB68: =IF($AB68>Форма1!$E$53,-CUMIPMT(Форма1!$E$55,ROUND($AB68/Форма1!$E$53*Форма1!$E$54,0),$AB68,1,ROUND($AB68/Форма1!$E$53*Форма1!$E$54,0),0),0) -> 0 | BC68: =MROUND(SUM(Форма1!$E$38:$F$38*AQ68:AR68)/365*($AB68/Форма1!$E$58),10) -> 9350 | BF68: 5380000 | BG68: =IF($AB68,MROUND(SUM($AN68:$AO68*Форма1!$K$40:$L$40),10),0) -> 5380000 | BL68: 0
A69: "Девятовка" | B69: Т64 | C69: ДC | D69: --- | E69: М2 | F69: Т64 | G69: --- | H69: 3 | I69: 95 | J69: =CHOOSE(Форма1!$M$22,IF(AVERAGEIFS(СтруктураСети!$G:$G,СтруктураСети!$H:$H,$B69)*Форма1!$M$23>I69,I69,AVERAGEIFS(СтруктураСети!$G:$G,СтруктураСети!$H:$H,$B69)*Форма1!$M$23),IF(VLOOKUP(C69,Форма1!$K$17:$M$20,3,0)*I69*Форма1!$M$23>I69,I69,VLOOKUP(C69,Форма1!$K$17:$M$20,3,0)*I69*Форма1!$M$23)) -> 22.8 | K69: =$J69*Форма1!$M$24 -> 5.7 | L69: 7 | M69: =COUNTIFS(Дефекты1!$A:$A,$B69,Дефекты1!$E:$E,M$4) -> 1 | N69: =COUNTIFS(Дефекты1!$A:$A,$B69,Дефекты1!$E:$E,N$4) -> 0 | O69: =COUNTIFS(Дефекты1!$A:$A,$B69,Дефекты1!$E:$E,O$4) -> 0 | P69: =COUNTIFS(Дефекты1!$A:$A,$B69,Дефекты1!$E:$E,P$4) -> 0 | Q69: =COUNTIFS(Дефекты1!$A:$A,$B69,Дефекты1!$E:$E,Q$4) -> 0 | R69: =COUNTIFS(Дефекты1!$A:$A,$B69,Дефекты1!$E:$E,R$4) -> 5 | S69: =COUNTIFS(Дефекты1!$A:$A,$B69,Дефекты1!$E:$E,S$4) -> 1 | T69: 73.68421053 | U69: 10.52631579 | V69: 0 | W69: 0 | X69: 0 | Y69: 0 | Z69: 52.63157895 | AA69: 10.52631579 | AB69: =IF(T69,IF(OR(NOT(ISERROR(MATCH(AB$3,$AC69:$AI69,0))),AJ69>=AJ$3),VLOOKUP(REPLACE(AB$3,6,2,$C69),Форма3!$M$17:$N$62,2,0)*$I69,SUM(MMULT((AC69:AI69=Форма3!$M$17:$M$62)*(Форма3!$N$17:$N$62),(TRANSPOSE(RIGHT(AC69:AI69,2))=($I$3:$K$3))*($I69:$K69)))),0) -> 4560000 | AC69: =IF(U69,INDEX(Форма2!$E$29:$K$38,SUMIFS(Форма2!$A$29:$A$38,Форма2!$B$29:$B$38,"<"&U69,Форма2!$C$29:$C$38,">="&U69),MATCH(U$4,Форма2!$E$2:$K$2,0)),"---") -> РМНТ-ЛУ | AD69: =IF(V69,INDEX(Форма2!$E$29:$K$38,SUMIFS(Форма2!$A$29:$A$38,Форма2!$B$29:$B$38,"<"&V69,Форма2!$C$29:$C$38,">="&V69),MATCH(V$4,Форма2!$E$2:$K$2,0)),"---") -> --- | AE69: =IF(W69,INDEX(Форма2!$E$29:$K$38,SUMIFS(Форма2!$A$29:$A$38,Форма2!$B$29:$B$38,"<"&W69,Форма2!$C$29:$C$38,">="&W69),MATCH(W$4,Форма2!$E$2:$K$2,0)),"---") -> --- | AF69: =IF(X69,INDEX(Форма2!$E$29:$K$38,SUMIFS(Форма2!$A$29:$A$38,Форма2!$B$29:$B$38,"<"&X69,Форма2!$C$29:$C$38,">="&X69),MATCH(X$4,Форма2!$E$2:$K$2,0)),"---") -> --- | AG69: =IF(Y69,INDEX(Форма2!$E$29:$K$38,SUMIFS(Форма2!$A$29:$A$38,Форма2!$B$29:$B$38,"<"&Y69,Форма2!$C$29:$C$38,">="&Y69),MATCH(Y$4,Форма2!$E$2:$K$2,0)),"---") -> --- | AH69: =IF(Z69,INDEX(Форма2!$E$29:$K$38,SUMIFS(Форма2!$A$29:$A$38,Форма2!$B$29:$B$38,"<"&Z69,Форма2!$C$29:$C$38,">="&Z69),MATCH(Z$4,Форма2!$E$2:$K$2,0)),"---") -> --- | AI69: =IF(AA69,INDEX(Форма2!$E$29:$K$38,SUMIFS(Форма2!$A$29:$A$38,Форма2!$B$29:$B$38,"<"&AA69,Форма2!$C$29:$C$38,">="&AA69),MATCH(AA$4,Форма2!$E$2:$K$2,0)),"---") -> РМНТ-ЛУ | AJ69: =SUM((($U69:$AA69)>Форма2!$B$40:$B$49)*(($U69:$AA69)<=Форма2!$C$40:$C$49)*(Форма2!$E$40:$K$49)) -> 0.7 | AK69: =IF(AJ69>=AJ$3,AK$3,INDEX(Форма3!$F$4:$J$4,,MAX(IFERROR(MATCH(RIGHT(AC69:AI69,2),Форма3!$F$4:$J$4,0),0)))) -> ЛУ | AL69: =SUM((($U69:$AA69)>Форма2!$B$7:$B$16)*(($U69:$AA69)<=Форма2!$C$7:$C$16)*(Форма2!$E$7:$K$16)) -> 0.4 | AM69: 148 | AN69: =SUMIFS(Потребители!D:D,Потребители!$B:$B,$B69) -> 148 | AO69: =SUMIFS(Потребители!E:E,Потребители!$B:$B,$B69) -> 0 | AP69: 4969.84 | AQ69: =SUMIFS(Потребители!G:G,Потребители!$B:$B,$B69) -> 4969.84 | AR69: =SUMIFS(Потребители!H:H,Потребители!$B:$B,$B69) -> 0 | AT69: 198500 | AU69: =IF($AB69,MROUND(SUMIFS($I69:$K69,$I$3:$K$3,$AK69)*$AL69*Форма1!$E$45,10),0) -> 52440 | AV69: =IF($AB69,FLOOR(SUM($AQ69:$AR69*Форма1!$E$40:$F$40)*($AB69/Форма1!$E$42),10),0) -> 140 | AW69: =IF($AB69,MROUND(SUMIFS($I69:$K69,$I$3:$K$3,$AK69)*Форма1!$F$45*$AL69,10),0) -> 104880 | AX69: =IF($AB69,MROUND(SUMIFS($I69:$K69,$I$3:$K$3,$AK69)*Форма1!$G$45*$AL69,10),0) -> 41040 | AZ69: 1370050 | BA69: =$AB69*Форма1!$E$50 -> 1368000 | BB69: =IF($AB69>Форма1!$E$53,-CUMIPMT(Форма1!$E$55,ROUND($AB69/Форма1!$E$53*Форма1!$E$54,0),$AB69,1,ROUND($AB69/Форма1!$E$53*Форма1!$E$54,0),0),0) -> 0 | BC69: =MROUND(SUM(Форма1!$E$38:$F$38*AQ69:AR69)/365*($AB69/Форма1!$E$58),10) -> 2050 | BF69: 2960000 | BG69: =IF($AB69,MROUND(SUM($AN69:$AO69*Форма1!$K$40:$L$40),10),0) -> 2960000 | BL69: 0
